Workbook

Sheet 目次
F1: 下の「全データクリア」ボタンをクリックすると、本ツールを初期状態に戻せますので、ご自由に試用してみてください。（「商品マスタ」のデータはそのまま残ります。） 実際の管理を開始する際には ① 下の「全データクリア」ボタンをクリックし、試用した時にできたデータを消去してください。 ② 「棚卸入力」で現在の在庫数を登録した上で、納品書作成、入庫入力を開始して下さい。 ※ 作業後は、本エクセルファイルを別名で保管して、誤操作によるデータ喪失を防止することをお勧めします。
A2: 納品・在庫管理
Y5: シート名抽出式
B6: 目次 | D6: ※ 各項目の下線部をクリックするとそのページにジャンプします。 | Y6: =MID(Z6,FIND("]",Z6)+1,FIND("!",Z6)-FIND("]",Z6)-1) -> 納品書入力 | Z6: =CELL("address",納品書入力!F3) -> [納品・在庫管理_v0.0.xlsm]納品書入力!$F$3
Y7: =MID(Z7,FIND("]",Z7)+1,FIND("!",Z7)-FIND("]",Z7)-1) -> 納品書印刷 | Z7: =CELL("address",納品書印刷!F2) -> [納品・在庫管理_v0.0.xlsm]納品書印刷!$F$2
B8: １． | C8: 納品書入力 | F8: ここに納品内容を記入し、「発行」ボタンをクリックすると、納品書番号を自動採番し「納品書印刷」ページが開きます。 | Y8: =MID(Z8,FIND("]",Z8)+1,FIND("!",Z8)-FIND("]",Z8)-1) -> 入庫入力 | Z8: =CELL("address",入庫入力!F4) -> [納品・在庫管理_v0.0.xlsm]入庫入力!$F$4
Y9: 棚卸入力 | Z9: =CELL("address",棚卸入力!F5) -> [納品・在庫管理_v0.0.xlsm]棚卸入力!$F$5
B10: ２． | C10: 納品書印刷 | F10: ここに表示された納品書を印刷してご使用ください。発行済みの納品書番号を指定して再表示できます。 | Y10: 在庫表示 | Z10: =CELL("address",在庫表示!F6) -> [納品・在庫管理_v0.0.xlsm]在庫表示!$F$6
Y11: 商品マスタ | Z11: =CELL("address",商品マスタ!F7) -> [納品・在庫管理_v0.0.xlsm]商品マスタ!$F$7
B12: ３． | C12: 入庫入力 | F12: 新規商品が入庫したとき、このページで在庫情報を更新できます。 | Y12: 棚卸後在庫変更履歴 | Z12: =CELL("address",棚卸後在庫変更履歴!F8) -> [納品・在庫管理_v0.0.xlsm]棚卸後在庫変更履歴!$F$8
Y13: 在庫変更全履歴 | Z13: =CELL("address",在庫変更全履歴!F9) -> [納品・在庫管理_v0.0.xlsm]在庫変更全履歴!$F$9
B14: ４． | C14: 棚卸入力 | F14: 棚卸作業で確認した在庫数をこのページで入力し、在庫数を更新できます。 | Y14: 棚卸履歴 | Z14: =CELL("address",棚卸履歴!F10) -> [納品・在庫管理_v0.0.xlsm]棚卸履歴!$F$10
B16: ５． | C16: 在庫表示 | F16: 現在の在庫数を表示します。
B18: ６． | C18: 各種データ
B20: ① | C20: =商品マスタシート -> 商品マスタ | H20: 商品の名称、価格を登録します。
B22: ② | C22: =在庫シート -> 棚卸後在庫変更履歴 | H22: 棚卸で在庫数を確認し、更新した後の納品、入庫による在庫変更の履歴をここに自動的に記録します。
B24: ③ | C24: =在庫履歴シート -> 在庫変更全履歴 | H24: 運用開始以降、全ての納品、入庫による在庫変更の履歴をここに自動的に記録します。
B26: ④ | C26: =棚卸シート -> 棚卸履歴 | H26: 棚卸による在庫変更の履歴をここに自動的に記録します。

Sheet 納品書入力
E2: 納品書入力
E4: 様 | K4: ="１．① 納入先 ② 発行日 ③ 価格区分 ④商品番号 ⑤ 数量を記入して下さい。 ２．「発行」ボタンをクリックすると、 (1) 納品内容を「"&目次!Y12&"」シート及び「"&目次!Y13&"」シートに 記録し、「"&目次!Y7&"」シートを開きます。 (2) 「"&目次!Y10&"」シートの在庫数が更新されます。" -> １．① 納入先 ② 発行日 ③ 価格区分 ④商品番号 ⑤ 数量を記入して下さい。 ２．「発行」ボタンをクリックすると、 (1) 納品内容を「棚卸後在庫変更履歴」シート及び「在庫変更全履歴」シートに 記録し、「納品書印刷」シートを開きます。 (2) 「在庫表示」シートの在庫数が更新されます。
G5: 発行日 | H5: 2021-07-27
B6: № | C6: =MAX(在庫変更全履歴!$D$2:$D$1048576)+1 -> 000001
G7: 価格区分 | H7: 一般価格
C8: ※「商品番号」を記入すると、「商品名称」、「単価」を自動表示します。
C9: ※「名称の一部」を記入すると、それを含む商品名称をプルダウン表示しますので、該当するものをクリックしてください。 | K9: 商品番号－商品名対照表
B10: 番号 | C10: 商品番号 | D10: 名称の一部 | E10: 商品名称 | F10: 数量 | G10: 単価 | H10: 金額 | I10: （在庫残） | K10: 商品番号 | L10: 商品名 | M10: 一般価格 | N10: 会員価格 | O10: 団体価格 | Q10: 価格区分 | S10: 消費税率
B11: 1 | G11: =IFERROR(VALUE(INDEX($M$11:$O$110,MATCH($C11,$K$11:$K$110,0),MATCH($H$7,$Q$11:$Q$13,0))),0) -> 0 | H11: =IFERROR(F11*G11,0) -> 0 | I11: =IFERROR(INDEX(在庫表示!$F$11:$F$210,MATCH(C11,在庫表示!$B$11:$B$210,0))-F11,"") ->  | K11: =IF(商品マスタ!B5="","",商品マスタ!B5) -> 1 | L11: =IF(商品マスタ!C5="","",商品マスタ!C5) -> LIFESPAN（ライフスパン）―老いなき世界 | M11: =IF(商品マスタ!D5="","",商品マスタ!D5) -> 2,600 | N11: =IF(商品マスタ!E5="","",商品マスタ!E5) -> 2,080 | O11: =IF(商品マスタ!F5="","",商品マスタ!F5) -> 1,820 | Q11: 一般価格 | S11: 一般価格
B12: 2 | G12: 0 | H12: =IFERROR(F12*G12,0) -> 0 | I12: =IFERROR(INDEX(在庫表示!$F$11:$F$210,MATCH(C12,在庫表示!$B$11:$B$210,0))-F12,"") ->  | K12: =IF(商品マスタ!B6="","",商品マスタ!B6) -> 2 | L12: =IF(商品マスタ!C6="","",商品マスタ!C6) -> WHAT IS LIFE？（ホワット・イズ・ライフ？）生命とは何か | M12: =IF(商品マスタ!D6="","",商品マスタ!D6) -> 1,800 | N12: =IF(商品マスタ!E6="","",商品マスタ!E6) -> 1,440 | O12: =IF(商品マスタ!F6="","",商品マスタ!F6) -> 1,260 | Q12: 会員価格
B13: 3 | G13: 0 | H13: 0 | I13: =IFERROR(INDEX(在庫表示!$F$11:$F$210,MATCH(C13,在庫表示!$B$11:$B$210,0))-F13,"") ->  | K13: =IF(商品マスタ!B7="","",商品マスタ!B7) -> 3 | L13: =IF(商品マスタ!C7="","",商品マスタ!C7) -> 科学的とはどういう意味か | M13: =IF(商品マスタ!D7="","",商品マスタ!D7) -> 600 | N13: =IF(商品マスタ!E7="","",商品マスタ!E7) -> 480 | O13: =IF(商品マスタ!F7="","",商品マスタ!F7) -> 420 | Q13: 団体価格
B14: 4 | G14: 0 | H14: 0 | I14: =IFERROR(INDEX(在庫表示!$F$11:$F$210,MATCH(C14,在庫表示!$B$11:$B$210,0))-F14,"") ->  | K14: =IF(商品マスタ!B8="","",商品マスタ!B8) -> 4 | L14: =IF(商品マスタ!C8="","",商品マスタ!C8) -> コトPOP（R）を書いたら あっ、売れちゃった！ | M14: =IF(商品マスタ!D8="","",商品マスタ!D8) -> 1,600 | N14: =IF(商品マスタ!E8="","",商品マスタ!E8) -> 1,280 | O14: =IF(商品マスタ!F8="","",商品マスタ!F8) -> 1,120
B15: 5 | G15: 0 | H15: 0 | I15: =IFERROR(INDEX(在庫表示!$F$11:$F$210,MATCH(C15,在庫表示!$B$11:$B$210,0))-F15,"") ->  | K15: =IF(商品マスタ!B9="","",商品マスタ!B9) -> 5 | L15: =IF(商品マスタ!C9="","",商品マスタ!C9) -> 鉄腕アトム 地球最大の冒険 | M15: =IF(商品マスタ!D9="","",商品マスタ!D9) -> 1,500 | N15: =IF(商品マスタ!E9="","",商品マスタ!E9) -> 1,200 | O15: =IF(商品マスタ!F9="","",商品マスタ!F9) -> 1,050
B16: 6 | G16: 0 | H16: 0 | I16: =IFERROR(INDEX(在庫表示!$F$11:$F$210,MATCH(C16,在庫表示!$B$11:$B$210,0))-F16,"") ->  | K16: =IF(商品マスタ!B10="","",商品マスタ!B10) -> 6 | L16: =IF(商品マスタ!C10="","",商品マスタ!C10) -> 鉄腕アトム 地球防衛隊 | M16: =IF(商品マスタ!D10="","",商品マスタ!D10) -> 1,400 | N16: =IF(商品マスタ!E10="","",商品マスタ!E10) -> 1,120 | O16: =IF(商品マスタ!F10="","",商品マスタ!F10) -> 980
B17: 7 | G17: 0 | H17: 0 | I17: =IFERROR(INDEX(在庫表示!$F$11:$F$210,MATCH(C17,在庫表示!$B$11:$B$210,0))-F17,"") ->  | K17: =IF(商品マスタ!B11="","",商品マスタ!B11) -> 7 | L17: =IF(商品マスタ!C11="","",商品マスタ!C11) -> どうする？デザイン クライアントとのやりとりでよくわかる！デザインの決め方、伝え方 | M17: =IF(商品マスタ!D11="","",商品マスタ!D11) -> 2,200 | N17: =IF(商品マスタ!E11="","",商品マスタ!E11) -> 1,760 | O17: =IF(商品マスタ!F11="","",商品マスタ!F11) -> 1,540
B18: 8 | G18: 0 | H18: 0 | I18: =IFERROR(INDEX(在庫表示!$F$11:$F$210,MATCH(C18,在庫表示!$B$11:$B$210,0))-F18,"") ->  | K18: =IF(商品マスタ!B12="","",商品マスタ!B12) -> 8 | L18: =IF(商品マスタ!C12="","",商品マスタ!C12) -> ハッブル宇宙望遠鏡が見た絶景宇宙 SELECT 10 Vol.1 | M18: =IF(商品マスタ!D12="","",商品マスタ!D12) -> 100 | N18: =IF(商品マスタ!E12="","",商品マスタ!E12) -> 80 | O18: =IF(商品マスタ!F12="","",商品マスタ!F12) -> 70
B19: 9 | G19: 0 | H19: 0 | I19: =IFERROR(INDEX(在庫表示!$F$11:$F$210,MATCH(C19,在庫表示!$B$11:$B$210,0))-F19,"") ->  | K19: =IF(商品マスタ!B13="","",商品マスタ!B13) -> 9 | L19: =IF(商品マスタ!C13="","",商品マスタ!C13) -> ハムスターがおうちにやってきた！ | M19: =IF(商品マスタ!D13="","",商品マスタ!D13) -> 600 | N19: =IF(商品マスタ!E13="","",商品マスタ!E13) -> 480 | O19: =IF(商品マスタ!F13="","",商品マスタ!F13) -> 420
B20: 10 | G20: 0 | H20: 0 | I20: =IFERROR(INDEX(在庫表示!$F$11:$F$210,MATCH(C20,在庫表示!$B$11:$B$210,0))-F20,"") ->  | K20: =IF(商品マスタ!B14="","",商品マスタ!B14) -> 10 | L20: =IF(商品マスタ!C14="","",商品マスタ!C14) -> ビーカーくんのゆかいな化学実験 | M20: =IF(商品マスタ!D14="","",商品マスタ!D14) -> 1,600 | N20: =IF(商品マスタ!E14="","",商品マスタ!E14) -> 1,280 | O20: =IF(商品マスタ!F14="","",商品マスタ!F14) -> 1,120
B21: 11 | G21: 0 | H21: 0 | I21: =IFERROR(INDEX(在庫表示!$F$11:$F$210,MATCH(C21,在庫表示!$B$11:$B$210,0))-F21,"") ->  | K21: =IF(商品マスタ!B15="","",商品マスタ!B15) -> 11 | L21: =IF(商品マスタ!C15="","",商品マスタ!C15) -> ヒトを理解するための 生物学 | M21: =IF(商品マスタ!D15="","",商品マスタ!D15) -> 2,400 | N21: =IF(商品マスタ!E15="","",商品マスタ!E15) -> 1,920 | O21: =IF(商品マスタ!F15="","",商品マスタ!F15) -> 1,680
B22: 12 | G22: 0 | H22: 0 | I22: =IFERROR(INDEX(在庫表示!$F$11:$F$210,MATCH(C22,在庫表示!$B$11:$B$210,0))-F22,"") ->  | K22: =IF(商品マスタ!B16="","",商品マスタ!B16) -> 12 | L22: =IF(商品マスタ!C16="","",商品マスタ!C16) -> 富士山はどうしてそこにあるのか 地形から見る日本列島史 | M22: =IF(商品マスタ!D16="","",商品マスタ!D16) -> 900 | N22: =IF(商品マスタ!E16="","",商品マスタ!E16) -> 720 | O22: =IF(商品マスタ!F16="","",商品マスタ!F16) -> 630
B23: 13 | G23: 0 | H23: 0 | I23: =IFERROR(INDEX(在庫表示!$F$11:$F$210,MATCH(C23,在庫表示!$B$11:$B$210,0))-F23,"") ->  | K23: =IF(商品マスタ!B17="","",商品マスタ!B17) -> 13 | L23: =IF(商品マスタ!C17="","",商品マスタ!C17) -> 宇宙の「果て」になにがあるのか 最新天文学が描く、時間と空間の終わり | M23: =IF(商品マスタ!D17="","",商品マスタ!D17) -> 1,000 | N23: =IF(商品マスタ!E17="","",商品マスタ!E17) -> 800 | O23: =IF(商品マスタ!F17="","",商品マスタ!F17) -> 700
B24: 14 | G24: 0 | H24: 0 | I24: =IFERROR(INDEX(在庫表示!$F$11:$F$210,MATCH(C24,在庫表示!$B$11:$B$210,0))-F24,"") ->  | K24: =IF(商品マスタ!B18="","",商品マスタ!B18) -> 14 | L24: =IF(商品マスタ!C18="","",商品マスタ!C18) -> 宇宙は本当にひとつなのか―最新宇宙論入門 | M24: =IF(商品マスタ!D18="","",商品マスタ!D18) -> 900 | N24: =IF(商品マスタ!E18="","",商品マスタ!E18) -> 720 | O24: =IF(商品マスタ!F18="","",商品マスタ!F18) -> 630
B25: 15 | G25: 0 | H25: 0 | I25: =IFERROR(INDEX(在庫表示!$F$11:$F$210,MATCH(C25,在庫表示!$B$11:$B$210,0))-F25,"") ->  | K25: =IF(商品マスタ!B19="","",商品マスタ!B19) -> 15 | L25: =IF(商品マスタ!C19="","",商品マスタ!C19) -> 宇宙創成（上） | M25: =IF(商品マスタ!D19="","",商品マスタ!D19) -> 700 | N25: =IF(商品マスタ!E19="","",商品マスタ!E19) -> 560 | O25: =IF(商品マスタ!F19="","",商品マスタ!F19) -> 490
B26: 16 | G26: 0 | H26: 0 | I26: =IFERROR(INDEX(在庫表示!$F$11:$F$210,MATCH(C26,在庫表示!$B$11:$B$210,0))-F26,"") ->  | K26: =IF(商品マスタ!B20="","",商品マスタ!B20) -> 16 | L26: =IF(商品マスタ!C20="","",商品マスタ!C20) -> 宇宙望遠鏡がとらえた 銀河（ブックブライト） | M26: =IF(商品マスタ!D20="","",商品マスタ!D20) -> 900 | N26: =IF(商品マスタ!E20="","",商品マスタ!E20) -> 720 | O26: =IF(商品マスタ!F20="","",商品マスタ!F20) -> 630
B27: 17 | G27: 0 | H27: 0 | I27: =IFERROR(INDEX(在庫表示!$F$11:$F$210,MATCH(C27,在庫表示!$B$11:$B$210,0))-F27,"") ->  | K27: =IF(商品マスタ!B21="","",商品マスタ!B21) -> 17 | L27: =IF(商品マスタ!C21="","",商品マスタ!C21) -> 見てわかる、迷わず決まる配色アイデア 3色だけでセンスのいい色 | M27: =IF(商品マスタ!D21="","",商品マスタ!D21) -> 2,000 | N27: =IF(商品マスタ!E21="","",商品マスタ!E21) -> 1,600 | O27: =IF(商品マスタ!F21="","",商品マスタ!F21) -> 1,400
B28: 18 | G28: 0 | H28: 0 | I28: =IFERROR(INDEX(在庫表示!$F$11:$F$210,MATCH(C28,在庫表示!$B$11:$B$210,0))-F28,"") ->  | K28: =IF(商品マスタ!B22="","",商品マスタ!B22) -> 18 | L28: =IF(商品マスタ!C22="","",商品マスタ!C22) -> 写真加工で作る風景イラスト 神技作画シリーズ | M28: =IF(商品マスタ!D22="","",商品マスタ!D22) -> 2,200 | N28: =IF(商品マスタ!E22="","",商品マスタ!E22) -> 1,760 | O28: =IF(商品マスタ!F22="","",商品マスタ!F22) -> 1,540
B29: 19 | G29: 0 | H29: 0 | I29: =IFERROR(INDEX(在庫表示!$F$11:$F$210,MATCH(C29,在庫表示!$B$11:$B$210,0))-F29,"") ->  | K29: =IF(商品マスタ!B23="","",商品マスタ!B23) -> 19 | L29: =IF(商品マスタ!C23="","",商品マスタ!C23) -> 写真加工で作る風景イラスト 神技作画シリーズ | M29: =IF(商品マスタ!D23="","",商品マスタ!D23) -> 2,200 | N29: =IF(商品マスタ!E23="","",商品マスタ!E23) -> 1,760 | O29: =IF(商品マスタ!F23="","",商品マスタ!F23) -> 1,540
B30: 20 | G30: 0 | H30: 0 | I30: =IFERROR(INDEX(在庫表示!$F$11:$F$210,MATCH(C30,在庫表示!$B$11:$B$210,0))-F30,"") ->  | K30: =IF(商品マスタ!B24="","",商品マスタ!B24) -> 20 | L30: =IF(商品マスタ!C24="","",商品マスタ!C24) -> 重力とは何か アインシュタインから超弦理論へ、宇宙の謎に迫る | M30: =IF(商品マスタ!D24="","",商品マスタ!D24) -> 700 | N30: =IF(商品マスタ!E24="","",商品マスタ!E24) -> 560 | O30: =IF(商品マスタ!F24="","",商品マスタ!F24) -> 490
B31: 21 | G31: 0 | H31: 0 | I31: =IFERROR(INDEX(在庫表示!$F$11:$F$210,MATCH(C31,在庫表示!$B$11:$B$210,0))-F31,"") ->  | K31: =IF(商品マスタ!B25="","",商品マスタ!B25) -> 21 | L31: =IF(商品マスタ!C25="","",商品マスタ!C25) -> 図説 メイドインアビス 探窟記録【電子特典付き】 | M31: =IF(商品マスタ!D25="","",商品マスタ!D25) -> 5,500 | N31: =IF(商品マスタ!E25="","",商品マスタ!E25) -> 4,400 | O31: =IF(商品マスタ!F25="","",商品マスタ!F25) -> 3,850
B32: 22 | G32: 0 | H32: 0 | I32: =IFERROR(INDEX(在庫表示!$F$11:$F$210,MATCH(C32,在庫表示!$B$11:$B$210,0))-F32,"") ->  | K32: =IF(商品マスタ!B26="","",商品マスタ!B26) -> 22 | L32: =IF(商品マスタ!C26="","",商品マスタ!C26) -> 成功の秘密にアクセスできるギャラクシー・コード | M32: =IF(商品マスタ!D26="","",商品マスタ!D26) -> 1,500 | N32: =IF(商品マスタ!E26="","",商品マスタ!E26) -> 1,200 | O32: =IF(商品マスタ!F26="","",商品マスタ!F26) -> 1,050
B33: 23 | G33: 0 | H33: 0 | I33: =IFERROR(INDEX(在庫表示!$F$11:$F$210,MATCH(C33,在庫表示!$B$11:$B$210,0))-F33,"") ->  | K33: =IF(商品マスタ!B27="","",商品マスタ!B27) -> 23 | L33: =IF(商品マスタ!C27="","",商品マスタ!C27) -> 太陽系 絶景画像50 | M33: =IF(商品マスタ!D27="","",商品マスタ!D27) -> 500 | N33: =IF(商品マスタ!E27="","",商品マスタ!E27) -> 400 | O33: =IF(商品マスタ!F27="","",商品マスタ!F27) -> 350
B34: 24 | G34: 0 | H34: 0 | I34: =IFERROR(INDEX(在庫表示!$F$11:$F$210,MATCH(C34,在庫表示!$B$11:$B$210,0))-F34,"") ->  | K34: =IF(商品マスタ!B28="","",商品マスタ!B28) -> 24 | L34: =IF(商品マスタ!C28="","",商品マスタ!C28) -> 踊りませんか？ 社交ダンスの世界 | M34: =IF(商品マスタ!D28="","",商品マスタ!D28) -> 600 | N34: =IF(商品マスタ!E28="","",商品マスタ!E28) -> 480 | O34: =IF(商品マスタ!F28="","",商品マスタ!F28) -> 420
B35: 25 | G35: 0 | H35: 0 | I35: =IFERROR(INDEX(在庫表示!$F$11:$F$210,MATCH(C35,在庫表示!$B$11:$B$210,0))-F35,"") ->  | K35: =IF(商品マスタ!B29="","",商品マスタ!B29) -> 25 | L35: =IF(商品マスタ!C29="","",商品マスタ!C29) ->  | M35: =IF(商品マスタ!D29="","",商品マスタ!D29) ->  | N35: =IF(商品マスタ!E29="","",商品マスタ!E29) ->  | O35: =IF(商品マスタ!F29="","",商品マスタ!F29) -> 
B36: 26 | G36: 0 | H36: 0 | I36: =IFERROR(INDEX(在庫表示!$F$11:$F$210,MATCH(C36,在庫表示!$B$11:$B$210,0))-F36,"") ->  | K36: =IF(商品マスタ!B30="","",商品マスタ!B30) -> 26 | L36: =IF(商品マスタ!C30="","",商品マスタ!C30) ->  | M36: =IF(商品マスタ!D30="","",商品マスタ!D30) ->  | N36: =IF(商品マスタ!E30="","",商品マスタ!E30) ->  | O36: =IF(商品マスタ!F30="","",商品マスタ!F30) -> 
B37: 27 | G37: 0 | H37: 0 | I37: =IFERROR(INDEX(在庫表示!$F$11:$F$210,MATCH(C37,在庫表示!$B$11:$B$210,0))-F37,"") ->  | K37: =IF(商品マスタ!B31="","",商品マスタ!B31) -> 27 | L37: =IF(商品マスタ!C31="","",商品マスタ!C31) ->  | M37: =IF(商品マスタ!D31="","",商品マスタ!D31) ->  | N37: =IF(商品マスタ!E31="","",商品マスタ!E31) ->  | O37: =IF(商品マスタ!F31="","",商品マスタ!F31) -> 
B38: 28 | G38: 0 | H38: 0 | I38: =IFERROR(INDEX(在庫表示!$F$11:$F$210,MATCH(C38,在庫表示!$B$11:$B$210,0))-F38,"") ->  | K38: =IF(商品マスタ!B32="","",商品マスタ!B32) -> 28 | L38: =IF(商品マスタ!C32="","",商品マスタ!C32) ->  | M38: =IF(商品マスタ!D32="","",商品マスタ!D32) ->  | N38: =IF(商品マスタ!E32="","",商品マスタ!E32) ->  | O38: =IF(商品マスタ!F32="","",商品マスタ!F32) -> 
B39: 29 | G39: 0 | H39: 0 | I39: =IFERROR(INDEX(在庫表示!$F$11:$F$210,MATCH(C39,在庫表示!$B$11:$B$210,0))-F39,"") ->  | K39: =IF(商品マスタ!B33="","",商品マスタ!B33) -> 29 | L39: =IF(商品マスタ!C33="","",商品マスタ!C33) ->  | M39: =IF(商品マスタ!D33="","",商品マスタ!D33) ->  | N39: =IF(商品マスタ!E33="","",商品マスタ!E33) ->  | O39: =IF(商品マスタ!F33="","",商品マスタ!F33) -> 
B40: 30 | G40: 0 | H40: 0 | I40: =IFERROR(INDEX(在庫表示!$F$11:$F$210,MATCH(C40,在庫表示!$B$11:$B$210,0))-F40,"") ->  | K40: =IF(商品マスタ!B34="","",商品マスタ!B34) -> 30 | L40: =IF(商品マスタ!C34="","",商品マスタ!C34) ->  | M40: =IF(商品マスタ!D34="","",商品マスタ!D34) ->  | N40: =IF(商品マスタ!E34="","",商品マスタ!E34) ->  | O40: =IF(商品マスタ!F34="","",商品マスタ!F34) -> 
B41: 合計金額 | H41: =SUM($H$11:$H$40) -> ¥0 | K41: =IF(商品マスタ!B35="","",商品マスタ!B35) -> 31 | L41: =IF(商品マスタ!C35="","",商品マスタ!C35) ->  | M41: =IF(商品マスタ!D35="","",商品マスタ!D35) ->  | N41: =IF(商品マスタ!E35="","",商品マスタ!E35) ->  | O41: =IF(商品マスタ!F35="","",商品マスタ!F35) -> 
B42: 消費税 | H42: =ROUNDDOWN(H41,0) -> ¥0 | K42: =IF(商品マスタ!B36="","",商品マスタ!B36) -> 32 | L42: =IF(商品マスタ!C36="","",商品マスタ!C36) ->  | M42: =IF(商品マスタ!D36="","",商品マスタ!D36) ->  | N42: =IF(商品マスタ!E36="","",商品マスタ!E36) ->  | O42: =IF(商品マスタ!F36="","",商品マスタ!F36) -> 
B43: 請求金額 | H43: =H41+H42 -> ¥0 | K43: =IF(商品マスタ!B37="","",商品マスタ!B37) -> 33 | L43: =IF(商品マスタ!C37="","",商品マスタ!C37) ->  | M43: =IF(商品マスタ!D37="","",商品マスタ!D37) ->  | N43: =IF(商品マスタ!E37="","",商品マスタ!E37) ->  | O43: =IF(商品マスタ!F37="","",商品マスタ!F37) -> 
K44: =IF(商品マスタ!B38="","",商品マスタ!B38) -> 34 | L44: =IF(商品マスタ!C38="","",商品マスタ!C38) ->  | M44: =IF(商品マスタ!D38="","",商品マスタ!D38) ->  | N44: =IF(商品マスタ!E38="","",商品マスタ!E38) ->  | O44: =IF(商品マスタ!F38="","",商品マスタ!F38) -> 
K45: =IF(商品マスタ!B39="","",商品マスタ!B39) -> 35 | L45: =IF(商品マスタ!C39="","",商品マスタ!C39) ->  | M45: =IF(商品マスタ!D39="","",商品マスタ!D39) ->  | N45: =IF(商品マスタ!E39="","",商品マスタ!E39) ->  | O45: =IF(商品マスタ!F39="","",商品マスタ!F39) -> 
K46: =IF(商品マスタ!B40="","",商品マスタ!B40) -> 36 | L46: =IF(商品マスタ!C40="","",商品マスタ!C40) ->  | M46: =IF(商品マスタ!D40="","",商品マスタ!D40) ->  | N46: =IF(商品マスタ!E40="","",商品マスタ!E40) ->  | O46: =IF(商品マスタ!F40="","",商品マスタ!F40) -> 
K47: =IF(商品マスタ!B41="","",商品マスタ!B41) -> 37 | L47: =IF(商品マスタ!C41="","",商品マスタ!C41) ->  | M47: =IF(商品マスタ!D41="","",商品マスタ!D41) ->  | N47: =IF(商品マスタ!E41="","",商品マスタ!E41) ->  | O47: =IF(商品マスタ!F41="","",商品マスタ!F41) -> 
K48: =IF(商品マスタ!B42="","",商品マスタ!B42) -> 38 | L48: =IF(商品マスタ!C42="","",商品マスタ!C42) ->  | M48: =IF(商品マスタ!D42="","",商品マスタ!D42) ->  | N48: =IF(商品マスタ!E42="","",商品マスタ!E42) ->  | O48: =IF(商品マスタ!F42="","",商品マスタ!F42) -> 
K49: =IF(商品マスタ!B43="","",商品マスタ!B43) -> 39 | L49: =IF(商品マスタ!C43="","",商品マスタ!C43) ->  | M49: =IF(商品マスタ!D43="","",商品マスタ!D43) ->  | N49: =IF(商品マスタ!E43="","",商品マスタ!E43) ->  | O49: =IF(商品マスタ!F43="","",商品マスタ!F43) -> 
K50: =IF(商品マスタ!B44="","",商品マスタ!B44) -> 40 | L50: =IF(商品マスタ!C44="","",商品マスタ!C44) ->  | M50: =IF(商品マスタ!D44="","",商品マスタ!D44) ->  | N50: =IF(商品マスタ!E44="","",商品マスタ!E44) ->  | O50: =IF(商品マスタ!F44="","",商品マスタ!F44) -> 
K51: =IF(商品マスタ!B45="","",商品マスタ!B45) -> 41 | L51: =IF(商品マスタ!C45="","",商品マスタ!C45) ->  | M51: =IF(商品マスタ!D45="","",商品マスタ!D45) ->  | N51: =IF(商品マスタ!E45="","",商品マスタ!E45) ->  | O51: =IF(商品マスタ!F45="","",商品マスタ!F45) -> 
K52: =IF(商品マスタ!B46="","",商品マスタ!B46) -> 42 | L52: =IF(商品マスタ!C46="","",商品マスタ!C46) ->  | M52: =IF(商品マスタ!D46="","",商品マスタ!D46) ->  | N52: =IF(商品マスタ!E46="","",商品マスタ!E46) ->  | O52: =IF(商品マスタ!F46="","",商品マスタ!F46) -> 
K53: =IF(商品マスタ!B47="","",商品マスタ!B47) -> 43 | L53: =IF(商品マスタ!C47="","",商品マスタ!C47) ->  | M53: =IF(商品マスタ!D47="","",商品マスタ!D47) ->  | N53: =IF(商品マスタ!E47="","",商品マスタ!E47) ->  | O53: =IF(商品マスタ!F47="","",商品マスタ!F47) -> 
K54: =IF(商品マスタ!B48="","",商品マスタ!B48) -> 44 | L54: =IF(商品マスタ!C48="","",商品マスタ!C48) ->  | M54: =IF(商品マスタ!D48="","",商品マスタ!D48) ->  | N54: =IF(商品マスタ!E48="","",商品マスタ!E48) ->  | O54: =IF(商品マスタ!F48="","",商品マスタ!F48) -> 
K55: =IF(商品マスタ!B49="","",商品マスタ!B49) -> 45 | L55: =IF(商品マスタ!C49="","",商品マスタ!C49) ->  | M55: =IF(商品マスタ!D49="","",商品マスタ!D49) ->  | N55: =IF(商品マスタ!E49="","",商品マスタ!E49) ->  | O55: =IF(商品マスタ!F49="","",商品マスタ!F49) -> 
K56: =IF(商品マスタ!B50="","",商品マスタ!B50) -> 46 | L56: =IF(商品マスタ!C50="","",商品マスタ!C50) ->  | M56: =IF(商品マスタ!D50="","",商品マスタ!D50) ->  | N56: =IF(商品マスタ!E50="","",商品マスタ!E50) ->  | O56: =IF(商品マスタ!F50="","",商品マスタ!F50) -> 
K57: =IF(商品マスタ!B51="","",商品マスタ!B51) -> 47 | L57: =IF(商品マスタ!C51="","",商品マスタ!C51) ->  | M57: =IF(商品マスタ!D51="","",商品マスタ!D51) ->  | N57: =IF(商品マスタ!E51="","",商品マスタ!E51) ->  | O57: =IF(商品マスタ!F51="","",商品マスタ!F51) -> 
K58: =IF(商品マスタ!B52="","",商品マスタ!B52) -> 48 | L58: =IF(商品マスタ!C52="","",商品マスタ!C52) ->  | M58: =IF(商品マスタ!D52="","",商品マスタ!D52) ->  | N58: =IF(商品マスタ!E52="","",商品マスタ!E52) ->  | O58: =IF(商品マスタ!F52="","",商品マスタ!F52) -> 
K59: =IF(商品マスタ!B53="","",商品マスタ!B53) -> 49 | L59: =IF(商品マスタ!C53="","",商品マスタ!C53) ->  | M59: =IF(商品マスタ!D53="","",商品マスタ!D53) ->  | N59: =IF(商品マスタ!E53="","",商品マスタ!E53) ->  | O59: =IF(商品マスタ!F53="","",商品マスタ!F53) -> 
K60: =IF(商品マスタ!B54="","",商品マスタ!B54) -> 50 | L60: =IF(商品マスタ!C54="","",商品マスタ!C54) ->  | M60: =IF(商品マスタ!D54="","",商品マスタ!D54) ->  | N60: =IF(商品マスタ!E54="","",商品マスタ!E54) ->  | O60: =IF(商品マスタ!F54="","",商品マスタ!F54) -> 
K61: =IF(商品マスタ!B55="","",商品マスタ!B55) -> 51 | L61: =IF(商品マスタ!C55="","",商品マスタ!C55) ->  | M61: =IF(商品マスタ!D55="","",商品マスタ!D55) ->  | N61: =IF(商品マスタ!E55="","",商品マスタ!E55) ->  | O61: =IF(商品マスタ!F55="","",商品マスタ!F55) -> 
K62: =IF(商品マスタ!B56="","",商品マスタ!B56) -> 52 | L62: =IF(商品マスタ!C56="","",商品マスタ!C56) ->  | M62: =IF(商品マスタ!D56="","",商品マスタ!D56) ->  | N62: =IF(商品マスタ!E56="","",商品マスタ!E56) ->  | O62: =IF(商品マスタ!F56="","",商品マスタ!F56) -> 
K63: =IF(商品マスタ!B57="","",商品マスタ!B57) -> 53 | L63: =IF(商品マスタ!C57="","",商品マスタ!C57) ->  | M63: =IF(商品マスタ!D57="","",商品マスタ!D57) ->  | N63: =IF(商品マスタ!E57="","",商品マスタ!E57) ->  | O63: =IF(商品マスタ!F57="","",商品マスタ!F57) -> 
K64: =IF(商品マスタ!B58="","",商品マスタ!B58) -> 54 | L64: =IF(商品マスタ!C58="","",商品マスタ!C58) ->  | M64: =IF(商品マスタ!D58="","",商品マスタ!D58) ->  | N64: =IF(商品マスタ!E58="","",商品マスタ!E58) ->  | O64: =IF(商品マスタ!F58="","",商品マスタ!F58) -> 
K65: =IF(商品マスタ!B59="","",商品マスタ!B59) -> 55 | L65: =IF(商品マスタ!C59="","",商品マスタ!C59) ->  | M65: =IF(商品マスタ!D59="","",商品マスタ!D59) ->  | N65: =IF(商品マスタ!E59="","",商品マスタ!E59) ->  | O65: =IF(商品マスタ!F59="","",商品マスタ!F59) -> 
K66: =IF(商品マスタ!B60="","",商品マスタ!B60) -> 56 | L66: =IF(商品マスタ!C60="","",商品マスタ!C60) ->  | M66: =IF(商品マスタ!D60="","",商品マスタ!D60) ->  | N66: =IF(商品マスタ!E60="","",商品マスタ!E60) ->  | O66: =IF(商品マスタ!F60="","",商品マスタ!F60) -> 
K67: =IF(商品マスタ!B61="","",商品マスタ!B61) -> 57 | L67: =IF(商品マスタ!C61="","",商品マスタ!C61) ->  | M67: =IF(商品マスタ!D61="","",商品マスタ!D61) ->  | N67: =IF(商品マスタ!E61="","",商品マスタ!E61) ->  | O67: =IF(商品マスタ!F61="","",商品マスタ!F61) -> 
K68: =IF(商品マスタ!B62="","",商品マスタ!B62) -> 58 | L68: =IF(商品マスタ!C62="","",商品マスタ!C62) ->  | M68: =IF(商品マスタ!D62="","",商品マスタ!D62) ->  | N68: =IF(商品マスタ!E62="","",商品マスタ!E62) ->  | O68: =IF(商品マスタ!F62="","",商品マスタ!F62) -> 
K69: =IF(商品マスタ!B63="","",商品マスタ!B63) -> 59 | L69: =IF(商品マスタ!C63="","",商品マスタ!C63) ->  | M69: =IF(商品マスタ!D63="","",商品マスタ!D63) ->  | N69: =IF(商品マスタ!E63="","",商品マスタ!E63) ->  | O69: =IF(商品マスタ!F63="","",商品マスタ!F63) -> 
K70: =IF(商品マスタ!B64="","",商品マスタ!B64) -> 60 | L70: =IF(商品マスタ!C64="","",商品マスタ!C64) ->  | M70: =IF(商品マスタ!D64="","",商品マスタ!D64) ->  | N70: =IF(商品マスタ!E64="","",商品マスタ!E64) ->  | O70: =IF(商品マスタ!F64="","",商品マスタ!F64) -> 
K71: =IF(商品マスタ!B65="","",商品マスタ!B65) -> 61 | L71: =IF(商品マスタ!C65="","",商品マスタ!C65) ->  | M71: =IF(商品マスタ!D65="","",商品マスタ!D65) ->  | N71: =IF(商品マスタ!E65="","",商品マスタ!E65) ->  | O71: =IF(商品マスタ!F65="","",商品マスタ!F65) -> 
K72: =IF(商品マスタ!B66="","",商品マスタ!B66) -> 62 | L72: =IF(商品マスタ!C66="","",商品マスタ!C66) ->  | M72: =IF(商品マスタ!D66="","",商品マスタ!D66) ->  | N72: =IF(商品マスタ!E66="","",商品マスタ!E66) ->  | O72: =IF(商品マスタ!F66="","",商品マスタ!F66) -> 
K73: =IF(商品マスタ!B67="","",商品マスタ!B67) -> 63 | L73: =IF(商品マスタ!C67="","",商品マスタ!C67) ->  | M73: =IF(商品マスタ!D67="","",商品マスタ!D67) ->  | N73: =IF(商品マスタ!E67="","",商品マスタ!E67) ->  | O73: =IF(商品マスタ!F67="","",商品マスタ!F67) -> 
K74: =IF(商品マスタ!B68="","",商品マスタ!B68) -> 64 | L74: =IF(商品マスタ!C68="","",商品マスタ!C68) ->  | M74: =IF(商品マスタ!D68="","",商品マスタ!D68) ->  | N74: =IF(商品マスタ!E68="","",商品マスタ!E68) ->  | O74: =IF(商品マスタ!F68="","",商品マスタ!F68) -> 
K75: =IF(商品マスタ!B69="","",商品マスタ!B69) -> 65 | L75: =IF(商品マスタ!C69="","",商品マスタ!C69) ->  | M75: =IF(商品マスタ!D69="","",商品マスタ!D69) ->  | N75: =IF(商品マスタ!E69="","",商品マスタ!E69) ->  | O75: =IF(商品マスタ!F69="","",商品マスタ!F69) -> 
K76: =IF(商品マスタ!B70="","",商品マスタ!B70) -> 66 | L76: =IF(商品マスタ!C70="","",商品マスタ!C70) ->  | M76: =IF(商品マスタ!D70="","",商品マスタ!D70) ->  | N76: =IF(商品マスタ!E70="","",商品マスタ!E70) ->  | O76: =IF(商品マスタ!F70="","",商品マスタ!F70) -> 
K77: =IF(商品マスタ!B71="","",商品マスタ!B71) -> 67 | L77: =IF(商品マスタ!C71="","",商品マスタ!C71) ->  | M77: =IF(商品マスタ!D71="","",商品マスタ!D71) ->  | N77: =IF(商品マスタ!E71="","",商品マスタ!E71) ->  | O77: =IF(商品マスタ!F71="","",商品マスタ!F71) -> 
K78: =IF(商品マスタ!B72="","",商品マスタ!B72) -> 68 | L78: =IF(商品マスタ!C72="","",商品マスタ!C72) ->  | M78: =IF(商品マスタ!D72="","",商品マスタ!D72) ->  | N78: =IF(商品マスタ!E72="","",商品マスタ!E72) ->  | O78: =IF(商品マスタ!F72="","",商品マスタ!F72) -> 
K79: =IF(商品マスタ!B73="","",商品マスタ!B73) -> 69 | L79: =IF(商品マスタ!C73="","",商品マスタ!C73) ->  | M79: =IF(商品マスタ!D73="","",商品マスタ!D73) ->  | N79: =IF(商品マスタ!E73="","",商品マスタ!E73) ->  | O79: =IF(商品マスタ!F73="","",商品マスタ!F73) -> 
K80: =IF(商品マスタ!B74="","",商品マスタ!B74) -> 70 | L80: =IF(商品マスタ!C74="","",商品マスタ!C74) ->  | M80: =IF(商品マスタ!D74="","",商品マスタ!D74) ->  | N80: =IF(商品マスタ!E74="","",商品マスタ!E74) ->  | O80: =IF(商品マスタ!F74="","",商品マスタ!F74) -> 
K81: =IF(商品マスタ!B75="","",商品マスタ!B75) -> 71 | L81: =IF(商品マスタ!C75="","",商品マスタ!C75) ->  | M81: =IF(商品マスタ!D75="","",商品マスタ!D75) ->  | N81: =IF(商品マスタ!E75="","",商品マスタ!E75) ->  | O81: =IF(商品マスタ!F75="","",商品マスタ!F75) -> 
K82: =IF(商品マスタ!B76="","",商品マスタ!B76) -> 72 | L82: =IF(商品マスタ!C76="","",商品マスタ!C76) ->  | M82: =IF(商品マスタ!D76="","",商品マスタ!D76) ->  | N82: =IF(商品マスタ!E76="","",商品マスタ!E76) ->  | O82: =IF(商品マスタ!F76="","",商品マスタ!F76) -> 
K83: =IF(商品マスタ!B77="","",商品マスタ!B77) -> 73 | L83: =IF(商品マスタ!C77="","",商品マスタ!C77) ->  | M83: =IF(商品マスタ!D77="","",商品マスタ!D77) ->  | N83: =IF(商品マスタ!E77="","",商品マスタ!E77) ->  | O83: =IF(商品マスタ!F77="","",商品マスタ!F77) -> 
K84: =IF(商品マスタ!B78="","",商品マスタ!B78) -> 74 | L84: =IF(商品マスタ!C78="","",商品マスタ!C78) ->  | M84: =IF(商品マスタ!D78="","",商品マスタ!D78) ->  | N84: =IF(商品マスタ!E78="","",商品マスタ!E78) ->  | O84: =IF(商品マスタ!F78="","",商品マスタ!F78) -> 
K85: =IF(商品マスタ!B79="","",商品マスタ!B79) -> 75 | L85: =IF(商品マスタ!C79="","",商品マスタ!C79) ->  | M85: =IF(商品マスタ!D79="","",商品マスタ!D79) ->  | N85: =IF(商品マスタ!E79="","",商品マスタ!E79) ->  | O85: =IF(商品マスタ!F79="","",商品マスタ!F79) -> 
K86: =IF(商品マスタ!B80="","",商品マスタ!B80) -> 76 | L86: =IF(商品マスタ!C80="","",商品マスタ!C80) ->  | M86: =IF(商品マスタ!D80="","",商品マスタ!D80) ->  | N86: =IF(商品マスタ!E80="","",商品マスタ!E80) ->  | O86: =IF(商品マスタ!F80="","",商品マスタ!F80) -> 
K87: =IF(商品マスタ!B81="","",商品マスタ!B81) -> 77 | L87: =IF(商品マスタ!C81="","",商品マスタ!C81) ->  | M87: =IF(商品マスタ!D81="","",商品マスタ!D81) ->  | N87: =IF(商品マスタ!E81="","",商品マスタ!E81) ->  | O87: =IF(商品マスタ!F81="","",商品マスタ!F81) -> 
K88: =IF(商品マスタ!B82="","",商品マスタ!B82) -> 78 | L88: =IF(商品マスタ!C82="","",商品マスタ!C82) ->  | M88: =IF(商品マスタ!D82="","",商品マスタ!D82) ->  | N88: =IF(商品マスタ!E82="","",商品マスタ!E82) ->  | O88: =IF(商品マスタ!F82="","",商品マスタ!F82) -> 
K89: =IF(商品マスタ!B83="","",商品マスタ!B83) -> 79 | L89: =IF(商品マスタ!C83="","",商品マスタ!C83) ->  | M89: =IF(商品マスタ!D83="","",商品マスタ!D83) ->  | N89: =IF(商品マスタ!E83="","",商品マスタ!E83) ->  | O89: =IF(商品マスタ!F83="","",商品マスタ!F83) -> 
K90: =IF(商品マスタ!B84="","",商品マスタ!B84) -> 80 | L90: =IF(商品マスタ!C84="","",商品マスタ!C84) ->  | M90: =IF(商品マスタ!D84="","",商品マスタ!D84) ->  | N90: =IF(商品マスタ!E84="","",商品マスタ!E84) ->  | O90: =IF(商品マスタ!F84="","",商品マスタ!F84) -> 
K91: =IF(商品マスタ!B85="","",商品マスタ!B85) -> 81 | L91: =IF(商品マスタ!C85="","",商品マスタ!C85) ->  | M91: =IF(商品マスタ!D85="","",商品マスタ!D85) ->  | N91: =IF(商品マスタ!E85="","",商品マスタ!E85) ->  | O91: =IF(商品マスタ!F85="","",商品マスタ!F85) -> 
K92: =IF(商品マスタ!B86="","",商品マスタ!B86) -> 82 | L92: =IF(商品マスタ!C86="","",商品マスタ!C86) ->  | M92: =IF(商品マスタ!D86="","",商品マスタ!D86) ->  | N92: =IF(商品マスタ!E86="","",商品マスタ!E86) ->  | O92: =IF(商品マスタ!F86="","",商品マスタ!F86) -> 
K93: =IF(商品マスタ!B87="","",商品マスタ!B87) -> 83 | L93: =IF(商品マスタ!C87="","",商品マスタ!C87) ->  | M93: =IF(商品マスタ!D87="","",商品マスタ!D87) ->  | N93: =IF(商品マスタ!E87="","",商品マスタ!E87) ->  | O93: =IF(商品マスタ!F87="","",商品マスタ!F87) -> 
K94: =IF(商品マスタ!B88="","",商品マスタ!B88) -> 84 | L94: =IF(商品マスタ!C88="","",商品マスタ!C88) ->  | M94: =IF(商品マスタ!D88="","",商品マスタ!D88) ->  | N94: =IF(商品マスタ!E88="","",商品マスタ!E88) ->  | O94: =IF(商品マスタ!F88="","",商品マスタ!F88) -> 
K95: =IF(商品マスタ!B89="","",商品マスタ!B89) -> 85 | L95: =IF(商品マスタ!C89="","",商品マスタ!C89) ->  | M95: =IF(商品マスタ!D89="","",商品マスタ!D89) ->  | N95: =IF(商品マスタ!E89="","",商品マスタ!E89) ->  | O95: =IF(商品マスタ!F89="","",商品マスタ!F89) -> 
K96: =IF(商品マスタ!B90="","",商品マスタ!B90) -> 86 | L96: =IF(商品マスタ!C90="","",商品マスタ!C90) ->  | M96: =IF(商品マスタ!D90="","",商品マスタ!D90) ->  | N96: =IF(商品マスタ!E90="","",商品マスタ!E90) ->  | O96: =IF(商品マスタ!F90="","",商品マスタ!F90) -> 
K97: =IF(商品マスタ!B91="","",商品マスタ!B91) -> 87 | L97: =IF(商品マスタ!C91="","",商品マスタ!C91) ->  | M97: =IF(商品マスタ!D91="","",商品マスタ!D91) ->  | N97: =IF(商品マスタ!E91="","",商品マスタ!E91) ->  | O97: =IF(商品マスタ!F91="","",商品マスタ!F91) -> 
K98: =IF(商品マスタ!B92="","",商品マスタ!B92) -> 88 | L98: =IF(商品マスタ!C92="","",商品マスタ!C92) ->  | M98: =IF(商品マスタ!D92="","",商品マスタ!D92) ->  | N98: =IF(商品マスタ!E92="","",商品マスタ!E92) ->  | O98: =IF(商品マスタ!F92="","",商品マスタ!F92) -> 
K99: =IF(商品マスタ!B93="","",商品マスタ!B93) -> 89 | L99: =IF(商品マスタ!C93="","",商品マスタ!C93) ->  | M99: =IF(商品マスタ!D93="","",商品マスタ!D93) ->  | N99: =IF(商品マスタ!E93="","",商品マスタ!E93) ->  | O99: =IF(商品マスタ!F93="","",商品マスタ!F93) -> 
K100: =IF(商品マスタ!B94="","",商品マスタ!B94) -> 90 | L100: =IF(商品マスタ!C94="","",商品マスタ!C94) ->  | M100: =IF(商品マスタ!D94="","",商品マスタ!D94) ->  | N100: =IF(商品マスタ!E94="","",商品マスタ!E94) ->  | O100: =IF(商品マスタ!F94="","",商品マスタ!F94) -> 
K101: =IF(商品マスタ!B95="","",商品マスタ!B95) -> 91 | L101: =IF(商品マスタ!C95="","",商品マスタ!C95) ->  | M101: =IF(商品マスタ!D95="","",商品マスタ!D95) ->  | N101: =IF(商品マスタ!E95="","",商品マスタ!E95) ->  | O101: =IF(商品マスタ!F95="","",商品マスタ!F95) -> 
K102: =IF(商品マスタ!B96="","",商品マスタ!B96) -> 92 | L102: =IF(商品マスタ!C96="","",商品マスタ!C96) ->  | M102: =IF(商品マスタ!D96="","",商品マスタ!D96) ->  | N102: =IF(商品マスタ!E96="","",商品マスタ!E96) ->  | O102: =IF(商品マスタ!F96="","",商品マスタ!F96) -> 
K103: =IF(商品マスタ!B97="","",商品マスタ!B97) -> 93 | L103: =IF(商品マスタ!C97="","",商品マスタ!C97) ->  | M103: =IF(商品マスタ!D97="","",商品マスタ!D97) ->  | N103: =IF(商品マスタ!E97="","",商品マスタ!E97) ->  | O103: =IF(商品マスタ!F97="","",商品マスタ!F97) -> 
K104: =IF(商品マスタ!B98="","",商品マスタ!B98) -> 94 | L104: =IF(商品マスタ!C98="","",商品マスタ!C98) ->  | M104: =IF(商品マスタ!D98="","",商品マスタ!D98) ->  | N104: =IF(商品マスタ!E98="","",商品マスタ!E98) ->  | O104: =IF(商品マスタ!F98="","",商品マスタ!F98) -> 
K105: =IF(商品マスタ!B99="","",商品マスタ!B99) -> 95 | L105: =IF(商品マスタ!C99="","",商品マスタ!C99) ->  | M105: =IF(商品マスタ!D99="","",商品マスタ!D99) ->  | N105: =IF(商品マスタ!E99="","",商品マスタ!E99) ->  | O105: =IF(商品マスタ!F99="","",商品マスタ!F99) -> 
K106: =IF(商品マスタ!B100="","",商品マスタ!B100) -> 96 | L106: =IF(商品マスタ!C100="","",商品マスタ!C100) ->  | M106: =IF(商品マスタ!D100="","",商品マスタ!D100) ->  | N106: =IF(商品マスタ!E100="","",商品マスタ!E100) ->  | O106: =IF(商品マスタ!F100="","",商品マスタ!F100) -> 
K107: =IF(商品マスタ!B101="","",商品マスタ!B101) -> 97 | L107: =IF(商品マスタ!C101="","",商品マスタ!C101) ->  | M107: =IF(商品マスタ!D101="","",商品マスタ!D101) ->  | N107: =IF(商品マスタ!E101="","",商品マスタ!E101) ->  | O107: =IF(商品マスタ!F101="","",商品マスタ!F101) -> 
K108: =IF(商品マスタ!B102="","",商品マスタ!B102) -> 98 | L108: =IF(商品マスタ!C102="","",商品マスタ!C102) ->  | M108: =IF(商品マスタ!D102="","",商品マスタ!D102) ->  | N108: =IF(商品マスタ!E102="","",商品マスタ!E102) ->  | O108: =IF(商品マスタ!F102="","",商品マスタ!F102) -> 
K109: =IF(商品マスタ!B103="","",商品マスタ!B103) -> 99 | L109: =IF(商品マスタ!C103="","",商品マスタ!C103) ->  | M109: =IF(商品マスタ!D103="","",商品マスタ!D103) ->  | N109: =IF(商品マスタ!E103="","",商品マスタ!E103) ->  | O109: =IF(商品マスタ!F103="","",商品マスタ!F103) -> 
K110: =IF(商品マスタ!B104="","",商品マスタ!B104) -> 100 | L110: =IF(商品マスタ!C104="","",商品マスタ!C104) ->  | M110: =IF(商品マスタ!D104="","",商品マスタ!D104) ->  | N110: =IF(商品マスタ!E104="","",商品マスタ!E104) ->  | O110: =IF(商品マスタ!F104="","",商品マスタ!F104) -> 
K111: =IF(商品マスタ!B105="","",商品マスタ!B105) -> 101 | L111: =IF(商品マスタ!C105="","",商品マスタ!C105) ->  | M111: =IF(商品マスタ!D105="","",商品マスタ!D105) ->  | N111: =IF(商品マスタ!E105="","",商品マスタ!E105) ->  | O111: =IF(商品マスタ!F105="","",商品マスタ!F105) -> 
K112: =IF(商品マスタ!B106="","",商品マスタ!B106) -> 102 | L112: =IF(商品マスタ!C106="","",商品マスタ!C106) ->  | M112: =IF(商品マスタ!D106="","",商品マスタ!D106) ->  | N112: =IF(商品マスタ!E106="","",商品マスタ!E106) ->  | O112: =IF(商品マスタ!F106="","",商品マスタ!F106) -> 
K113: =IF(商品マスタ!B107="","",商品マスタ!B107) -> 103 | L113: =IF(商品マスタ!C107="","",商品マスタ!C107) ->  | M113: =IF(商品マスタ!D107="","",商品マスタ!D107) ->  | N113: =IF(商品マスタ!E107="","",商品マスタ!E107) ->  | O113: =IF(商品マスタ!F107="","",商品マスタ!F107) -> 
K114: =IF(商品マスタ!B108="","",商品マスタ!B108) -> 104 | L114: =IF(商品マスタ!C108="","",商品マスタ!C108) ->  | M114: =IF(商品マスタ!D108="","",商品マスタ!D108) ->  | N114: =IF(商品マスタ!E108="","",商品マスタ!E108) ->  | O114: =IF(商品マスタ!F108="","",商品マスタ!F108) -> 
K115: =IF(商品マスタ!B109="","",商品マスタ!B109) -> 105 | L115: =IF(商品マスタ!C109="","",商品マスタ!C109) ->  | M115: =IF(商品マスタ!D109="","",商品マスタ!D109) ->  | N115: =IF(商品マスタ!E109="","",商品マスタ!E109) ->  | O115: =IF(商品マスタ!F109="","",商品マスタ!F109) -> 
K116: =IF(商品マスタ!B110="","",商品マスタ!B110) -> 106 | L116: =IF(商品マスタ!C110="","",商品マスタ!C110) ->  | M116: =IF(商品マスタ!D110="","",商品マスタ!D110) ->  | N116: =IF(商品マスタ!E110="","",商品マスタ!E110) ->  | O116: =IF(商品マスタ!F110="","",商品マスタ!F110) -> 
K117: =IF(商品マスタ!B111="","",商品マスタ!B111) -> 107 | L117: =IF(商品マスタ!C111="","",商品マスタ!C111) ->  | M117: =IF(商品マスタ!D111="","",商品マスタ!D111) ->  | N117: =IF(商品マスタ!E111="","",商品マスタ!E111) ->  | O117: =IF(商品マスタ!F111="","",商品マスタ!F111) -> 
K118: =IF(商品マスタ!B112="","",商品マスタ!B112) -> 108 | L118: =IF(商品マスタ!C112="","",商品マスタ!C112) ->  | M118: =IF(商品マスタ!D112="","",商品マスタ!D112) ->  | N118: =IF(商品マスタ!E112="","",商品マスタ!E112) ->  | O118: =IF(商品マスタ!F112="","",商品マスタ!F112) -> 
K119: =IF(商品マスタ!B113="","",商品マスタ!B113) -> 109 | L119: =IF(商品マスタ!C113="","",商品マスタ!C113) ->  | M119: =IF(商品マスタ!D113="","",商品マスタ!D113) ->  | N119: =IF(商品マスタ!E113="","",商品マスタ!E113) ->  | O119: =IF(商品マスタ!F113="","",商品マスタ!F113) -> 
K120: =IF(商品マスタ!B114="","",商品マスタ!B114) -> 110 | L120: =IF(商品マスタ!C114="","",商品マスタ!C114) ->  | M120: =IF(商品マスタ!D114="","",商品マスタ!D114) ->  | N120: =IF(商品マスタ!E114="","",商品マスタ!E114) ->  | O120: =IF(商品マスタ!F114="","",商品マスタ!F114) -> 
K121: =IF(商品マスタ!B115="","",商品マスタ!B115) -> 111 | L121: =IF(商品マスタ!C115="","",商品マスタ!C115) ->  | M121: =IF(商品マスタ!D115="","",商品マスタ!D115) ->  | N121: =IF(商品マスタ!E115="","",商品マスタ!E115) ->  | O121: =IF(商品マスタ!F115="","",商品マスタ!F115) -> 
K122: =IF(商品マスタ!B116="","",商品マスタ!B116) -> 112 | L122: =IF(商品マスタ!C116="","",商品マスタ!C116) ->  | M122: =IF(商品マスタ!D116="","",商品マスタ!D116) ->  | N122: =IF(商品マスタ!E116="","",商品マスタ!E116) ->  | O122: =IF(商品マスタ!F116="","",商品マスタ!F116) -> 
K123: =IF(商品マスタ!B117="","",商品マスタ!B117) -> 113 | L123: =IF(商品マスタ!C117="","",商品マスタ!C117) ->  | M123: =IF(商品マスタ!D117="","",商品マスタ!D117) ->  | N123: =IF(商品マスタ!E117="","",商品マスタ!E117) ->  | O123: =IF(商品マスタ!F117="","",商品マスタ!F117) -> 
K124: =IF(商品マスタ!B118="","",商品マスタ!B118) -> 114 | L124: =IF(商品マスタ!C118="","",商品マスタ!C118) ->  | M124: =IF(商品マスタ!D118="","",商品マスタ!D118) ->  | N124: =IF(商品マスタ!E118="","",商品マスタ!E118) ->  | O124: =IF(商品マスタ!F118="","",商品マスタ!F118) -> 
K125: =IF(商品マスタ!B119="","",商品マスタ!B119) -> 115 | L125: =IF(商品マスタ!C119="","",商品マスタ!C119) ->  | M125: =IF(商品マスタ!D119="","",商品マスタ!D119) ->  | N125: =IF(商品マスタ!E119="","",商品マスタ!E119) ->  | O125: =IF(商品マスタ!F119="","",商品マスタ!F119) -> 
K126: =IF(商品マスタ!B120="","",商品マスタ!B120) -> 116 | L126: =IF(商品マスタ!C120="","",商品マスタ!C120) ->  | M126: =IF(商品マスタ!D120="","",商品マスタ!D120) ->  | N126: =IF(商品マスタ!E120="","",商品マスタ!E120) ->  | O126: =IF(商品マスタ!F120="","",商品マスタ!F120) -> 
K127: =IF(商品マスタ!B121="","",商品マスタ!B121) -> 117 | L127: =IF(商品マスタ!C121="","",商品マスタ!C121) ->  | M127: =IF(商品マスタ!D121="","",商品マスタ!D121) ->  | N127: =IF(商品マスタ!E121="","",商品マスタ!E121) ->  | O127: =IF(商品マスタ!F121="","",商品マスタ!F121) -> 
K128: =IF(商品マスタ!B122="","",商品マスタ!B122) -> 118 | L128: =IF(商品マスタ!C122="","",商品マスタ!C122) ->  | M128: =IF(商品マスタ!D122="","",商品マスタ!D122) ->  | N128: =IF(商品マスタ!E122="","",商品マスタ!E122) ->  | O128: =IF(商品マスタ!F122="","",商品マスタ!F122) -> 
K129: =IF(商品マスタ!B123="","",商品マスタ!B123) -> 119 | L129: =IF(商品マスタ!C123="","",商品マスタ!C123) ->  | M129: =IF(商品マスタ!D123="","",商品マスタ!D123) ->  | N129: =IF(商品マスタ!E123="","",商品マスタ!E123) ->  | O129: =IF(商品マスタ!F123="","",商品マスタ!F123) -> 
K130: =IF(商品マスタ!B124="","",商品マスタ!B124) -> 120 | L130: =IF(商品マスタ!C124="","",商品マスタ!C124) ->  | M130: =IF(商品マスタ!D124="","",商品マスタ!D124) ->  | N130: =IF(商品マスタ!E124="","",商品マスタ!E124) ->  | O130: =IF(商品マスタ!F124="","",商品マスタ!F124) -> 
K131: =IF(商品マスタ!B125="","",商品マスタ!B125) -> 121 | L131: =IF(商品マスタ!C125="","",商品マスタ!C125) ->  | M131: =IF(商品マスタ!D125="","",商品マスタ!D125) ->  | N131: =IF(商品マスタ!E125="","",商品マスタ!E125) ->  | O131: =IF(商品マスタ!F125="","",商品マスタ!F125) -> 
K132: =IF(商品マスタ!B126="","",商品マスタ!B126) -> 122 | L132: =IF(商品マスタ!C126="","",商品マスタ!C126) ->  | M132: =IF(商品マスタ!D126="","",商品マスタ!D126) ->  | N132: =IF(商品マスタ!E126="","",商品マスタ!E126) ->  | O132: =IF(商品マスタ!F126="","",商品マスタ!F126) -> 
K133: =IF(商品マスタ!B127="","",商品マスタ!B127) -> 123 | L133: =IF(商品マスタ!C127="","",商品マスタ!C127) ->  | M133: =IF(商品マスタ!D127="","",商品マスタ!D127) ->  | N133: =IF(商品マスタ!E127="","",商品マスタ!E127) ->  | O133: =IF(商品マスタ!F127="","",商品マスタ!F127) -> 
K134: =IF(商品マスタ!B128="","",商品マスタ!B128) -> 124 | L134: =IF(商品マスタ!C128="","",商品マスタ!C128) ->  | M134: =IF(商品マスタ!D128="","",商品マスタ!D128) ->  | N134: =IF(商品マスタ!E128="","",商品マスタ!E128) ->  | O134: =IF(商品マスタ!F128="","",商品マスタ!F128) -> 
K135: =IF(商品マスタ!B129="","",商品マスタ!B129) -> 125 | L135: =IF(商品マスタ!C129="","",商品マスタ!C129) ->  | M135: =IF(商品マスタ!D129="","",商品マスタ!D129) ->  | N135: =IF(商品マスタ!E129="","",商品マスタ!E129) ->  | O135: =IF(商品マスタ!F129="","",商品マスタ!F129) -> 
K136: =IF(商品マスタ!B130="","",商品マスタ!B130) -> 126 | L136: =IF(商品マスタ!C130="","",商品マスタ!C130) ->  | M136: =IF(商品マスタ!D130="","",商品マスタ!D130) ->  | N136: =IF(商品マスタ!E130="","",商品マスタ!E130) ->  | O136: =IF(商品マスタ!F130="","",商品マスタ!F130) -> 
K137: =IF(商品マスタ!B131="","",商品マスタ!B131) -> 127 | L137: =IF(商品マスタ!C131="","",商品マスタ!C131) ->  | M137: =IF(商品マスタ!D131="","",商品マスタ!D131) ->  | N137: =IF(商品マスタ!E131="","",商品マスタ!E131) ->  | O137: =IF(商品マスタ!F131="","",商品マスタ!F131) -> 
K138: =IF(商品マスタ!B132="","",商品マスタ!B132) -> 128 | L138: =IF(商品マスタ!C132="","",商品マスタ!C132) ->  | M138: =IF(商品マスタ!D132="","",商品マスタ!D132) ->  | N138: =IF(商品マスタ!E132="","",商品マスタ!E132) ->  | O138: =IF(商品マスタ!F132="","",商品マスタ!F132) -> 
K139: =IF(商品マスタ!B133="","",商品マスタ!B133) -> 129 | L139: =IF(商品マスタ!C133="","",商品マスタ!C133) ->  | M139: =IF(商品マスタ!D133="","",商品マスタ!D133) ->  | N139: =IF(商品マスタ!E133="","",商品マスタ!E133) ->  | O139: =IF(商品マスタ!F133="","",商品マスタ!F133) -> 
K140: =IF(商品マスタ!B134="","",商品マスタ!B134) -> 130 | L140: =IF(商品マスタ!C134="","",商品マスタ!C134) ->  | M140: =IF(商品マスタ!D134="","",商品マスタ!D134) ->  | N140: =IF(商品マスタ!E134="","",商品マスタ!E134) ->  | O140: =IF(商品マスタ!F134="","",商品マスタ!F134) -> 
K141: =IF(商品マスタ!B135="","",商品マスタ!B135) -> 131 | L141: =IF(商品マスタ!C135="","",商品マスタ!C135) ->  | M141: =IF(商品マスタ!D135="","",商品マスタ!D135) ->  | N141: =IF(商品マスタ!E135="","",商品マスタ!E135) ->  | O141: =IF(商品マスタ!F135="","",商品マスタ!F135) -> 
K142: =IF(商品マスタ!B136="","",商品マスタ!B136) -> 132 | L142: =IF(商品マスタ!C136="","",商品マスタ!C136) ->  | M142: =IF(商品マスタ!D136="","",商品マスタ!D136) ->  | N142: =IF(商品マスタ!E136="","",商品マスタ!E136) ->  | O142: =IF(商品マスタ!F136="","",商品マスタ!F136) -> 
K143: =IF(商品マスタ!B137="","",商品マスタ!B137) -> 133 | L143: =IF(商品マスタ!C137="","",商品マスタ!C137) ->  | M143: =IF(商品マスタ!D137="","",商品マスタ!D137) ->  | N143: =IF(商品マスタ!E137="","",商品マスタ!E137) ->  | O143: =IF(商品マスタ!F137="","",商品マスタ!F137) -> 
K144: =IF(商品マスタ!B138="","",商品マスタ!B138) -> 134 | L144: =IF(商品マスタ!C138="","",商品マスタ!C138) ->  | M144: =IF(商品マスタ!D138="","",商品マスタ!D138) ->  | N144: =IF(商品マスタ!E138="","",商品マスタ!E138) ->  | O144: =IF(商品マスタ!F138="","",商品マスタ!F138) -> 
K145: =IF(商品マスタ!B139="","",商品マスタ!B139) -> 135 | L145: =IF(商品マスタ!C139="","",商品マスタ!C139) ->  | M145: =IF(商品マスタ!D139="","",商品マスタ!D139) ->  | N145: =IF(商品マスタ!E139="","",商品マスタ!E139) ->  | O145: =IF(商品マスタ!F139="","",商品マスタ!F139) -> 
K146: =IF(商品マスタ!B140="","",商品マスタ!B140) -> 136 | L146: =IF(商品マスタ!C140="","",商品マスタ!C140) ->  | M146: =IF(商品マスタ!D140="","",商品マスタ!D140) ->  | N146: =IF(商品マスタ!E140="","",商品マスタ!E140) ->  | O146: =IF(商品マスタ!F140="","",商品マスタ!F140) -> 
K147: =IF(商品マスタ!B141="","",商品マスタ!B141) -> 137 | L147: =IF(商品マスタ!C141="","",商品マスタ!C141) ->  | M147: =IF(商品マスタ!D141="","",商品マスタ!D141) ->  | N147: =IF(商品マスタ!E141="","",商品マスタ!E141) ->  | O147: =IF(商品マスタ!F141="","",商品マスタ!F141) -> 
K148: =IF(商品マスタ!B142="","",商品マスタ!B142) -> 138 | L148: =IF(商品マスタ!C142="","",商品マスタ!C142) ->  | M148: =IF(商品マスタ!D142="","",商品マスタ!D142) ->  | N148: =IF(商品マスタ!E142="","",商品マスタ!E142) ->  | O148: =IF(商品マスタ!F142="","",商品マスタ!F142) -> 
K149: =IF(商品マスタ!B143="","",商品マスタ!B143) -> 139 | L149: =IF(商品マスタ!C143="","",商品マスタ!C143) ->  | M149: =IF(商品マスタ!D143="","",商品マスタ!D143) ->  | N149: =IF(商品マスタ!E143="","",商品マスタ!E143) ->  | O149: =IF(商品マスタ!F143="","",商品マスタ!F143) -> 
K150: =IF(商品マスタ!B144="","",商品マスタ!B144) -> 140 | L150: =IF(商品マスタ!C144="","",商品マスタ!C144) ->  | M150: =IF(商品マスタ!D144="","",商品マスタ!D144) ->  | N150: =IF(商品マスタ!E144="","",商品マスタ!E144) ->  | O150: =IF(商品マスタ!F144="","",商品マスタ!F144) -> 
K151: =IF(商品マスタ!B145="","",商品マスタ!B145) -> 141 | L151: =IF(商品マスタ!C145="","",商品マスタ!C145) ->  | M151: =IF(商品マスタ!D145="","",商品マスタ!D145) ->  | N151: =IF(商品マスタ!E145="","",商品マスタ!E145) ->  | O151: =IF(商品マスタ!F145="","",商品マスタ!F145) -> 
K152: =IF(商品マスタ!B146="","",商品マスタ!B146) -> 142 | L152: =IF(商品マスタ!C146="","",商品マスタ!C146) ->  | M152: =IF(商品マスタ!D146="","",商品マスタ!D146) ->  | N152: =IF(商品マスタ!E146="","",商品マスタ!E146) ->  | O152: =IF(商品マスタ!F146="","",商品マスタ!F146) -> 
K153: =IF(商品マスタ!B147="","",商品マスタ!B147) -> 143 | L153: =IF(商品マスタ!C147="","",商品マスタ!C147) ->  | M153: =IF(商品マスタ!D147="","",商品マスタ!D147) ->  | N153: =IF(商品マスタ!E147="","",商品マスタ!E147) ->  | O153: =IF(商品マスタ!F147="","",商品マスタ!F147) -> 
K154: =IF(商品マスタ!B148="","",商品マスタ!B148) -> 144 | L154: =IF(商品マスタ!C148="","",商品マスタ!C148) ->  | M154: =IF(商品マスタ!D148="","",商品マスタ!D148) ->  | N154: =IF(商品マスタ!E148="","",商品マスタ!E148) ->  | O154: =IF(商品マスタ!F148="","",商品マスタ!F148) -> 
K155: =IF(商品マスタ!B149="","",商品マスタ!B149) -> 145 | L155: =IF(商品マスタ!C149="","",商品マスタ!C149) ->  | M155: =IF(商品マスタ!D149="","",商品マスタ!D149) ->  | N155: =IF(商品マスタ!E149="","",商品マスタ!E149) ->  | O155: =IF(商品マスタ!F149="","",商品マスタ!F149) -> 
K156: =IF(商品マスタ!B150="","",商品マスタ!B150) -> 146 | L156: =IF(商品マスタ!C150="","",商品マスタ!C150) ->  | M156: =IF(商品マスタ!D150="","",商品マスタ!D150) ->  | N156: =IF(商品マスタ!E150="","",商品マスタ!E150) ->  | O156: =IF(商品マスタ!F150="","",商品マスタ!F150) -> 
K157: =IF(商品マスタ!B151="","",商品マスタ!B151) -> 147 | L157: =IF(商品マスタ!C151="","",商品マスタ!C151) ->  | M157: =IF(商品マスタ!D151="","",商品マスタ!D151) ->  | N157: =IF(商品マスタ!E151="","",商品マスタ!E151) ->  | O157: =IF(商品マスタ!F151="","",商品マスタ!F151) -> 
K158: =IF(商品マスタ!B152="","",商品マスタ!B152) -> 148 | L158: =IF(商品マスタ!C152="","",商品マスタ!C152) ->  | M158: =IF(商品マスタ!D152="","",商品マスタ!D152) ->  | N158: =IF(商品マスタ!E152="","",商品マスタ!E152) ->  | O158: =IF(商品マスタ!F152="","",商品マスタ!F152) -> 
K159: =IF(商品マスタ!B153="","",商品マスタ!B153) -> 149 | L159: =IF(商品マスタ!C153="","",商品マスタ!C153) ->  | M159: =IF(商品マスタ!D153="","",商品マスタ!D153) ->  | N159: =IF(商品マスタ!E153="","",商品マスタ!E153) ->  | O159: =IF(商品マスタ!F153="","",商品マスタ!F153) -> 
K160: =IF(商品マスタ!B154="","",商品マスタ!B154) -> 150 | L160: =IF(商品マスタ!C154="","",商品マスタ!C154) ->  | M160: =IF(商品マスタ!D154="","",商品マスタ!D154) ->  | N160: =IF(商品マスタ!E154="","",商品マスタ!E154) ->  | O160: =IF(商品マスタ!F154="","",商品マスタ!F154) -> 
K161: =IF(商品マスタ!B155="","",商品マスタ!B155) -> 151 | L161: =IF(商品マスタ!C155="","",商品マスタ!C155) ->  | M161: =IF(商品マスタ!D155="","",商品マスタ!D155) ->  | N161: =IF(商品マスタ!E155="","",商品マスタ!E155) ->  | O161: =IF(商品マスタ!F155="","",商品マスタ!F155) -> 
K162: =IF(商品マスタ!B156="","",商品マスタ!B156) -> 152 | L162: =IF(商品マスタ!C156="","",商品マスタ!C156) ->  | M162: =IF(商品マスタ!D156="","",商品マスタ!D156) ->  | N162: =IF(商品マスタ!E156="","",商品マスタ!E156) ->  | O162: =IF(商品マスタ!F156="","",商品マスタ!F156) -> 
K163: =IF(商品マスタ!B157="","",商品マスタ!B157) -> 153 | L163: =IF(商品マスタ!C157="","",商品マスタ!C157) ->  | M163: =IF(商品マスタ!D157="","",商品マスタ!D157) ->  | N163: =IF(商品マスタ!E157="","",商品マスタ!E157) ->  | O163: =IF(商品マスタ!F157="","",商品マスタ!F157) -> 
K164: =IF(商品マスタ!B158="","",商品マスタ!B158) -> 154 | L164: =IF(商品マスタ!C158="","",商品マスタ!C158) ->  | M164: =IF(商品マスタ!D158="","",商品マスタ!D158) ->  | N164: =IF(商品マスタ!E158="","",商品マスタ!E158) ->  | O164: =IF(商品マスタ!F158="","",商品マスタ!F158) -> 
K165: =IF(商品マスタ!B159="","",商品マスタ!B159) -> 155 | L165: =IF(商品マスタ!C159="","",商品マスタ!C159) ->  | M165: =IF(商品マスタ!D159="","",商品マスタ!D159) ->  | N165: =IF(商品マスタ!E159="","",商品マスタ!E159) ->  | O165: =IF(商品マスタ!F159="","",商品マスタ!F159) -> 
K166: =IF(商品マスタ!B160="","",商品マスタ!B160) -> 156 | L166: =IF(商品マスタ!C160="","",商品マスタ!C160) ->  | M166: =IF(商品マスタ!D160="","",商品マスタ!D160) ->  | N166: =IF(商品マスタ!E160="","",商品マスタ!E160) ->  | O166: =IF(商品マスタ!F160="","",商品マスタ!F160) -> 
K167: =IF(商品マスタ!B161="","",商品マスタ!B161) -> 157 | L167: =IF(商品マスタ!C161="","",商品マスタ!C161) ->  | M167: =IF(商品マスタ!D161="","",商品マスタ!D161) ->  | N167: =IF(商品マスタ!E161="","",商品マスタ!E161) ->  | O167: =IF(商品マスタ!F161="","",商品マスタ!F161) -> 
K168: =IF(商品マスタ!B162="","",商品マスタ!B162) -> 158 | L168: =IF(商品マスタ!C162="","",商品マスタ!C162) ->  | M168: =IF(商品マスタ!D162="","",商品マスタ!D162) ->  | N168: =IF(商品マスタ!E162="","",商品マスタ!E162) ->  | O168: =IF(商品マスタ!F162="","",商品マスタ!F162) -> 
K169: =IF(商品マスタ!B163="","",商品マスタ!B163) -> 159 | L169: =IF(商品マスタ!C163="","",商品マスタ!C163) ->  | M169: =IF(商品マスタ!D163="","",商品マスタ!D163) ->  | N169: =IF(商品マスタ!E163="","",商品マスタ!E163) ->  | O169: =IF(商品マスタ!F163="","",商品マスタ!F163) -> 
K170: =IF(商品マスタ!B164="","",商品マスタ!B164) -> 160 | L170: =IF(商品マスタ!C164="","",商品マスタ!C164) ->  | M170: =IF(商品マスタ!D164="","",商品マスタ!D164) ->  | N170: =IF(商品マスタ!E164="","",商品マスタ!E164) ->  | O170: =IF(商品マスタ!F164="","",商品マスタ!F164) -> 
K171: =IF(商品マスタ!B165="","",商品マスタ!B165) -> 161 | L171: =IF(商品マスタ!C165="","",商品マスタ!C165) ->  | M171: =IF(商品マスタ!D165="","",商品マスタ!D165) ->  | N171: =IF(商品マスタ!E165="","",商品マスタ!E165) ->  | O171: =IF(商品マスタ!F165="","",商品マスタ!F165) -> 
K172: =IF(商品マスタ!B166="","",商品マスタ!B166) -> 162 | L172: =IF(商品マスタ!C166="","",商品マスタ!C166) ->  | M172: =IF(商品マスタ!D166="","",商品マスタ!D166) ->  | N172: =IF(商品マスタ!E166="","",商品マスタ!E166) ->  | O172: =IF(商品マスタ!F166="","",商品マスタ!F166) -> 
K173: =IF(商品マスタ!B167="","",商品マスタ!B167) -> 163 | L173: =IF(商品マスタ!C167="","",商品マスタ!C167) ->  | M173: =IF(商品マスタ!D167="","",商品マスタ!D167) ->  | N173: =IF(商品マスタ!E167="","",商品マスタ!E167) ->  | O173: =IF(商品マスタ!F167="","",商品マスタ!F167) -> 
K174: =IF(商品マスタ!B168="","",商品マスタ!B168) -> 164 | L174: =IF(商品マスタ!C168="","",商品マスタ!C168) ->  | M174: =IF(商品マスタ!D168="","",商品マスタ!D168) ->  | N174: =IF(商品マスタ!E168="","",商品マスタ!E168) ->  | O174: =IF(商品マスタ!F168="","",商品マスタ!F168) -> 
K175: =IF(商品マスタ!B169="","",商品マスタ!B169) -> 165 | L175: =IF(商品マスタ!C169="","",商品マスタ!C169) ->  | M175: =IF(商品マスタ!D169="","",商品マスタ!D169) ->  | N175: =IF(商品マスタ!E169="","",商品マスタ!E169) ->  | O175: =IF(商品マスタ!F169="","",商品マスタ!F169) -> 
K176: =IF(商品マスタ!B170="","",商品マスタ!B170) -> 166 | L176: =IF(商品マスタ!C170="","",商品マスタ!C170) ->  | M176: =IF(商品マスタ!D170="","",商品マスタ!D170) ->  | N176: =IF(商品マスタ!E170="","",商品マスタ!E170) ->  | O176: =IF(商品マスタ!F170="","",商品マスタ!F170) -> 
K177: =IF(商品マスタ!B171="","",商品マスタ!B171) -> 167 | L177: =IF(商品マスタ!C171="","",商品マスタ!C171) ->  | M177: =IF(商品マスタ!D171="","",商品マスタ!D171) ->  | N177: =IF(商品マスタ!E171="","",商品マスタ!E171) ->  | O177: =IF(商品マスタ!F171="","",商品マスタ!F171) -> 
K178: =IF(商品マスタ!B172="","",商品マスタ!B172) -> 168 | L178: =IF(商品マスタ!C172="","",商品マスタ!C172) ->  | M178: =IF(商品マスタ!D172="","",商品マスタ!D172) ->  | N178: =IF(商品マスタ!E172="","",商品マスタ!E172) ->  | O178: =IF(商品マスタ!F172="","",商品マスタ!F172) -> 
K179: =IF(商品マスタ!B173="","",商品マスタ!B173) -> 169 | L179: =IF(商品マスタ!C173="","",商品マスタ!C173) ->  | M179: =IF(商品マスタ!D173="","",商品マスタ!D173) ->  | N179: =IF(商品マスタ!E173="","",商品マスタ!E173) ->  | O179: =IF(商品マスタ!F173="","",商品マスタ!F173) -> 
K180: =IF(商品マスタ!B174="","",商品マスタ!B174) -> 170 | L180: =IF(商品マスタ!C174="","",商品マスタ!C174) ->  | M180: =IF(商品マスタ!D174="","",商品マスタ!D174) ->  | N180: =IF(商品マスタ!E174="","",商品マスタ!E174) ->  | O180: =IF(商品マスタ!F174="","",商品マスタ!F174) -> 
K181: =IF(商品マスタ!B175="","",商品マスタ!B175) -> 171 | L181: =IF(商品マスタ!C175="","",商品マスタ!C175) ->  | M181: =IF(商品マスタ!D175="","",商品マスタ!D175) ->  | N181: =IF(商品マスタ!E175="","",商品マスタ!E175) ->  | O181: =IF(商品マスタ!F175="","",商品マスタ!F175) -> 
K182: =IF(商品マスタ!B176="","",商品マスタ!B176) -> 172 | L182: =IF(商品マスタ!C176="","",商品マスタ!C176) ->  | M182: =IF(商品マスタ!D176="","",商品マスタ!D176) ->  | N182: =IF(商品マスタ!E176="","",商品マスタ!E176) ->  | O182: =IF(商品マスタ!F176="","",商品マスタ!F176) -> 
K183: =IF(商品マスタ!B177="","",商品マスタ!B177) -> 173 | L183: =IF(商品マスタ!C177="","",商品マスタ!C177) ->  | M183: =IF(商品マスタ!D177="","",商品マスタ!D177) ->  | N183: =IF(商品マスタ!E177="","",商品マスタ!E177) ->  | O183: =IF(商品マスタ!F177="","",商品マスタ!F177) -> 
K184: =IF(商品マスタ!B178="","",商品マスタ!B178) -> 174 | L184: =IF(商品マスタ!C178="","",商品マスタ!C178) ->  | M184: =IF(商品マスタ!D178="","",商品マスタ!D178) ->  | N184: =IF(商品マスタ!E178="","",商品マスタ!E178) ->  | O184: =IF(商品マスタ!F178="","",商品マスタ!F178) -> 
K185: =IF(商品マスタ!B179="","",商品マスタ!B179) -> 175 | L185: =IF(商品マスタ!C179="","",商品マスタ!C179) ->  | M185: =IF(商品マスタ!D179="","",商品マスタ!D179) ->  | N185: =IF(商品マスタ!E179="","",商品マスタ!E179) ->  | O185: =IF(商品マスタ!F179="","",商品マスタ!F179) -> 
K186: =IF(商品マスタ!B180="","",商品マスタ!B180) -> 176 | L186: =IF(商品マスタ!C180="","",商品マスタ!C180) ->  | M186: =IF(商品マスタ!D180="","",商品マスタ!D180) ->  | N186: =IF(商品マスタ!E180="","",商品マスタ!E180) ->  | O186: =IF(商品マスタ!F180="","",商品マスタ!F180) -> 
K187: =IF(商品マスタ!B181="","",商品マスタ!B181) -> 177 | L187: =IF(商品マスタ!C181="","",商品マスタ!C181) ->  | M187: =IF(商品マスタ!D181="","",商品マスタ!D181) ->  | N187: =IF(商品マスタ!E181="","",商品マスタ!E181) ->  | O187: =IF(商品マスタ!F181="","",商品マスタ!F181) -> 
K188: =IF(商品マスタ!B182="","",商品マスタ!B182) -> 178 | L188: =IF(商品マスタ!C182="","",商品マスタ!C182) ->  | M188: =IF(商品マスタ!D182="","",商品マスタ!D182) ->  | N188: =IF(商品マスタ!E182="","",商品マスタ!E182) ->  | O188: =IF(商品マスタ!F182="","",商品マスタ!F182) -> 
K189: =IF(商品マスタ!B183="","",商品マスタ!B183) -> 179 | L189: =IF(商品マスタ!C183="","",商品マスタ!C183) ->  | M189: =IF(商品マスタ!D183="","",商品マスタ!D183) ->  | N189: =IF(商品マスタ!E183="","",商品マスタ!E183) ->  | O189: =IF(商品マスタ!F183="","",商品マスタ!F183) -> 
K190: =IF(商品マスタ!B184="","",商品マスタ!B184) -> 180 | L190: =IF(商品マスタ!C184="","",商品マスタ!C184) ->  | M190: =IF(商品マスタ!D184="","",商品マスタ!D184) ->  | N190: =IF(商品マスタ!E184="","",商品マスタ!E184) ->  | O190: =IF(商品マスタ!F184="","",商品マスタ!F184) -> 
K191: =IF(商品マスタ!B185="","",商品マスタ!B185) -> 181 | L191: =IF(商品マスタ!C185="","",商品マスタ!C185) ->  | M191: =IF(商品マスタ!D185="","",商品マスタ!D185) ->  | N191: =IF(商品マスタ!E185="","",商品マスタ!E185) ->  | O191: =IF(商品マスタ!F185="","",商品マスタ!F185) -> 
K192: =IF(商品マスタ!B186="","",商品マスタ!B186) -> 182 | L192: =IF(商品マスタ!C186="","",商品マスタ!C186) ->  | M192: =IF(商品マスタ!D186="","",商品マスタ!D186) ->  | N192: =IF(商品マスタ!E186="","",商品マスタ!E186) ->  | O192: =IF(商品マスタ!F186="","",商品マスタ!F186) -> 
K193: =IF(商品マスタ!B187="","",商品マスタ!B187) -> 183 | L193: =IF(商品マスタ!C187="","",商品マスタ!C187) ->  | M193: =IF(商品マスタ!D187="","",商品マスタ!D187) ->  | N193: =IF(商品マスタ!E187="","",商品マスタ!E187) ->  | O193: =IF(商品マスタ!F187="","",商品マスタ!F187) -> 
K194: =IF(商品マスタ!B188="","",商品マスタ!B188) -> 184 | L194: =IF(商品マスタ!C188="","",商品マスタ!C188) ->  | M194: =IF(商品マスタ!D188="","",商品マスタ!D188) ->  | N194: =IF(商品マスタ!E188="","",商品マスタ!E188) ->  | O194: =IF(商品マスタ!F188="","",商品マスタ!F188) -> 
K195: =IF(商品マスタ!B189="","",商品マスタ!B189) -> 185 | L195: =IF(商品マスタ!C189="","",商品マスタ!C189) ->  | M195: =IF(商品マスタ!D189="","",商品マスタ!D189) ->  | N195: =IF(商品マスタ!E189="","",商品マスタ!E189) ->  | O195: =IF(商品マスタ!F189="","",商品マスタ!F189) -> 
K196: =IF(商品マスタ!B190="","",商品マスタ!B190) -> 186 | L196: =IF(商品マスタ!C190="","",商品マスタ!C190) ->  | M196: =IF(商品マスタ!D190="","",商品マスタ!D190) ->  | N196: =IF(商品マスタ!E190="","",商品マスタ!E190) ->  | O196: =IF(商品マスタ!F190="","",商品マスタ!F190) -> 
K197: =IF(商品マスタ!B191="","",商品マスタ!B191) -> 187 | L197: =IF(商品マスタ!C191="","",商品マスタ!C191) ->  | M197: =IF(商品マスタ!D191="","",商品マスタ!D191) ->  | N197: =IF(商品マスタ!E191="","",商品マスタ!E191) ->  | O197: =IF(商品マスタ!F191="","",商品マスタ!F191) -> 
K198: =IF(商品マスタ!B192="","",商品マスタ!B192) -> 188 | L198: =IF(商品マスタ!C192="","",商品マスタ!C192) ->  | M198: =IF(商品マスタ!D192="","",商品マスタ!D192) ->  | N198: =IF(商品マスタ!E192="","",商品マスタ!E192) ->  | O198: =IF(商品マスタ!F192="","",商品マスタ!F192) -> 
K199: =IF(商品マスタ!B193="","",商品マスタ!B193) -> 189 | L199: =IF(商品マスタ!C193="","",商品マスタ!C193) ->  | M199: =IF(商品マスタ!D193="","",商品マスタ!D193) ->  | N199: =IF(商品マスタ!E193="","",商品マスタ!E193) ->  | O199: =IF(商品マスタ!F193="","",商品マスタ!F193) -> 
K200: =IF(商品マスタ!B194="","",商品マスタ!B194) -> 190 | L200: =IF(商品マスタ!C194="","",商品マスタ!C194) ->  | M200: =IF(商品マスタ!D194="","",商品マスタ!D194) ->  | N200: =IF(商品マスタ!E194="","",商品マスタ!E194) ->  | O200: =IF(商品マスタ!F194="","",商品マスタ!F194) -> 
K201: =IF(商品マスタ!B195="","",商品マスタ!B195) -> 191 | L201: =IF(商品マスタ!C195="","",商品マスタ!C195) ->  | M201: =IF(商品マスタ!D195="","",商品マスタ!D195) ->  | N201: =IF(商品マスタ!E195="","",商品マスタ!E195) ->  | O201: =IF(商品マスタ!F195="","",商品マスタ!F195) -> 
K202: =IF(商品マスタ!B196="","",商品マスタ!B196) -> 192 | L202: =IF(商品マスタ!C196="","",商品マスタ!C196) ->  | M202: =IF(商品マスタ!D196="","",商品マスタ!D196) ->  | N202: =IF(商品マスタ!E196="","",商品マスタ!E196) ->  | O202: =IF(商品マスタ!F196="","",商品マスタ!F196) -> 
... 8 more rows

Sheet 選択リスト (hidden)
B6: 教材番号選択
D7: 名称の一部
D9: 1 | F9: =MAX(F11:F210) -> 200
B10: 教材番号→教材名検索 | D10: 選択教材リスト | E10: 教材番号抽出
B11: =IFERROR(INDEX(商品マスタ!$C$5:$C$204,MATCH(商品番号選択,商品マスタ!$B$5:$B$204,0)),"") ->  | C11: 1 | D11: =IFERROR(INDEX(商品マスタ!$C$5:$C$204,MATCH(E11,商品マスタ!$B$5:$B$204,0)),"") -> LIFESPAN（ライフスパン）―老いなき世界 | E11: =IFERROR(MATCH($C11,F$11:F$210,0),"") -> 1 | F11: =IF(ISERROR(FIND($E$7,商品マスタ!C5)),F10,F10+1) -> 1
C12: 2 | D12: =IFERROR(INDEX(商品マスタ!$C$5:$C$204,MATCH(E12,商品マスタ!$B$5:$B$204,0)),"") -> WHAT IS LIFE？（ホワット・イズ・ライフ？）生命とは何か | E12: 2 | F12: =IF(ISERROR(FIND($E$7,商品マスタ!C6)),F11,F11+1) -> 2
C13: 3 | D13: =IFERROR(INDEX(商品マスタ!$C$5:$C$204,MATCH(E13,商品マスタ!$B$5:$B$204,0)),"") -> 科学的とはどういう意味か | E13: 3 | F13: =IF(ISERROR(FIND($E$7,商品マスタ!C7)),F12,F12+1) -> 3
C14: 4 | D14: =IFERROR(INDEX(商品マスタ!$C$5:$C$204,MATCH(E14,商品マスタ!$B$5:$B$204,0)),"") -> コトPOP（R）を書いたら あっ、売れちゃった！ | E14: 4 | F14: =IF(ISERROR(FIND($E$7,商品マスタ!C8)),F13,F13+1) -> 4
C15: 5 | D15: =IFERROR(INDEX(商品マスタ!$C$5:$C$204,MATCH(E15,商品マスタ!$B$5:$B$204,0)),"") -> 鉄腕アトム 地球最大の冒険 | E15: 5 | F15: =IF(ISERROR(FIND($E$7,商品マスタ!C9)),F14,F14+1) -> 5
C16: 6 | D16: =IFERROR(INDEX(商品マスタ!$C$5:$C$204,MATCH(E16,商品マスタ!$B$5:$B$204,0)),"") -> 鉄腕アトム 地球防衛隊 | E16: 6 | F16: =IF(ISERROR(FIND($E$7,商品マスタ!C10)),F15,F15+1) -> 6
C17: 7 | D17: =IFERROR(INDEX(商品マスタ!$C$5:$C$204,MATCH(E17,商品マスタ!$B$5:$B$204,0)),"") -> どうする？デザイン クライアントとのやりとりでよくわかる！デザインの決め方、伝え方 | E17: 7 | F17: =IF(ISERROR(FIND($E$7,商品マスタ!C11)),F16,F16+1) -> 7
C18: 8 | D18: =IFERROR(INDEX(商品マスタ!$C$5:$C$204,MATCH(E18,商品マスタ!$B$5:$B$204,0)),"") -> ハッブル宇宙望遠鏡が見た絶景宇宙 SELECT 10 Vol.1 | E18: 8 | F18: =IF(ISERROR(FIND($E$7,商品マスタ!C12)),F17,F17+1) -> 8
C19: 9 | D19: =IFERROR(INDEX(商品マスタ!$C$5:$C$204,MATCH(E19,商品マスタ!$B$5:$B$204,0)),"") -> ハムスターがおうちにやってきた！ | E19: 9 | F19: =IF(ISERROR(FIND($E$7,商品マスタ!C13)),F18,F18+1) -> 9
C20: 10 | D20: =IFERROR(INDEX(商品マスタ!$C$5:$C$204,MATCH(E20,商品マスタ!$B$5:$B$204,0)),"") -> ビーカーくんのゆかいな化学実験 | E20: 10 | F20: =IF(ISERROR(FIND($E$7,商品マスタ!C14)),F19,F19+1) -> 10
C21: 11 | D21: =IFERROR(INDEX(商品マスタ!$C$5:$C$204,MATCH(E21,商品マスタ!$B$5:$B$204,0)),"") -> ヒトを理解するための 生物学 | E21: 11 | F21: =IF(ISERROR(FIND($E$7,商品マスタ!C15)),F20,F20+1) -> 11
C22: 12 | D22: =IFERROR(INDEX(商品マスタ!$C$5:$C$204,MATCH(E22,商品マスタ!$B$5:$B$204,0)),"") -> 富士山はどうしてそこにあるのか 地形から見る日本列島史 | E22: 12 | F22: =IF(ISERROR(FIND($E$7,商品マスタ!C16)),F21,F21+1) -> 12
C23: 13 | D23: =IFERROR(INDEX(商品マスタ!$C$5:$C$204,MATCH(E23,商品マスタ!$B$5:$B$204,0)),"") -> 宇宙の「果て」になにがあるのか 最新天文学が描く、時間と空間の終わり | E23: 13 | F23: =IF(ISERROR(FIND($E$7,商品マスタ!C17)),F22,F22+1) -> 13
C24: 14 | D24: =IFERROR(INDEX(商品マスタ!$C$5:$C$204,MATCH(E24,商品マスタ!$B$5:$B$204,0)),"") -> 宇宙は本当にひとつなのか―最新宇宙論入門 | E24: 14 | F24: =IF(ISERROR(FIND($E$7,商品マスタ!C18)),F23,F23+1) -> 14
C25: 15 | D25: =IFERROR(INDEX(商品マスタ!$C$5:$C$204,MATCH(E25,商品マスタ!$B$5:$B$204,0)),"") -> 宇宙創成（上） | E25: 15 | F25: =IF(ISERROR(FIND($E$7,商品マスタ!C19)),F24,F24+1) -> 15
C26: 16 | D26: =IFERROR(INDEX(商品マスタ!$C$5:$C$204,MATCH(E26,商品マスタ!$B$5:$B$204,0)),"") -> 宇宙望遠鏡がとらえた 銀河（ブックブライト） | E26: 16 | F26: =IF(ISERROR(FIND($E$7,商品マスタ!C20)),F25,F25+1) -> 16
C27: 17 | D27: =IFERROR(INDEX(商品マスタ!$C$5:$C$204,MATCH(E27,商品マスタ!$B$5:$B$204,0)),"") -> 見てわかる、迷わず決まる配色アイデア 3色だけでセンスのいい色 | E27: 17 | F27: =IF(ISERROR(FIND($E$7,商品マスタ!C21)),F26,F26+1) -> 17
C28: 18 | D28: =IFERROR(INDEX(商品マスタ!$C$5:$C$204,MATCH(E28,商品マスタ!$B$5:$B$204,0)),"") -> 写真加工で作る風景イラスト 神技作画シリーズ | E28: 18 | F28: =IF(ISERROR(FIND($E$7,商品マスタ!C22)),F27,F27+1) -> 18
C29: 19 | D29: =IFERROR(INDEX(商品マスタ!$C$5:$C$204,MATCH(E29,商品マスタ!$B$5:$B$204,0)),"") -> 写真加工で作る風景イラスト 神技作画シリーズ | E29: 19 | F29: =IF(ISERROR(FIND($E$7,商品マスタ!C23)),F28,F28+1) -> 19
C30: 20 | D30: =IFERROR(INDEX(商品マスタ!$C$5:$C$204,MATCH(E30,商品マスタ!$B$5:$B$204,0)),"") -> 重力とは何か アインシュタインから超弦理論へ、宇宙の謎に迫る | E30: 20 | F30: =IF(ISERROR(FIND($E$7,商品マスタ!C24)),F29,F29+1) -> 20
C31: 21 | D31: =IFERROR(INDEX(商品マスタ!$C$5:$C$204,MATCH(E31,商品マスタ!$B$5:$B$204,0)),"") -> 図説 メイドインアビス 探窟記録【電子特典付き】 | E31: 21 | F31: =IF(ISERROR(FIND($E$7,商品マスタ!C25)),F30,F30+1) -> 21
C32: 22 | D32: =IFERROR(INDEX(商品マスタ!$C$5:$C$204,MATCH(E32,商品マスタ!$B$5:$B$204,0)),"") -> 成功の秘密にアクセスできるギャラクシー・コード | E32: 22 | F32: =IF(ISERROR(FIND($E$7,商品マスタ!C26)),F31,F31+1) -> 22
C33: 23 | D33: =IFERROR(INDEX(商品マスタ!$C$5:$C$204,MATCH(E33,商品マスタ!$B$5:$B$204,0)),"") -> 太陽系 絶景画像50 | E33: 23 | F33: =IF(ISERROR(FIND($E$7,商品マスタ!C27)),F32,F32+1) -> 23
C34: 24 | D34: =IFERROR(INDEX(商品マスタ!$C$5:$C$204,MATCH(E34,商品マスタ!$B$5:$B$204,0)),"") -> 踊りませんか？ 社交ダンスの世界 | E34: 24 | F34: =IF(ISERROR(FIND($E$7,商品マスタ!C28)),F33,F33+1) -> 24
C35: 25 | D35: =IFERROR(INDEX(商品マスタ!$C$5:$C$204,MATCH(E35,商品マスタ!$B$5:$B$204,0)),"") -> 0 | E35: 25 | F35: =IF(ISERROR(FIND($E$7,商品マスタ!C29)),F34,F34+1) -> 25
C36: 26 | D36: =IFERROR(INDEX(商品マスタ!$C$5:$C$204,MATCH(E36,商品マスタ!$B$5:$B$204,0)),"") -> 0 | E36: 26 | F36: =IF(ISERROR(FIND($E$7,商品マスタ!C30)),F35,F35+1) -> 26
C37: 27 | D37: =IFERROR(INDEX(商品マスタ!$C$5:$C$204,MATCH(E37,商品マスタ!$B$5:$B$204,0)),"") -> 0 | E37: 27 | F37: =IF(ISERROR(FIND($E$7,商品マスタ!C31)),F36,F36+1) -> 27
C38: 28 | D38: =IFERROR(INDEX(商品マスタ!$C$5:$C$204,MATCH(E38,商品マスタ!$B$5:$B$204,0)),"") -> 0 | E38: 28 | F38: =IF(ISERROR(FIND($E$7,商品マスタ!C32)),F37,F37+1) -> 28
C39: 29 | D39: =IFERROR(INDEX(商品マスタ!$C$5:$C$204,MATCH(E39,商品マスタ!$B$5:$B$204,0)),"") -> 0 | E39: 29 | F39: =IF(ISERROR(FIND($E$7,商品マスタ!C33)),F38,F38+1) -> 29
C40: 30 | D40: =IFERROR(INDEX(商品マスタ!$C$5:$C$204,MATCH(E40,商品マスタ!$B$5:$B$204,0)),"") -> 0 | E40: 30 | F40: =IF(ISERROR(FIND($E$7,商品マスタ!C34)),F39,F39+1) -> 30
C41: 31 | D41: =IFERROR(INDEX(商品マスタ!$C$5:$C$204,MATCH(E41,商品マスタ!$B$5:$B$204,0)),"") -> 0 | E41: 31 | F41: =IF(ISERROR(FIND($E$7,商品マスタ!C35)),F40,F40+1) -> 31
C42: 32 | D42: =IFERROR(INDEX(商品マスタ!$C$5:$C$204,MATCH(E42,商品マスタ!$B$5:$B$204,0)),"") -> 0 | E42: 32 | F42: =IF(ISERROR(FIND($E$7,商品マスタ!C36)),F41,F41+1) -> 32
C43: 33 | D43: =IFERROR(INDEX(商品マスタ!$C$5:$C$204,MATCH(E43,商品マスタ!$B$5:$B$204,0)),"") -> 0 | E43: =IFERROR(MATCH($C43,F$11:F$210,0),"") -> 33 | F43: =IF(ISERROR(FIND($E$7,商品マスタ!C37)),F42,F42+1) -> 33
C44: 34 | D44: =IFERROR(INDEX(商品マスタ!$C$5:$C$204,MATCH(E44,商品マスタ!$B$5:$B$204,0)),"") -> 0 | E44: 34 | F44: =IF(ISERROR(FIND($E$7,商品マスタ!C38)),F43,F43+1) -> 34
C45: 35 | D45: =IFERROR(INDEX(商品マスタ!$C$5:$C$204,MATCH(E45,商品マスタ!$B$5:$B$204,0)),"") -> 0 | E45: 35 | F45: =IF(ISERROR(FIND($E$7,商品マスタ!C39)),F44,F44+1) -> 35
C46: 36 | D46: =IFERROR(INDEX(商品マスタ!$C$5:$C$204,MATCH(E46,商品マスタ!$B$5:$B$204,0)),"") -> 0 | E46: 36 | F46: =IF(ISERROR(FIND($E$7,商品マスタ!C40)),F45,F45+1) -> 36
C47: 37 | D47: =IFERROR(INDEX(商品マスタ!$C$5:$C$204,MATCH(E47,商品マスタ!$B$5:$B$204,0)),"") -> 0 | E47: 37 | F47: =IF(ISERROR(FIND($E$7,商品マスタ!C41)),F46,F46+1) -> 37
C48: 38 | D48: =IFERROR(INDEX(商品マスタ!$C$5:$C$204,MATCH(E48,商品マスタ!$B$5:$B$204,0)),"") -> 0 | E48: 38 | F48: =IF(ISERROR(FIND($E$7,商品マスタ!C42)),F47,F47+1) -> 38
C49: 39 | D49: =IFERROR(INDEX(商品マスタ!$C$5:$C$204,MATCH(E49,商品マスタ!$B$5:$B$204,0)),"") -> 0 | E49: 39 | F49: =IF(ISERROR(FIND($E$7,商品マスタ!C43)),F48,F48+1) -> 39
C50: 40 | D50: =IFERROR(INDEX(商品マスタ!$C$5:$C$204,MATCH(E50,商品マスタ!$B$5:$B$204,0)),"") -> 0 | E50: 40 | F50: =IF(ISERROR(FIND($E$7,商品マスタ!C44)),F49,F49+1) -> 40
C51: 41 | D51: =IFERROR(INDEX(商品マスタ!$C$5:$C$204,MATCH(E51,商品マスタ!$B$5:$B$204,0)),"") -> 0 | E51: 41 | F51: =IF(ISERROR(FIND($E$7,商品マスタ!C45)),F50,F50+1) -> 41
C52: 42 | D52: =IFERROR(INDEX(商品マスタ!$C$5:$C$204,MATCH(E52,商品マスタ!$B$5:$B$204,0)),"") -> 0 | E52: 42 | F52: =IF(ISERROR(FIND($E$7,商品マスタ!C46)),F51,F51+1) -> 42
C53: 43 | D53: =IFERROR(INDEX(商品マスタ!$C$5:$C$204,MATCH(E53,商品マスタ!$B$5:$B$204,0)),"") -> 0 | E53: 43 | F53: =IF(ISERROR(FIND($E$7,商品マスタ!C47)),F52,F52+1) -> 43
C54: 44 | D54: =IFERROR(INDEX(商品マスタ!$C$5:$C$204,MATCH(E54,商品マスタ!$B$5:$B$204,0)),"") -> 0 | E54: 44 | F54: =IF(ISERROR(FIND($E$7,商品マスタ!C48)),F53,F53+1) -> 44
C55: 45 | D55: =IFERROR(INDEX(商品マスタ!$C$5:$C$204,MATCH(E55,商品マスタ!$B$5:$B$204,0)),"") -> 0 | E55: 45 | F55: =IF(ISERROR(FIND($E$7,商品マスタ!C49)),F54,F54+1) -> 45
C56: 46 | D56: =IFERROR(INDEX(商品マスタ!$C$5:$C$204,MATCH(E56,商品マスタ!$B$5:$B$204,0)),"") -> 0 | E56: 46 | F56: =IF(ISERROR(FIND($E$7,商品マスタ!C50)),F55,F55+1) -> 46
C57: 47 | D57: =IFERROR(INDEX(商品マスタ!$C$5:$C$204,MATCH(E57,商品マスタ!$B$5:$B$204,0)),"") -> 0 | E57: 47 | F57: =IF(ISERROR(FIND($E$7,商品マスタ!C51)),F56,F56+1) -> 47
C58: 48 | D58: =IFERROR(INDEX(商品マスタ!$C$5:$C$204,MATCH(E58,商品マスタ!$B$5:$B$204,0)),"") -> 0 | E58: 48 | F58: =IF(ISERROR(FIND($E$7,商品マスタ!C52)),F57,F57+1) -> 48
C59: 49 | D59: =IFERROR(INDEX(商品マスタ!$C$5:$C$204,MATCH(E59,商品マスタ!$B$5:$B$204,0)),"") -> 0 | E59: 49 | F59: =IF(ISERROR(FIND($E$7,商品マスタ!C53)),F58,F58+1) -> 49
C60: 50 | D60: =IFERROR(INDEX(商品マスタ!$C$5:$C$204,MATCH(E60,商品マスタ!$B$5:$B$204,0)),"") -> 0 | E60: 50 | F60: =IF(ISERROR(FIND($E$7,商品マスタ!C54)),F59,F59+1) -> 50
C61: 51 | D61: =IFERROR(INDEX(商品マスタ!$C$5:$C$204,MATCH(E61,商品マスタ!$B$5:$B$204,0)),"") -> 0 | E61: 51 | F61: =IF(ISERROR(FIND($E$7,商品マスタ!C55)),F60,F60+1) -> 51
C62: 52 | D62: =IFERROR(INDEX(商品マスタ!$C$5:$C$204,MATCH(E62,商品マスタ!$B$5:$B$204,0)),"") -> 0 | E62: 52 | F62: =IF(ISERROR(FIND($E$7,商品マスタ!C56)),F61,F61+1) -> 52
C63: 53 | D63: =IFERROR(INDEX(商品マスタ!$C$5:$C$204,MATCH(E63,商品マスタ!$B$5:$B$204,0)),"") -> 0 | E63: 53 | F63: =IF(ISERROR(FIND($E$7,商品マスタ!C57)),F62,F62+1) -> 53
C64: 54 | D64: =IFERROR(INDEX(商品マスタ!$C$5:$C$204,MATCH(E64,商品マスタ!$B$5:$B$204,0)),"") -> 0 | E64: 54 | F64: =IF(ISERROR(FIND($E$7,商品マスタ!C58)),F63,F63+1) -> 54
C65: 55 | D65: =IFERROR(INDEX(商品マスタ!$C$5:$C$204,MATCH(E65,商品マスタ!$B$5:$B$204,0)),"") -> 0 | E65: 55 | F65: =IF(ISERROR(FIND($E$7,商品マスタ!C59)),F64,F64+1) -> 55
C66: 56 | D66: =IFERROR(INDEX(商品マスタ!$C$5:$C$204,MATCH(E66,商品マスタ!$B$5:$B$204,0)),"") -> 0 | E66: 56 | F66: =IF(ISERROR(FIND($E$7,商品マスタ!C60)),F65,F65+1) -> 56
C67: 57 | D67: =IFERROR(INDEX(商品マスタ!$C$5:$C$204,MATCH(E67,商品マスタ!$B$5:$B$204,0)),"") -> 0 | E67: 57 | F67: =IF(ISERROR(FIND($E$7,商品マスタ!C61)),F66,F66+1) -> 57
C68: 58 | D68: =IFERROR(INDEX(商品マスタ!$C$5:$C$204,MATCH(E68,商品マスタ!$B$5:$B$204,0)),"") -> 0 | E68: 58 | F68: =IF(ISERROR(FIND($E$7,商品マスタ!C62)),F67,F67+1) -> 58
C69: 59 | D69: =IFERROR(INDEX(商品マスタ!$C$5:$C$204,MATCH(E69,商品マスタ!$B$5:$B$204,0)),"") -> 0 | E69: 59 | F69: =IF(ISERROR(FIND($E$7,商品マスタ!C63)),F68,F68+1) -> 59
C70: 60 | D70: =IFERROR(INDEX(商品マスタ!$C$5:$C$204,MATCH(E70,商品マスタ!$B$5:$B$204,0)),"") -> 0 | E70: 60 | F70: =IF(ISERROR(FIND($E$7,商品マスタ!C64)),F69,F69+1) -> 60
C71: 61 | D71: =IFERROR(INDEX(商品マスタ!$C$5:$C$204,MATCH(E71,商品マスタ!$B$5:$B$204,0)),"") -> 0 | E71: 61 | F71: =IF(ISERROR(FIND($E$7,商品マスタ!C65)),F70,F70+1) -> 61
C72: 62 | D72: =IFERROR(INDEX(商品マスタ!$C$5:$C$204,MATCH(E72,商品マスタ!$B$5:$B$204,0)),"") -> 0 | E72: 62 | F72: =IF(ISERROR(FIND($E$7,商品マスタ!C66)),F71,F71+1) -> 62
C73: 63 | D73: =IFERROR(INDEX(商品マスタ!$C$5:$C$204,MATCH(E73,商品マスタ!$B$5:$B$204,0)),"") -> 0 | E73: 63 | F73: =IF(ISERROR(FIND($E$7,商品マスタ!C67)),F72,F72+1) -> 63
C74: 64 | D74: =IFERROR(INDEX(商品マスタ!$C$5:$C$204,MATCH(E74,商品マスタ!$B$5:$B$204,0)),"") -> 0 | E74: 64 | F74: =IF(ISERROR(FIND($E$7,商品マスタ!C68)),F73,F73+1) -> 64
C75: 65 | D75: =IFERROR(INDEX(商品マスタ!$C$5:$C$204,MATCH(E75,商品マスタ!$B$5:$B$204,0)),"") -> 0 | E75: =IFERROR(MATCH($C75,F$11:F$210,0),"") -> 65 | F75: =IF(ISERROR(FIND($E$7,商品マスタ!C69)),F74,F74+1) -> 65
C76: 66 | D76: =IFERROR(INDEX(商品マスタ!$C$5:$C$204,MATCH(E76,商品マスタ!$B$5:$B$204,0)),"") -> 0 | E76: 66 | F76: =IF(ISERROR(FIND($E$7,商品マスタ!C70)),F75,F75+1) -> 66
C77: 67 | D77: =IFERROR(INDEX(商品マスタ!$C$5:$C$204,MATCH(E77,商品マスタ!$B$5:$B$204,0)),"") -> 0 | E77: 67 | F77: =IF(ISERROR(FIND($E$7,商品マスタ!C71)),F76,F76+1) -> 67
C78: 68 | D78: =IFERROR(INDEX(商品マスタ!$C$5:$C$204,MATCH(E78,商品マスタ!$B$5:$B$204,0)),"") -> 0 | E78: 68 | F78: =IF(ISERROR(FIND($E$7,商品マスタ!C72)),F77,F77+1) -> 68
C79: 69 | D79: =IFERROR(INDEX(商品マスタ!$C$5:$C$204,MATCH(E79,商品マスタ!$B$5:$B$204,0)),"") -> 0 | E79: 69 | F79: =IF(ISERROR(FIND($E$7,商品マスタ!C73)),F78,F78+1) -> 69
C80: 70 | D80: =IFERROR(INDEX(商品マスタ!$C$5:$C$204,MATCH(E80,商品マスタ!$B$5:$B$204,0)),"") -> 0 | E80: 70 | F80: =IF(ISERROR(FIND($E$7,商品マスタ!C74)),F79,F79+1) -> 70
C81: 71 | D81: =IFERROR(INDEX(商品マスタ!$C$5:$C$204,MATCH(E81,商品マスタ!$B$5:$B$204,0)),"") -> 0 | E81: 71 | F81: =IF(ISERROR(FIND($E$7,商品マスタ!C75)),F80,F80+1) -> 71
C82: 72 | D82: =IFERROR(INDEX(商品マスタ!$C$5:$C$204,MATCH(E82,商品マスタ!$B$5:$B$204,0)),"") -> 0 | E82: 72 | F82: =IF(ISERROR(FIND($E$7,商品マスタ!C76)),F81,F81+1) -> 72
C83: 73 | D83: =IFERROR(INDEX(商品マスタ!$C$5:$C$204,MATCH(E83,商品マスタ!$B$5:$B$204,0)),"") -> 0 | E83: 73 | F83: =IF(ISERROR(FIND($E$7,商品マスタ!C77)),F82,F82+1) -> 73
C84: 74 | D84: =IFERROR(INDEX(商品マスタ!$C$5:$C$204,MATCH(E84,商品マスタ!$B$5:$B$204,0)),"") -> 0 | E84: 74 | F84: =IF(ISERROR(FIND($E$7,商品マスタ!C78)),F83,F83+1) -> 74
C85: 75 | D85: =IFERROR(INDEX(商品マスタ!$C$5:$C$204,MATCH(E85,商品マスタ!$B$5:$B$204,0)),"") -> 0 | E85: 75 | F85: =IF(ISERROR(FIND($E$7,商品マスタ!C79)),F84,F84+1) -> 75
C86: 76 | D86: =IFERROR(INDEX(商品マスタ!$C$5:$C$204,MATCH(E86,商品マスタ!$B$5:$B$204,0)),"") -> 0 | E86: 76 | F86: =IF(ISERROR(FIND($E$7,商品マスタ!C80)),F85,F85+1) -> 76
C87: 77 | D87: =IFERROR(INDEX(商品マスタ!$C$5:$C$204,MATCH(E87,商品マスタ!$B$5:$B$204,0)),"") -> 0 | E87: 77 | F87: =IF(ISERROR(FIND($E$7,商品マスタ!C81)),F86,F86+1) -> 77
C88: 78 | D88: =IFERROR(INDEX(商品マスタ!$C$5:$C$204,MATCH(E88,商品マスタ!$B$5:$B$204,0)),"") -> 0 | E88: 78 | F88: =IF(ISERROR(FIND($E$7,商品マスタ!C82)),F87,F87+1) -> 78
C89: 79 | D89: =IFERROR(INDEX(商品マスタ!$C$5:$C$204,MATCH(E89,商品マスタ!$B$5:$B$204,0)),"") -> 0 | E89: 79 | F89: =IF(ISERROR(FIND($E$7,商品マスタ!C83)),F88,F88+1) -> 79
C90: 80 | D90: =IFERROR(INDEX(商品マスタ!$C$5:$C$204,MATCH(E90,商品マスタ!$B$5:$B$204,0)),"") -> 0 | E90: 80 | F90: =IF(ISERROR(FIND($E$7,商品マスタ!C84)),F89,F89+1) -> 80
C91: 81 | D91: =IFERROR(INDEX(商品マスタ!$C$5:$C$204,MATCH(E91,商品マスタ!$B$5:$B$204,0)),"") -> 0 | E91: 81 | F91: =IF(ISERROR(FIND($E$7,商品マスタ!C85)),F90,F90+1) -> 81
C92: 82 | D92: =IFERROR(INDEX(商品マスタ!$C$5:$C$204,MATCH(E92,商品マスタ!$B$5:$B$204,0)),"") -> 0 | E92: 82 | F92: =IF(ISERROR(FIND($E$7,商品マスタ!C86)),F91,F91+1) -> 82
C93: 83 | D93: =IFERROR(INDEX(商品マスタ!$C$5:$C$204,MATCH(E93,商品マスタ!$B$5:$B$204,0)),"") -> 0 | E93: 83 | F93: =IF(ISERROR(FIND($E$7,商品マスタ!C87)),F92,F92+1) -> 83
C94: 84 | D94: =IFERROR(INDEX(商品マスタ!$C$5:$C$204,MATCH(E94,商品マスタ!$B$5:$B$204,0)),"") -> 0 | E94: 84 | F94: =IF(ISERROR(FIND($E$7,商品マスタ!C88)),F93,F93+1) -> 84
C95: 85 | D95: =IFERROR(INDEX(商品マスタ!$C$5:$C$204,MATCH(E95,商品マスタ!$B$5:$B$204,0)),"") -> 0 | E95: 85 | F95: =IF(ISERROR(FIND($E$7,商品マスタ!C89)),F94,F94+1) -> 85
C96: 86 | D96: =IFERROR(INDEX(商品マスタ!$C$5:$C$204,MATCH(E96,商品マスタ!$B$5:$B$204,0)),"") -> 0 | E96: 86 | F96: =IF(ISERROR(FIND($E$7,商品マスタ!C90)),F95,F95+1) -> 86
C97: 87 | D97: =IFERROR(INDEX(商品マスタ!$C$5:$C$204,MATCH(E97,商品マスタ!$B$5:$B$204,0)),"") -> 0 | E97: 87 | F97: =IF(ISERROR(FIND($E$7,商品マスタ!C91)),F96,F96+1) -> 87
C98: 88 | D98: =IFERROR(INDEX(商品マスタ!$C$5:$C$204,MATCH(E98,商品マスタ!$B$5:$B$204,0)),"") -> 0 | E98: 88 | F98: =IF(ISERROR(FIND($E$7,商品マスタ!C92)),F97,F97+1) -> 88
C99: 89 | D99: =IFERROR(INDEX(商品マスタ!$C$5:$C$204,MATCH(E99,商品マスタ!$B$5:$B$204,0)),"") -> 0 | E99: 89 | F99: =IF(ISERROR(FIND($E$7,商品マスタ!C93)),F98,F98+1) -> 89
C100: 90 | D100: =IFERROR(INDEX(商品マスタ!$C$5:$C$204,MATCH(E100,商品マスタ!$B$5:$B$204,0)),"") -> 0 | E100: 90 | F100: =IF(ISERROR(FIND($E$7,商品マスタ!C94)),F99,F99+1) -> 90
C101: 91 | D101: =IFERROR(INDEX(商品マスタ!$C$5:$C$204,MATCH(E101,商品マスタ!$B$5:$B$204,0)),"") -> 0 | E101: 91 | F101: =IF(ISERROR(FIND($E$7,商品マスタ!C95)),F100,F100+1) -> 91
C102: 92 | D102: =IFERROR(INDEX(商品マスタ!$C$5:$C$204,MATCH(E102,商品マスタ!$B$5:$B$204,0)),"") -> 0 | E102: 92 | F102: =IF(ISERROR(FIND($E$7,商品マスタ!C96)),F101,F101+1) -> 92
C103: 93 | D103: =IFERROR(INDEX(商品マスタ!$C$5:$C$204,MATCH(E103,商品マスタ!$B$5:$B$204,0)),"") -> 0 | E103: 93 | F103: =IF(ISERROR(FIND($E$7,商品マスタ!C97)),F102,F102+1) -> 93
C104: 94 | D104: =IFERROR(INDEX(商品マスタ!$C$5:$C$204,MATCH(E104,商品マスタ!$B$5:$B$204,0)),"") -> 0 | E104: 94 | F104: =IF(ISERROR(FIND($E$7,商品マスタ!C98)),F103,F103+1) -> 94
C105: 95 | D105: =IFERROR(INDEX(商品マスタ!$C$5:$C$204,MATCH(E105,商品マスタ!$B$5:$B$204,0)),"") -> 0 | E105: 95 | F105: =IF(ISERROR(FIND($E$7,商品マスタ!C99)),F104,F104+1) -> 95
C106: 96 | D106: =IFERROR(INDEX(商品マスタ!$C$5:$C$204,MATCH(E106,商品マスタ!$B$5:$B$204,0)),"") -> 0 | E106: 96 | F106: =IF(ISERROR(FIND($E$7,商品マスタ!C100)),F105,F105+1) -> 96
C107: 97 | D107: =IFERROR(INDEX(商品マスタ!$C$5:$C$204,MATCH(E107,商品マスタ!$B$5:$B$204,0)),"") -> 0 | E107: =IFERROR(MATCH($C107,F$11:F$210,0),"") -> 97 | F107: =IF(ISERROR(FIND($E$7,商品マスタ!C101)),F106,F106+1) -> 97
C108: 98 | D108: =IFERROR(INDEX(商品マスタ!$C$5:$C$204,MATCH(E108,商品マスタ!$B$5:$B$204,0)),"") -> 0 | E108: 98 | F108: =IF(ISERROR(FIND($E$7,商品マスタ!C102)),F107,F107+1) -> 98
C109: 99 | D109: =IFERROR(INDEX(商品マスタ!$C$5:$C$204,MATCH(E109,商品マスタ!$B$5:$B$204,0)),"") -> 0 | E109: 99 | F109: =IF(ISERROR(FIND($E$7,商品マスタ!C103)),F108,F108+1) -> 99
C110: 100 | D110: =IFERROR(INDEX(商品マスタ!$C$5:$C$204,MATCH(E110,商品マスタ!$B$5:$B$204,0)),"") -> 0 | E110: 100 | F110: =IF(ISERROR(FIND($E$7,商品マスタ!C104)),F109,F109+1) -> 100
C111: 101 | D111: =IFERROR(INDEX(商品マスタ!$C$5:$C$204,MATCH(E111,商品マスタ!$B$5:$B$204,0)),"") -> 0 | E111: 101 | F111: =IF(ISERROR(FIND($E$7,商品マスタ!C105)),F110,F110+1) -> 101
C112: 102 | D112: =IFERROR(INDEX(商品マスタ!$C$5:$C$204,MATCH(E112,商品マスタ!$B$5:$B$204,0)),"") -> 0 | E112: 102 | F112: =IF(ISERROR(FIND($E$7,商品マスタ!C106)),F111,F111+1) -> 102
C113: 103 | D113: =IFERROR(INDEX(商品マスタ!$C$5:$C$204,MATCH(E113,商品マスタ!$B$5:$B$204,0)),"") -> 0 | E113: 103 | F113: =IF(ISERROR(FIND($E$7,商品マスタ!C107)),F112,F112+1) -> 103
C114: 104 | D114: =IFERROR(INDEX(商品マスタ!$C$5:$C$204,MATCH(E114,商品マスタ!$B$5:$B$204,0)),"") -> 0 | E114: 104 | F114: =IF(ISERROR(FIND($E$7,商品マスタ!C108)),F113,F113+1) -> 104
C115: 105 | D115: =IFERROR(INDEX(商品マスタ!$C$5:$C$204,MATCH(E115,商品マスタ!$B$5:$B$204,0)),"") -> 0 | E115: 105 | F115: =IF(ISERROR(FIND($E$7,商品マスタ!C109)),F114,F114+1) -> 105
C116: 106 | D116: =IFERROR(INDEX(商品マスタ!$C$5:$C$204,MATCH(E116,商品マスタ!$B$5:$B$204,0)),"") -> 0 | E116: 106 | F116: =IF(ISERROR(FIND($E$7,商品マスタ!C110)),F115,F115+1) -> 106
C117: 107 | D117: =IFERROR(INDEX(商品マスタ!$C$5:$C$204,MATCH(E117,商品マスタ!$B$5:$B$204,0)),"") -> 0 | E117: 107 | F117: =IF(ISERROR(FIND($E$7,商品マスタ!C111)),F116,F116+1) -> 107
C118: 108 | D118: =IFERROR(INDEX(商品マスタ!$C$5:$C$204,MATCH(E118,商品マスタ!$B$5:$B$204,0)),"") -> 0 | E118: 108 | F118: =IF(ISERROR(FIND($E$7,商品マスタ!C112)),F117,F117+1) -> 108
C119: 109 | D119: =IFERROR(INDEX(商品マスタ!$C$5:$C$204,MATCH(E119,商品マスタ!$B$5:$B$204,0)),"") -> 0 | E119: 109 | F119: =IF(ISERROR(FIND($E$7,商品マスタ!C113)),F118,F118+1) -> 109
C120: 110 | D120: =IFERROR(INDEX(商品マスタ!$C$5:$C$204,MATCH(E120,商品マスタ!$B$5:$B$204,0)),"") -> 0 | E120: 110 | F120: =IF(ISERROR(FIND($E$7,商品マスタ!C114)),F119,F119+1) -> 110
C121: 111 | D121: =IFERROR(INDEX(商品マスタ!$C$5:$C$204,MATCH(E121,商品マスタ!$B$5:$B$204,0)),"") -> 0 | E121: 111 | F121: =IF(ISERROR(FIND($E$7,商品マスタ!C115)),F120,F120+1) -> 111
C122: 112 | D122: =IFERROR(INDEX(商品マスタ!$C$5:$C$204,MATCH(E122,商品マスタ!$B$5:$B$204,0)),"") -> 0 | E122: 112 | F122: =IF(ISERROR(FIND($E$7,商品マスタ!C116)),F121,F121+1) -> 112
C123: 113 | D123: =IFERROR(INDEX(商品マスタ!$C$5:$C$204,MATCH(E123,商品マスタ!$B$5:$B$204,0)),"") -> 0 | E123: 113 | F123: =IF(ISERROR(FIND($E$7,商品マスタ!C117)),F122,F122+1) -> 113
C124: 114 | D124: =IFERROR(INDEX(商品マスタ!$C$5:$C$204,MATCH(E124,商品マスタ!$B$5:$B$204,0)),"") -> 0 | E124: 114 | F124: =IF(ISERROR(FIND($E$7,商品マスタ!C118)),F123,F123+1) -> 114
C125: 115 | D125: =IFERROR(INDEX(商品マスタ!$C$5:$C$204,MATCH(E125,商品マスタ!$B$5:$B$204,0)),"") -> 0 | E125: 115 | F125: =IF(ISERROR(FIND($E$7,商品マスタ!C119)),F124,F124+1) -> 115
C126: 116 | D126: =IFERROR(INDEX(商品マスタ!$C$5:$C$204,MATCH(E126,商品マスタ!$B$5:$B$204,0)),"") -> 0 | E126: 116 | F126: =IF(ISERROR(FIND($E$7,商品マスタ!C120)),F125,F125+1) -> 116
C127: 117 | D127: =IFERROR(INDEX(商品マスタ!$C$5:$C$204,MATCH(E127,商品マスタ!$B$5:$B$204,0)),"") -> 0 | E127: 117 | F127: =IF(ISERROR(FIND($E$7,商品マスタ!C121)),F126,F126+1) -> 117
C128: 118 | D128: =IFERROR(INDEX(商品マスタ!$C$5:$C$204,MATCH(E128,商品マスタ!$B$5:$B$204,0)),"") -> 0 | E128: 118 | F128: =IF(ISERROR(FIND($E$7,商品マスタ!C122)),F127,F127+1) -> 118
C129: 119 | D129: =IFERROR(INDEX(商品マスタ!$C$5:$C$204,MATCH(E129,商品マスタ!$B$5:$B$204,0)),"") -> 0 | E129: 119 | F129: =IF(ISERROR(FIND($E$7,商品マスタ!C123)),F128,F128+1) -> 119
C130: 120 | D130: =IFERROR(INDEX(商品マスタ!$C$5:$C$204,MATCH(E130,商品マスタ!$B$5:$B$204,0)),"") -> 0 | E130: 120 | F130: =IF(ISERROR(FIND($E$7,商品マスタ!C124)),F129,F129+1) -> 120
C131: 121 | D131: =IFERROR(INDEX(商品マスタ!$C$5:$C$204,MATCH(E131,商品マスタ!$B$5:$B$204,0)),"") -> 0 | E131: 121 | F131: =IF(ISERROR(FIND($E$7,商品マスタ!C125)),F130,F130+1) -> 121
C132: 122 | D132: =IFERROR(INDEX(商品マスタ!$C$5:$C$204,MATCH(E132,商品マスタ!$B$5:$B$204,0)),"") -> 0 | E132: 122 | F132: =IF(ISERROR(FIND($E$7,商品マスタ!C126)),F131,F131+1) -> 122
C133: 123 | D133: =IFERROR(INDEX(商品マスタ!$C$5:$C$204,MATCH(E133,商品マスタ!$B$5:$B$204,0)),"") -> 0 | E133: 123 | F133: =IF(ISERROR(FIND($E$7,商品マスタ!C127)),F132,F132+1) -> 123
C134: 124 | D134: =IFERROR(INDEX(商品マスタ!$C$5:$C$204,MATCH(E134,商品マスタ!$B$5:$B$204,0)),"") -> 0 | E134: 124 | F134: =IF(ISERROR(FIND($E$7,商品マスタ!C128)),F133,F133+1) -> 124
C135: 125 | D135: =IFERROR(INDEX(商品マスタ!$C$5:$C$204,MATCH(E135,商品マスタ!$B$5:$B$204,0)),"") -> 0 | E135: 125 | F135: =IF(ISERROR(FIND($E$7,商品マスタ!C129)),F134,F134+1) -> 125
C136: 126 | D136: =IFERROR(INDEX(商品マスタ!$C$5:$C$204,MATCH(E136,商品マスタ!$B$5:$B$204,0)),"") -> 0 | E136: 126 | F136: =IF(ISERROR(FIND($E$7,商品マスタ!C130)),F135,F135+1) -> 126
C137: 127 | D137: =IFERROR(INDEX(商品マスタ!$C$5:$C$204,MATCH(E137,商品マスタ!$B$5:$B$204,0)),"") -> 0 | E137: 127 | F137: =IF(ISERROR(FIND($E$7,商品マスタ!C131)),F136,F136+1) -> 127
C138: 128 | D138: =IFERROR(INDEX(商品マスタ!$C$5:$C$204,MATCH(E138,商品マスタ!$B$5:$B$204,0)),"") -> 0 | E138: 128 | F138: =IF(ISERROR(FIND($E$7,商品マスタ!C132)),F137,F137+1) -> 128
C139: 129 | D139: =IFERROR(INDEX(商品マスタ!$C$5:$C$204,MATCH(E139,商品マスタ!$B$5:$B$204,0)),"") -> 0 | E139: =IFERROR(MATCH($C139,F$11:F$210,0),"") -> 129 | F139: =IF(ISERROR(FIND($E$7,商品マスタ!C133)),F138,F138+1) -> 129
C140: 130 | D140: =IFERROR(INDEX(商品マスタ!$C$5:$C$204,MATCH(E140,商品マスタ!$B$5:$B$204,0)),"") -> 0 | E140: 130 | F140: =IF(ISERROR(FIND($E$7,商品マスタ!C134)),F139,F139+1) -> 130
C141: 131 | D141: =IFERROR(INDEX(商品マスタ!$C$5:$C$204,MATCH(E141,商品マスタ!$B$5:$B$204,0)),"") -> 0 | E141: 131 | F141: =IF(ISERROR(FIND($E$7,商品マスタ!C135)),F140,F140+1) -> 131
C142: 132 | D142: =IFERROR(INDEX(商品マスタ!$C$5:$C$204,MATCH(E142,商品マスタ!$B$5:$B$204,0)),"") -> 0 | E142: 132 | F142: =IF(ISERROR(FIND($E$7,商品マスタ!C136)),F141,F141+1) -> 132
C143: 133 | D143: =IFERROR(INDEX(商品マスタ!$C$5:$C$204,MATCH(E143,商品マスタ!$B$5:$B$204,0)),"") -> 0 | E143: 133 | F143: =IF(ISERROR(FIND($E$7,商品マスタ!C137)),F142,F142+1) -> 133
C144: 134 | D144: =IFERROR(INDEX(商品マスタ!$C$5:$C$204,MATCH(E144,商品マスタ!$B$5:$B$204,0)),"") -> 0 | E144: 134 | F144: =IF(ISERROR(FIND($E$7,商品マスタ!C138)),F143,F143+1) -> 134
C145: 135 | D145: =IFERROR(INDEX(商品マスタ!$C$5:$C$204,MATCH(E145,商品マスタ!$B$5:$B$204,0)),"") -> 0 | E145: 135 | F145: =IF(ISERROR(FIND($E$7,商品マスタ!C139)),F144,F144+1) -> 135
C146: 136 | D146: =IFERROR(INDEX(商品マスタ!$C$5:$C$204,MATCH(E146,商品マスタ!$B$5:$B$204,0)),"") -> 0 | E146: 136 | F146: =IF(ISERROR(FIND($E$7,商品マスタ!C140)),F145,F145+1) -> 136
C147: 137 | D147: =IFERROR(INDEX(商品マスタ!$C$5:$C$204,MATCH(E147,商品マスタ!$B$5:$B$204,0)),"") -> 0 | E147: 137 | F147: =IF(ISERROR(FIND($E$7,商品マスタ!C141)),F146,F146+1) -> 137
C148: 138 | D148: =IFERROR(INDEX(商品マスタ!$C$5:$C$204,MATCH(E148,商品マスタ!$B$5:$B$204,0)),"") -> 0 | E148: 138 | F148: =IF(ISERROR(FIND($E$7,商品マスタ!C142)),F147,F147+1) -> 138
C149: 139 | D149: =IFERROR(INDEX(商品マスタ!$C$5:$C$204,MATCH(E149,商品マスタ!$B$5:$B$204,0)),"") -> 0 | E149: 139 | F149: =IF(ISERROR(FIND($E$7,商品マスタ!C143)),F148,F148+1) -> 139
C150: 140 | D150: =IFERROR(INDEX(商品マスタ!$C$5:$C$204,MATCH(E150,商品マスタ!$B$5:$B$204,0)),"") -> 0 | E150: 140 | F150: =IF(ISERROR(FIND($E$7,商品マスタ!C144)),F149,F149+1) -> 140
C151: 141 | D151: =IFERROR(INDEX(商品マスタ!$C$5:$C$204,MATCH(E151,商品マスタ!$B$5:$B$204,0)),"") -> 0 | E151: 141 | F151: =IF(ISERROR(FIND($E$7,商品マスタ!C145)),F150,F150+1) -> 141
C152: 142 | D152: =IFERROR(INDEX(商品マスタ!$C$5:$C$204,MATCH(E152,商品マスタ!$B$5:$B$204,0)),"") -> 0 | E152: 142 | F152: =IF(ISERROR(FIND($E$7,商品マスタ!C146)),F151,F151+1) -> 142
C153: 143 | D153: =IFERROR(INDEX(商品マスタ!$C$5:$C$204,MATCH(E153,商品マスタ!$B$5:$B$204,0)),"") -> 0 | E153: 143 | F153: =IF(ISERROR(FIND($E$7,商品マスタ!C147)),F152,F152+1) -> 143
C154: 144 | D154: =IFERROR(INDEX(商品マスタ!$C$5:$C$204,MATCH(E154,商品マスタ!$B$5:$B$204,0)),"") -> 0 | E154: 144 | F154: =IF(ISERROR(FIND($E$7,商品マスタ!C148)),F153,F153+1) -> 144
C155: 145 | D155: =IFERROR(INDEX(商品マスタ!$C$5:$C$204,MATCH(E155,商品マスタ!$B$5:$B$204,0)),"") -> 0 | E155: 145 | F155: =IF(ISERROR(FIND($E$7,商品マスタ!C149)),F154,F154+1) -> 145
C156: 146 | D156: =IFERROR(INDEX(商品マスタ!$C$5:$C$204,MATCH(E156,商品マスタ!$B$5:$B$204,0)),"") -> 0 | E156: 146 | F156: =IF(ISERROR(FIND($E$7,商品マスタ!C150)),F155,F155+1) -> 146
C157: 147 | D157: =IFERROR(INDEX(商品マスタ!$C$5:$C$204,MATCH(E157,商品マスタ!$B$5:$B$204,0)),"") -> 0 | E157: 147 | F157: =IF(ISERROR(FIND($E$7,商品マスタ!C151)),F156,F156+1) -> 147
C158: 148 | D158: =IFERROR(INDEX(商品マスタ!$C$5:$C$204,MATCH(E158,商品マスタ!$B$5:$B$204,0)),"") -> 0 | E158: 148 | F158: =IF(ISERROR(FIND($E$7,商品マスタ!C152)),F157,F157+1) -> 148
C159: 149 | D159: =IFERROR(INDEX(商品マスタ!$C$5:$C$204,MATCH(E159,商品マスタ!$B$5:$B$204,0)),"") -> 0 | E159: 149 | F159: =IF(ISERROR(FIND($E$7,商品マスタ!C153)),F158,F158+1) -> 149
C160: 150 | D160: =IFERROR(INDEX(商品マスタ!$C$5:$C$204,MATCH(E160,商品マスタ!$B$5:$B$204,0)),"") -> 0 | E160: 150 | F160: =IF(ISERROR(FIND($E$7,商品マスタ!C154)),F159,F159+1) -> 150
C161: 151 | D161: =IFERROR(INDEX(商品マスタ!$C$5:$C$204,MATCH(E161,商品マスタ!$B$5:$B$204,0)),"") -> 0 | E161: 151 | F161: =IF(ISERROR(FIND($E$7,商品マスタ!C155)),F160,F160+1) -> 151
C162: 152 | D162: =IFERROR(INDEX(商品マスタ!$C$5:$C$204,MATCH(E162,商品マスタ!$B$5:$B$204,0)),"") -> 0 | E162: 152 | F162: =IF(ISERROR(FIND($E$7,商品マスタ!C156)),F161,F161+1) -> 152
C163: 153 | D163: =IFERROR(INDEX(商品マスタ!$C$5:$C$204,MATCH(E163,商品マスタ!$B$5:$B$204,0)),"") -> 0 | E163: 153 | F163: =IF(ISERROR(FIND($E$7,商品マスタ!C157)),F162,F162+1) -> 153
C164: 154 | D164: =IFERROR(INDEX(商品マスタ!$C$5:$C$204,MATCH(E164,商品マスタ!$B$5:$B$204,0)),"") -> 0 | E164: 154 | F164: =IF(ISERROR(FIND($E$7,商品マスタ!C158)),F163,F163+1) -> 154
C165: 155 | D165: =IFERROR(INDEX(商品マスタ!$C$5:$C$204,MATCH(E165,商品マスタ!$B$5:$B$204,0)),"") -> 0 | E165: 155 | F165: =IF(ISERROR(FIND($E$7,商品マスタ!C159)),F164,F164+1) -> 155
C166: 156 | D166: =IFERROR(INDEX(商品マスタ!$C$5:$C$204,MATCH(E166,商品マスタ!$B$5:$B$204,0)),"") -> 0 | E166: 156 | F166: =IF(ISERROR(FIND($E$7,商品マスタ!C160)),F165,F165+1) -> 156
C167: 157 | D167: =IFERROR(INDEX(商品マスタ!$C$5:$C$204,MATCH(E167,商品マスタ!$B$5:$B$204,0)),"") -> 0 | E167: 157 | F167: =IF(ISERROR(FIND($E$7,商品マスタ!C161)),F166,F166+1) -> 157
C168: 158 | D168: =IFERROR(INDEX(商品マスタ!$C$5:$C$204,MATCH(E168,商品マスタ!$B$5:$B$204,0)),"") -> 0 | E168: 158 | F168: =IF(ISERROR(FIND($E$7,商品マスタ!C162)),F167,F167+1) -> 158
C169: 159 | D169: =IFERROR(INDEX(商品マスタ!$C$5:$C$204,MATCH(E169,商品マスタ!$B$5:$B$204,0)),"") -> 0 | E169: 159 | F169: =IF(ISERROR(FIND($E$7,商品マスタ!C163)),F168,F168+1) -> 159
C170: 160 | D170: =IFERROR(INDEX(商品マスタ!$C$5:$C$204,MATCH(E170,商品マスタ!$B$5:$B$204,0)),"") -> 0 | E170: 160 | F170: =IF(ISERROR(FIND($E$7,商品マスタ!C164)),F169,F169+1) -> 160
C171: 161 | D171: =IFERROR(INDEX(商品マスタ!$C$5:$C$204,MATCH(E171,商品マスタ!$B$5:$B$204,0)),"") -> 0 | E171: =IFERROR(MATCH($C171,F$11:F$210,0),"") -> 161 | F171: =IF(ISERROR(FIND($E$7,商品マスタ!C165)),F170,F170+1) -> 161
C172: 162 | D172: =IFERROR(INDEX(商品マスタ!$C$5:$C$204,MATCH(E172,商品マスタ!$B$5:$B$204,0)),"") -> 0 | E172: 162 | F172: =IF(ISERROR(FIND($E$7,商品マスタ!C166)),F171,F171+1) -> 162
C173: 163 | D173: =IFERROR(INDEX(商品マスタ!$C$5:$C$204,MATCH(E173,商品マスタ!$B$5:$B$204,0)),"") -> 0 | E173: 163 | F173: =IF(ISERROR(FIND($E$7,商品マスタ!C167)),F172,F172+1) -> 163
C174: 164 | D174: =IFERROR(INDEX(商品マスタ!$C$5:$C$204,MATCH(E174,商品マスタ!$B$5:$B$204,0)),"") -> 0 | E174: 164 | F174: =IF(ISERROR(FIND($E$7,商品マスタ!C168)),F173,F173+1) -> 164
C175: 165 | D175: =IFERROR(INDEX(商品マスタ!$C$5:$C$204,MATCH(E175,商品マスタ!$B$5:$B$204,0)),"") -> 0 | E175: 165 | F175: =IF(ISERROR(FIND($E$7,商品マスタ!C169)),F174,F174+1) -> 165
C176: 166 | D176: =IFERROR(INDEX(商品マスタ!$C$5:$C$204,MATCH(E176,商品マスタ!$B$5:$B$204,0)),"") -> 0 | E176: 166 | F176: =IF(ISERROR(FIND($E$7,商品マスタ!C170)),F175,F175+1) -> 166
C177: 167 | D177: =IFERROR(INDEX(商品マスタ!$C$5:$C$204,MATCH(E177,商品マスタ!$B$5:$B$204,0)),"") -> 0 | E177: 167 | F177: =IF(ISERROR(FIND($E$7,商品マスタ!C171)),F176,F176+1) -> 167
C178: 168 | D178: =IFERROR(INDEX(商品マスタ!$C$5:$C$204,MATCH(E178,商品マスタ!$B$5:$B$204,0)),"") -> 0 | E178: 168 | F178: =IF(ISERROR(FIND($E$7,商品マスタ!C172)),F177,F177+1) -> 168
C179: 169 | D179: =IFERROR(INDEX(商品マスタ!$C$5:$C$204,MATCH(E179,商品マスタ!$B$5:$B$204,0)),"") -> 0 | E179: 169 | F179: =IF(ISERROR(FIND($E$7,商品マスタ!C173)),F178,F178+1) -> 169
C180: 170 | D180: =IFERROR(INDEX(商品マスタ!$C$5:$C$204,MATCH(E180,商品マスタ!$B$5:$B$204,0)),"") -> 0 | E180: 170 | F180: =IF(ISERROR(FIND($E$7,商品マスタ!C174)),F179,F179+1) -> 170
C181: 171 | D181: =IFERROR(INDEX(商品マスタ!$C$5:$C$204,MATCH(E181,商品マスタ!$B$5:$B$204,0)),"") -> 0 | E181: 171 | F181: =IF(ISERROR(FIND($E$7,商品マスタ!C175)),F180,F180+1) -> 171
C182: 172 | D182: =IFERROR(INDEX(商品マスタ!$C$5:$C$204,MATCH(E182,商品マスタ!$B$5:$B$204,0)),"") -> 0 | E182: 172 | F182: =IF(ISERROR(FIND($E$7,商品マスタ!C176)),F181,F181+1) -> 172
C183: 173 | D183: =IFERROR(INDEX(商品マスタ!$C$5:$C$204,MATCH(E183,商品マスタ!$B$5:$B$204,0)),"") -> 0 | E183: 173 | F183: =IF(ISERROR(FIND($E$7,商品マスタ!C177)),F182,F182+1) -> 173
C184: 174 | D184: =IFERROR(INDEX(商品マスタ!$C$5:$C$204,MATCH(E184,商品マスタ!$B$5:$B$204,0)),"") -> 0 | E184: 174 | F184: =IF(ISERROR(FIND($E$7,商品マスタ!C178)),F183,F183+1) -> 174
C185: 175 | D185: =IFERROR(INDEX(商品マスタ!$C$5:$C$204,MATCH(E185,商品マスタ!$B$5:$B$204,0)),"") -> 0 | E185: 175 | F185: =IF(ISERROR(FIND($E$7,商品マスタ!C179)),F184,F184+1) -> 175
C186: 176 | D186: =IFERROR(INDEX(商品マスタ!$C$5:$C$204,MATCH(E186,商品マスタ!$B$5:$B$204,0)),"") -> 0 | E186: 176 | F186: =IF(ISERROR(FIND($E$7,商品マスタ!C180)),F185,F185+1) -> 176
C187: 177 | D187: =IFERROR(INDEX(商品マスタ!$C$5:$C$204,MATCH(E187,商品マスタ!$B$5:$B$204,0)),"") -> 0 | E187: 177 | F187: =IF(ISERROR(FIND($E$7,商品マスタ!C181)),F186,F186+1) -> 177
C188: 178 | D188: =IFERROR(INDEX(商品マスタ!$C$5:$C$204,MATCH(E188,商品マスタ!$B$5:$B$204,0)),"") -> 0 | E188: 178 | F188: =IF(ISERROR(FIND($E$7,商品マスタ!C182)),F187,F187+1) -> 178
C189: 179 | D189: =IFERROR(INDEX(商品マスタ!$C$5:$C$204,MATCH(E189,商品マスタ!$B$5:$B$204,0)),"") -> 0 | E189: 179 | F189: =IF(ISERROR(FIND($E$7,商品マスタ!C183)),F188,F188+1) -> 179
C190: 180 | D190: =IFERROR(INDEX(商品マスタ!$C$5:$C$204,MATCH(E190,商品マスタ!$B$5:$B$204,0)),"") -> 0 | E190: 180 | F190: =IF(ISERROR(FIND($E$7,商品マスタ!C184)),F189,F189+1) -> 180
C191: 181 | D191: =IFERROR(INDEX(商品マスタ!$C$5:$C$204,MATCH(E191,商品マスタ!$B$5:$B$204,0)),"") -> 0 | E191: 181 | F191: =IF(ISERROR(FIND($E$7,商品マスタ!C185)),F190,F190+1) -> 181
C192: 182 | D192: =IFERROR(INDEX(商品マスタ!$C$5:$C$204,MATCH(E192,商品マスタ!$B$5:$B$204,0)),"") -> 0 | E192: 182 | F192: =IF(ISERROR(FIND($E$7,商品マスタ!C186)),F191,F191+1) -> 182
C193: 183 | D193: =IFERROR(INDEX(商品マスタ!$C$5:$C$204,MATCH(E193,商品マスタ!$B$5:$B$204,0)),"") -> 0 | E193: 183 | F193: =IF(ISERROR(FIND($E$7,商品マスタ!C187)),F192,F192+1) -> 183
C194: 184 | D194: =IFERROR(INDEX(商品マスタ!$C$5:$C$204,MATCH(E194,商品マスタ!$B$5:$B$204,0)),"") -> 0 | E194: 184 | F194: =IF(ISERROR(FIND($E$7,商品マスタ!C188)),F193,F193+1) -> 184
C195: 185 | D195: =IFERROR(INDEX(商品マスタ!$C$5:$C$204,MATCH(E195,商品マスタ!$B$5:$B$204,0)),"") -> 0 | E195: 185 | F195: =IF(ISERROR(FIND($E$7,商品マスタ!C189)),F194,F194+1) -> 185
C196: 186 | D196: =IFERROR(INDEX(商品マスタ!$C$5:$C$204,MATCH(E196,商品マスタ!$B$5:$B$204,0)),"") -> 0 | E196: 186 | F196: =IF(ISERROR(FIND($E$7,商品マスタ!C190)),F195,F195+1) -> 186
C197: 187 | D197: =IFERROR(INDEX(商品マスタ!$C$5:$C$204,MATCH(E197,商品マスタ!$B$5:$B$204,0)),"") -> 0 | E197: 187 | F197: =IF(ISERROR(FIND($E$7,商品マスタ!C191)),F196,F196+1) -> 187
C198: 188 | D198: =IFERROR(INDEX(商品マスタ!$C$5:$C$204,MATCH(E198,商品マスタ!$B$5:$B$204,0)),"") -> 0 | E198: 188 | F198: =IF(ISERROR(FIND($E$7,商品マスタ!C192)),F197,F197+1) -> 188
C199: 189 | D199: =IFERROR(INDEX(商品マスタ!$C$5:$C$204,MATCH(E199,商品マスタ!$B$5:$B$204,0)),"") -> 0 | E199: 189 | F199: =IF(ISERROR(FIND($E$7,商品マスタ!C193)),F198,F198+1) -> 189
C200: 190 | D200: =IFERROR(INDEX(商品マスタ!$C$5:$C$204,MATCH(E200,商品マスタ!$B$5:$B$204,0)),"") -> 0 | E200: 190 | F200: =IF(ISERROR(FIND($E$7,商品マスタ!C194)),F199,F199+1) -> 190
C201: 191 | D201: =IFERROR(INDEX(商品マスタ!$C$5:$C$204,MATCH(E201,商品マスタ!$B$5:$B$204,0)),"") -> 0 | E201: 191 | F201: =IF(ISERROR(FIND($E$7,商品マスタ!C195)),F200,F200+1) -> 191
C202: 192 | D202: =IFERROR(INDEX(商品マスタ!$C$5:$C$204,MATCH(E202,商品マスタ!$B$5:$B$204,0)),"") -> 0 | E202: 192 | F202: =IF(ISERROR(FIND($E$7,商品マスタ!C196)),F201,F201+1) -> 192
C203: 193 | D203: =IFERROR(INDEX(商品マスタ!$C$5:$C$204,MATCH(E203,商品マスタ!$B$5:$B$204,0)),"") -> 0 | E203: =IFERROR(MATCH($C203,F$11:F$210,0),"") -> 193 | F203: =IF(ISERROR(FIND($E$7,商品マスタ!C197)),F202,F202+1) -> 193
C204: 194 | D204: =IFERROR(INDEX(商品マスタ!$C$5:$C$204,MATCH(E204,商品マスタ!$B$5:$B$204,0)),"") -> 0 | E204: 194 | F204: =IF(ISERROR(FIND($E$7,商品マスタ!C198)),F203,F203+1) -> 194
C205: 195 | D205: =IFERROR(INDEX(商品マスタ!$C$5:$C$204,MATCH(E205,商品マスタ!$B$5:$B$204,0)),"") -> 0 | E205: 195 | F205: =IF(ISERROR(FIND($E$7,商品マスタ!C199)),F204,F204+1) -> 195
C206: 196 | D206: =IFERROR(INDEX(商品マスタ!$C$5:$C$204,MATCH(E206,商品マスタ!$B$5:$B$204,0)),"") -> 0 | E206: 196 | F206: =IF(ISERROR(FIND($E$7,商品マスタ!C200)),F205,F205+1) -> 196
... 4 more rows

Sheet 納品書印刷
F2: =IFERROR(INDEX(在庫変更全履歴!$N$2:$N$1048576,$O$11),"") -> 
D3: 納 品 書 兼 請 求 書
J5: 下の番号で指定した納品書を表示します。 エクセルの印刷メニューで印刷して下さい。
B6: =IFERROR(INDEX(在庫変更全履歴!$C$2:$C$1048576,$O$11),"") ->  | D6: 様
J7: 納品書番号指定
B8: № | C8: =TEXT(VALUE(J8),"000000") -> 000000
B10: 番号 | C10: 商品名称 | E10: 数量 | F10: 単価 | G10: 金額 | M10: 番号 | O10: マスター内先頭行
B11: =IFERROR(IF(INDEX(在庫変更全履歴!$D$2:$D$1048576,$O$11+M11-1)=$J$8,M11,""),"") ->  | C11: =IF(B11<>"",INDEX(在庫変更全履歴!$I$2:$I$1048576,$O$11+B11-1),"") ->  | E11: =IF($B11<>"",-INDEX(在庫変更全履歴!J$2:J$1048576,$O$11+$B11-1),"") ->  | F11: =IF($B11<>"",-INDEX(在庫変更全履歴!K$2:K$1048576,$O$11+$B11-1),"") ->  | G11: =IF($B11<>"",-INDEX(在庫変更全履歴!L$2:L$1048576,$O$11+$B11-1),"") ->  | M11: 1 | O11: =MATCH(J8,在庫変更全履歴!$D$2:$D$1048576,0) -> 
B12: =IFERROR(IF(INDEX(在庫変更全履歴!$D$2:$D$1048576,$O$11+M12-1)=$J$8,M12,""),"") ->  | C12: =IF(B12<>"",INDEX(在庫変更全履歴!$I$2:$I$1048576,$O$11+B12-1),"") ->  | E12: =IF($B12<>"",-INDEX(在庫変更全履歴!J$2:J$1048576,$O$11+$B12-1),"") ->  | F12: =IF($B12<>"",-INDEX(在庫変更全履歴!K$2:K$1048576,$O$11+$B12-1),"") ->  | G12: =IF($B12<>"",-INDEX(在庫変更全履歴!L$2:L$1048576,$O$11+$B12-1),"") ->  | M12: 2
B13: =IFERROR(IF(INDEX(在庫変更全履歴!$D$2:$D$1048576,$O$11+M13-1)=$J$8,M13,""),"") ->  | C13: =IF(B13<>"",INDEX(在庫変更全履歴!$I$2:$I$1048576,$O$11+B13-1),"") ->  | E13: =IF($B13<>"",-INDEX(在庫変更全履歴!J$2:J$1048576,$O$11+$B13-1),"") ->  | F13: =IF($B13<>"",-INDEX(在庫変更全履歴!K$2:K$1048576,$O$11+$B13-1),"") ->  | G13: =IF($B13<>"",-INDEX(在庫変更全履歴!L$2:L$1048576,$O$11+$B13-1),"") ->  | M13: 3
B14: =IFERROR(IF(INDEX(在庫変更全履歴!$D$2:$D$1048576,$O$11+M14-1)=$J$8,M14,""),"") ->  | C14: =IF(B14<>"",INDEX(在庫変更全履歴!$I$2:$I$1048576,$O$11+B14-1),"") ->  | E14: =IF($B14<>"",-INDEX(在庫変更全履歴!J$2:J$1048576,$O$11+$B14-1),"") ->  | F14: =IF($B14<>"",-INDEX(在庫変更全履歴!K$2:K$1048576,$O$11+$B14-1),"") ->  | G14: =IF($B14<>"",-INDEX(在庫変更全履歴!L$2:L$1048576,$O$11+$B14-1),"") ->  | M14: 4
B15: =IFERROR(IF(INDEX(在庫変更全履歴!$D$2:$D$1048576,$O$11+M15-1)=$J$8,M15,""),"") ->  | C15: =IF(B15<>"",INDEX(在庫変更全履歴!$I$2:$I$1048576,$O$11+B15-1),"") ->  | E15: =IF($B15<>"",-INDEX(在庫変更全履歴!J$2:J$1048576,$O$11+$B15-1),"") ->  | F15: =IF($B15<>"",-INDEX(在庫変更全履歴!K$2:K$1048576,$O$11+$B15-1),"") ->  | G15: =IF($B15<>"",-INDEX(在庫変更全履歴!L$2:L$1048576,$O$11+$B15-1),"") ->  | M15: 5
B16: =IFERROR(IF(INDEX(在庫変更全履歴!$D$2:$D$1048576,$O$11+M16-1)=$J$8,M16,""),"") ->  | C16: =IF(B16<>"",INDEX(在庫変更全履歴!$I$2:$I$1048576,$O$11+B16-1),"") ->  | E16: =IF($B16<>"",-INDEX(在庫変更全履歴!J$2:J$1048576,$O$11+$B16-1),"") ->  | F16: =IF($B16<>"",-INDEX(在庫変更全履歴!K$2:K$1048576,$O$11+$B16-1),"") ->  | G16: =IF($B16<>"",-INDEX(在庫変更全履歴!L$2:L$1048576,$O$11+$B16-1),"") ->  | M16: 6
B17: =IFERROR(IF(INDEX(在庫変更全履歴!$D$2:$D$1048576,$O$11+M17-1)=$J$8,M17,""),"") ->  | C17: =IF(B17<>"",INDEX(在庫変更全履歴!$I$2:$I$1048576,$O$11+B17-1),"") ->  | E17: =IF($B17<>"",-INDEX(在庫変更全履歴!J$2:J$1048576,$O$11+$B17-1),"") ->  | F17: =IF($B17<>"",-INDEX(在庫変更全履歴!K$2:K$1048576,$O$11+$B17-1),"") ->  | G17: =IF($B17<>"",-INDEX(在庫変更全履歴!L$2:L$1048576,$O$11+$B17-1),"") ->  | M17: 7
B18: =IFERROR(IF(INDEX(在庫変更全履歴!$D$2:$D$1048576,$O$11+M18-1)=$J$8,M18,""),"") ->  | C18: =IF(B18<>"",INDEX(在庫変更全履歴!$I$2:$I$1048576,$O$11+B18-1),"") ->  | E18: =IF($B18<>"",-INDEX(在庫変更全履歴!J$2:J$1048576,$O$11+$B18-1),"") ->  | F18: =IF($B18<>"",-INDEX(在庫変更全履歴!K$2:K$1048576,$O$11+$B18-1),"") ->  | G18: =IF($B18<>"",-INDEX(在庫変更全履歴!L$2:L$1048576,$O$11+$B18-1),"") ->  | M18: 8
B19: =IFERROR(IF(INDEX(在庫変更全履歴!$D$2:$D$1048576,$O$11+M19-1)=$J$8,M19,""),"") ->  | C19: =IF(B19<>"",INDEX(在庫変更全履歴!$I$2:$I$1048576,$O$11+B19-1),"") ->  | E19: =IF($B19<>"",-INDEX(在庫変更全履歴!J$2:J$1048576,$O$11+$B19-1),"") ->  | F19: =IF($B19<>"",-INDEX(在庫変更全履歴!K$2:K$1048576,$O$11+$B19-1),"") ->  | G19: =IF($B19<>"",-INDEX(在庫変更全履歴!L$2:L$1048576,$O$11+$B19-1),"") ->  | M19: 9
B20: =IFERROR(IF(INDEX(在庫変更全履歴!$D$2:$D$1048576,$O$11+M20-1)=$J$8,M20,""),"") ->  | C20: =IF(B20<>"",INDEX(在庫変更全履歴!$I$2:$I$1048576,$O$11+B20-1),"") ->  | E20: =IF($B20<>"",-INDEX(在庫変更全履歴!J$2:J$1048576,$O$11+$B20-1),"") ->  | F20: =IF($B20<>"",-INDEX(在庫変更全履歴!K$2:K$1048576,$O$11+$B20-1),"") ->  | G20: =IF($B20<>"",-INDEX(在庫変更全履歴!L$2:L$1048576,$O$11+$B20-1),"") ->  | M20: 10
B21: =IFERROR(IF(INDEX(在庫変更全履歴!$D$2:$D$1048576,$O$11+M21-1)=$J$8,M21,""),"") ->  | C21: =IF(B21<>"",INDEX(在庫変更全履歴!$I$2:$I$1048576,$O$11+B21-1),"") ->  | E21: =IF($B21<>"",-INDEX(在庫変更全履歴!J$2:J$1048576,$O$11+$B21-1),"") ->  | F21: =IF($B21<>"",-INDEX(在庫変更全履歴!K$2:K$1048576,$O$11+$B21-1),"") ->  | G21: =IF($B21<>"",-INDEX(在庫変更全履歴!L$2:L$1048576,$O$11+$B21-1),"") ->  | M21: 11
B22: =IFERROR(IF(INDEX(在庫変更全履歴!$D$2:$D$1048576,$O$11+M22-1)=$J$8,M22,""),"") ->  | C22: =IF(B22<>"",INDEX(在庫変更全履歴!$I$2:$I$1048576,$O$11+B22-1),"") ->  | E22: =IF($B22<>"",-INDEX(在庫変更全履歴!J$2:J$1048576,$O$11+$B22-1),"") ->  | F22: =IF($B22<>"",-INDEX(在庫変更全履歴!K$2:K$1048576,$O$11+$B22-1),"") ->  | G22: =IF($B22<>"",-INDEX(在庫変更全履歴!L$2:L$1048576,$O$11+$B22-1),"") ->  | M22: 12
B23: =IFERROR(IF(INDEX(在庫変更全履歴!$D$2:$D$1048576,$O$11+M23-1)=$J$8,M23,""),"") ->  | C23: =IF(B23<>"",INDEX(在庫変更全履歴!$I$2:$I$1048576,$O$11+B23-1),"") ->  | E23: =IF($B23<>"",-INDEX(在庫変更全履歴!J$2:J$1048576,$O$11+$B23-1),"") ->  | F23: =IF($B23<>"",-INDEX(在庫変更全履歴!K$2:K$1048576,$O$11+$B23-1),"") ->  | G23: =IF($B23<>"",-INDEX(在庫変更全履歴!L$2:L$1048576,$O$11+$B23-1),"") ->  | M23: 13
B24: =IFERROR(IF(INDEX(在庫変更全履歴!$D$2:$D$1048576,$O$11+M24-1)=$J$8,M24,""),"") ->  | C24: =IF(B24<>"",INDEX(在庫変更全履歴!$I$2:$I$1048576,$O$11+B24-1),"") ->  | E24: =IF($B24<>"",-INDEX(在庫変更全履歴!J$2:J$1048576,$O$11+$B24-1),"") ->  | F24: =IF($B24<>"",-INDEX(在庫変更全履歴!K$2:K$1048576,$O$11+$B24-1),"") ->  | G24: =IF($B24<>"",-INDEX(在庫変更全履歴!L$2:L$1048576,$O$11+$B24-1),"") ->  | M24: 14
B25: =IFERROR(IF(INDEX(在庫変更全履歴!$D$2:$D$1048576,$O$11+M25-1)=$J$8,M25,""),"") ->  | C25: =IF(B25<>"",INDEX(在庫変更全履歴!$I$2:$I$1048576,$O$11+B25-1),"") ->  | E25: =IF($B25<>"",-INDEX(在庫変更全履歴!J$2:J$1048576,$O$11+$B25-1),"") ->  | F25: =IF($B25<>"",-INDEX(在庫変更全履歴!K$2:K$1048576,$O$11+$B25-1),"") ->  | G25: =IF($B25<>"",-INDEX(在庫変更全履歴!L$2:L$1048576,$O$11+$B25-1),"") ->  | M25: 15
B26: =IFERROR(IF(INDEX(在庫変更全履歴!$D$2:$D$1048576,$O$11+M26-1)=$J$8,M26,""),"") ->  | C26: =IF(B26<>"",INDEX(在庫変更全履歴!$I$2:$I$1048576,$O$11+B26-1),"") ->  | E26: =IF($B26<>"",-INDEX(在庫変更全履歴!J$2:J$1048576,$O$11+$B26-1),"") ->  | F26: =IF($B26<>"",-INDEX(在庫変更全履歴!K$2:K$1048576,$O$11+$B26-1),"") ->  | G26: =IF($B26<>"",-INDEX(在庫変更全履歴!L$2:L$1048576,$O$11+$B26-1),"") ->  | M26: 16
B27: =IFERROR(IF(INDEX(在庫変更全履歴!$D$2:$D$1048576,$O$11+M27-1)=$J$8,M27,""),"") ->  | C27: =IF(B27<>"",INDEX(在庫変更全履歴!$I$2:$I$1048576,$O$11+B27-1),"") ->  | E27: =IF($B27<>"",-INDEX(在庫変更全履歴!J$2:J$1048576,$O$11+$B27-1),"") ->  | F27: =IF($B27<>"",-INDEX(在庫変更全履歴!K$2:K$1048576,$O$11+$B27-1),"") ->  | G27: =IF($B27<>"",-INDEX(在庫変更全履歴!L$2:L$1048576,$O$11+$B27-1),"") ->  | M27: 17
B28: =IFERROR(IF(INDEX(在庫変更全履歴!$D$2:$D$1048576,$O$11+M28-1)=$J$8,M28,""),"") ->  | C28: =IF(B28<>"",INDEX(在庫変更全履歴!$I$2:$I$1048576,$O$11+B28-1),"") ->  | E28: =IF($B28<>"",-INDEX(在庫変更全履歴!J$2:J$1048576,$O$11+$B28-1),"") ->  | F28: =IF($B28<>"",-INDEX(在庫変更全履歴!K$2:K$1048576,$O$11+$B28-1),"") ->  | G28: =IF($B28<>"",-INDEX(在庫変更全履歴!L$2:L$1048576,$O$11+$B28-1),"") ->  | M28: 18
B29: =IFERROR(IF(INDEX(在庫変更全履歴!$D$2:$D$1048576,$O$11+M29-1)=$J$8,M29,""),"") ->  | C29: =IF(B29<>"",INDEX(在庫変更全履歴!$I$2:$I$1048576,$O$11+B29-1),"") ->  | E29: =IF($B29<>"",-INDEX(在庫変更全履歴!J$2:J$1048576,$O$11+$B29-1),"") ->  | F29: =IF($B29<>"",-INDEX(在庫変更全履歴!K$2:K$1048576,$O$11+$B29-1),"") ->  | G29: =IF($B29<>"",-INDEX(在庫変更全履歴!L$2:L$1048576,$O$11+$B29-1),"") ->  | M29: 19
B30: =IFERROR(IF(INDEX(在庫変更全履歴!$D$2:$D$1048576,$O$11+M30-1)=$J$8,M30,""),"") ->  | C30: =IF(B30<>"",INDEX(在庫変更全履歴!$I$2:$I$1048576,$O$11+B30-1),"") ->  | E30: =IF($B30<>"",-INDEX(在庫変更全履歴!J$2:J$1048576,$O$11+$B30-1),"") ->  | F30: =IF($B30<>"",-INDEX(在庫変更全履歴!K$2:K$1048576,$O$11+$B30-1),"") ->  | G30: =IF($B30<>"",-INDEX(在庫変更全履歴!L$2:L$1048576,$O$11+$B30-1),"") ->  | M30: 20
B31: =IFERROR(IF(INDEX(在庫変更全履歴!$D$2:$D$1048576,$O$11+M31-1)=$J$8,M31,""),"") ->  | C31: =IF(B31<>"",INDEX(在庫変更全履歴!$I$2:$I$1048576,$O$11+B31-1),"") ->  | E31: =IF($B31<>"",-INDEX(在庫変更全履歴!J$2:J$1048576,$O$11+$B31-1),"") ->  | F31: =IF($B31<>"",-INDEX(在庫変更全履歴!K$2:K$1048576,$O$11+$B31-1),"") ->  | G31: =IF($B31<>"",-INDEX(在庫変更全履歴!L$2:L$1048576,$O$11+$B31-1),"") ->  | M31: 21
B32: =IFERROR(IF(INDEX(在庫変更全履歴!$D$2:$D$1048576,$O$11+M32-1)=$J$8,M32,""),"") ->  | C32: =IF(B32<>"",INDEX(在庫変更全履歴!$I$2:$I$1048576,$O$11+B32-1),"") ->  | E32: =IF($B32<>"",-INDEX(在庫変更全履歴!J$2:J$1048576,$O$11+$B32-1),"") ->  | F32: =IF($B32<>"",-INDEX(在庫変更全履歴!K$2:K$1048576,$O$11+$B32-1),"") ->  | G32: =IF($B32<>"",-INDEX(在庫変更全履歴!L$2:L$1048576,$O$11+$B32-1),"") ->  | M32: 22
B33: =IFERROR(IF(INDEX(在庫変更全履歴!$D$2:$D$1048576,$O$11+M33-1)=$J$8,M33,""),"") ->  | C33: =IF(B33<>"",INDEX(在庫変更全履歴!$I$2:$I$1048576,$O$11+B33-1),"") ->  | E33: =IF($B33<>"",-INDEX(在庫変更全履歴!J$2:J$1048576,$O$11+$B33-1),"") ->  | F33: =IF($B33<>"",-INDEX(在庫変更全履歴!K$2:K$1048576,$O$11+$B33-1),"") ->  | G33: =IF($B33<>"",-INDEX(在庫変更全履歴!L$2:L$1048576,$O$11+$B33-1),"") ->  | M33: 23
B34: =IFERROR(IF(INDEX(在庫変更全履歴!$D$2:$D$1048576,$O$11+M34-1)=$J$8,M34,""),"") ->  | C34: =IF(B34<>"",INDEX(在庫変更全履歴!$I$2:$I$1048576,$O$11+B34-1),"") ->  | E34: =IF($B34<>"",-INDEX(在庫変更全履歴!J$2:J$1048576,$O$11+$B34-1),"") ->  | F34: =IF($B34<>"",-INDEX(在庫変更全履歴!K$2:K$1048576,$O$11+$B34-1),"") ->  | G34: =IF($B34<>"",-INDEX(在庫変更全履歴!L$2:L$1048576,$O$11+$B34-1),"") ->  | M34: 24
B35: =IFERROR(IF(INDEX(在庫変更全履歴!$D$2:$D$1048576,$O$11+M35-1)=$J$8,M35,""),"") ->  | C35: =IF(B35<>"",INDEX(在庫変更全履歴!$I$2:$I$1048576,$O$11+B35-1),"") ->  | E35: =IF($B35<>"",-INDEX(在庫変更全履歴!J$2:J$1048576,$O$11+$B35-1),"") ->  | F35: =IF($B35<>"",-INDEX(在庫変更全履歴!K$2:K$1048576,$O$11+$B35-1),"") ->  | G35: =IF($B35<>"",-INDEX(在庫変更全履歴!L$2:L$1048576,$O$11+$B35-1),"") ->  | M35: 25
B36: =IFERROR(IF(INDEX(在庫変更全履歴!$D$2:$D$1048576,$O$11+M36-1)=$J$8,M36,""),"") ->  | C36: =IF(B36<>"",INDEX(在庫変更全履歴!$I$2:$I$1048576,$O$11+B36-1),"") ->  | E36: =IF($B36<>"",-INDEX(在庫変更全履歴!J$2:J$1048576,$O$11+$B36-1),"") ->  | F36: =IF($B36<>"",-INDEX(在庫変更全履歴!K$2:K$1048576,$O$11+$B36-1),"") ->  | G36: =IF($B36<>"",-INDEX(在庫変更全履歴!L$2:L$1048576,$O$11+$B36-1),"") ->  | M36: 26
B37: =IFERROR(IF(INDEX(在庫変更全履歴!$D$2:$D$1048576,$O$11+M37-1)=$J$8,M37,""),"") ->  | C37: =IF(B37<>"",INDEX(在庫変更全履歴!$I$2:$I$1048576,$O$11+B37-1),"") ->  | E37: =IF($B37<>"",-INDEX(在庫変更全履歴!J$2:J$1048576,$O$11+$B37-1),"") ->  | F37: =IF($B37<>"",-INDEX(在庫変更全履歴!K$2:K$1048576,$O$11+$B37-1),"") ->  | G37: =IF($B37<>"",-INDEX(在庫変更全履歴!L$2:L$1048576,$O$11+$B37-1),"") ->  | M37: 27
B38: =IFERROR(IF(INDEX(在庫変更全履歴!$D$2:$D$1048576,$O$11+M38-1)=$J$8,M38,""),"") ->  | C38: =IF(B38<>"",INDEX(在庫変更全履歴!$I$2:$I$1048576,$O$11+B38-1),"") ->  | E38: =IF($B38<>"",-INDEX(在庫変更全履歴!J$2:J$1048576,$O$11+$B38-1),"") ->  | F38: =IF($B38<>"",-INDEX(在庫変更全履歴!K$2:K$1048576,$O$11+$B38-1),"") ->  | G38: =IF($B38<>"",-INDEX(在庫変更全履歴!L$2:L$1048576,$O$11+$B38-1),"") ->  | M38: 28
B39: =IFERROR(IF(INDEX(在庫変更全履歴!$D$2:$D$1048576,$O$11+M39-1)=$J$8,M39,""),"") ->  | C39: =IF(B39<>"",INDEX(在庫変更全履歴!$I$2:$I$1048576,$O$11+B39-1),"") ->  | E39: =IF($B39<>"",-INDEX(在庫変更全履歴!J$2:J$1048576,$O$11+$B39-1),"") ->  | F39: =IF($B39<>"",-INDEX(在庫変更全履歴!K$2:K$1048576,$O$11+$B39-1),"") ->  | G39: =IF($B39<>"",-INDEX(在庫変更全履歴!L$2:L$1048576,$O$11+$B39-1),"") ->  | M39: 29
B40: =IFERROR(IF(INDEX(在庫変更全履歴!$D$2:$D$1048576,$O$11+M40-1)=$J$8,M40,""),"") ->  | C40: =IF(B40<>"",INDEX(在庫変更全履歴!$I$2:$I$1048576,$O$11+B40-1),"") ->  | E40: =IF($B40<>"",-INDEX(在庫変更全履歴!J$2:J$1048576,$O$11+$B40-1),"") ->  | F40: =IF($B40<>"",-INDEX(在庫変更全履歴!K$2:K$1048576,$O$11+$B40-1),"") ->  | G40: =IF($B40<>"",-INDEX(在庫変更全履歴!L$2:L$1048576,$O$11+$B40-1),"") ->  | M40: 30
B41: 合計金額 | G41: =SUM(G11:G40) -> ¥0
B42: 消費税 | G42: =ROUNDDOWN(G41*0.1,0) -> ¥0
B43: ご請求金額 | G43: =G41+G42 -> ¥0
B44: ※お客様都合による返品・交換はご容赦願います。

Sheet 入庫入力
D3: 入庫入力
B4: 発注先 | K4: ="１．① 発注先 ② 入荷伝票番号 ③ 入荷日 ④商品番号 ⑤ 数量を記入して下さい。 ２． 「記録」ボタンをクリックすると、入庫内容を「"&目次!Y12&"」シート（棚卸後の在庫変更履歴）及び「"&目次!Y13&"」シート（当初からの全履歴）に記録し、「"&目次!Y10&"」シートの在庫数を更新します。" -> １．① 発注先 ② 入荷伝票番号 ③ 入荷日 ④商品番号 ⑤ 数量を記入して下さい。 ２． 「記録」ボタンをクリックすると、入庫内容を「棚卸後在庫変更履歴」シート（棚卸後の在庫変更履歴）及び「在庫変更全履歴」シート（当初からの全履歴）に記録し、「在庫表示」シートの在庫数を更新します。
B6: 入荷伝票番号 | F6: 入荷日 | G6: 2021-07-27
C8: ※「商品番号」を記入すると、「商品名称」、「単価」を自動表示します。
C9: ※「名称の一部」を記入すると、それを含む商品名称をプルダウン表示しますので、該当するものをクリックしてください。 | K9: 商品番号－商品名対照表
B10: 番号 | C10: 商品番号 | D10: 名称の一部 | E10: 商品名称 | F10: 数量 | G10: 単価 | H10: 金額 | I10: （在庫残） | K10: 商品番号 | L10: 商品名 | M10: 購入価格
B11: 1 | G11: =IFERROR(VALUE(INDEX($M$11:$M$210,MATCH($C11,$K$11:$K$210,0))),0) -> 0 | H11: =IFERROR(F11*G11,0) -> 0 | I11: =IFERROR(INDEX(在庫表示!$F$11:$F$210,MATCH(C11,在庫表示!$B$11:$B$210,0))+F11,"") ->  | K11: =IF(商品マスタ!$B5="","",商品マスタ!$B5) -> 1 | L11: =IF(商品マスタ!$C5="","",商品マスタ!$C5) -> LIFESPAN（ライフスパン）―老いなき世界 | M11: =IF(商品マスタ!G5="","",商品マスタ!G5) -> 1,170
B12: 2 | G12: =IFERROR(VALUE(INDEX($M$11:$M$210,MATCH($C12,$K$11:$K$210,0))),0) -> 0 | H12: =IFERROR(F12*G12,0) -> 0 | I12: =IFERROR(INDEX(在庫表示!$F$11:$F$210,MATCH(C12,在庫表示!$B$11:$B$210,0))+F12,"") ->  | K12: =IF(商品マスタ!$B6="","",商品マスタ!$B6) -> 2 | L12: =IF(商品マスタ!$C6="","",商品マスタ!$C6) -> WHAT IS LIFE？（ホワット・イズ・ライフ？）生命とは何か | M12: =IF(商品マスタ!G6="","",商品マスタ!G6) -> 810
B13: 3 | G13: 0 | H13: 0 | I13: =IFERROR(INDEX(在庫表示!$F$11:$F$210,MATCH(C13,在庫表示!$B$11:$B$210,0))+F13,"") ->  | K13: =IF(商品マスタ!$B7="","",商品マスタ!$B7) -> 3 | L13: =IF(商品マスタ!$C7="","",商品マスタ!$C7) -> 科学的とはどういう意味か | M13: =IF(商品マスタ!G7="","",商品マスタ!G7) -> 270
B14: 4 | G14: 0 | H14: 0 | I14: =IFERROR(INDEX(在庫表示!$F$11:$F$210,MATCH(C14,在庫表示!$B$11:$B$210,0))+F14,"") ->  | K14: =IF(商品マスタ!$B8="","",商品マスタ!$B8) -> 4 | L14: =IF(商品マスタ!$C8="","",商品マスタ!$C8) -> コトPOP（R）を書いたら あっ、売れちゃった！ | M14: =IF(商品マスタ!G8="","",商品マスタ!G8) -> 720
B15: 5 | G15: 0 | H15: 0 | I15: =IFERROR(INDEX(在庫表示!$F$11:$F$210,MATCH(C15,在庫表示!$B$11:$B$210,0))+F15,"") ->  | K15: =IF(商品マスタ!$B9="","",商品マスタ!$B9) -> 5 | L15: =IF(商品マスタ!$C9="","",商品マスタ!$C9) -> 鉄腕アトム 地球最大の冒険 | M15: =IF(商品マスタ!G9="","",商品マスタ!G9) -> 680
B16: 6 | G16: 0 | H16: 0 | I16: =IFERROR(INDEX(在庫表示!$F$11:$F$210,MATCH(C16,在庫表示!$B$11:$B$210,0))+F16,"") ->  | K16: =IF(商品マスタ!$B10="","",商品マスタ!$B10) -> 6 | L16: =IF(商品マスタ!$C10="","",商品マスタ!$C10) -> 鉄腕アトム 地球防衛隊 | M16: =IF(商品マスタ!G10="","",商品マスタ!G10) -> 630
B17: 7 | G17: 0 | H17: 0 | I17: =IFERROR(INDEX(在庫表示!$F$11:$F$210,MATCH(C17,在庫表示!$B$11:$B$210,0))+F17,"") ->  | K17: =IF(商品マスタ!$B11="","",商品マスタ!$B11) -> 7 | L17: =IF(商品マスタ!$C11="","",商品マスタ!$C11) -> どうする？デザイン クライアントとのやりとりでよくわかる！デザインの決め方、伝え方 | M17: =IF(商品マスタ!G11="","",商品マスタ!G11) -> 990
B18: 8 | G18: 0 | H18: 0 | I18: =IFERROR(INDEX(在庫表示!$F$11:$F$210,MATCH(C18,在庫表示!$B$11:$B$210,0))+F18,"") ->  | K18: =IF(商品マスタ!$B12="","",商品マスタ!$B12) -> 8 | L18: =IF(商品マスタ!$C12="","",商品マスタ!$C12) -> ハッブル宇宙望遠鏡が見た絶景宇宙 SELECT 10 Vol.1 | M18: =IF(商品マスタ!G12="","",商品マスタ!G12) -> 50
B19: 9 | G19: 0 | H19: 0 | I19: =IFERROR(INDEX(在庫表示!$F$11:$F$210,MATCH(C19,在庫表示!$B$11:$B$210,0))+F19,"") ->  | K19: =IF(商品マスタ!$B13="","",商品マスタ!$B13) -> 9 | L19: =IF(商品マスタ!$C13="","",商品マスタ!$C13) -> ハムスターがおうちにやってきた！ | M19: =IF(商品マスタ!G13="","",商品マスタ!G13) -> 270
B20: 10 | G20: 0 | H20: 0 | I20: =IFERROR(INDEX(在庫表示!$F$11:$F$210,MATCH(C20,在庫表示!$B$11:$B$210,0))+F20,"") ->  | K20: =IF(商品マスタ!$B14="","",商品マスタ!$B14) -> 10 | L20: =IF(商品マスタ!$C14="","",商品マスタ!$C14) -> ビーカーくんのゆかいな化学実験 | M20: =IF(商品マスタ!G14="","",商品マスタ!G14) -> 720
B21: 11 | G21: 0 | H21: 0 | I21: =IFERROR(INDEX(在庫表示!$F$11:$F$210,MATCH(C21,在庫表示!$B$11:$B$210,0))+F21,"") ->  | K21: =IF(商品マスタ!$B15="","",商品マスタ!$B15) -> 11 | L21: =IF(商品マスタ!$C15="","",商品マスタ!$C15) -> ヒトを理解するための 生物学 | M21: =IF(商品マスタ!G15="","",商品マスタ!G15) -> 1,080
B22: 12 | G22: 0 | H22: 0 | I22: =IFERROR(INDEX(在庫表示!$F$11:$F$210,MATCH(C22,在庫表示!$B$11:$B$210,0))+F22,"") ->  | K22: =IF(商品マスタ!$B16="","",商品マスタ!$B16) -> 12 | L22: =IF(商品マスタ!$C16="","",商品マスタ!$C16) -> 富士山はどうしてそこにあるのか 地形から見る日本列島史 | M22: =IF(商品マスタ!G16="","",商品マスタ!G16) -> 410
B23: 13 | G23: 0 | H23: 0 | I23: =IFERROR(INDEX(在庫表示!$F$11:$F$210,MATCH(C23,在庫表示!$B$11:$B$210,0))+F23,"") ->  | K23: =IF(商品マスタ!$B17="","",商品マスタ!$B17) -> 13 | L23: =IF(商品マスタ!$C17="","",商品マスタ!$C17) -> 宇宙の「果て」になにがあるのか 最新天文学が描く、時間と空間の終わり | M23: =IF(商品マスタ!G17="","",商品マスタ!G17) -> 450
B24: 14 | G24: 0 | H24: 0 | I24: =IFERROR(INDEX(在庫表示!$F$11:$F$210,MATCH(C24,在庫表示!$B$11:$B$210,0))+F24,"") ->  | K24: =IF(商品マスタ!$B18="","",商品マスタ!$B18) -> 14 | L24: =IF(商品マスタ!$C18="","",商品マスタ!$C18) -> 宇宙は本当にひとつなのか―最新宇宙論入門 | M24: =IF(商品マスタ!G18="","",商品マスタ!G18) -> 410
B25: 15 | G25: 0 | H25: 0 | I25: =IFERROR(INDEX(在庫表示!$F$11:$F$210,MATCH(C25,在庫表示!$B$11:$B$210,0))+F25,"") ->  | K25: =IF(商品マスタ!$B19="","",商品マスタ!$B19) -> 15 | L25: =IF(商品マスタ!$C19="","",商品マスタ!$C19) -> 宇宙創成（上） | M25: =IF(商品マスタ!G19="","",商品マスタ!G19) -> 320
B26: 16 | G26: 0 | H26: 0 | I26: =IFERROR(INDEX(在庫表示!$F$11:$F$210,MATCH(C26,在庫表示!$B$11:$B$210,0))+F26,"") ->  | K26: =IF(商品マスタ!$B20="","",商品マスタ!$B20) -> 16 | L26: =IF(商品マスタ!$C20="","",商品マスタ!$C20) -> 宇宙望遠鏡がとらえた 銀河（ブックブライト） | M26: =IF(商品マスタ!G20="","",商品マスタ!G20) -> 410
B27: 17 | G27: 0 | H27: 0 | I27: =IFERROR(INDEX(在庫表示!$F$11:$F$210,MATCH(C27,在庫表示!$B$11:$B$210,0))+F27,"") ->  | K27: =IF(商品マスタ!$B21="","",商品マスタ!$B21) -> 17 | L27: =IF(商品マスタ!$C21="","",商品マスタ!$C21) -> 見てわかる、迷わず決まる配色アイデア 3色だけでセンスのいい色 | M27: =IF(商品マスタ!G21="","",商品マスタ!G21) -> 900
B28: 18 | G28: 0 | H28: 0 | I28: =IFERROR(INDEX(在庫表示!$F$11:$F$210,MATCH(C28,在庫表示!$B$11:$B$210,0))+F28,"") ->  | K28: =IF(商品マスタ!$B22="","",商品マスタ!$B22) -> 18 | L28: =IF(商品マスタ!$C22="","",商品マスタ!$C22) -> 写真加工で作る風景イラスト 神技作画シリーズ | M28: =IF(商品マスタ!G22="","",商品マスタ!G22) -> 990
B29: 19 | G29: 0 | H29: 0 | I29: =IFERROR(INDEX(在庫表示!$F$11:$F$210,MATCH(C29,在庫表示!$B$11:$B$210,0))+F29,"") ->  | K29: =IF(商品マスタ!$B23="","",商品マスタ!$B23) -> 19 | L29: =IF(商品マスタ!$C23="","",商品マスタ!$C23) -> 写真加工で作る風景イラスト 神技作画シリーズ | M29: =IF(商品マスタ!G23="","",商品マスタ!G23) -> 990
B30: 20 | G30: 0 | H30: 0 | I30: =IFERROR(INDEX(在庫表示!$F$11:$F$210,MATCH(C30,在庫表示!$B$11:$B$210,0))+F30,"") ->  | K30: =IF(商品マスタ!$B24="","",商品マスタ!$B24) -> 20 | L30: =IF(商品マスタ!$C24="","",商品マスタ!$C24) -> 重力とは何か アインシュタインから超弦理論へ、宇宙の謎に迫る | M30: =IF(商品マスタ!G24="","",商品マスタ!G24) -> 320
B31: 21 | G31: 0 | H31: 0 | I31: =IFERROR(INDEX(在庫表示!$F$11:$F$210,MATCH(C31,在庫表示!$B$11:$B$210,0))+F31,"") ->  | K31: =IF(商品マスタ!$B25="","",商品マスタ!$B25) -> 21 | L31: =IF(商品マスタ!$C25="","",商品マスタ!$C25) -> 図説 メイドインアビス 探窟記録【電子特典付き】 | M31: =IF(商品マスタ!G25="","",商品マスタ!G25) -> 2,480
B32: 22 | G32: 0 | H32: 0 | I32: =IFERROR(INDEX(在庫表示!$F$11:$F$210,MATCH(C32,在庫表示!$B$11:$B$210,0))+F32,"") ->  | K32: =IF(商品マスタ!$B26="","",商品マスタ!$B26) -> 22 | L32: =IF(商品マスタ!$C26="","",商品マスタ!$C26) -> 成功の秘密にアクセスできるギャラクシー・コード | M32: =IF(商品マスタ!G26="","",商品マスタ!G26) -> 680
B33: 23 | G33: 0 | H33: 0 | I33: =IFERROR(INDEX(在庫表示!$F$11:$F$210,MATCH(C33,在庫表示!$B$11:$B$210,0))+F33,"") ->  | K33: =IF(商品マスタ!$B27="","",商品マスタ!$B27) -> 23 | L33: =IF(商品マスタ!$C27="","",商品マスタ!$C27) -> 太陽系 絶景画像50 | M33: =IF(商品マスタ!G27="","",商品マスタ!G27) -> 230
B34: 24 | G34: 0 | H34: 0 | I34: =IFERROR(INDEX(在庫表示!$F$11:$F$210,MATCH(C34,在庫表示!$B$11:$B$210,0))+F34,"") ->  | K34: =IF(商品マスタ!$B28="","",商品マスタ!$B28) -> 24 | L34: =IF(商品マスタ!$C28="","",商品マスタ!$C28) -> 踊りませんか？ 社交ダンスの世界 | M34: =IF(商品マスタ!G28="","",商品マスタ!G28) -> 270
B35: 25 | G35: 0 | H35: 0 | I35: =IFERROR(INDEX(在庫表示!$F$11:$F$210,MATCH(C35,在庫表示!$B$11:$B$210,0))+F35,"") ->  | K35: =IF(商品マスタ!$B29="","",商品マスタ!$B29) -> 25 | L35: =IF(商品マスタ!$C29="","",商品マスタ!$C29) ->  | M35: =IF(商品マスタ!G29="","",商品マスタ!G29) -> 
B36: 26 | G36: 0 | H36: 0 | I36: =IFERROR(INDEX(在庫表示!$F$11:$F$210,MATCH(C36,在庫表示!$B$11:$B$210,0))+F36,"") ->  | K36: =IF(商品マスタ!$B30="","",商品マスタ!$B30) -> 26 | L36: =IF(商品マスタ!$C30="","",商品マスタ!$C30) ->  | M36: =IF(商品マスタ!G30="","",商品マスタ!G30) -> 
B37: 27 | G37: 0 | H37: 0 | I37: =IFERROR(INDEX(在庫表示!$F$11:$F$210,MATCH(C37,在庫表示!$B$11:$B$210,0))+F37,"") ->  | K37: =IF(商品マスタ!$B31="","",商品マスタ!$B31) -> 27 | L37: =IF(商品マスタ!$C31="","",商品マスタ!$C31) ->  | M37: =IF(商品マスタ!G31="","",商品マスタ!G31) -> 
B38: 28 | G38: 0 | H38: 0 | I38: =IFERROR(INDEX(在庫表示!$F$11:$F$210,MATCH(C38,在庫表示!$B$11:$B$210,0))+F38,"") ->  | K38: =IF(商品マスタ!$B32="","",商品マスタ!$B32) -> 28 | L38: =IF(商品マスタ!$C32="","",商品マスタ!$C32) ->  | M38: =IF(商品マスタ!G32="","",商品マスタ!G32) -> 
B39: 29 | G39: 0 | H39: 0 | I39: =IFERROR(INDEX(在庫表示!$F$11:$F$210,MATCH(C39,在庫表示!$B$11:$B$210,0))+F39,"") ->  | K39: =IF(商品マスタ!$B33="","",商品マスタ!$B33) -> 29 | L39: =IF(商品マスタ!$C33="","",商品マスタ!$C33) ->  | M39: =IF(商品マスタ!G33="","",商品マスタ!G33) -> 
B40: 30 | G40: 0 | H40: 0 | I40: =IFERROR(INDEX(在庫表示!$F$11:$F$210,MATCH(C40,在庫表示!$B$11:$B$210,0))+F40,"") ->  | K40: =IF(商品マスタ!$B34="","",商品マスタ!$B34) -> 30 | L40: =IF(商品マスタ!$C34="","",商品マスタ!$C34) ->  | M40: =IF(商品マスタ!G34="","",商品マスタ!G34) -> 
K41: =IF(商品マスタ!$B35="","",商品マスタ!$B35) -> 31 | L41: =IF(商品マスタ!$C35="","",商品マスタ!$C35) ->  | M41: =IF(商品マスタ!G35="","",商品マスタ!G35) -> 
K42: =IF(商品マスタ!$B36="","",商品マスタ!$B36) -> 32 | L42: =IF(商品マスタ!$C36="","",商品マスタ!$C36) ->  | M42: =IF(商品マスタ!G36="","",商品マスタ!G36) -> 
K43: =IF(商品マスタ!$B37="","",商品マスタ!$B37) -> 33 | L43: =IF(商品マスタ!$C37="","",商品マスタ!$C37) ->  | M43: =IF(商品マスタ!G37="","",商品マスタ!G37) -> 
K44: =IF(商品マスタ!$B38="","",商品マスタ!$B38) -> 34 | L44: =IF(商品マスタ!$C38="","",商品マスタ!$C38) ->  | M44: =IF(商品マスタ!G38="","",商品マスタ!G38) -> 
K45: =IF(商品マスタ!$B39="","",商品マスタ!$B39) -> 35 | L45: =IF(商品マスタ!$C39="","",商品マスタ!$C39) ->  | M45: =IF(商品マスタ!G39="","",商品マスタ!G39) -> 
K46: =IF(商品マスタ!$B40="","",商品マスタ!$B40) -> 36 | L46: =IF(商品マスタ!$C40="","",商品マスタ!$C40) ->  | M46: =IF(商品マスタ!G40="","",商品マスタ!G40) -> 
K47: =IF(商品マスタ!$B41="","",商品マスタ!$B41) -> 37 | L47: =IF(商品マスタ!$C41="","",商品マスタ!$C41) ->  | M47: =IF(商品マスタ!G41="","",商品マスタ!G41) -> 
K48: =IF(商品マスタ!$B42="","",商品マスタ!$B42) -> 38 | L48: =IF(商品マスタ!$C42="","",商品マスタ!$C42) ->  | M48: =IF(商品マスタ!G42="","",商品マスタ!G42) -> 
K49: =IF(商品マスタ!$B43="","",商品マスタ!$B43) -> 39 | L49: =IF(商品マスタ!$C43="","",商品マスタ!$C43) ->  | M49: =IF(商品マスタ!G43="","",商品マスタ!G43) -> 
K50: =IF(商品マスタ!$B44="","",商品マスタ!$B44) -> 40 | L50: =IF(商品マスタ!$C44="","",商品マスタ!$C44) ->  | M50: =IF(商品マスタ!G44="","",商品マスタ!G44) -> 
K51: =IF(商品マスタ!$B45="","",商品マスタ!$B45) -> 41 | L51: =IF(商品マスタ!$C45="","",商品マスタ!$C45) ->  | M51: =IF(商品マスタ!G45="","",商品マスタ!G45) -> 
K52: =IF(商品マスタ!$B46="","",商品マスタ!$B46) -> 42 | L52: =IF(商品マスタ!$C46="","",商品マスタ!$C46) ->  | M52: =IF(商品マスタ!G46="","",商品マスタ!G46) -> 
K53: =IF(商品マスタ!$B47="","",商品マスタ!$B47) -> 43 | L53: =IF(商品マスタ!$C47="","",商品マスタ!$C47) ->  | M53: =IF(商品マスタ!G47="","",商品マスタ!G47) -> 
K54: =IF(商品マスタ!$B48="","",商品マスタ!$B48) -> 44 | L54: =IF(商品マスタ!$C48="","",商品マスタ!$C48) ->  | M54: =IF(商品マスタ!G48="","",商品マスタ!G48) -> 
K55: =IF(商品マスタ!$B49="","",商品マスタ!$B49) -> 45 | L55: =IF(商品マスタ!$C49="","",商品マスタ!$C49) ->  | M55: =IF(商品マスタ!G49="","",商品マスタ!G49) -> 
K56: =IF(商品マスタ!$B50="","",商品マスタ!$B50) -> 46 | L56: =IF(商品マスタ!$C50="","",商品マスタ!$C50) ->  | M56: =IF(商品マスタ!G50="","",商品マスタ!G50) -> 
K57: =IF(商品マスタ!$B51="","",商品マスタ!$B51) -> 47 | L57: =IF(商品マスタ!$C51="","",商品マスタ!$C51) ->  | M57: =IF(商品マスタ!G51="","",商品マスタ!G51) -> 
K58: =IF(商品マスタ!$B52="","",商品マスタ!$B52) -> 48 | L58: =IF(商品マスタ!$C52="","",商品マスタ!$C52) ->  | M58: =IF(商品マスタ!G52="","",商品マスタ!G52) -> 
K59: =IF(商品マスタ!$B53="","",商品マスタ!$B53) -> 49 | L59: =IF(商品マスタ!$C53="","",商品マスタ!$C53) ->  | M59: =IF(商品マスタ!G53="","",商品マスタ!G53) -> 
K60: =IF(商品マスタ!$B54="","",商品マスタ!$B54) -> 50 | L60: =IF(商品マスタ!$C54="","",商品マスタ!$C54) ->  | M60: =IF(商品マスタ!G54="","",商品マスタ!G54) -> 
K61: =IF(商品マスタ!$B55="","",商品マスタ!$B55) -> 51 | L61: =IF(商品マスタ!$C55="","",商品マスタ!$C55) ->  | M61: =IF(商品マスタ!G55="","",商品マスタ!G55) -> 
K62: =IF(商品マスタ!$B56="","",商品マスタ!$B56) -> 52 | L62: =IF(商品マスタ!$C56="","",商品マスタ!$C56) ->  | M62: =IF(商品マスタ!G56="","",商品マスタ!G56) -> 
K63: =IF(商品マスタ!$B57="","",商品マスタ!$B57) -> 53 | L63: =IF(商品マスタ!$C57="","",商品マスタ!$C57) ->  | M63: =IF(商品マスタ!G57="","",商品マスタ!G57) -> 
K64: =IF(商品マスタ!$B58="","",商品マスタ!$B58) -> 54 | L64: =IF(商品マスタ!$C58="","",商品マスタ!$C58) ->  | M64: =IF(商品マスタ!G58="","",商品マスタ!G58) -> 
K65: =IF(商品マスタ!$B59="","",商品マスタ!$B59) -> 55 | L65: =IF(商品マスタ!$C59="","",商品マスタ!$C59) ->  | M65: =IF(商品マスタ!G59="","",商品マスタ!G59) -> 
K66: =IF(商品マスタ!$B60="","",商品マスタ!$B60) -> 56 | L66: =IF(商品マスタ!$C60="","",商品マスタ!$C60) ->  | M66: =IF(商品マスタ!G60="","",商品マスタ!G60) -> 
K67: =IF(商品マスタ!$B61="","",商品マスタ!$B61) -> 57 | L67: =IF(商品マスタ!$C61="","",商品マスタ!$C61) ->  | M67: =IF(商品マスタ!G61="","",商品マスタ!G61) -> 
K68: =IF(商品マスタ!$B62="","",商品マスタ!$B62) -> 58 | L68: =IF(商品マスタ!$C62="","",商品マスタ!$C62) ->  | M68: =IF(商品マスタ!G62="","",商品マスタ!G62) -> 
K69: =IF(商品マスタ!$B63="","",商品マスタ!$B63) -> 59 | L69: =IF(商品マスタ!$C63="","",商品マスタ!$C63) ->  | M69: =IF(商品マスタ!G63="","",商品マスタ!G63) -> 
K70: =IF(商品マスタ!$B64="","",商品マスタ!$B64) -> 60 | L70: =IF(商品マスタ!$C64="","",商品マスタ!$C64) ->  | M70: =IF(商品マスタ!G64="","",商品マスタ!G64) -> 
K71: =IF(商品マスタ!$B65="","",商品マスタ!$B65) -> 61 | L71: =IF(商品マスタ!$C65="","",商品マスタ!$C65) ->  | M71: =IF(商品マスタ!G65="","",商品マスタ!G65) -> 
K72: =IF(商品マスタ!$B66="","",商品マスタ!$B66) -> 62 | L72: =IF(商品マスタ!$C66="","",商品マスタ!$C66) ->  | M72: =IF(商品マスタ!G66="","",商品マスタ!G66) -> 
K73: =IF(商品マスタ!$B67="","",商品マスタ!$B67) -> 63 | L73: =IF(商品マスタ!$C67="","",商品マスタ!$C67) ->  | M73: =IF(商品マスタ!G67="","",商品マスタ!G67) -> 
K74: =IF(商品マスタ!$B68="","",商品マスタ!$B68) -> 64 | L74: =IF(商品マスタ!$C68="","",商品マスタ!$C68) ->  | M74: =IF(商品マスタ!G68="","",商品マスタ!G68) -> 
K75: =IF(商品マスタ!$B69="","",商品マスタ!$B69) -> 65 | L75: =IF(商品マスタ!$C69="","",商品マスタ!$C69) ->  | M75: =IF(商品マスタ!G69="","",商品マスタ!G69) -> 
K76: =IF(商品マスタ!$B70="","",商品マスタ!$B70) -> 66 | L76: =IF(商品マスタ!$C70="","",商品マスタ!$C70) ->  | M76: =IF(商品マスタ!G70="","",商品マスタ!G70) -> 
K77: =IF(商品マスタ!$B71="","",商品マスタ!$B71) -> 67 | L77: =IF(商品マスタ!$C71="","",商品マスタ!$C71) ->  | M77: =IF(商品マスタ!G71="","",商品マスタ!G71) -> 
K78: =IF(商品マスタ!$B72="","",商品マスタ!$B72) -> 68 | L78: =IF(商品マスタ!$C72="","",商品マスタ!$C72) ->  | M78: =IF(商品マスタ!G72="","",商品マスタ!G72) -> 
K79: =IF(商品マスタ!$B73="","",商品マスタ!$B73) -> 69 | L79: =IF(商品マスタ!$C73="","",商品マスタ!$C73) ->  | M79: =IF(商品マスタ!G73="","",商品マスタ!G73) -> 
K80: =IF(商品マスタ!$B74="","",商品マスタ!$B74) -> 70 | L80: =IF(商品マスタ!$C74="","",商品マスタ!$C74) ->  | M80: =IF(商品マスタ!G74="","",商品マスタ!G74) -> 
K81: =IF(商品マスタ!$B75="","",商品マスタ!$B75) -> 71 | L81: =IF(商品マスタ!$C75="","",商品マスタ!$C75) ->  | M81: =IF(商品マスタ!G75="","",商品マスタ!G75) -> 
K82: =IF(商品マスタ!$B76="","",商品マスタ!$B76) -> 72 | L82: =IF(商品マスタ!$C76="","",商品マスタ!$C76) ->  | M82: =IF(商品マスタ!G76="","",商品マスタ!G76) -> 
K83: =IF(商品マスタ!$B77="","",商品マスタ!$B77) -> 73 | L83: =IF(商品マスタ!$C77="","",商品マスタ!$C77) ->  | M83: =IF(商品マスタ!G77="","",商品マスタ!G77) -> 
K84: =IF(商品マスタ!$B78="","",商品マスタ!$B78) -> 74 | L84: =IF(商品マスタ!$C78="","",商品マスタ!$C78) ->  | M84: =IF(商品マスタ!G78="","",商品マスタ!G78) -> 
K85: =IF(商品マスタ!$B79="","",商品マスタ!$B79) -> 75 | L85: =IF(商品マスタ!$C79="","",商品マスタ!$C79) ->  | M85: =IF(商品マスタ!G79="","",商品マスタ!G79) -> 
K86: =IF(商品マスタ!$B80="","",商品マスタ!$B80) -> 76 | L86: =IF(商品マスタ!$C80="","",商品マスタ!$C80) ->  | M86: =IF(商品マスタ!G80="","",商品マスタ!G80) -> 
K87: =IF(商品マスタ!$B81="","",商品マスタ!$B81) -> 77 | L87: =IF(商品マスタ!$C81="","",商品マスタ!$C81) ->  | M87: =IF(商品マスタ!G81="","",商品マスタ!G81) -> 
K88: =IF(商品マスタ!$B82="","",商品マスタ!$B82) -> 78 | L88: =IF(商品マスタ!$C82="","",商品マスタ!$C82) ->  | M88: =IF(商品マスタ!G82="","",商品マスタ!G82) -> 
K89: =IF(商品マスタ!$B83="","",商品マスタ!$B83) -> 79 | L89: =IF(商品マスタ!$C83="","",商品マスタ!$C83) ->  | M89: =IF(商品マスタ!G83="","",商品マスタ!G83) -> 
K90: =IF(商品マスタ!$B84="","",商品マスタ!$B84) -> 80 | L90: =IF(商品マスタ!$C84="","",商品マスタ!$C84) ->  | M90: =IF(商品マスタ!G84="","",商品マスタ!G84) -> 
K91: =IF(商品マスタ!$B85="","",商品マスタ!$B85) -> 81 | L91: =IF(商品マスタ!$C85="","",商品マスタ!$C85) ->  | M91: =IF(商品マスタ!G85="","",商品マスタ!G85) -> 
K92: =IF(商品マスタ!$B86="","",商品マスタ!$B86) -> 82 | L92: =IF(商品マスタ!$C86="","",商品マスタ!$C86) ->  | M92: =IF(商品マスタ!G86="","",商品マスタ!G86) -> 
K93: =IF(商品マスタ!$B87="","",商品マスタ!$B87) -> 83 | L93: =IF(商品マスタ!$C87="","",商品マスタ!$C87) ->  | M93: =IF(商品マスタ!G87="","",商品マスタ!G87) -> 
K94: =IF(商品マスタ!$B88="","",商品マスタ!$B88) -> 84 | L94: =IF(商品マスタ!$C88="","",商品マスタ!$C88) ->  | M94: =IF(商品マスタ!G88="","",商品マスタ!G88) -> 
K95: =IF(商品マスタ!$B89="","",商品マスタ!$B89) -> 85 | L95: =IF(商品マスタ!$C89="","",商品マスタ!$C89) ->  | M95: =IF(商品マスタ!G89="","",商品マスタ!G89) -> 
K96: =IF(商品マスタ!$B90="","",商品マスタ!$B90) -> 86 | L96: =IF(商品マスタ!$C90="","",商品マスタ!$C90) ->  | M96: =IF(商品マスタ!G90="","",商品マスタ!G90) -> 
K97: =IF(商品マスタ!$B91="","",商品マスタ!$B91) -> 87 | L97: =IF(商品マスタ!$C91="","",商品マスタ!$C91) ->  | M97: =IF(商品マスタ!G91="","",商品マスタ!G91) -> 
K98: =IF(商品マスタ!$B92="","",商品マスタ!$B92) -> 88 | L98: =IF(商品マスタ!$C92="","",商品マスタ!$C92) ->  | M98: =IF(商品マスタ!G92="","",商品マスタ!G92) -> 
K99: =IF(商品マスタ!$B93="","",商品マスタ!$B93) -> 89 | L99: =IF(商品マスタ!$C93="","",商品マスタ!$C93) ->  | M99: =IF(商品マスタ!G93="","",商品マスタ!G93) -> 
K100: =IF(商品マスタ!$B94="","",商品マスタ!$B94) -> 90 | L100: =IF(商品マスタ!$C94="","",商品マスタ!$C94) ->  | M100: =IF(商品マスタ!G94="","",商品マスタ!G94) -> 
K101: =IF(商品マスタ!$B95="","",商品マスタ!$B95) -> 91 | L101: =IF(商品マスタ!$C95="","",商品マスタ!$C95) ->  | M101: =IF(商品マスタ!G95="","",商品マスタ!G95) -> 
K102: =IF(商品マスタ!$B96="","",商品マスタ!$B96) -> 92 | L102: =IF(商品マスタ!$C96="","",商品マスタ!$C96) ->  | M102: =IF(商品マスタ!G96="","",商品マスタ!G96) -> 
K103: =IF(商品マスタ!$B97="","",商品マスタ!$B97) -> 93 | L103: =IF(商品マスタ!$C97="","",商品マスタ!$C97) ->  | M103: =IF(商品マスタ!G97="","",商品マスタ!G97) -> 
K104: =IF(商品マスタ!$B98="","",商品マスタ!$B98) -> 94 | L104: =IF(商品マスタ!$C98="","",商品マスタ!$C98) ->  | M104: =IF(商品マスタ!G98="","",商品マスタ!G98) -> 
K105: =IF(商品マスタ!$B99="","",商品マスタ!$B99) -> 95 | L105: =IF(商品マスタ!$C99="","",商品マスタ!$C99) ->  | M105: =IF(商品マスタ!G99="","",商品マスタ!G99) -> 
K106: =IF(商品マスタ!$B100="","",商品マスタ!$B100) -> 96 | L106: =IF(商品マスタ!$C100="","",商品マスタ!$C100) ->  | M106: =IF(商品マスタ!G100="","",商品マスタ!G100) -> 
K107: =IF(商品マスタ!$B101="","",商品マスタ!$B101) -> 97 | L107: =IF(商品マスタ!$C101="","",商品マスタ!$C101) ->  | M107: =IF(商品マスタ!G101="","",商品マスタ!G101) -> 
K108: =IF(商品マスタ!$B102="","",商品マスタ!$B102) -> 98 | L108: =IF(商品マスタ!$C102="","",商品マスタ!$C102) ->  | M108: =IF(商品マスタ!G102="","",商品マスタ!G102) -> 
K109: =IF(商品マスタ!$B103="","",商品マスタ!$B103) -> 99 | L109: =IF(商品マスタ!$C103="","",商品マスタ!$C103) ->  | M109: =IF(商品マスタ!G103="","",商品マスタ!G103) -> 
K110: =IF(商品マスタ!$B104="","",商品マスタ!$B104) -> 100 | L110: =IF(商品マスタ!$C104="","",商品マスタ!$C104) ->  | M110: =IF(商品マスタ!G104="","",商品マスタ!G104) -> 
K111: =IF(商品マスタ!$B105="","",商品マスタ!$B105) -> 101 | L111: =IF(商品マスタ!$C105="","",商品マスタ!$C105) ->  | M111: =IF(商品マスタ!G105="","",商品マスタ!G105) -> 
K112: =IF(商品マスタ!$B106="","",商品マスタ!$B106) -> 102 | L112: =IF(商品マスタ!$C106="","",商品マスタ!$C106) ->  | M112: =IF(商品マスタ!G106="","",商品マスタ!G106) -> 
K113: =IF(商品マスタ!$B107="","",商品マスタ!$B107) -> 103 | L113: =IF(商品マスタ!$C107="","",商品マスタ!$C107) ->  | M113: =IF(商品マスタ!G107="","",商品マスタ!G107) -> 
K114: =IF(商品マスタ!$B108="","",商品マスタ!$B108) -> 104 | L114: =IF(商品マスタ!$C108="","",商品マスタ!$C108) ->  | M114: =IF(商品マスタ!G108="","",商品マスタ!G108) -> 
K115: =IF(商品マスタ!$B109="","",商品マスタ!$B109) -> 105 | L115: =IF(商品マスタ!$C109="","",商品マスタ!$C109) ->  | M115: =IF(商品マスタ!G109="","",商品マスタ!G109) -> 
K116: =IF(商品マスタ!$B110="","",商品マスタ!$B110) -> 106 | L116: =IF(商品マスタ!$C110="","",商品マスタ!$C110) ->  | M116: =IF(商品マスタ!G110="","",商品マスタ!G110) -> 
K117: =IF(商品マスタ!$B111="","",商品マスタ!$B111) -> 107 | L117: =IF(商品マスタ!$C111="","",商品マスタ!$C111) ->  | M117: =IF(商品マスタ!G111="","",商品マスタ!G111) -> 
K118: =IF(商品マスタ!$B112="","",商品マスタ!$B112) -> 108 | L118: =IF(商品マスタ!$C112="","",商品マスタ!$C112) ->  | M118: =IF(商品マスタ!G112="","",商品マスタ!G112) -> 
K119: =IF(商品マスタ!$B113="","",商品マスタ!$B113) -> 109 | L119: =IF(商品マスタ!$C113="","",商品マスタ!$C113) ->  | M119: =IF(商品マスタ!G113="","",商品マスタ!G113) -> 
K120: =IF(商品マスタ!$B114="","",商品マスタ!$B114) -> 110 | L120: =IF(商品マスタ!$C114="","",商品マスタ!$C114) ->  | M120: =IF(商品マスタ!G114="","",商品マスタ!G114) -> 
K121: =IF(商品マスタ!$B115="","",商品マスタ!$B115) -> 111 | L121: =IF(商品マスタ!$C115="","",商品マスタ!$C115) ->  | M121: =IF(商品マスタ!G115="","",商品マスタ!G115) -> 
K122: =IF(商品マスタ!$B116="","",商品マスタ!$B116) -> 112 | L122: =IF(商品マスタ!$C116="","",商品マスタ!$C116) ->  | M122: =IF(商品マスタ!G116="","",商品マスタ!G116) -> 
K123: =IF(商品マスタ!$B117="","",商品マスタ!$B117) -> 113 | L123: =IF(商品マスタ!$C117="","",商品マスタ!$C117) ->  | M123: =IF(商品マスタ!G117="","",商品マスタ!G117) -> 
K124: =IF(商品マスタ!$B118="","",商品マスタ!$B118) -> 114 | L124: =IF(商品マスタ!$C118="","",商品マスタ!$C118) ->  | M124: =IF(商品マスタ!G118="","",商品マスタ!G118) -> 
K125: =IF(商品マスタ!$B119="","",商品マスタ!$B119) -> 115 | L125: =IF(商品マスタ!$C119="","",商品マスタ!$C119) ->  | M125: =IF(商品マスタ!G119="","",商品マスタ!G119) -> 
K126: =IF(商品マスタ!$B120="","",商品マスタ!$B120) -> 116 | L126: =IF(商品マスタ!$C120="","",商品マスタ!$C120) ->  | M126: =IF(商品マスタ!G120="","",商品マスタ!G120) -> 
K127: =IF(商品マスタ!$B121="","",商品マスタ!$B121) -> 117 | L127: =IF(商品マスタ!$C121="","",商品マスタ!$C121) ->  | M127: =IF(商品マスタ!G121="","",商品マスタ!G121) -> 
K128: =IF(商品マスタ!$B122="","",商品マスタ!$B122) -> 118 | L128: =IF(商品マスタ!$C122="","",商品マスタ!$C122) ->  | M128: =IF(商品マスタ!G122="","",商品マスタ!G122) -> 
K129: =IF(商品マスタ!$B123="","",商品マスタ!$B123) -> 119 | L129: =IF(商品マスタ!$C123="","",商品マスタ!$C123) ->  | M129: =IF(商品マスタ!G123="","",商品マスタ!G123) -> 
K130: =IF(商品マスタ!$B124="","",商品マスタ!$B124) -> 120 | L130: =IF(商品マスタ!$C124="","",商品マスタ!$C124) ->  | M130: =IF(商品マスタ!G124="","",商品マスタ!G124) -> 
K131: =IF(商品マスタ!$B125="","",商品マスタ!$B125) -> 121 | L131: =IF(商品マスタ!$C125="","",商品マスタ!$C125) ->  | M131: =IF(商品マスタ!G125="","",商品マスタ!G125) -> 
K132: =IF(商品マスタ!$B126="","",商品マスタ!$B126) -> 122 | L132: =IF(商品マスタ!$C126="","",商品マスタ!$C126) ->  | M132: =IF(商品マスタ!G126="","",商品マスタ!G126) -> 
K133: =IF(商品マスタ!$B127="","",商品マスタ!$B127) -> 123 | L133: =IF(商品マスタ!$C127="","",商品マスタ!$C127) ->  | M133: =IF(商品マスタ!G127="","",商品マスタ!G127) -> 
K134: =IF(商品マスタ!$B128="","",商品マスタ!$B128) -> 124 | L134: =IF(商品マスタ!$C128="","",商品マスタ!$C128) ->  | M134: =IF(商品マスタ!G128="","",商品マスタ!G128) -> 
K135: =IF(商品マスタ!$B129="","",商品マスタ!$B129) -> 125 | L135: =IF(商品マスタ!$C129="","",商品マスタ!$C129) ->  | M135: =IF(商品マスタ!G129="","",商品マスタ!G129) -> 
K136: =IF(商品マスタ!$B130="","",商品マスタ!$B130) -> 126 | L136: =IF(商品マスタ!$C130="","",商品マスタ!$C130) ->  | M136: =IF(商品マスタ!G130="","",商品マスタ!G130) -> 
K137: =IF(商品マスタ!$B131="","",商品マスタ!$B131) -> 127 | L137: =IF(商品マスタ!$C131="","",商品マスタ!$C131) ->  | M137: =IF(商品マスタ!G131="","",商品マスタ!G131) -> 
K138: =IF(商品マスタ!$B132="","",商品マスタ!$B132) -> 128 | L138: =IF(商品マスタ!$C132="","",商品マスタ!$C132) ->  | M138: =IF(商品マスタ!G132="","",商品マスタ!G132) -> 
K139: =IF(商品マスタ!$B133="","",商品マスタ!$B133) -> 129 | L139: =IF(商品マスタ!$C133="","",商品マスタ!$C133) ->  | M139: =IF(商品マスタ!G133="","",商品マスタ!G133) -> 
K140: =IF(商品マスタ!$B134="","",商品マスタ!$B134) -> 130 | L140: =IF(商品マスタ!$C134="","",商品マスタ!$C134) ->  | M140: =IF(商品マスタ!G134="","",商品マスタ!G134) -> 
K141: =IF(商品マスタ!$B135="","",商品マスタ!$B135) -> 131 | L141: =IF(商品マスタ!$C135="","",商品マスタ!$C135) ->  | M141: =IF(商品マスタ!G135="","",商品マスタ!G135) -> 
K142: =IF(商品マスタ!$B136="","",商品マスタ!$B136) -> 132 | L142: =IF(商品マスタ!$C136="","",商品マスタ!$C136) ->  | M142: =IF(商品マスタ!G136="","",商品マスタ!G136) -> 
K143: =IF(商品マスタ!$B137="","",商品マスタ!$B137) -> 133 | L143: =IF(商品マスタ!$C137="","",商品マスタ!$C137) ->  | M143: =IF(商品マスタ!G137="","",商品マスタ!G137) -> 
K144: =IF(商品マスタ!$B138="","",商品マスタ!$B138) -> 134 | L144: =IF(商品マスタ!$C138="","",商品マスタ!$C138) ->  | M144: =IF(商品マスタ!G138="","",商品マスタ!G138) -> 
K145: =IF(商品マスタ!$B139="","",商品マスタ!$B139) -> 135 | L145: =IF(商品マスタ!$C139="","",商品マスタ!$C139) ->  | M145: =IF(商品マスタ!G139="","",商品マスタ!G139) -> 
K146: =IF(商品マスタ!$B140="","",商品マスタ!$B140) -> 136 | L146: =IF(商品マスタ!$C140="","",商品マスタ!$C140) ->  | M146: =IF(商品マスタ!G140="","",商品マスタ!G140) -> 
K147: =IF(商品マスタ!$B141="","",商品マスタ!$B141) -> 137 | L147: =IF(商品マスタ!$C141="","",商品マスタ!$C141) ->  | M147: =IF(商品マスタ!G141="","",商品マスタ!G141) -> 
K148: =IF(商品マスタ!$B142="","",商品マスタ!$B142) -> 138 | L148: =IF(商品マスタ!$C142="","",商品マスタ!$C142) ->  | M148: =IF(商品マスタ!G142="","",商品マスタ!G142) -> 
K149: =IF(商品マスタ!$B143="","",商品マスタ!$B143) -> 139 | L149: =IF(商品マスタ!$C143="","",商品マスタ!$C143) ->  | M149: =IF(商品マスタ!G143="","",商品マスタ!G143) -> 
K150: =IF(商品マスタ!$B144="","",商品マスタ!$B144) -> 140 | L150: =IF(商品マスタ!$C144="","",商品マスタ!$C144) ->  | M150: =IF(商品マスタ!G144="","",商品マスタ!G144) -> 
K151: =IF(商品マスタ!$B145="","",商品マスタ!$B145) -> 141 | L151: =IF(商品マスタ!$C145="","",商品マスタ!$C145) ->  | M151: =IF(商品マスタ!G145="","",商品マスタ!G145) -> 
K152: =IF(商品マスタ!$B146="","",商品マスタ!$B146) -> 142 | L152: =IF(商品マスタ!$C146="","",商品マスタ!$C146) ->  | M152: =IF(商品マスタ!G146="","",商品マスタ!G146) -> 
K153: =IF(商品マスタ!$B147="","",商品マスタ!$B147) -> 143 | L153: =IF(商品マスタ!$C147="","",商品マスタ!$C147) ->  | M153: =IF(商品マスタ!G147="","",商品マスタ!G147) -> 
K154: =IF(商品マスタ!$B148="","",商品マスタ!$B148) -> 144 | L154: =IF(商品マスタ!$C148="","",商品マスタ!$C148) ->  | M154: =IF(商品マスタ!G148="","",商品マスタ!G148) -> 
K155: =IF(商品マスタ!$B149="","",商品マスタ!$B149) -> 145 | L155: =IF(商品マスタ!$C149="","",商品マスタ!$C149) ->  | M155: =IF(商品マスタ!G149="","",商品マスタ!G149) -> 
K156: =IF(商品マスタ!$B150="","",商品マスタ!$B150) -> 146 | L156: =IF(商品マスタ!$C150="","",商品マスタ!$C150) ->  | M156: =IF(商品マスタ!G150="","",商品マスタ!G150) -> 
K157: =IF(商品マスタ!$B151="","",商品マスタ!$B151) -> 147 | L157: =IF(商品マスタ!$C151="","",商品マスタ!$C151) ->  | M157: =IF(商品マスタ!G151="","",商品マスタ!G151) -> 
K158: =IF(商品マスタ!$B152="","",商品マスタ!$B152) -> 148 | L158: =IF(商品マスタ!$C152="","",商品マスタ!$C152) ->  | M158: =IF(商品マスタ!G152="","",商品マスタ!G152) -> 
K159: =IF(商品マスタ!$B153="","",商品マスタ!$B153) -> 149 | L159: =IF(商品マスタ!$C153="","",商品マスタ!$C153) ->  | M159: =IF(商品マスタ!G153="","",商品マスタ!G153) -> 
K160: =IF(商品マスタ!$B154="","",商品マスタ!$B154) -> 150 | L160: =IF(商品マスタ!$C154="","",商品マスタ!$C154) ->  | M160: =IF(商品マスタ!G154="","",商品マスタ!G154) -> 
K161: =IF(商品マスタ!$B155="","",商品マスタ!$B155) -> 151 | L161: =IF(商品マスタ!$C155="","",商品マスタ!$C155) ->  | M161: =IF(商品マスタ!G155="","",商品マスタ!G155) -> 
K162: =IF(商品マスタ!$B156="","",商品マスタ!$B156) -> 152 | L162: =IF(商品マスタ!$C156="","",商品マスタ!$C156) ->  | M162: =IF(商品マスタ!G156="","",商品マスタ!G156) -> 
K163: =IF(商品マスタ!$B157="","",商品マスタ!$B157) -> 153 | L163: =IF(商品マスタ!$C157="","",商品マスタ!$C157) ->  | M163: =IF(商品マスタ!G157="","",商品マスタ!G157) -> 
K164: =IF(商品マスタ!$B158="","",商品マスタ!$B158) -> 154 | L164: =IF(商品マスタ!$C158="","",商品マスタ!$C158) ->  | M164: =IF(商品マスタ!G158="","",商品マスタ!G158) -> 
K165: =IF(商品マスタ!$B159="","",商品マスタ!$B159) -> 155 | L165: =IF(商品マスタ!$C159="","",商品マスタ!$C159) ->  | M165: =IF(商品マスタ!G159="","",商品マスタ!G159) -> 
K166: =IF(商品マスタ!$B160="","",商品マスタ!$B160) -> 156 | L166: =IF(商品マスタ!$C160="","",商品マスタ!$C160) ->  | M166: =IF(商品マスタ!G160="","",商品マスタ!G160) -> 
K167: =IF(商品マスタ!$B161="","",商品マスタ!$B161) -> 157 | L167: =IF(商品マスタ!$C161="","",商品マスタ!$C161) ->  | M167: =IF(商品マスタ!G161="","",商品マスタ!G161) -> 
K168: =IF(商品マスタ!$B162="","",商品マスタ!$B162) -> 158 | L168: =IF(商品マスタ!$C162="","",商品マスタ!$C162) ->  | M168: =IF(商品マスタ!G162="","",商品マスタ!G162) -> 
K169: =IF(商品マスタ!$B163="","",商品マスタ!$B163) -> 159 | L169: =IF(商品マスタ!$C163="","",商品マスタ!$C163) ->  | M169: =IF(商品マスタ!G163="","",商品マスタ!G163) -> 
K170: =IF(商品マスタ!$B164="","",商品マスタ!$B164) -> 160 | L170: =IF(商品マスタ!$C164="","",商品マスタ!$C164) ->  | M170: =IF(商品マスタ!G164="","",商品マスタ!G164) -> 
K171: =IF(商品マスタ!$B165="","",商品マスタ!$B165) -> 161 | L171: =IF(商品マスタ!$C165="","",商品マスタ!$C165) ->  | M171: =IF(商品マスタ!G165="","",商品マスタ!G165) -> 
K172: =IF(商品マスタ!$B166="","",商品マスタ!$B166) -> 162 | L172: =IF(商品マスタ!$C166="","",商品マスタ!$C166) ->  | M172: =IF(商品マスタ!G166="","",商品マスタ!G166) -> 
K173: =IF(商品マスタ!$B167="","",商品マスタ!$B167) -> 163 | L173: =IF(商品マスタ!$C167="","",商品マスタ!$C167) ->  | M173: =IF(商品マスタ!G167="","",商品マスタ!G167) -> 
K174: =IF(商品マスタ!$B168="","",商品マスタ!$B168) -> 164 | L174: =IF(商品マスタ!$C168="","",商品マスタ!$C168) ->  | M174: =IF(商品マスタ!G168="","",商品マスタ!G168) -> 
K175: =IF(商品マスタ!$B169="","",商品マスタ!$B169) -> 165 | L175: =IF(商品マスタ!$C169="","",商品マスタ!$C169) ->  | M175: =IF(商品マスタ!G169="","",商品マスタ!G169) -> 
K176: =IF(商品マスタ!$B170="","",商品マスタ!$B170) -> 166 | L176: =IF(商品マスタ!$C170="","",商品マスタ!$C170) ->  | M176: =IF(商品マスタ!G170="","",商品マスタ!G170) -> 
K177: =IF(商品マスタ!$B171="","",商品マスタ!$B171) -> 167 | L177: =IF(商品マスタ!$C171="","",商品マスタ!$C171) ->  | M177: =IF(商品マスタ!G171="","",商品マスタ!G171) -> 
K178: =IF(商品マスタ!$B172="","",商品マスタ!$B172) -> 168 | L178: =IF(商品マスタ!$C172="","",商品マスタ!$C172) ->  | M178: =IF(商品マスタ!G172="","",商品マスタ!G172) -> 
K179: =IF(商品マスタ!$B173="","",商品マスタ!$B173) -> 169 | L179: =IF(商品マスタ!$C173="","",商品マスタ!$C173) ->  | M179: =IF(商品マスタ!G173="","",商品マスタ!G173) -> 
K180: =IF(商品マスタ!$B174="","",商品マスタ!$B174) -> 170 | L180: =IF(商品マスタ!$C174="","",商品マスタ!$C174) ->  | M180: =IF(商品マスタ!G174="","",商品マスタ!G174) -> 
K181: =IF(商品マスタ!$B175="","",商品マスタ!$B175) -> 171 | L181: =IF(商品マスタ!$C175="","",商品マスタ!$C175) ->  | M181: =IF(商品マスタ!G175="","",商品マスタ!G175) -> 
K182: =IF(商品マスタ!$B176="","",商品マスタ!$B176) -> 172 | L182: =IF(商品マスタ!$C176="","",商品マスタ!$C176) ->  | M182: =IF(商品マスタ!G176="","",商品マスタ!G176) -> 
K183: =IF(商品マスタ!$B177="","",商品マスタ!$B177) -> 173 | L183: =IF(商品マスタ!$C177="","",商品マスタ!$C177) ->  | M183: =IF(商品マスタ!G177="","",商品マスタ!G177) -> 
K184: =IF(商品マスタ!$B178="","",商品マスタ!$B178) -> 174 | L184: =IF(商品マスタ!$C178="","",商品マスタ!$C178) ->  | M184: =IF(商品マスタ!G178="","",商品マスタ!G178) -> 
K185: =IF(商品マスタ!$B179="","",商品マスタ!$B179) -> 175 | L185: =IF(商品マスタ!$C179="","",商品マスタ!$C179) ->  | M185: =IF(商品マスタ!G179="","",商品マスタ!G179) -> 
K186: =IF(商品マスタ!$B180="","",商品マスタ!$B180) -> 176 | L186: =IF(商品マスタ!$C180="","",商品マスタ!$C180) ->  | M186: =IF(商品マスタ!G180="","",商品マスタ!G180) -> 
K187: =IF(商品マスタ!$B181="","",商品マスタ!$B181) -> 177 | L187: =IF(商品マスタ!$C181="","",商品マスタ!$C181) ->  | M187: =IF(商品マスタ!G181="","",商品マスタ!G181) -> 
K188: =IF(商品マスタ!$B182="","",商品マスタ!$B182) -> 178 | L188: =IF(商品マスタ!$C182="","",商品マスタ!$C182) ->  | M188: =IF(商品マスタ!G182="","",商品マスタ!G182) -> 
K189: =IF(商品マスタ!$B183="","",商品マスタ!$B183) -> 179 | L189: =IF(商品マスタ!$C183="","",商品マスタ!$C183) ->  | M189: =IF(商品マスタ!G183="","",商品マスタ!G183) -> 
K190: =IF(商品マスタ!$B184="","",商品マスタ!$B184) -> 180 | L190: =IF(商品マスタ!$C184="","",商品マスタ!$C184) ->  | M190: =IF(商品マスタ!G184="","",商品マスタ!G184) -> 
K191: =IF(商品マスタ!$B185="","",商品マスタ!$B185) -> 181 | L191: =IF(商品マスタ!$C185="","",商品マスタ!$C185) ->  | M191: =IF(商品マスタ!G185="","",商品マスタ!G185) -> 
K192: =IF(商品マスタ!$B186="","",商品マスタ!$B186) -> 182 | L192: =IF(商品マスタ!$C186="","",商品マスタ!$C186) ->  | M192: =IF(商品マスタ!G186="","",商品マスタ!G186) -> 
K193: =IF(商品マスタ!$B187="","",商品マスタ!$B187) -> 183 | L193: =IF(商品マスタ!$C187="","",商品マスタ!$C187) ->  | M193: =IF(商品マスタ!G187="","",商品マスタ!G187) -> 
K194: =IF(商品マスタ!$B188="","",商品マスタ!$B188) -> 184 | L194: =IF(商品マスタ!$C188="","",商品マスタ!$C188) ->  | M194: =IF(商品マスタ!G188="","",商品マスタ!G188) -> 
K195: =IF(商品マスタ!$B189="","",商品マスタ!$B189) -> 185 | L195: =IF(商品マスタ!$C189="","",商品マスタ!$C189) ->  | M195: =IF(商品マスタ!G189="","",商品マスタ!G189) -> 
K196: =IF(商品マスタ!$B190="","",商品マスタ!$B190) -> 186 | L196: =IF(商品マスタ!$C190="","",商品マスタ!$C190) ->  | M196: =IF(商品マスタ!G190="","",商品マスタ!G190) -> 
K197: =IF(商品マスタ!$B191="","",商品マスタ!$B191) -> 187 | L197: =IF(商品マスタ!$C191="","",商品マスタ!$C191) ->  | M197: =IF(商品マスタ!G191="","",商品マスタ!G191) -> 
K198: =IF(商品マスタ!$B192="","",商品マスタ!$B192) -> 188 | L198: =IF(商品マスタ!$C192="","",商品マスタ!$C192) ->  | M198: =IF(商品マスタ!G192="","",商品マスタ!G192) -> 
K199: =IF(商品マスタ!$B193="","",商品マスタ!$B193) -> 189 | L199: =IF(商品マスタ!$C193="","",商品マスタ!$C193) ->  | M199: =IF(商品マスタ!G193="","",商品マスタ!G193) -> 
K200: =IF(商品マスタ!$B194="","",商品マスタ!$B194) -> 190 | L200: =IF(商品マスタ!$C194="","",商品マスタ!$C194) ->  | M200: =IF(商品マスタ!G194="","",商品マスタ!G194) -> 
K201: =IF(商品マスタ!$B195="","",商品マスタ!$B195) -> 191 | L201: =IF(商品マスタ!$C195="","",商品マスタ!$C195) ->  | M201: =IF(商品マスタ!G195="","",商品マスタ!G195) -> 
K202: =IF(商品マスタ!$B196="","",商品マスタ!$B196) -> 192 | L202: =IF(商品マスタ!$C196="","",商品マスタ!$C196) ->  | M202: =IF(商品マスタ!G196="","",商品マスタ!G196) -> 
K203: =IF(商品マスタ!$B197="","",商品マスタ!$B197) -> 193 | L203: =IF(商品マスタ!$C197="","",商品マスタ!$C197) ->  | M203: =IF(商品マスタ!G197="","",商品マスタ!G197) -> 
K204: =IF(商品マスタ!$B198="","",商品マスタ!$B198) -> 194 | L204: =IF(商品マスタ!$C198="","",商品マスタ!$C198) ->  | M204: =IF(商品マスタ!G198="","",商品マスタ!G198) -> 
... 6 more rows

Sheet 棚卸入力
E3: 棚卸入力 | M3: （今棚卸の控） | P3: 最新棚卸記録 | AC3: 番号
AC5: 1
B7: 実施日 | C7: 2021-07-27 | E7: ①実施日を指定してください | I7: ="② 棚卸結果を「棚卸数量」に記入して下さい。 「登録」をクリックすると在庫数を下記「棚卸数量」に合わせて修正します。（今回登録した内容は次回棚卸まで右の控に残ります。また、各回棚卸の履歴は「"&棚卸シート&"」シートに記録され、「棚卸後在庫変更履歴」シートの内容はクリアされます。）" -> ② 棚卸結果を「棚卸数量」に記入して下さい。 「登録」をクリックすると在庫数を下記「棚卸数量」に合わせて修正します。（今回登録した内容は次回棚卸まで右の控に残ります。また、各回棚卸の履歴は「棚卸履歴」シートに記録され、「棚卸後在庫変更履歴」シートの内容はクリアされます。） | M7: 実施日 | N7: 2021-03-04 | AC7: 2
AC8: 3
B9: 第 | C9: =MAX(棚卸履歴!$C$2:$C$1048576)+1 -> 1 | D9: 回棚卸 | M9: 第 | N9: 1 | O9: 回棚卸記録 | AC9: 4
B10: 商品番号 | C10: 商品名 | F10: 棚卸前数量記録 | G10: 棚卸数量 | M10: 商品番号 | N10: 商品名 | Q10: 棚卸前数量記録 | R10: 棚卸数量 | AC10: 7
B11: =IF(商品マスタ!$B5="","",商品マスタ!$B5) -> 1 | C11: =IF(商品マスタ!$C5="","",商品マスタ!$C5) -> LIFESPAN（ライフスパン）―老いなき世界 | D11: =IF(商品マスタ!$B5="","",商品マスタ!$B5) -> 1 | E11: =IF(商品マスタ!$C5="","",商品マスタ!$C5) -> LIFESPAN（ライフスパン）―老いなき世界 | F11: =在庫表示!F11 -> 0 | M11: 1 | N11: ボールルームダンステクニック | O11: 1 | P11: ボールルームダンステクニック | Q11: 0
B12: =IF(商品マスタ!$B6="","",商品マスタ!$B6) -> 2 | C12: =IF(商品マスタ!$C6="","",商品マスタ!$C6) -> WHAT IS LIFE？（ホワット・イズ・ライフ？）生命とは何か | D12: =IF(商品マスタ!$B6="","",商品マスタ!$B6) -> 2 | E12: =IF(商品マスタ!$C6="","",商品マスタ!$C6) -> WHAT IS LIFE？（ホワット・イズ・ライフ？）生命とは何か | F12: =在庫表示!F12 -> 0 | M12: 2 | N12: ウィンナ・ワルツ・テクニック | O12: 2 | P12: ウィンナ・ワルツ・テクニック | Q12: 0 | AC12: 9
B13: =IF(商品マスタ!$B7="","",商品マスタ!$B7) -> 3 | C13: =IF(商品マスタ!$C7="","",商品マスタ!$C7) -> 科学的とはどういう意味か | D13: =IF(商品マスタ!$B7="","",商品マスタ!$B7) -> 3 | E13: =IF(商品マスタ!$C7="","",商品マスタ!$C7) -> 科学的とはどういう意味か | F13: =在庫表示!F13 -> 0 | M13: 3 | N13: ラテンアメリカン ルンバ | O13: 3 | P13: ラテンアメリカン ルンバ | Q13: 0 | AC13: 10
B14: =IF(商品マスタ!$B8="","",商品マスタ!$B8) -> 4 | C14: =IF(商品マスタ!$C8="","",商品マスタ!$C8) -> コトPOP（R）を書いたら あっ、売れちゃった！ | D14: =IF(商品マスタ!$B8="","",商品マスタ!$B8) -> 4 | E14: =IF(商品マスタ!$C8="","",商品マスタ!$C8) -> コトPOP（R）を書いたら あっ、売れちゃった！ | F14: =在庫表示!F14 -> 0 | M14: 4 | N14: ラテンアメリカン チャチャチャ | O14: 4 | P14: ラテンアメリカン チャチャチャ | Q14: 0 | AC14: 11
B15: =IF(商品マスタ!$B9="","",商品マスタ!$B9) -> 5 | C15: =IF(商品マスタ!$C9="","",商品マスタ!$C9) -> 鉄腕アトム 地球最大の冒険 | D15: =IF(商品マスタ!$B9="","",商品マスタ!$B9) -> 5 | E15: =IF(商品マスタ!$C9="","",商品マスタ!$C9) -> 鉄腕アトム 地球最大の冒険 | F15: =在庫表示!F15 -> 0 | M15: 5 | N15: ラテンアメリカン サンバ | O15: 5 | P15: ラテンアメリカン サンバ | Q15: 0 | AC15: 12
B16: =IF(商品マスタ!$B10="","",商品マスタ!$B10) -> 6 | C16: =IF(商品マスタ!$C10="","",商品マスタ!$C10) -> 鉄腕アトム 地球防衛隊 | D16: =IF(商品マスタ!$B10="","",商品マスタ!$B10) -> 6 | E16: =IF(商品マスタ!$C10="","",商品マスタ!$C10) -> 鉄腕アトム 地球防衛隊 | F16: =在庫表示!F16 -> 0 | M16: 6 | N16: ラテンアメリカン パソドブレ | O16: 6 | P16: ラテンアメリカン パソドブレ | Q16: 0 | AC16: 13
B17: =IF(商品マスタ!$B11="","",商品マスタ!$B11) -> 7 | C17: =IF(商品マスタ!$C11="","",商品マスタ!$C11) -> どうする？デザイン クライアントとのやりとりでよくわかる！デザインの決め方、伝え方 | D17: =IF(商品マスタ!$B11="","",商品マスタ!$B11) -> 7 | E17: =IF(商品マスタ!$C11="","",商品マスタ!$C11) -> どうする？デザイン クライアントとのやりとりでよくわかる！デザインの決め方、伝え方 | F17: =在庫表示!F17 -> 0 | M17: 7 | N17: ラテンアメリカン ジャイブ | O17: 7 | P17: ラテンアメリカン ジャイブ | Q17: 0 | AC17: 14
B18: =IF(商品マスタ!$B12="","",商品マスタ!$B12) -> 8 | C18: =IF(商品マスタ!$C12="","",商品マスタ!$C12) -> ハッブル宇宙望遠鏡が見た絶景宇宙 SELECT 10 Vol.1 | D18: =IF(商品マスタ!$B12="","",商品マスタ!$B12) -> 8 | E18: =IF(商品マスタ!$C12="","",商品マスタ!$C12) -> ハッブル宇宙望遠鏡が見た絶景宇宙 SELECT 10 Vol.1 | F18: =在庫表示!F18 -> 0 | M18: 8 | N18: ダンス用語解説 | O18: 8 | P18: ダンス用語解説 | Q18: 0 | AC18: 15
B19: =IF(商品マスタ!$B13="","",商品マスタ!$B13) -> 9 | C19: =IF(商品マスタ!$C13="","",商品マスタ!$C13) -> ハムスターがおうちにやってきた！ | D19: =IF(商品マスタ!$B13="","",商品マスタ!$B13) -> 9 | E19: =IF(商品マスタ!$C13="","",商品マスタ!$C13) -> ハムスターがおうちにやってきた！ | F19: =在庫表示!F19 -> 0 | M19: 9 | N19: 質疑応答集 ワルツ | O19: 9 | P19: 質疑応答集 ワルツ | Q19: 0 | AC19: 16
B20: =IF(商品マスタ!$B14="","",商品マスタ!$B14) -> 10 | C20: =IF(商品マスタ!$C14="","",商品マスタ!$C14) -> ビーカーくんのゆかいな化学実験 | D20: =IF(商品マスタ!$B14="","",商品マスタ!$B14) -> 10 | E20: =IF(商品マスタ!$C14="","",商品マスタ!$C14) -> ビーカーくんのゆかいな化学実験 | F20: =在庫表示!F20 -> 0 | M20: 10 | N20: 質疑応答集 タンゴ | O20: 10 | P20: 質疑応答集 タンゴ | Q20: 0 | AC20: 17
B21: =IF(商品マスタ!$B15="","",商品マスタ!$B15) -> 11 | C21: =IF(商品マスタ!$C15="","",商品マスタ!$C15) -> ヒトを理解するための 生物学 | D21: =IF(商品マスタ!$B15="","",商品マスタ!$B15) -> 11 | E21: =IF(商品マスタ!$C15="","",商品マスタ!$C15) -> ヒトを理解するための 生物学 | F21: =在庫表示!F21 -> 0 | M21: 11 | N21: 質疑応答集 フォックストロット | O21: 11 | P21: 質疑応答集 フォックストロット | Q21: 0 | AC21: 18
B22: =IF(商品マスタ!$B16="","",商品マスタ!$B16) -> 12 | C22: =IF(商品マスタ!$C16="","",商品マスタ!$C16) -> 富士山はどうしてそこにあるのか 地形から見る日本列島史 | D22: =IF(商品マスタ!$B16="","",商品マスタ!$B16) -> 12 | E22: =IF(商品マスタ!$C16="","",商品マスタ!$C16) -> 富士山はどうしてそこにあるのか 地形から見る日本列島史 | F22: =在庫表示!F22 -> 0 | M22: 12 | N22: 質疑応答集 クイックステップ | O22: 12 | P22: 質疑応答集 クイックステップ | Q22: 0 | AC22: 19
B23: =IF(商品マスタ!$B17="","",商品マスタ!$B17) -> 13 | C23: =IF(商品マスタ!$C17="","",商品マスタ!$C17) -> 宇宙の「果て」になにがあるのか 最新天文学が描く、時間と空間の終わり | D23: =IF(商品マスタ!$B17="","",商品マスタ!$B17) -> 13 | E23: =IF(商品マスタ!$C17="","",商品マスタ!$C17) -> 宇宙の「果て」になにがあるのか 最新天文学が描く、時間と空間の終わり | F23: =在庫表示!F23 -> 0 | M23: 13 | N23: 質疑応答集 ウィンナ・ワルツ | O23: 13 | P23: 質疑応答集 ウィンナ・ワルツ | Q23: 0 | AC23: 20
B24: =IF(商品マスタ!$B18="","",商品マスタ!$B18) -> 14 | C24: =IF(商品マスタ!$C18="","",商品マスタ!$C18) -> 宇宙は本当にひとつなのか―最新宇宙論入門 | D24: =IF(商品マスタ!$B18="","",商品マスタ!$B18) -> 14 | E24: =IF(商品マスタ!$C18="","",商品マスタ!$C18) -> 宇宙は本当にひとつなのか―最新宇宙論入門 | F24: =在庫表示!F24 -> 0 | M24: 14 | N24: ラテン質疑応答集 | O24: 14 | P24: ラテン質疑応答集 | Q24: 0 | AC24: 21
B25: =IF(商品マスタ!$B19="","",商品マスタ!$B19) -> 15 | C25: =IF(商品マスタ!$C19="","",商品マスタ!$C19) -> 宇宙創成（上） | D25: =IF(商品マスタ!$B19="","",商品マスタ!$B19) -> 15 | E25: =IF(商品マスタ!$C19="","",商品マスタ!$C19) -> 宇宙創成（上） | F25: =在庫表示!F25 -> 0 | M25: 15 | N25: テキストブック vol.Ⅰ | O25: 15 | P25: テキストブック vol.Ⅰ | Q25: 0 | AC25: 22
B26: =IF(商品マスタ!$B20="","",商品マスタ!$B20) -> 16 | C26: =IF(商品マスタ!$C20="","",商品マスタ!$C20) -> 宇宙望遠鏡がとらえた 銀河（ブックブライト） | D26: =IF(商品マスタ!$B20="","",商品マスタ!$B20) -> 16 | E26: =IF(商品マスタ!$C20="","",商品マスタ!$C20) -> 宇宙望遠鏡がとらえた 銀河（ブックブライト） | F26: =在庫表示!F26 -> 0 | M26: 16 | N26: テキストブック vol.Ⅲ | O26: 16 | P26: テキストブック vol.Ⅲ | Q26: 0 | AC26: 23
B27: =IF(商品マスタ!$B21="","",商品マスタ!$B21) -> 17 | C27: =IF(商品マスタ!$C21="","",商品マスタ!$C21) -> 見てわかる、迷わず決まる配色アイデア 3色だけでセンスのいい色 | D27: =IF(商品マスタ!$B21="","",商品マスタ!$B21) -> 17 | E27: =IF(商品マスタ!$C21="","",商品マスタ!$C21) -> 見てわかる、迷わず決まる配色アイデア 3色だけでセンスのいい色 | F27: =在庫表示!F27 -> 0 | M27: 17 | N27: テキストブック vol.Ⅳ | O27: 17 | P27: テキストブック vol.Ⅳ | Q27: 0 | AC27: 24
B28: =IF(商品マスタ!$B22="","",商品マスタ!$B22) -> 18 | C28: =IF(商品マスタ!$C22="","",商品マスタ!$C22) -> 写真加工で作る風景イラスト 神技作画シリーズ | D28: =IF(商品マスタ!$B22="","",商品マスタ!$B22) -> 18 | E28: =IF(商品マスタ!$C22="","",商品マスタ!$C22) -> 写真加工で作る風景イラスト 神技作画シリーズ | F28: =在庫表示!F28 -> 0 | M28: 18 | N28: スケーティグシステム解説書 | O28: 18 | P28: スケーティグシステム解説書 | Q28: 0 | AC28: 25
B29: =IF(商品マスタ!$B23="","",商品マスタ!$B23) -> 19 | C29: =IF(商品マスタ!$C23="","",商品マスタ!$C23) -> 写真加工で作る風景イラスト 神技作画シリーズ | D29: =IF(商品マスタ!$B23="","",商品マスタ!$B23) -> 19 | E29: =IF(商品マスタ!$C23="","",商品マスタ!$C23) -> 写真加工で作る風景イラスト 神技作画シリーズ | F29: =在庫表示!F29 -> 0 | M29: 19 | N29: 採点管理者認定試験問題集 | O29: 19 | P29: 採点管理者認定試験問題集 | Q29: 0 | AC29: 26
B30: =IF(商品マスタ!$B24="","",商品マスタ!$B24) -> 20 | C30: =IF(商品マスタ!$C24="","",商品マスタ!$C24) -> 重力とは何か アインシュタインから超弦理論へ、宇宙の謎に迫る | D30: =IF(商品マスタ!$B24="","",商品マスタ!$B24) -> 20 | E30: =IF(商品マスタ!$C24="","",商品マスタ!$C24) -> 重力とは何か アインシュタインから超弦理論へ、宇宙の謎に迫る | F30: =在庫表示!F30 -> 0 | M30: 20 | N30: プロフェッショナル ５級例題集 | O30: 20 | P30: プロフェッショナル ５級例題集 | Q30: 0 | AC30: 27
B31: =IF(商品マスタ!$B25="","",商品マスタ!$B25) -> 21 | C31: =IF(商品マスタ!$C25="","",商品マスタ!$C25) -> 図説 メイドインアビス 探窟記録【電子特典付き】 | D31: =IF(商品マスタ!$B25="","",商品マスタ!$B25) -> 21 | E31: =IF(商品マスタ!$C25="","",商品マスタ!$C25) -> 図説 メイドインアビス 探窟記録【電子特典付き】 | F31: =在庫表示!F31 -> 0 | M31: 21 | N31: プロフェッショナル ４級例題集 | O31: 21 | P31: プロフェッショナル ４級例題集 | Q31: 0 | AC31: 28
B32: =IF(商品マスタ!$B26="","",商品マスタ!$B26) -> 22 | C32: =IF(商品マスタ!$C26="","",商品マスタ!$C26) -> 成功の秘密にアクセスできるギャラクシー・コード | D32: =IF(商品マスタ!$B26="","",商品マスタ!$B26) -> 22 | E32: =IF(商品マスタ!$C26="","",商品マスタ!$C26) -> 成功の秘密にアクセスできるギャラクシー・コード | F32: =在庫表示!F32 -> 0 | M32: 22 | N32: プロフェッショナル ５・４級ソロデモ・アマルガメーション | O32: 22 | P32: プロフェッショナル ５・４級ソロデモ・アマルガメーション | Q32: 0 | AC32: 29
B33: =IF(商品マスタ!$B27="","",商品マスタ!$B27) -> 23 | C33: =IF(商品マスタ!$C27="","",商品マスタ!$C27) -> 太陽系 絶景画像50 | D33: =IF(商品マスタ!$B27="","",商品マスタ!$B27) -> 23 | E33: =IF(商品マスタ!$C27="","",商品マスタ!$C27) -> 太陽系 絶景画像50 | F33: =在庫表示!F33 -> 0 | M33: 23 | N33: プロフェッショナル ５・４級ソロデモDVD | O33: 23 | P33: プロフェッショナル ５・４級ソロデモDVD | Q33: 0 | AC33: 30
B34: =IF(商品マスタ!$B28="","",商品マスタ!$B28) -> 24 | C34: =IF(商品マスタ!$C28="","",商品マスタ!$C28) -> 踊りませんか？ 社交ダンスの世界 | D34: =IF(商品マスタ!$B28="","",商品マスタ!$B28) -> 24 | E34: =IF(商品マスタ!$C28="","",商品マスタ!$C28) -> 踊りませんか？ 社交ダンスの世界 | F34: =在庫表示!F34 -> 0 | M34: 24 | N34: プロフェッショナル ５・４級ソロデモCD | O34: 24 | P34: プロフェッショナル ５・４級ソロデモCD | Q34: 0 | AC34: 31
B35: =IF(商品マスタ!$B29="","",商品マスタ!$B29) -> 25 | C35: =IF(商品マスタ!$C29="","",商品マスタ!$C29) ->  | D35: =IF(商品マスタ!$B29="","",商品マスタ!$B29) -> 25 | E35: =IF(商品マスタ!$C29="","",商品マスタ!$C29) ->  | F35: =在庫表示!F35 ->  | M35: 25 | N35: プロフェッショナル ３級スタンダード例題集 | O35: 25 | P35: プロフェッショナル ３級スタンダード例題集 | Q35: 0 | AC35: 32
B36: =IF(商品マスタ!$B30="","",商品マスタ!$B30) -> 26 | C36: =IF(商品マスタ!$C30="","",商品マスタ!$C30) ->  | D36: =IF(商品マスタ!$B30="","",商品マスタ!$B30) -> 26 | E36: =IF(商品マスタ!$C30="","",商品マスタ!$C30) ->  | F36: =在庫表示!F36 ->  | M36: 26 | N36: プロフェッショナル ３級ラテン例題集 | O36: 26 | P36: プロフェッショナル ３級ラテン例題集 | Q36: 0 | AC36: 33
B37: =IF(商品マスタ!$B31="","",商品マスタ!$B31) -> 27 | C37: =IF(商品マスタ!$C31="","",商品マスタ!$C31) ->  | D37: =IF(商品マスタ!$B31="","",商品マスタ!$B31) -> 27 | E37: =IF(商品マスタ!$C31="","",商品マスタ!$C31) ->  | F37: =在庫表示!F37 ->  | M37: 27 | N37: プロフェッショナル ２級スタンダード筆記試験例題集 | O37: 27 | P37: プロフェッショナル ２級スタンダード筆記試験例題集 | Q37: 0 | AC37: 34
B38: =IF(商品マスタ!$B32="","",商品マスタ!$B32) -> 28 | C38: =IF(商品マスタ!$C32="","",商品マスタ!$C32) ->  | D38: =IF(商品マスタ!$B32="","",商品マスタ!$B32) -> 28 | E38: =IF(商品マスタ!$C32="","",商品マスタ!$C32) ->  | F38: =在庫表示!F38 ->  | M38: 28 | N38: プロフェッショナル ２級ラテン筆記試験例題集 | O38: 28 | P38: プロフェッショナル ２級ラテン筆記試験例題集 | Q38: 0 | AC38: 35
B39: =IF(商品マスタ!$B33="","",商品マスタ!$B33) -> 29 | C39: =IF(商品マスタ!$C33="","",商品マスタ!$C33) ->  | D39: =IF(商品マスタ!$B33="","",商品マスタ!$B33) -> 29 | E39: =IF(商品マスタ!$C33="","",商品マスタ!$C33) ->  | F39: =在庫表示!F39 ->  | M39: 29 | N39: プロフェッショナル ３・２級スタンダード質疑応答集 | O39: 29 | P39: プロフェッショナル ３・２級スタンダード質疑応答集 | Q39: 0 | AC39: 36
B40: =IF(商品マスタ!$B34="","",商品マスタ!$B34) -> 30 | C40: =IF(商品マスタ!$C34="","",商品マスタ!$C34) ->  | D40: =IF(商品マスタ!$B34="","",商品マスタ!$B34) -> 30 | E40: =IF(商品マスタ!$C34="","",商品マスタ!$C34) ->  | F40: =在庫表示!F40 ->  | M40: 30 | N40: プロフェッショナル ３・２級ラテン質疑応答集 | O40: 30 | P40: プロフェッショナル ３・２級ラテン質疑応答集 | Q40: 0 | AC40: 37
B41: =IF(商品マスタ!$B35="","",商品マスタ!$B35) -> 31 | C41: =IF(商品マスタ!$C35="","",商品マスタ!$C35) ->  | D41: =IF(商品マスタ!$B35="","",商品マスタ!$B35) -> 31 | E41: =IF(商品マスタ!$C35="","",商品マスタ!$C35) ->  | F41: =在庫表示!F41 ->  | M41: 31 | N41: アマチュア 指導教本 | O41: 31 | P41: アマチュア 指導教本 | Q41: 0 | AC41: 38
B42: =IF(商品マスタ!$B36="","",商品マスタ!$B36) -> 32 | C42: =IF(商品マスタ!$C36="","",商品マスタ!$C36) ->  | D42: =IF(商品マスタ!$B36="","",商品マスタ!$B36) -> 32 | E42: =IF(商品マスタ!$C36="","",商品マスタ!$C36) ->  | F42: =在庫表示!F42 ->  | M42: 32 | N42: アマチュア ５級例題集 | O42: 32 | P42: アマチュア ５級例題集 | Q42: 0 | AC42: 39
B43: =IF(商品マスタ!$B37="","",商品マスタ!$B37) -> 33 | C43: =IF(商品マスタ!$C37="","",商品マスタ!$C37) ->  | D43: =IF(商品マスタ!$B37="","",商品マスタ!$B37) -> 33 | E43: =IF(商品マスタ!$C37="","",商品マスタ!$C37) ->  | F43: =在庫表示!F43 ->  | M43: 33 | N43: アマチュア ４級例題集 | O43: 33 | P43: アマチュア ４級例題集 | Q43: 0 | AC43: 40
B44: =IF(商品マスタ!$B38="","",商品マスタ!$B38) -> 34 | C44: =IF(商品マスタ!$C38="","",商品マスタ!$C38) ->  | D44: =IF(商品マスタ!$B38="","",商品マスタ!$B38) -> 34 | E44: =IF(商品マスタ!$C38="","",商品マスタ!$C38) ->  | F44: =在庫表示!F44 ->  | M44: 34 | N44: アマチュア ３級例題集 | O44: 34 | P44: アマチュア ３級例題集 | Q44: 0 | AC44: 41
B45: =IF(商品マスタ!$B39="","",商品マスタ!$B39) -> 35 | C45: =IF(商品マスタ!$C39="","",商品マスタ!$C39) ->  | D45: =IF(商品マスタ!$B39="","",商品マスタ!$B39) -> 35 | E45: =IF(商品マスタ!$C39="","",商品マスタ!$C39) ->  | F45: =在庫表示!F45 ->  | M45: 35 | N45: アマチュア ２級例題集 | O45: 35 | P45: アマチュア ２級例題集 | Q45: 0 | AC45: 42
B46: =IF(商品マスタ!$B40="","",商品マスタ!$B40) -> 36 | C46: =IF(商品マスタ!$C40="","",商品マスタ!$C40) ->  | D46: =IF(商品マスタ!$B40="","",商品マスタ!$B40) -> 36 | E46: =IF(商品マスタ!$C40="","",商品マスタ!$C40) ->  | F46: =在庫表示!F46 ->  | M46: 36 | N46: アマチュア １級例題集 | O46: 36 | P46: アマチュア １級例題集 | Q46: 0 | AC46: 43
B47: =IF(商品マスタ!$B41="","",商品マスタ!$B41) -> 37 | C47: =IF(商品マスタ!$C41="","",商品マスタ!$C41) ->  | D47: =IF(商品マスタ!$B41="","",商品マスタ!$B41) -> 37 | E47: =IF(商品マスタ!$C41="","",商品マスタ!$C41) ->  | F47: =在庫表示!F47 ->  | M47: 37 | N47: アマチュア ５・４・３級ソロデモ・アマルガメーション | O47: 37 | P47: アマチュア ５・４・３級ソロデモ・アマルガメーション | Q47: 0 | AC47: 44
B48: =IF(商品マスタ!$B42="","",商品マスタ!$B42) -> 38 | C48: =IF(商品マスタ!$C42="","",商品マスタ!$C42) ->  | D48: =IF(商品マスタ!$B42="","",商品マスタ!$B42) -> 38 | E48: =IF(商品マスタ!$C42="","",商品マスタ!$C42) ->  | F48: =在庫表示!F48 ->  | M48: 38 | N48: アマチュア ２・１級ソロデモ・アマルガメーション | O48: 38 | P48: アマチュア ２・１級ソロデモ・アマルガメーション | Q48: 0 | AC48: 45
B49: =IF(商品マスタ!$B43="","",商品マスタ!$B43) -> 39 | C49: =IF(商品マスタ!$C43="","",商品マスタ!$C43) ->  | D49: =IF(商品マスタ!$B43="","",商品マスタ!$B43) -> 39 | E49: =IF(商品マスタ!$C43="","",商品マスタ!$C43) ->  | F49: =在庫表示!F49 ->  | M49: 39 | N49: アマチュア ５・４・３級ソロデモDVD | O49: 39 | P49: アマチュア ５・４・３級ソロデモDVD | Q49: 0 | AC49: 46
B50: =IF(商品マスタ!$B44="","",商品マスタ!$B44) -> 40 | C50: =IF(商品マスタ!$C44="","",商品マスタ!$C44) ->  | D50: =IF(商品マスタ!$B44="","",商品マスタ!$B44) -> 40 | E50: =IF(商品マスタ!$C44="","",商品マスタ!$C44) ->  | F50: =在庫表示!F50 ->  | M50: 40 | N50: アマチュア ２・１級ソロデモDVD | O50: 40 | P50: アマチュア ２・１級ソロデモDVD | Q50: 0 | AC50: 47
B51: =IF(商品マスタ!$B45="","",商品マスタ!$B45) -> 41 | C51: =IF(商品マスタ!$C45="","",商品マスタ!$C45) ->  | D51: =IF(商品マスタ!$B45="","",商品マスタ!$B45) -> 41 | E51: =IF(商品マスタ!$C45="","",商品マスタ!$C45) ->  | F51: =在庫表示!F51 ->  | M51: 41 | N51: アマチュア ５・４・３級ソロデモCD | O51: 41 | P51: アマチュア ５・４・３級ソロデモCD | Q51: 0 | AC51: 48
B52: =IF(商品マスタ!$B46="","",商品マスタ!$B46) -> 42 | C52: =IF(商品マスタ!$C46="","",商品マスタ!$C46) ->  | D52: =IF(商品マスタ!$B46="","",商品マスタ!$B46) -> 42 | E52: =IF(商品マスタ!$C46="","",商品マスタ!$C46) ->  | F52: =在庫表示!F52 ->  | M52: 42 | N52: アマチュア ２・１級ソロデモCD | O52: 42 | P52: アマチュア ２・１級ソロデモCD | Q52: 0 | AC52: 49
B53: =IF(商品マスタ!$B47="","",商品マスタ!$B47) -> 43 | C53: =IF(商品マスタ!$C47="","",商品マスタ!$C47) ->  | D53: =IF(商品マスタ!$B47="","",商品マスタ!$B47) -> 43 | E53: =IF(商品マスタ!$C47="","",商品マスタ!$C47) ->  | F53: =在庫表示!F53 ->  | M53: 43 | N53: ダンスマイライフCD vol.7 | O53: 43 | P53: ダンスマイライフCD vol.7 | Q53: 0 | AC53: 50
B54: =IF(商品マスタ!$B48="","",商品マスタ!$B48) -> 44 | C54: =IF(商品マスタ!$C48="","",商品マスタ!$C48) ->  | D54: =IF(商品マスタ!$B48="","",商品マスタ!$B48) -> 44 | E54: =IF(商品マスタ!$C48="","",商品マスタ!$C48) ->  | F54: =在庫表示!F54 ->  | M54: 44 | N54: ダンスマイライフCD vol.8 | O54: 44 | P54: ダンスマイライフCD vol.8 | Q54: 0 | AC54: 51
B55: =IF(商品マスタ!$B49="","",商品マスタ!$B49) -> 45 | C55: =IF(商品マスタ!$C49="","",商品マスタ!$C49) ->  | D55: =IF(商品マスタ!$B49="","",商品マスタ!$B49) -> 45 | E55: =IF(商品マスタ!$C49="","",商品マスタ!$C49) ->  | F55: =在庫表示!F55 ->  | M55: 45 | N55: ダンスマイライフCD vol.9 | O55: 45 | P55: ダンスマイライフCD vol.9 | Q55: 0 | AC55: 52
B56: =IF(商品マスタ!$B50="","",商品マスタ!$B50) -> 46 | C56: =IF(商品マスタ!$C50="","",商品マスタ!$C50) ->  | D56: =IF(商品マスタ!$B50="","",商品マスタ!$B50) -> 46 | E56: =IF(商品マスタ!$C50="","",商品マスタ!$C50) ->  | F56: =在庫表示!F56 ->  | M56: 46 | N56: ポピュラーバリエーション第１集 DVD | O56: 46 | P56: ポピュラーバリエーション第１集 DVD | Q56: 0 | AC56: 53
B57: =IF(商品マスタ!$B51="","",商品マスタ!$B51) -> 47 | C57: =IF(商品マスタ!$C51="","",商品マスタ!$C51) ->  | D57: =IF(商品マスタ!$B51="","",商品マスタ!$B51) -> 47 | E57: =IF(商品マスタ!$C51="","",商品マスタ!$C51) ->  | F57: =在庫表示!F57 ->  | M57: 47 | N57: ポピュラーバリエーション第１集 教本 | O57: 47 | P57: ポピュラーバリエーション第１集 教本 | Q57: 0 | AC57: 54
B58: =IF(商品マスタ!$B52="","",商品マスタ!$B52) -> 48 | C58: =IF(商品マスタ!$C52="","",商品マスタ!$C52) ->  | D58: =IF(商品マスタ!$B52="","",商品マスタ!$B52) -> 48 | E58: =IF(商品マスタ!$C52="","",商品マスタ!$C52) ->  | F58: =在庫表示!F58 ->  | M58: 48 | N58: 2017サマーセミナー ポピュラーバリエーションDVD（Q・C） | O58: 48 | P58: 2017サマーセミナー ポピュラーバリエーションDVD（Q・C） | Q58: 0 | AC58: 55
B59: =IF(商品マスタ!$B53="","",商品マスタ!$B53) -> 49 | C59: =IF(商品マスタ!$C53="","",商品マスタ!$C53) ->  | D59: =IF(商品マスタ!$B53="","",商品マスタ!$B53) -> 49 | E59: =IF(商品マスタ!$C53="","",商品マスタ!$C53) ->  | F59: =在庫表示!F59 ->  | M59: 49 | N59: 2017サマーセミナー みんなdeルンバⅡDVD | O59: 49 | P59: 2017サマーセミナー みんなdeルンバⅡDVD | Q59: 0 | AC59: 56
B60: =IF(商品マスタ!$B54="","",商品マスタ!$B54) -> 50 | C60: =IF(商品マスタ!$C54="","",商品マスタ!$C54) ->  | D60: =IF(商品マスタ!$B54="","",商品マスタ!$B54) -> 50 | E60: =IF(商品マスタ!$C54="","",商品マスタ!$C54) ->  | F60: =在庫表示!F60 ->  | M60: 50 | N60: 2017サマーセミナー テキストブック | O60: 50 | P60: 2017サマーセミナー テキストブック | Q60: 0 | AC60: 57
B61: =IF(商品マスタ!$B55="","",商品マスタ!$B55) -> 51 | C61: =IF(商品マスタ!$C55="","",商品マスタ!$C55) ->  | D61: =IF(商品マスタ!$B55="","",商品マスタ!$B55) -> 51 | E61: =IF(商品マスタ!$C55="","",商品マスタ!$C55) ->  | F61: =在庫表示!F61 ->  | M61: 51 | N61: 2017サマーセミナー 記録DVD | O61: 51 | P61: 2017サマーセミナー 記録DVD | Q61: 0 | AC61: 58
B62: =IF(商品マスタ!$B56="","",商品マスタ!$B56) -> 52 | C62: =IF(商品マスタ!$C56="","",商品マスタ!$C56) ->  | D62: =IF(商品マスタ!$B56="","",商品マスタ!$B56) -> 52 | E62: =IF(商品マスタ!$C56="","",商品マスタ!$C56) ->  | F62: =在庫表示!F62 ->  | M62: 52 | N62: 2010サマーセミナー ポピュラーバリエーションDVD(T・J） | O62: 52 | P62: 2010サマーセミナー ポピュラーバリエーションDVD(T・J） | Q62: 0 | AC62: 59
B63: =IF(商品マスタ!$B57="","",商品マスタ!$B57) -> 53 | C63: =IF(商品マスタ!$C57="","",商品マスタ!$C57) ->  | D63: =IF(商品マスタ!$B57="","",商品マスタ!$B57) -> 53 | E63: =IF(商品マスタ!$C57="","",商品マスタ!$C57) ->  | F63: =在庫表示!F63 ->  | M63: 53 | N63: 2011サマーセミナー ポピュラーバリエーションDVD(W・C） | O63: 53 | P63: 2011サマーセミナー ポピュラーバリエーションDVD(W・C） | Q63: 0 | AC63: 60
B64: =IF(商品マスタ!$B58="","",商品マスタ!$B58) -> 54 | C64: =IF(商品マスタ!$C58="","",商品マスタ!$C58) ->  | D64: =IF(商品マスタ!$B58="","",商品マスタ!$B58) -> 54 | E64: =IF(商品マスタ!$C58="","",商品マスタ!$C58) ->  | F64: =在庫表示!F64 ->  | M64: 54 | N64: 2012サマーセミナー ポピュラーバリエーションDVD(F・R） | O64: 54 | P64: 2012サマーセミナー ポピュラーバリエーションDVD(F・R） | Q64: 0 | AC64: 61
B65: =IF(商品マスタ!$B59="","",商品マスタ!$B59) -> 55 | C65: =IF(商品マスタ!$C59="","",商品マスタ!$C59) ->  | D65: =IF(商品マスタ!$B59="","",商品マスタ!$B59) -> 55 | E65: =IF(商品マスタ!$C59="","",商品マスタ!$C59) ->  | F65: =在庫表示!F65 ->  | M65: 55 | N65: 2013サマーセミナー ポピュラーバリエーションDVD(Q・S） | O65: 55 | P65: 2013サマーセミナー ポピュラーバリエーションDVD(Q・S） | Q65: 0 | AC65: 62
B66: =IF(商品マスタ!$B60="","",商品マスタ!$B60) -> 56 | C66: =IF(商品マスタ!$C60="","",商品マスタ!$C60) ->  | D66: =IF(商品マスタ!$B60="","",商品マスタ!$B60) -> 56 | E66: =IF(商品マスタ!$C60="","",商品マスタ!$C60) ->  | F66: =在庫表示!F66 ->  | M66: 56 | N66: 2014サマーセミナー ポピュラーバリエーションDVD(T・P） | O66: 56 | P66: 2014サマーセミナー ポピュラーバリエーションDVD(T・P） | Q66: 0 | AC66: 63
B67: =IF(商品マスタ!$B61="","",商品マスタ!$B61) -> 57 | C67: =IF(商品マスタ!$C61="","",商品マスタ!$C61) ->  | D67: =IF(商品マスタ!$B61="","",商品マスタ!$B61) -> 57 | E67: =IF(商品マスタ!$C61="","",商品マスタ!$C61) ->  | F67: =在庫表示!F67 ->  | M67: 57 | N67: 2015サマーセミナー ポピュラーバリエーションDVD(W・J） | O67: 57 | P67: 2015サマーセミナー ポピュラーバリエーションDVD(W・J） | Q67: 0 | AC67: 64
B68: =IF(商品マスタ!$B62="","",商品マスタ!$B62) -> 58 | C68: =IF(商品マスタ!$C62="","",商品マスタ!$C62) ->  | D68: =IF(商品マスタ!$B62="","",商品マスタ!$B62) -> 58 | E68: =IF(商品マスタ!$C62="","",商品マスタ!$C62) ->  | F68: =在庫表示!F68 ->  | M68: 58 | N68: 2016サマーセミナー ポピュラーバリエーションDVD(F・R） | O68: 58 | P68: 2016サマーセミナー ポピュラーバリエーションDVD(F・R） | Q68: 0 | AC68: 65
B69: =IF(商品マスタ!$B63="","",商品マスタ!$B63) -> 59 | C69: =IF(商品マスタ!$C63="","",商品マスタ!$C63) ->  | D69: =IF(商品マスタ!$B63="","",商品マスタ!$B63) -> 59 | E69: =IF(商品マスタ!$C63="","",商品マスタ!$C63) ->  | F69: =在庫表示!F69 ->  | M69: 59 | N69: みんなdeタンゴ | O69: 59 | P69: みんなdeタンゴ | Q69: 0 | AC69: 66
B70: =IF(商品マスタ!$B64="","",商品マスタ!$B64) -> 60 | C70: =IF(商品マスタ!$C64="","",商品マスタ!$C64) ->  | D70: =IF(商品マスタ!$B64="","",商品マスタ!$B64) -> 60 | E70: =IF(商品マスタ!$C64="","",商品マスタ!$C64) ->  | F70: =在庫表示!F70 ->  | M70: 60 | N70: みんなdeチャチャチャⅡ | O70: 60 | P70: みんなdeチャチャチャⅡ | Q70: 0 | AC70: 67
B71: =IF(商品マスタ!$B65="","",商品マスタ!$B65) -> 61 | C71: =IF(商品マスタ!$C65="","",商品マスタ!$C65) ->  | D71: =IF(商品マスタ!$B65="","",商品マスタ!$B65) -> 61 | E71: =IF(商品マスタ!$C65="","",商品マスタ!$C65) ->  | F71: =在庫表示!F71 ->  | M71: 61 | N71: 2015サマーセミナー テキストブック | O71: 61 | P71: 2015サマーセミナー テキストブック | Q71: 0 | AC71: 68
B72: =IF(商品マスタ!$B66="","",商品マスタ!$B66) -> 62 | C72: =IF(商品マスタ!$C66="","",商品マスタ!$C66) ->  | D72: =IF(商品マスタ!$B66="","",商品マスタ!$B66) -> 62 | E72: =IF(商品マスタ!$C66="","",商品マスタ!$C66) ->  | F72: =在庫表示!F72 ->  | M72: 62 | N72: 2016サマーセミナー テキストブック | O72: 62 | P72: 2016サマーセミナー テキストブック | Q72: 0 | AC72: 69
B73: =IF(商品マスタ!$B67="","",商品マスタ!$B67) -> 63 | C73: =IF(商品マスタ!$C67="","",商品マスタ!$C67) ->  | D73: =IF(商品マスタ!$B67="","",商品マスタ!$B67) -> 63 | E73: =IF(商品マスタ!$C67="","",商品マスタ!$C67) ->  | F73: =在庫表示!F73 ->  | M73: 63 | N73: 日本インター規定フィガー集DVD | O73: 63 | P73: 日本インター規定フィガー集DVD | Q73: 0 | AC73: 70
B74: =IF(商品マスタ!$B68="","",商品マスタ!$B68) -> 64 | C74: =IF(商品マスタ!$C68="","",商品マスタ!$C68) ->  | D74: =IF(商品マスタ!$B68="","",商品マスタ!$B68) -> 64 | E74: =IF(商品マスタ!$C68="","",商品マスタ!$C68) ->  | F74: =在庫表示!F74 ->  | M74: 64 | N74: WDSF 教本 ワルツ | O74: 64 | P74: WDSF 教本 ワルツ | Q74: 0 | AC74: 71
B75: =IF(商品マスタ!$B69="","",商品マスタ!$B69) -> 65 | C75: =IF(商品マスタ!$C69="","",商品マスタ!$C69) ->  | D75: =IF(商品マスタ!$B69="","",商品マスタ!$B69) -> 65 | E75: =IF(商品マスタ!$C69="","",商品マスタ!$C69) ->  | F75: =在庫表示!F75 ->  | M75: 65 | N75: WDSF 教本 スローフォックストロット | O75: 65 | P75: WDSF 教本 スローフォックストロット | Q75: 0 | AC75: 72
B76: =IF(商品マスタ!$B70="","",商品マスタ!$B70) -> 66 | C76: =IF(商品マスタ!$C70="","",商品マスタ!$C70) ->  | D76: =IF(商品マスタ!$B70="","",商品マスタ!$B70) -> 66 | E76: =IF(商品マスタ!$C70="","",商品マスタ!$C70) ->  | F76: =在庫表示!F76 ->  | M76: 66 | N76: WDSF 教本 タンゴ | O76: 66 | P76: WDSF 教本 タンゴ | Q76: 0 | AC76: 73
B77: =IF(商品マスタ!$B71="","",商品マスタ!$B71) -> 67 | C77: =IF(商品マスタ!$C71="","",商品マスタ!$C71) ->  | D77: =IF(商品マスタ!$B71="","",商品マスタ!$B71) -> 67 | E77: =IF(商品マスタ!$C71="","",商品マスタ!$C71) ->  | F77: =在庫表示!F77 ->  | M77: 67 | N77: WDSF 教本 ルンバ | O77: 67 | P77: WDSF 教本 ルンバ | Q77: 0 | AC77: 74
B78: =IF(商品マスタ!$B72="","",商品マスタ!$B72) -> 68 | C78: =IF(商品マスタ!$C72="","",商品マスタ!$C72) ->  | D78: =IF(商品マスタ!$B72="","",商品マスタ!$B72) -> 68 | E78: =IF(商品マスタ!$C72="","",商品マスタ!$C72) ->  | F78: =在庫表示!F78 ->  | M78: 68 | N78: WDSF 教本 チャチャチャ | O78: 68 | P78: WDSF 教本 チャチャチャ | Q78: 0 | AC78: 75
B79: =IF(商品マスタ!$B73="","",商品マスタ!$B73) -> 69 | C79: =IF(商品マスタ!$C73="","",商品マスタ!$C73) ->  | D79: =IF(商品マスタ!$B73="","",商品マスタ!$B73) -> 69 | E79: =IF(商品マスタ!$C73="","",商品マスタ!$C73) ->  | F79: =在庫表示!F79 ->  | M79: 69 | N79: WDSF DVD ワルツ | O79: 69 | P79: WDSF DVD ワルツ | Q79: 0 | AC79: 76
B80: =IF(商品マスタ!$B74="","",商品マスタ!$B74) -> 70 | C80: =IF(商品マスタ!$C74="","",商品マスタ!$C74) ->  | D80: =IF(商品マスタ!$B74="","",商品マスタ!$B74) -> 70 | E80: =IF(商品マスタ!$C74="","",商品マスタ!$C74) ->  | F80: =在庫表示!F80 ->  | M80: 70 | N80: WDSF DVD ルンバ | O80: 70 | P80: WDSF DVD ルンバ | Q80: 0 | AC80: 77
B81: =IF(商品マスタ!$B75="","",商品マスタ!$B75) -> 71 | C81: =IF(商品マスタ!$C75="","",商品マスタ!$C75) ->  | D81: =IF(商品マスタ!$B75="","",商品マスタ!$B75) -> 71 | E81: =IF(商品マスタ!$C75="","",商品マスタ!$C75) ->  | F81: =在庫表示!F81 ->  | M81: 71 | N81: IDTAテクニックオブボールルームダンシング（ガイ・ハワード） | O81: 71 | P81: IDTAテクニックオブボールルームダンシング（ガイ・ハワード） | Q81: 0 | AC81: 78
B82: =IF(商品マスタ!$B76="","",商品マスタ!$B76) -> 72 | C82: =IF(商品マスタ!$C76="","",商品マスタ!$C76) ->  | D82: =IF(商品マスタ!$B76="","",商品マスタ!$B76) -> 72 | E82: =IF(商品マスタ!$C76="","",商品マスタ!$C76) ->  | F82: =在庫表示!F82 ->  | M82: 72 | N82: IDTAテクニックオブラテンダンシング（ウォルター・レアード） | O82: 72 | P82: IDTAテクニックオブラテンダンシング（ウォルター・レアード） | Q82: 0 | AC82: 79
B83: =IF(商品マスタ!$B77="","",商品マスタ!$B77) -> 73 | C83: =IF(商品マスタ!$C77="","",商品マスタ!$C77) ->  | D83: =IF(商品マスタ!$B77="","",商品マスタ!$B77) -> 73 | E83: =IF(商品マスタ!$C77="","",商品マスタ!$C77) ->  | F83: =在庫表示!F83 ->  | M83: 73 | O83: 73 | AC83: 80
B84: =IF(商品マスタ!$B78="","",商品マスタ!$B78) -> 74 | C84: =IF(商品マスタ!$C78="","",商品マスタ!$C78) ->  | D84: =IF(商品マスタ!$B78="","",商品マスタ!$B78) -> 74 | E84: =IF(商品マスタ!$C78="","",商品マスタ!$C78) ->  | F84: =在庫表示!F84 ->  | M84: 74 | N84: 送料（ヤマト便） | O84: 74 | P84: 送料（ヤマト便） | Q84: 0 | AC84: 81
B85: =IF(商品マスタ!$B79="","",商品マスタ!$B79) -> 75 | C85: =IF(商品マスタ!$C79="","",商品マスタ!$C79) ->  | D85: =IF(商品マスタ!$B79="","",商品マスタ!$B79) -> 75 | E85: =IF(商品マスタ!$C79="","",商品マスタ!$C79) ->  | F85: =在庫表示!F85 ->  | M85: 75 | N85: 代引き手数料 | O85: 75 | P85: 代引き手数料 | Q85: 0 | AC85: 82
B86: =IF(商品マスタ!$B80="","",商品マスタ!$B80) -> 76 | C86: =IF(商品マスタ!$C80="","",商品マスタ!$C80) ->  | D86: =IF(商品マスタ!$B80="","",商品マスタ!$B80) -> 76 | E86: =IF(商品マスタ!$C80="","",商品マスタ!$C80) ->  | F86: =在庫表示!F86 ->  | M86: 76 | O86: 76 | AC86: 83
B87: =IF(商品マスタ!$B81="","",商品マスタ!$B81) -> 77 | C87: =IF(商品マスタ!$C81="","",商品マスタ!$C81) ->  | D87: =IF(商品マスタ!$B81="","",商品マスタ!$B81) -> 77 | E87: =IF(商品マスタ!$C81="","",商品マスタ!$C81) ->  | F87: =在庫表示!F87 ->  | M87: 77 | O87: 77 | AC87: 84
B88: =IF(商品マスタ!$B82="","",商品マスタ!$B82) -> 78 | C88: =IF(商品マスタ!$C82="","",商品マスタ!$C82) ->  | D88: =IF(商品マスタ!$B82="","",商品マスタ!$B82) -> 78 | E88: =IF(商品マスタ!$C82="","",商品マスタ!$C82) ->  | F88: =在庫表示!F88 ->  | M88: 78 | O88: 78 | AC88: 85
B89: =IF(商品マスタ!$B83="","",商品マスタ!$B83) -> 79 | C89: =IF(商品マスタ!$C83="","",商品マスタ!$C83) ->  | D89: =IF(商品マスタ!$B83="","",商品マスタ!$B83) -> 79 | E89: =IF(商品マスタ!$C83="","",商品マスタ!$C83) ->  | F89: =在庫表示!F89 ->  | M89: 79 | O89: 79 | AC89: 86
B90: =IF(商品マスタ!$B84="","",商品マスタ!$B84) -> 80 | C90: =IF(商品マスタ!$C84="","",商品マスタ!$C84) ->  | D90: =IF(商品マスタ!$B84="","",商品マスタ!$B84) -> 80 | E90: =IF(商品マスタ!$C84="","",商品マスタ!$C84) ->  | F90: =在庫表示!F90 ->  | M90: 80 | O90: 80 | AC90: 87
B91: =IF(商品マスタ!$B85="","",商品マスタ!$B85) -> 81 | C91: =IF(商品マスタ!$C85="","",商品マスタ!$C85) ->  | D91: =IF(商品マスタ!$B85="","",商品マスタ!$B85) -> 81 | E91: =IF(商品マスタ!$C85="","",商品マスタ!$C85) ->  | F91: =在庫表示!F91 ->  | M91: 81 | O91: 81 | AC91: 88
B92: =IF(商品マスタ!$B86="","",商品マスタ!$B86) -> 82 | C92: =IF(商品マスタ!$C86="","",商品マスタ!$C86) ->  | D92: =IF(商品マスタ!$B86="","",商品マスタ!$B86) -> 82 | E92: =IF(商品マスタ!$C86="","",商品マスタ!$C86) ->  | F92: =在庫表示!F92 ->  | M92: 82 | O92: 82 | AC92: 89
B93: =IF(商品マスタ!$B87="","",商品マスタ!$B87) -> 83 | C93: =IF(商品マスタ!$C87="","",商品マスタ!$C87) ->  | D93: =IF(商品マスタ!$B87="","",商品マスタ!$B87) -> 83 | E93: =IF(商品マスタ!$C87="","",商品マスタ!$C87) ->  | F93: =在庫表示!F93 ->  | M93: 83 | O93: 83 | AC93: 90
B94: =IF(商品マスタ!$B88="","",商品マスタ!$B88) -> 84 | C94: =IF(商品マスタ!$C88="","",商品マスタ!$C88) ->  | D94: =IF(商品マスタ!$B88="","",商品マスタ!$B88) -> 84 | E94: =IF(商品マスタ!$C88="","",商品マスタ!$C88) ->  | F94: =在庫表示!F94 ->  | M94: 84 | O94: 84 | AC94: 91
B95: =IF(商品マスタ!$B89="","",商品マスタ!$B89) -> 85 | C95: =IF(商品マスタ!$C89="","",商品マスタ!$C89) ->  | D95: =IF(商品マスタ!$B89="","",商品マスタ!$B89) -> 85 | E95: =IF(商品マスタ!$C89="","",商品マスタ!$C89) ->  | F95: =在庫表示!F95 ->  | M95: 85 | O95: 85 | AC95: 92
B96: =IF(商品マスタ!$B90="","",商品マスタ!$B90) -> 86 | C96: =IF(商品マスタ!$C90="","",商品マスタ!$C90) ->  | D96: =IF(商品マスタ!$B90="","",商品マスタ!$B90) -> 86 | E96: =IF(商品マスタ!$C90="","",商品マスタ!$C90) ->  | F96: =在庫表示!F96 ->  | M96: 86 | O96: 86 | AC96: 93
B97: =IF(商品マスタ!$B91="","",商品マスタ!$B91) -> 87 | C97: =IF(商品マスタ!$C91="","",商品マスタ!$C91) ->  | D97: =IF(商品マスタ!$B91="","",商品マスタ!$B91) -> 87 | E97: =IF(商品マスタ!$C91="","",商品マスタ!$C91) ->  | F97: =在庫表示!F97 ->  | M97: 87 | O97: 87 | AC97: 94
B98: =IF(商品マスタ!$B92="","",商品マスタ!$B92) -> 88 | C98: =IF(商品マスタ!$C92="","",商品マスタ!$C92) ->  | D98: =IF(商品マスタ!$B92="","",商品マスタ!$B92) -> 88 | E98: =IF(商品マスタ!$C92="","",商品マスタ!$C92) ->  | F98: =在庫表示!F98 ->  | M98: 88 | O98: 88 | AC98: 95
B99: =IF(商品マスタ!$B93="","",商品マスタ!$B93) -> 89 | C99: =IF(商品マスタ!$C93="","",商品マスタ!$C93) ->  | D99: =IF(商品マスタ!$B93="","",商品マスタ!$B93) -> 89 | E99: =IF(商品マスタ!$C93="","",商品マスタ!$C93) ->  | F99: =在庫表示!F99 ->  | M99: 89 | O99: 89 | AC99: 96
B100: =IF(商品マスタ!$B94="","",商品マスタ!$B94) -> 90 | C100: =IF(商品マスタ!$C94="","",商品マスタ!$C94) ->  | D100: =IF(商品マスタ!$B94="","",商品マスタ!$B94) -> 90 | E100: =IF(商品マスタ!$C94="","",商品マスタ!$C94) ->  | F100: =在庫表示!F100 ->  | M100: 90 | O100: 90 | AC100: 97
B101: =IF(商品マスタ!$B95="","",商品マスタ!$B95) -> 91 | C101: =IF(商品マスタ!$C95="","",商品マスタ!$C95) ->  | D101: =IF(商品マスタ!$B95="","",商品マスタ!$B95) -> 91 | E101: =IF(商品マスタ!$C95="","",商品マスタ!$C95) ->  | F101: =在庫表示!F101 ->  | M101: 91 | O101: 91 | AC101: 98
B102: =IF(商品マスタ!$B96="","",商品マスタ!$B96) -> 92 | C102: =IF(商品マスタ!$C96="","",商品マスタ!$C96) ->  | D102: =IF(商品マスタ!$B96="","",商品マスタ!$B96) -> 92 | E102: =IF(商品マスタ!$C96="","",商品マスタ!$C96) ->  | F102: =在庫表示!F102 ->  | M102: 92 | O102: 92 | AC102: 99
B103: =IF(商品マスタ!$B97="","",商品マスタ!$B97) -> 93 | C103: =IF(商品マスタ!$C97="","",商品マスタ!$C97) ->  | D103: =IF(商品マスタ!$B97="","",商品マスタ!$B97) -> 93 | E103: =IF(商品マスタ!$C97="","",商品マスタ!$C97) ->  | F103: =在庫表示!F103 ->  | M103: 93 | O103: 93 | AC103: 100
B104: =IF(商品マスタ!$B98="","",商品マスタ!$B98) -> 94 | C104: =IF(商品マスタ!$C98="","",商品マスタ!$C98) ->  | D104: =IF(商品マスタ!$B98="","",商品マスタ!$B98) -> 94 | E104: =IF(商品マスタ!$C98="","",商品マスタ!$C98) ->  | F104: =在庫表示!F104 ->  | M104: 94 | O104: 94 | AC104: 101
B105: =IF(商品マスタ!$B99="","",商品マスタ!$B99) -> 95 | C105: =IF(商品マスタ!$C99="","",商品マスタ!$C99) ->  | D105: =IF(商品マスタ!$B99="","",商品マスタ!$B99) -> 95 | E105: =IF(商品マスタ!$C99="","",商品マスタ!$C99) ->  | F105: =在庫表示!F105 ->  | M105: 95 | O105: 95 | AC105: 102
B106: =IF(商品マスタ!$B100="","",商品マスタ!$B100) -> 96 | C106: =IF(商品マスタ!$C100="","",商品マスタ!$C100) ->  | D106: =IF(商品マスタ!$B100="","",商品マスタ!$B100) -> 96 | E106: =IF(商品マスタ!$C100="","",商品マスタ!$C100) ->  | F106: =在庫表示!F106 ->  | M106: 96 | O106: 96 | AC106: 103
B107: =IF(商品マスタ!$B101="","",商品マスタ!$B101) -> 97 | C107: =IF(商品マスタ!$C101="","",商品マスタ!$C101) ->  | D107: =IF(商品マスタ!$B101="","",商品マスタ!$B101) -> 97 | E107: =IF(商品マスタ!$C101="","",商品マスタ!$C101) ->  | F107: =在庫表示!F107 ->  | M107: 97 | O107: 97 | AC107: 104
B108: =IF(商品マスタ!$B102="","",商品マスタ!$B102) -> 98 | C108: =IF(商品マスタ!$C102="","",商品マスタ!$C102) ->  | D108: =IF(商品マスタ!$B102="","",商品マスタ!$B102) -> 98 | E108: =IF(商品マスタ!$C102="","",商品マスタ!$C102) ->  | F108: =在庫表示!F108 ->  | M108: 98 | O108: 98 | AC108: 105
B109: =IF(商品マスタ!$B103="","",商品マスタ!$B103) -> 99 | C109: =IF(商品マスタ!$C103="","",商品マスタ!$C103) ->  | D109: =IF(商品マスタ!$B103="","",商品マスタ!$B103) -> 99 | E109: =IF(商品マスタ!$C103="","",商品マスタ!$C103) ->  | F109: =在庫表示!F109 ->  | M109: 99 | O109: 99 | AC109: 106
B110: =IF(商品マスタ!$B104="","",商品マスタ!$B104) -> 100 | C110: =IF(商品マスタ!$C104="","",商品マスタ!$C104) ->  | D110: =IF(商品マスタ!$B104="","",商品マスタ!$B104) -> 100 | E110: =IF(商品マスタ!$C104="","",商品マスタ!$C104) ->  | F110: =在庫表示!F110 ->  | M110: 100 | O110: 100 | AC110: 107
B111: =IF(商品マスタ!$B105="","",商品マスタ!$B105) -> 101 | C111: =IF(商品マスタ!$C105="","",商品マスタ!$C105) ->  | D111: =IF(商品マスタ!$B105="","",商品マスタ!$B105) -> 101 | E111: =IF(商品マスタ!$C105="","",商品マスタ!$C105) ->  | F111: =在庫表示!F111 ->  | M111: 101 | O111: 101 | AC111: 108
B112: =IF(商品マスタ!$B106="","",商品マスタ!$B106) -> 102 | C112: =IF(商品マスタ!$C106="","",商品マスタ!$C106) ->  | D112: =IF(商品マスタ!$B106="","",商品マスタ!$B106) -> 102 | E112: =IF(商品マスタ!$C106="","",商品マスタ!$C106) ->  | F112: =在庫表示!F112 ->  | M112: 102 | O112: 102 | AC112: 109
B113: =IF(商品マスタ!$B107="","",商品マスタ!$B107) -> 103 | C113: =IF(商品マスタ!$C107="","",商品マスタ!$C107) ->  | D113: =IF(商品マスタ!$B107="","",商品マスタ!$B107) -> 103 | E113: =IF(商品マスタ!$C107="","",商品マスタ!$C107) ->  | F113: =在庫表示!F113 ->  | M113: 103 | O113: 103 | AC113: 110
B114: =IF(商品マスタ!$B108="","",商品マスタ!$B108) -> 104 | C114: =IF(商品マスタ!$C108="","",商品マスタ!$C108) ->  | D114: =IF(商品マスタ!$B108="","",商品マスタ!$B108) -> 104 | E114: =IF(商品マスタ!$C108="","",商品マスタ!$C108) ->  | F114: =在庫表示!F114 ->  | M114: 104 | O114: 104 | AC114: 111
B115: =IF(商品マスタ!$B109="","",商品マスタ!$B109) -> 105 | C115: =IF(商品マスタ!$C109="","",商品マスタ!$C109) ->  | D115: =IF(商品マスタ!$B109="","",商品マスタ!$B109) -> 105 | E115: =IF(商品マスタ!$C109="","",商品マスタ!$C109) ->  | F115: =在庫表示!F115 ->  | M115: 105 | O115: 105 | AC115: 112
B116: =IF(商品マスタ!$B110="","",商品マスタ!$B110) -> 106 | C116: =IF(商品マスタ!$C110="","",商品マスタ!$C110) ->  | D116: =IF(商品マスタ!$B110="","",商品マスタ!$B110) -> 106 | E116: =IF(商品マスタ!$C110="","",商品マスタ!$C110) ->  | F116: =在庫表示!F116 ->  | M116: 106 | O116: 106 | AC116: 113
B117: =IF(商品マスタ!$B111="","",商品マスタ!$B111) -> 107 | C117: =IF(商品マスタ!$C111="","",商品マスタ!$C111) ->  | D117: =IF(商品マスタ!$B111="","",商品マスタ!$B111) -> 107 | E117: =IF(商品マスタ!$C111="","",商品マスタ!$C111) ->  | F117: =在庫表示!F117 ->  | M117: 107 | O117: 107 | AC117: 114
B118: =IF(商品マスタ!$B112="","",商品マスタ!$B112) -> 108 | C118: =IF(商品マスタ!$C112="","",商品マスタ!$C112) ->  | D118: =IF(商品マスタ!$B112="","",商品マスタ!$B112) -> 108 | E118: =IF(商品マスタ!$C112="","",商品マスタ!$C112) ->  | F118: =在庫表示!F118 ->  | M118: 108 | O118: 108 | AC118: 115
B119: =IF(商品マスタ!$B113="","",商品マスタ!$B113) -> 109 | C119: =IF(商品マスタ!$C113="","",商品マスタ!$C113) ->  | D119: =IF(商品マスタ!$B113="","",商品マスタ!$B113) -> 109 | E119: =IF(商品マスタ!$C113="","",商品マスタ!$C113) ->  | F119: =在庫表示!F119 ->  | M119: 109 | O119: 109 | AC119: 116
B120: =IF(商品マスタ!$B114="","",商品マスタ!$B114) -> 110 | C120: =IF(商品マスタ!$C114="","",商品マスタ!$C114) ->  | D120: =IF(商品マスタ!$B114="","",商品マスタ!$B114) -> 110 | E120: =IF(商品マスタ!$C114="","",商品マスタ!$C114) ->  | F120: =在庫表示!F120 ->  | M120: 110 | O120: 110 | AC120: 117
B121: =IF(商品マスタ!$B115="","",商品マスタ!$B115) -> 111 | C121: =IF(商品マスタ!$C115="","",商品マスタ!$C115) ->  | D121: =IF(商品マスタ!$B115="","",商品マスタ!$B115) -> 111 | E121: =IF(商品マスタ!$C115="","",商品マスタ!$C115) ->  | F121: =在庫表示!F121 ->  | M121: 111 | O121: 111 | AC121: 118
B122: =IF(商品マスタ!$B116="","",商品マスタ!$B116) -> 112 | C122: =IF(商品マスタ!$C116="","",商品マスタ!$C116) ->  | D122: =IF(商品マスタ!$B116="","",商品マスタ!$B116) -> 112 | E122: =IF(商品マスタ!$C116="","",商品マスタ!$C116) ->  | F122: =在庫表示!F122 ->  | M122: 112 | O122: 112 | AC122: 119
B123: =IF(商品マスタ!$B117="","",商品マスタ!$B117) -> 113 | C123: =IF(商品マスタ!$C117="","",商品マスタ!$C117) ->  | D123: =IF(商品マスタ!$B117="","",商品マスタ!$B117) -> 113 | E123: =IF(商品マスタ!$C117="","",商品マスタ!$C117) ->  | F123: =在庫表示!F123 ->  | M123: 113 | O123: 113 | AC123: 120
B124: =IF(商品マスタ!$B118="","",商品マスタ!$B118) -> 114 | C124: =IF(商品マスタ!$C118="","",商品マスタ!$C118) ->  | D124: =IF(商品マスタ!$B118="","",商品マスタ!$B118) -> 114 | E124: =IF(商品マスタ!$C118="","",商品マスタ!$C118) ->  | F124: =在庫表示!F124 ->  | M124: 114 | O124: 114 | AC124: 121
B125: =IF(商品マスタ!$B119="","",商品マスタ!$B119) -> 115 | C125: =IF(商品マスタ!$C119="","",商品マスタ!$C119) ->  | D125: =IF(商品マスタ!$B119="","",商品マスタ!$B119) -> 115 | E125: =IF(商品マスタ!$C119="","",商品マスタ!$C119) ->  | F125: =在庫表示!F125 ->  | M125: 115 | O125: 115 | AC125: 122
B126: =IF(商品マスタ!$B120="","",商品マスタ!$B120) -> 116 | C126: =IF(商品マスタ!$C120="","",商品マスタ!$C120) ->  | D126: =IF(商品マスタ!$B120="","",商品マスタ!$B120) -> 116 | E126: =IF(商品マスタ!$C120="","",商品マスタ!$C120) ->  | F126: =在庫表示!F126 ->  | M126: 116 | O126: 116 | AC126: 123
B127: =IF(商品マスタ!$B121="","",商品マスタ!$B121) -> 117 | C127: =IF(商品マスタ!$C121="","",商品マスタ!$C121) ->  | D127: =IF(商品マスタ!$B121="","",商品マスタ!$B121) -> 117 | E127: =IF(商品マスタ!$C121="","",商品マスタ!$C121) ->  | F127: =在庫表示!F127 ->  | M127: 117 | O127: 117 | AC127: 124
B128: =IF(商品マスタ!$B122="","",商品マスタ!$B122) -> 118 | C128: =IF(商品マスタ!$C122="","",商品マスタ!$C122) ->  | D128: =IF(商品マスタ!$B122="","",商品マスタ!$B122) -> 118 | E128: =IF(商品マスタ!$C122="","",商品マスタ!$C122) ->  | F128: =在庫表示!F128 ->  | M128: 118 | O128: 118 | AC128: 125
B129: =IF(商品マスタ!$B123="","",商品マスタ!$B123) -> 119 | C129: =IF(商品マスタ!$C123="","",商品マスタ!$C123) ->  | D129: =IF(商品マスタ!$B123="","",商品マスタ!$B123) -> 119 | E129: =IF(商品マスタ!$C123="","",商品マスタ!$C123) ->  | F129: =在庫表示!F129 ->  | M129: 119 | O129: 119 | AC129: 126
B130: =IF(商品マスタ!$B124="","",商品マスタ!$B124) -> 120 | C130: =IF(商品マスタ!$C124="","",商品マスタ!$C124) ->  | D130: =IF(商品マスタ!$B124="","",商品マスタ!$B124) -> 120 | E130: =IF(商品マスタ!$C124="","",商品マスタ!$C124) ->  | F130: =在庫表示!F130 ->  | M130: 120 | O130: 120 | AC130: 127
B131: =IF(商品マスタ!$B125="","",商品マスタ!$B125) -> 121 | C131: =IF(商品マスタ!$C125="","",商品マスタ!$C125) ->  | D131: =IF(商品マスタ!$B125="","",商品マスタ!$B125) -> 121 | E131: =IF(商品マスタ!$C125="","",商品マスタ!$C125) ->  | F131: =在庫表示!F131 ->  | M131: 121 | O131: 121 | AC131: 128
B132: =IF(商品マスタ!$B126="","",商品マスタ!$B126) -> 122 | C132: =IF(商品マスタ!$C126="","",商品マスタ!$C126) ->  | D132: =IF(商品マスタ!$B126="","",商品マスタ!$B126) -> 122 | E132: =IF(商品マスタ!$C126="","",商品マスタ!$C126) ->  | F132: =在庫表示!F132 ->  | M132: 122 | O132: 122 | AC132: 129
B133: =IF(商品マスタ!$B127="","",商品マスタ!$B127) -> 123 | C133: =IF(商品マスタ!$C127="","",商品マスタ!$C127) ->  | D133: =IF(商品マスタ!$B127="","",商品マスタ!$B127) -> 123 | E133: =IF(商品マスタ!$C127="","",商品マスタ!$C127) ->  | F133: =在庫表示!F133 ->  | M133: 123 | O133: 123 | AC133: 130
B134: =IF(商品マスタ!$B128="","",商品マスタ!$B128) -> 124 | C134: =IF(商品マスタ!$C128="","",商品マスタ!$C128) ->  | D134: =IF(商品マスタ!$B128="","",商品マスタ!$B128) -> 124 | E134: =IF(商品マスタ!$C128="","",商品マスタ!$C128) ->  | F134: =在庫表示!F134 ->  | M134: 124 | O134: 124 | AC134: 131
B135: =IF(商品マスタ!$B129="","",商品マスタ!$B129) -> 125 | C135: =IF(商品マスタ!$C129="","",商品マスタ!$C129) ->  | D135: =IF(商品マスタ!$B129="","",商品マスタ!$B129) -> 125 | E135: =IF(商品マスタ!$C129="","",商品マスタ!$C129) ->  | F135: =在庫表示!F135 ->  | M135: 125 | O135: 125 | AC135: 132
B136: =IF(商品マスタ!$B130="","",商品マスタ!$B130) -> 126 | C136: =IF(商品マスタ!$C130="","",商品マスタ!$C130) ->  | D136: =IF(商品マスタ!$B130="","",商品マスタ!$B130) -> 126 | E136: =IF(商品マスタ!$C130="","",商品マスタ!$C130) ->  | F136: =在庫表示!F136 ->  | M136: 126 | O136: 126 | AC136: 133
B137: =IF(商品マスタ!$B131="","",商品マスタ!$B131) -> 127 | C137: =IF(商品マスタ!$C131="","",商品マスタ!$C131) ->  | D137: =IF(商品マスタ!$B131="","",商品マスタ!$B131) -> 127 | E137: =IF(商品マスタ!$C131="","",商品マスタ!$C131) ->  | F137: =在庫表示!F137 ->  | M137: 127 | O137: 127 | AC137: 134
B138: =IF(商品マスタ!$B132="","",商品マスタ!$B132) -> 128 | C138: =IF(商品マスタ!$C132="","",商品マスタ!$C132) ->  | D138: =IF(商品マスタ!$B132="","",商品マスタ!$B132) -> 128 | E138: =IF(商品マスタ!$C132="","",商品マスタ!$C132) ->  | F138: =在庫表示!F138 ->  | M138: 128 | O138: 128 | AC138: 135
B139: =IF(商品マスタ!$B133="","",商品マスタ!$B133) -> 129 | C139: =IF(商品マスタ!$C133="","",商品マスタ!$C133) ->  | D139: =IF(商品マスタ!$B133="","",商品マスタ!$B133) -> 129 | E139: =IF(商品マスタ!$C133="","",商品マスタ!$C133) ->  | F139: =在庫表示!F139 ->  | M139: 129 | O139: 129 | AC139: 136
B140: =IF(商品マスタ!$B134="","",商品マスタ!$B134) -> 130 | C140: =IF(商品マスタ!$C134="","",商品マスタ!$C134) ->  | D140: =IF(商品マスタ!$B134="","",商品マスタ!$B134) -> 130 | E140: =IF(商品マスタ!$C134="","",商品マスタ!$C134) ->  | F140: =在庫表示!F140 ->  | M140: 130 | O140: 130 | AC140: 137
B141: =IF(商品マスタ!$B135="","",商品マスタ!$B135) -> 131 | C141: =IF(商品マスタ!$C135="","",商品マスタ!$C135) ->  | D141: =IF(商品マスタ!$B135="","",商品マスタ!$B135) -> 131 | E141: =IF(商品マスタ!$C135="","",商品マスタ!$C135) ->  | F141: =在庫表示!F141 ->  | M141: 131 | O141: 131 | AC141: 138
B142: =IF(商品マスタ!$B136="","",商品マスタ!$B136) -> 132 | C142: =IF(商品マスタ!$C136="","",商品マスタ!$C136) ->  | D142: =IF(商品マスタ!$B136="","",商品マスタ!$B136) -> 132 | E142: =IF(商品マスタ!$C136="","",商品マスタ!$C136) ->  | F142: =在庫表示!F142 ->  | M142: 132 | O142: 132 | AC142: 139
B143: =IF(商品マスタ!$B137="","",商品マスタ!$B137) -> 133 | C143: =IF(商品マスタ!$C137="","",商品マスタ!$C137) ->  | D143: =IF(商品マスタ!$B137="","",商品マスタ!$B137) -> 133 | E143: =IF(商品マスタ!$C137="","",商品マスタ!$C137) ->  | F143: =在庫表示!F143 ->  | M143: 133 | O143: 133 | AC143: 140
B144: =IF(商品マスタ!$B138="","",商品マスタ!$B138) -> 134 | C144: =IF(商品マスタ!$C138="","",商品マスタ!$C138) ->  | D144: =IF(商品マスタ!$B138="","",商品マスタ!$B138) -> 134 | E144: =IF(商品マスタ!$C138="","",商品マスタ!$C138) ->  | F144: =在庫表示!F144 ->  | M144: 134 | O144: 134 | AC144: 141
B145: =IF(商品マスタ!$B139="","",商品マスタ!$B139) -> 135 | C145: =IF(商品マスタ!$C139="","",商品マスタ!$C139) ->  | D145: =IF(商品マスタ!$B139="","",商品マスタ!$B139) -> 135 | E145: =IF(商品マスタ!$C139="","",商品マスタ!$C139) ->  | F145: =在庫表示!F145 ->  | M145: 135 | O145: 135 | AC145: 142
B146: =IF(商品マスタ!$B140="","",商品マスタ!$B140) -> 136 | C146: =IF(商品マスタ!$C140="","",商品マスタ!$C140) ->  | D146: =IF(商品マスタ!$B140="","",商品マスタ!$B140) -> 136 | E146: =IF(商品マスタ!$C140="","",商品マスタ!$C140) ->  | F146: =在庫表示!F146 ->  | M146: 136 | O146: 136 | AC146: 143
B147: =IF(商品マスタ!$B141="","",商品マスタ!$B141) -> 137 | C147: =IF(商品マスタ!$C141="","",商品マスタ!$C141) ->  | D147: =IF(商品マスタ!$B141="","",商品マスタ!$B141) -> 137 | E147: =IF(商品マスタ!$C141="","",商品マスタ!$C141) ->  | F147: =在庫表示!F147 ->  | M147: 137 | O147: 137 | AC147: 144
B148: =IF(商品マスタ!$B142="","",商品マスタ!$B142) -> 138 | C148: =IF(商品マスタ!$C142="","",商品マスタ!$C142) ->  | D148: =IF(商品マスタ!$B142="","",商品マスタ!$B142) -> 138 | E148: =IF(商品マスタ!$C142="","",商品マスタ!$C142) ->  | F148: =在庫表示!F148 ->  | M148: 138 | O148: 138 | AC148: 145
B149: =IF(商品マスタ!$B143="","",商品マスタ!$B143) -> 139 | C149: =IF(商品マスタ!$C143="","",商品マスタ!$C143) ->  | D149: =IF(商品マスタ!$B143="","",商品マスタ!$B143) -> 139 | E149: =IF(商品マスタ!$C143="","",商品マスタ!$C143) ->  | F149: =在庫表示!F149 ->  | M149: 139 | O149: 139 | AC149: 146
B150: =IF(商品マスタ!$B144="","",商品マスタ!$B144) -> 140 | C150: =IF(商品マスタ!$C144="","",商品マスタ!$C144) ->  | D150: =IF(商品マスタ!$B144="","",商品マスタ!$B144) -> 140 | E150: =IF(商品マスタ!$C144="","",商品マスタ!$C144) ->  | F150: =在庫表示!F150 ->  | M150: 140 | O150: 140 | AC150: 147
B151: =IF(商品マスタ!$B145="","",商品マスタ!$B145) -> 141 | C151: =IF(商品マスタ!$C145="","",商品マスタ!$C145) ->  | D151: =IF(商品マスタ!$B145="","",商品マスタ!$B145) -> 141 | E151: =IF(商品マスタ!$C145="","",商品マスタ!$C145) ->  | F151: =在庫表示!F151 ->  | M151: 141 | O151: 141 | AC151: 148
B152: =IF(商品マスタ!$B146="","",商品マスタ!$B146) -> 142 | C152: =IF(商品マスタ!$C146="","",商品マスタ!$C146) ->  | D152: =IF(商品マスタ!$B146="","",商品マスタ!$B146) -> 142 | E152: =IF(商品マスタ!$C146="","",商品マスタ!$C146) ->  | F152: =在庫表示!F152 ->  | M152: 142 | O152: 142 | AC152: 149
B153: =IF(商品マスタ!$B147="","",商品マスタ!$B147) -> 143 | C153: =IF(商品マスタ!$C147="","",商品マスタ!$C147) ->  | D153: =IF(商品マスタ!$B147="","",商品マスタ!$B147) -> 143 | E153: =IF(商品マスタ!$C147="","",商品マスタ!$C147) ->  | F153: =在庫表示!F153 ->  | M153: 143 | O153: 143 | AC153: 150
B154: =IF(商品マスタ!$B148="","",商品マスタ!$B148) -> 144 | C154: =IF(商品マスタ!$C148="","",商品マスタ!$C148) ->  | D154: =IF(商品マスタ!$B148="","",商品マスタ!$B148) -> 144 | E154: =IF(商品マスタ!$C148="","",商品マスタ!$C148) ->  | F154: =在庫表示!F154 ->  | M154: 144 | O154: 144 | AC154: 151
B155: =IF(商品マスタ!$B149="","",商品マスタ!$B149) -> 145 | C155: =IF(商品マスタ!$C149="","",商品マスタ!$C149) ->  | D155: =IF(商品マスタ!$B149="","",商品マスタ!$B149) -> 145 | E155: =IF(商品マスタ!$C149="","",商品マスタ!$C149) ->  | F155: =在庫表示!F155 ->  | M155: 145 | O155: 145 | AC155: 152
B156: =IF(商品マスタ!$B150="","",商品マスタ!$B150) -> 146 | C156: =IF(商品マスタ!$C150="","",商品マスタ!$C150) ->  | D156: =IF(商品マスタ!$B150="","",商品マスタ!$B150) -> 146 | E156: =IF(商品マスタ!$C150="","",商品マスタ!$C150) ->  | F156: =在庫表示!F156 ->  | M156: 146 | O156: 146 | AC156: 153
B157: =IF(商品マスタ!$B151="","",商品マスタ!$B151) -> 147 | C157: =IF(商品マスタ!$C151="","",商品マスタ!$C151) ->  | D157: =IF(商品マスタ!$B151="","",商品マスタ!$B151) -> 147 | E157: =IF(商品マスタ!$C151="","",商品マスタ!$C151) ->  | F157: =在庫表示!F157 ->  | M157: 147 | O157: 147 | AC157: 154
B158: =IF(商品マスタ!$B152="","",商品マスタ!$B152) -> 148 | C158: =IF(商品マスタ!$C152="","",商品マスタ!$C152) ->  | D158: =IF(商品マスタ!$B152="","",商品マスタ!$B152) -> 148 | E158: =IF(商品マスタ!$C152="","",商品マスタ!$C152) ->  | F158: =在庫表示!F158 ->  | M158: 148 | O158: 148 | AC158: 155
B159: =IF(商品マスタ!$B153="","",商品マスタ!$B153) -> 149 | C159: =IF(商品マスタ!$C153="","",商品マスタ!$C153) ->  | D159: =IF(商品マスタ!$B153="","",商品マスタ!$B153) -> 149 | E159: =IF(商品マスタ!$C153="","",商品マスタ!$C153) ->  | F159: =在庫表示!F159 ->  | M159: 149 | O159: 149 | AC159: 156
B160: =IF(商品マスタ!$B154="","",商品マスタ!$B154) -> 150 | C160: =IF(商品マスタ!$C154="","",商品マスタ!$C154) ->  | D160: =IF(商品マスタ!$B154="","",商品マスタ!$B154) -> 150 | E160: =IF(商品マスタ!$C154="","",商品マスタ!$C154) ->  | F160: =在庫表示!F160 ->  | M160: 150 | O160: 150 | AC160: 157
B161: =IF(商品マスタ!$B155="","",商品マスタ!$B155) -> 151 | C161: =IF(商品マスタ!$C155="","",商品マスタ!$C155) ->  | D161: =IF(商品マスタ!$B155="","",商品マスタ!$B155) -> 151 | E161: =IF(商品マスタ!$C155="","",商品マスタ!$C155) ->  | F161: =在庫表示!F161 ->  | M161: 151 | O161: 151 | AC161: 158
B162: =IF(商品マスタ!$B156="","",商品マスタ!$B156) -> 152 | C162: =IF(商品マスタ!$C156="","",商品マスタ!$C156) ->  | D162: =IF(商品マスタ!$B156="","",商品マスタ!$B156) -> 152 | E162: =IF(商品マスタ!$C156="","",商品マスタ!$C156) ->  | F162: =在庫表示!F162 ->  | M162: 152 | O162: 152 | AC162: 159
B163: =IF(商品マスタ!$B157="","",商品マスタ!$B157) -> 153 | C163: =IF(商品マスタ!$C157="","",商品マスタ!$C157) ->  | D163: =IF(商品マスタ!$B157="","",商品マスタ!$B157) -> 153 | E163: =IF(商品マスタ!$C157="","",商品マスタ!$C157) ->  | F163: =在庫表示!F163 ->  | M163: 153 | O163: 153 | AC163: 160
B164: =IF(商品マスタ!$B158="","",商品マスタ!$B158) -> 154 | C164: =IF(商品マスタ!$C158="","",商品マスタ!$C158) ->  | D164: =IF(商品マスタ!$B158="","",商品マスタ!$B158) -> 154 | E164: =IF(商品マスタ!$C158="","",商品マスタ!$C158) ->  | F164: =在庫表示!F164 ->  | M164: 154 | O164: 154 | AC164: 161
B165: =IF(商品マスタ!$B159="","",商品マスタ!$B159) -> 155 | C165: =IF(商品マスタ!$C159="","",商品マスタ!$C159) ->  | D165: =IF(商品マスタ!$B159="","",商品マスタ!$B159) -> 155 | E165: =IF(商品マスタ!$C159="","",商品マスタ!$C159) ->  | F165: =在庫表示!F165 ->  | M165: 155 | O165: 155 | AC165: 162
B166: =IF(商品マスタ!$B160="","",商品マスタ!$B160) -> 156 | C166: =IF(商品マスタ!$C160="","",商品マスタ!$C160) ->  | D166: =IF(商品マスタ!$B160="","",商品マスタ!$B160) -> 156 | E166: =IF(商品マスタ!$C160="","",商品マスタ!$C160) ->  | F166: =在庫表示!F166 ->  | M166: 156 | O166: 156 | AC166: 163
B167: =IF(商品マスタ!$B161="","",商品マスタ!$B161) -> 157 | C167: =IF(商品マスタ!$C161="","",商品マスタ!$C161) ->  | D167: =IF(商品マスタ!$B161="","",商品マスタ!$B161) -> 157 | E167: =IF(商品マスタ!$C161="","",商品マスタ!$C161) ->  | F167: =在庫表示!F167 ->  | M167: 157 | O167: 157 | AC167: 164
B168: =IF(商品マスタ!$B162="","",商品マスタ!$B162) -> 158 | C168: =IF(商品マスタ!$C162="","",商品マスタ!$C162) ->  | D168: =IF(商品マスタ!$B162="","",商品マスタ!$B162) -> 158 | E168: =IF(商品マスタ!$C162="","",商品マスタ!$C162) ->  | F168: =在庫表示!F168 ->  | M168: 158 | O168: 158 | AC168: 165
B169: =IF(商品マスタ!$B163="","",商品マスタ!$B163) -> 159 | C169: =IF(商品マスタ!$C163="","",商品マスタ!$C163) ->  | D169: =IF(商品マスタ!$B163="","",商品マスタ!$B163) -> 159 | E169: =IF(商品マスタ!$C163="","",商品マスタ!$C163) ->  | F169: =在庫表示!F169 ->  | M169: 159 | O169: 159 | AC169: 166
B170: =IF(商品マスタ!$B164="","",商品マスタ!$B164) -> 160 | C170: =IF(商品マスタ!$C164="","",商品マスタ!$C164) ->  | D170: =IF(商品マスタ!$B164="","",商品マスタ!$B164) -> 160 | E170: =IF(商品マスタ!$C164="","",商品マスタ!$C164) ->  | F170: =在庫表示!F170 ->  | M170: 160 | O170: 160 | AC170: 167
B171: =IF(商品マスタ!$B165="","",商品マスタ!$B165) -> 161 | C171: =IF(商品マスタ!$C165="","",商品マスタ!$C165) ->  | D171: =IF(商品マスタ!$B165="","",商品マスタ!$B165) -> 161 | E171: =IF(商品マスタ!$C165="","",商品マスタ!$C165) ->  | F171: =在庫表示!F171 ->  | M171: 161 | O171: 161 | AC171: 168
B172: =IF(商品マスタ!$B166="","",商品マスタ!$B166) -> 162 | C172: =IF(商品マスタ!$C166="","",商品マスタ!$C166) ->  | D172: =IF(商品マスタ!$B166="","",商品マスタ!$B166) -> 162 | E172: =IF(商品マスタ!$C166="","",商品マスタ!$C166) ->  | F172: =在庫表示!F172 ->  | M172: 162 | O172: 162 | AC172: 169
B173: =IF(商品マスタ!$B167="","",商品マスタ!$B167) -> 163 | C173: =IF(商品マスタ!$C167="","",商品マスタ!$C167) ->  | D173: =IF(商品マスタ!$B167="","",商品マスタ!$B167) -> 163 | E173: =IF(商品マスタ!$C167="","",商品マスタ!$C167) ->  | F173: =在庫表示!F173 ->  | M173: 163 | O173: 163 | AC173: 170
B174: =IF(商品マスタ!$B168="","",商品マスタ!$B168) -> 164 | C174: =IF(商品マスタ!$C168="","",商品マスタ!$C168) ->  | D174: =IF(商品マスタ!$B168="","",商品マスタ!$B168) -> 164 | E174: =IF(商品マスタ!$C168="","",商品マスタ!$C168) ->  | F174: =在庫表示!F174 ->  | M174: 164 | O174: 164 | AC174: 171
B175: =IF(商品マスタ!$B169="","",商品マスタ!$B169) -> 165 | C175: =IF(商品マスタ!$C169="","",商品マスタ!$C169) ->  | D175: =IF(商品マスタ!$B169="","",商品マスタ!$B169) -> 165 | E175: =IF(商品マスタ!$C169="","",商品マスタ!$C169) ->  | F175: =在庫表示!F175 ->  | M175: 165 | O175: 165 | AC175: 172
B176: =IF(商品マスタ!$B170="","",商品マスタ!$B170) -> 166 | C176: =IF(商品マスタ!$C170="","",商品マスタ!$C170) ->  | D176: =IF(商品マスタ!$B170="","",商品マスタ!$B170) -> 166 | E176: =IF(商品マスタ!$C170="","",商品マスタ!$C170) ->  | F176: =在庫表示!F176 ->  | M176: 166 | O176: 166 | AC176: 173
B177: =IF(商品マスタ!$B171="","",商品マスタ!$B171) -> 167 | C177: =IF(商品マスタ!$C171="","",商品マスタ!$C171) ->  | D177: =IF(商品マスタ!$B171="","",商品マスタ!$B171) -> 167 | E177: =IF(商品マスタ!$C171="","",商品マスタ!$C171) ->  | F177: =在庫表示!F177 ->  | M177: 167 | O177: 167 | AC177: 174
B178: =IF(商品マスタ!$B172="","",商品マスタ!$B172) -> 168 | C178: =IF(商品マスタ!$C172="","",商品マスタ!$C172) ->  | D178: =IF(商品マスタ!$B172="","",商品マスタ!$B172) -> 168 | E178: =IF(商品マスタ!$C172="","",商品マスタ!$C172) ->  | F178: =在庫表示!F178 ->  | M178: 168 | O178: 168 | AC178: 175
B179: =IF(商品マスタ!$B173="","",商品マスタ!$B173) -> 169 | C179: =IF(商品マスタ!$C173="","",商品マスタ!$C173) ->  | D179: =IF(商品マスタ!$B173="","",商品マスタ!$B173) -> 169 | E179: =IF(商品マスタ!$C173="","",商品マスタ!$C173) ->  | F179: =在庫表示!F179 ->  | M179: 169 | O179: 169 | AC179: 176
B180: =IF(商品マスタ!$B174="","",商品マスタ!$B174) -> 170 | C180: =IF(商品マスタ!$C174="","",商品マスタ!$C174) ->  | D180: =IF(商品マスタ!$B174="","",商品マスタ!$B174) -> 170 | E180: =IF(商品マスタ!$C174="","",商品マスタ!$C174) ->  | F180: =在庫表示!F180 ->  | M180: 170 | O180: 170 | AC180: 177
B181: =IF(商品マスタ!$B175="","",商品マスタ!$B175) -> 171 | C181: =IF(商品マスタ!$C175="","",商品マスタ!$C175) ->  | D181: =IF(商品マスタ!$B175="","",商品マスタ!$B175) -> 171 | E181: =IF(商品マスタ!$C175="","",商品マスタ!$C175) ->  | F181: =在庫表示!F181 ->  | M181: 171 | O181: 171 | AC181: 178
B182: =IF(商品マスタ!$B176="","",商品マスタ!$B176) -> 172 | C182: =IF(商品マスタ!$C176="","",商品マスタ!$C176) ->  | D182: =IF(商品マスタ!$B176="","",商品マスタ!$B176) -> 172 | E182: =IF(商品マスタ!$C176="","",商品マスタ!$C176) ->  | F182: =在庫表示!F182 ->  | M182: 172 | O182: 172 | AC182: 179
B183: =IF(商品マスタ!$B177="","",商品マスタ!$B177) -> 173 | C183: =IF(商品マスタ!$C177="","",商品マスタ!$C177) ->  | D183: =IF(商品マスタ!$B177="","",商品マスタ!$B177) -> 173 | E183: =IF(商品マスタ!$C177="","",商品マスタ!$C177) ->  | F183: =在庫表示!F183 ->  | M183: 173 | O183: 173 | AC183: 180
B184: =IF(商品マスタ!$B178="","",商品マスタ!$B178) -> 174 | C184: =IF(商品マスタ!$C178="","",商品マスタ!$C178) ->  | D184: =IF(商品マスタ!$B178="","",商品マスタ!$B178) -> 174 | E184: =IF(商品マスタ!$C178="","",商品マスタ!$C178) ->  | F184: =在庫表示!F184 ->  | M184: 174 | O184: 174 | AC184: 181
B185: =IF(商品マスタ!$B179="","",商品マスタ!$B179) -> 175 | C185: =IF(商品マスタ!$C179="","",商品マスタ!$C179) ->  | D185: =IF(商品マスタ!$B179="","",商品マスタ!$B179) -> 175 | E185: =IF(商品マスタ!$C179="","",商品マスタ!$C179) ->  | F185: =在庫表示!F185 ->  | M185: 175 | O185: 175 | AC185: 182
B186: =IF(商品マスタ!$B180="","",商品マスタ!$B180) -> 176 | C186: =IF(商品マスタ!$C180="","",商品マスタ!$C180) ->  | D186: =IF(商品マスタ!$B180="","",商品マスタ!$B180) -> 176 | E186: =IF(商品マスタ!$C180="","",商品マスタ!$C180) ->  | F186: =在庫表示!F186 ->  | M186: 176 | O186: 176 | AC186: 183
B187: =IF(商品マスタ!$B181="","",商品マスタ!$B181) -> 177 | C187: =IF(商品マスタ!$C181="","",商品マスタ!$C181) ->  | D187: =IF(商品マスタ!$B181="","",商品マスタ!$B181) -> 177 | E187: =IF(商品マスタ!$C181="","",商品マスタ!$C181) ->  | F187: =在庫表示!F187 ->  | M187: 177 | O187: 177 | AC187: 184
B188: =IF(商品マスタ!$B182="","",商品マスタ!$B182) -> 178 | C188: =IF(商品マスタ!$C182="","",商品マスタ!$C182) ->  | D188: =IF(商品マスタ!$B182="","",商品マスタ!$B182) -> 178 | E188: =IF(商品マスタ!$C182="","",商品マスタ!$C182) ->  | F188: =在庫表示!F188 ->  | M188: 178 | O188: 178 | AC188: 185
B189: =IF(商品マスタ!$B183="","",商品マスタ!$B183) -> 179 | C189: =IF(商品マスタ!$C183="","",商品マスタ!$C183) ->  | D189: =IF(商品マスタ!$B183="","",商品マスタ!$B183) -> 179 | E189: =IF(商品マスタ!$C183="","",商品マスタ!$C183) ->  | F189: =在庫表示!F189 ->  | M189: 179 | O189: 179 | AC189: 186
B190: =IF(商品マスタ!$B184="","",商品マスタ!$B184) -> 180 | C190: =IF(商品マスタ!$C184="","",商品マスタ!$C184) ->  | D190: =IF(商品マスタ!$B184="","",商品マスタ!$B184) -> 180 | E190: =IF(商品マスタ!$C184="","",商品マスタ!$C184) ->  | F190: =在庫表示!F190 ->  | M190: 180 | O190: 180 | AC190: 187
B191: =IF(商品マスタ!$B185="","",商品マスタ!$B185) -> 181 | C191: =IF(商品マスタ!$C185="","",商品マスタ!$C185) ->  | D191: =IF(商品マスタ!$B185="","",商品マスタ!$B185) -> 181 | E191: =IF(商品マスタ!$C185="","",商品マスタ!$C185) ->  | F191: =在庫表示!F191 ->  | M191: 181 | O191: 181 | AC191: 188
B192: =IF(商品マスタ!$B186="","",商品マスタ!$B186) -> 182 | C192: =IF(商品マスタ!$C186="","",商品マスタ!$C186) ->  | D192: =IF(商品マスタ!$B186="","",商品マスタ!$B186) -> 182 | E192: =IF(商品マスタ!$C186="","",商品マスタ!$C186) ->  | F192: =在庫表示!F192 ->  | M192: 182 | O192: 182 | AC192: 189
B193: =IF(商品マスタ!$B187="","",商品マスタ!$B187) -> 183 | C193: =IF(商品マスタ!$C187="","",商品マスタ!$C187) ->  | D193: =IF(商品マスタ!$B187="","",商品マスタ!$B187) -> 183 | E193: =IF(商品マスタ!$C187="","",商品マスタ!$C187) ->  | F193: =在庫表示!F193 ->  | M193: 183 | O193: 183 | AC193: 190
B194: =IF(商品マスタ!$B188="","",商品マスタ!$B188) -> 184 | C194: =IF(商品マスタ!$C188="","",商品マスタ!$C188) ->  | D194: =IF(商品マスタ!$B188="","",商品マスタ!$B188) -> 184 | E194: =IF(商品マスタ!$C188="","",商品マスタ!$C188) ->  | F194: =在庫表示!F194 ->  | M194: 184 | O194: 184 | AC194: 191
B195: =IF(商品マスタ!$B189="","",商品マスタ!$B189) -> 185 | C195: =IF(商品マスタ!$C189="","",商品マスタ!$C189) ->  | D195: =IF(商品マスタ!$B189="","",商品マスタ!$B189) -> 185 | E195: =IF(商品マスタ!$C189="","",商品マスタ!$C189) ->  | F195: =在庫表示!F195 ->  | M195: 185 | O195: 185 | AC195: 192
B196: =IF(商品マスタ!$B190="","",商品マスタ!$B190) -> 186 | C196: =IF(商品マスタ!$C190="","",商品マスタ!$C190) ->  | D196: =IF(商品マスタ!$B190="","",商品マスタ!$B190) -> 186 | E196: =IF(商品マスタ!$C190="","",商品マスタ!$C190) ->  | F196: =在庫表示!F196 ->  | M196: 186 | O196: 186 | AC196: 193
B197: =IF(商品マスタ!$B191="","",商品マスタ!$B191) -> 187 | C197: =IF(商品マスタ!$C191="","",商品マスタ!$C191) ->  | D197: =IF(商品マスタ!$B191="","",商品マスタ!$B191) -> 187 | E197: =IF(商品マスタ!$C191="","",商品マスタ!$C191) ->  | F197: =在庫表示!F197 ->  | M197: 187 | O197: 187 | AC197: 194
B198: =IF(商品マスタ!$B192="","",商品マスタ!$B192) -> 188 | C198: =IF(商品マスタ!$C192="","",商品マスタ!$C192) ->  | D198: =IF(商品マスタ!$B192="","",商品マスタ!$B192) -> 188 | E198: =IF(商品マスタ!$C192="","",商品マスタ!$C192) ->  | F198: =在庫表示!F198 ->  | M198: 188 | O198: 188 | AC198: 195
B199: =IF(商品マスタ!$B193="","",商品マスタ!$B193) -> 189 | C199: =IF(商品マスタ!$C193="","",商品マスタ!$C193) ->  | D199: =IF(商品マスタ!$B193="","",商品マスタ!$B193) -> 189 | E199: =IF(商品マスタ!$C193="","",商品マスタ!$C193) ->  | F199: =在庫表示!F199 ->  | M199: 189 | O199: 189 | AC199: 196
B200: =IF(商品マスタ!$B194="","",商品マスタ!$B194) -> 190 | C200: =IF(商品マスタ!$C194="","",商品マスタ!$C194) ->  | D200: =IF(商品マスタ!$B194="","",商品マスタ!$B194) -> 190 | E200: =IF(商品マスタ!$C194="","",商品マスタ!$C194) ->  | F200: =在庫表示!F200 ->  | M200: 190 | O200: 190 | AC200: 197
B201: =IF(商品マスタ!$B195="","",商品マスタ!$B195) -> 191 | C201: =IF(商品マスタ!$C195="","",商品マスタ!$C195) ->  | D201: =IF(商品マスタ!$B195="","",商品マスタ!$B195) -> 191 | E201: =IF(商品マスタ!$C195="","",商品マスタ!$C195) ->  | F201: =在庫表示!F201 ->  | M201: 191 | O201: 191 | AC201: 198
B202: =IF(商品マスタ!$B196="","",商品マスタ!$B196) -> 192 | C202: =IF(商品マスタ!$C196="","",商品マスタ!$C196) ->  | D202: =IF(商品マスタ!$B196="","",商品マスタ!$B196) -> 192 | E202: =IF(商品マスタ!$C196="","",商品マスタ!$C196) ->  | F202: =在庫表示!F202 ->  | M202: 192 | O202: 192 | AC202: 199
B203: =IF(商品マスタ!$B197="","",商品マスタ!$B197) -> 193 | C203: =IF(商品マスタ!$C197="","",商品マスタ!$C197) ->  | D203: =IF(商品マスタ!$B197="","",商品マスタ!$B197) -> 193 | E203: =IF(商品マスタ!$C197="","",商品マスタ!$C197) ->  | F203: =在庫表示!F203 ->  | M203: 193 | O203: 193 | AC203: 200
B204: =IF(商品マスタ!$B198="","",商品マスタ!$B198) -> 194 | C204: =IF(商品マスタ!$C198="","",商品マスタ!$C198) ->  | D204: =IF(商品マスタ!$B198="","",商品マスタ!$B198) -> 194 | E204: =IF(商品マスタ!$C198="","",商品マスタ!$C198) ->  | F204: =在庫表示!F204 ->  | M204: 194 | O204: 194 | AC204: 201
... 4296 more rows

Sheet 在庫表示
E5: 在庫状況
E7: 現在の在庫数を表示しています。
B10: 商品番号 | C10: 商品名 | F10: 在庫数
B11: =IF(商品マスタ!$B5="","",商品マスタ!$B5) -> 1 | C11: =IF(商品マスタ!$C5="","",商品マスタ!$C5) -> LIFESPAN（ライフスパン）―老いなき世界 | F11: =IF(C11="","",棚卸入力!R11+SUMIF(棚卸後在庫変更履歴!$H$2:$H$1048576,在庫表示!B11,棚卸後在庫変更履歴!$J$2:$J$1048576)) -> 0
B12: =IF(商品マスタ!$B6="","",商品マスタ!$B6) -> 2 | C12: =IF(商品マスタ!$C6="","",商品マスタ!$C6) -> WHAT IS LIFE？（ホワット・イズ・ライフ？）生命とは何か | F12: =IF(C12="","",棚卸入力!R12+SUMIF(棚卸後在庫変更履歴!$H$2:$H$1048576,在庫表示!B12,棚卸後在庫変更履歴!$J$2:$J$1048576)) -> 0
B13: =IF(商品マスタ!$B7="","",商品マスタ!$B7) -> 3 | C13: =IF(商品マスタ!$C7="","",商品マスタ!$C7) -> 科学的とはどういう意味か | F13: =IF(C13="","",棚卸入力!R13+SUMIF(棚卸後在庫変更履歴!$H$2:$H$1048576,在庫表示!B13,棚卸後在庫変更履歴!$J$2:$J$1048576)) -> 0
B14: =IF(商品マスタ!$B8="","",商品マスタ!$B8) -> 4 | C14: =IF(商品マスタ!$C8="","",商品マスタ!$C8) -> コトPOP（R）を書いたら あっ、売れちゃった！ | F14: =IF(C14="","",棚卸入力!R14+SUMIF(棚卸後在庫変更履歴!$H$2:$H$1048576,在庫表示!B14,棚卸後在庫変更履歴!$J$2:$J$1048576)) -> 0
B15: =IF(商品マスタ!$B9="","",商品マスタ!$B9) -> 5 | C15: =IF(商品マスタ!$C9="","",商品マスタ!$C9) -> 鉄腕アトム 地球最大の冒険 | F15: =IF(C15="","",棚卸入力!R15+SUMIF(棚卸後在庫変更履歴!$H$2:$H$1048576,在庫表示!B15,棚卸後在庫変更履歴!$J$2:$J$1048576)) -> 0
B16: =IF(商品マスタ!$B10="","",商品マスタ!$B10) -> 6 | C16: =IF(商品マスタ!$C10="","",商品マスタ!$C10) -> 鉄腕アトム 地球防衛隊 | F16: =IF(C16="","",棚卸入力!R16+SUMIF(棚卸後在庫変更履歴!$H$2:$H$1048576,在庫表示!B16,棚卸後在庫変更履歴!$J$2:$J$1048576)) -> 0
B17: =IF(商品マスタ!$B11="","",商品マスタ!$B11) -> 7 | C17: =IF(商品マスタ!$C11="","",商品マスタ!$C11) -> どうする？デザイン クライアントとのやりとりでよくわかる！デザインの決め方、伝え方 | F17: =IF(C17="","",棚卸入力!R17+SUMIF(棚卸後在庫変更履歴!$H$2:$H$1048576,在庫表示!B17,棚卸後在庫変更履歴!$J$2:$J$1048576)) -> 0
B18: =IF(商品マスタ!$B12="","",商品マスタ!$B12) -> 8 | C18: =IF(商品マスタ!$C12="","",商品マスタ!$C12) -> ハッブル宇宙望遠鏡が見た絶景宇宙 SELECT 10 Vol.1 | F18: =IF(C18="","",棚卸入力!R18+SUMIF(棚卸後在庫変更履歴!$H$2:$H$1048576,在庫表示!B18,棚卸後在庫変更履歴!$J$2:$J$1048576)) -> 0
B19: =IF(商品マスタ!$B13="","",商品マスタ!$B13) -> 9 | C19: =IF(商品マスタ!$C13="","",商品マスタ!$C13) -> ハムスターがおうちにやってきた！ | F19: =IF(C19="","",棚卸入力!R19+SUMIF(棚卸後在庫変更履歴!$H$2:$H$1048576,在庫表示!B19,棚卸後在庫変更履歴!$J$2:$J$1048576)) -> 0
B20: =IF(商品マスタ!$B14="","",商品マスタ!$B14) -> 10 | C20: =IF(商品マスタ!$C14="","",商品マスタ!$C14) -> ビーカーくんのゆかいな化学実験 | F20: =IF(C20="","",棚卸入力!R20+SUMIF(棚卸後在庫変更履歴!$H$2:$H$1048576,在庫表示!B20,棚卸後在庫変更履歴!$J$2:$J$1048576)) -> 0
B21: =IF(商品マスタ!$B15="","",商品マスタ!$B15) -> 11 | C21: =IF(商品マスタ!$C15="","",商品マスタ!$C15) -> ヒトを理解するための 生物学 | F21: =IF(C21="","",棚卸入力!R21+SUMIF(棚卸後在庫変更履歴!$H$2:$H$1048576,在庫表示!B21,棚卸後在庫変更履歴!$J$2:$J$1048576)) -> 0
B22: =IF(商品マスタ!$B16="","",商品マスタ!$B16) -> 12 | C22: =IF(商品マスタ!$C16="","",商品マスタ!$C16) -> 富士山はどうしてそこにあるのか 地形から見る日本列島史 | F22: =IF(C22="","",棚卸入力!R22+SUMIF(棚卸後在庫変更履歴!$H$2:$H$1048576,在庫表示!B22,棚卸後在庫変更履歴!$J$2:$J$1048576)) -> 0
B23: =IF(商品マスタ!$B17="","",商品マスタ!$B17) -> 13 | C23: =IF(商品マスタ!$C17="","",商品マスタ!$C17) -> 宇宙の「果て」になにがあるのか 最新天文学が描く、時間と空間の終わり | F23: =IF(C23="","",棚卸入力!R23+SUMIF(棚卸後在庫変更履歴!$H$2:$H$1048576,在庫表示!B23,棚卸後在庫変更履歴!$J$2:$J$1048576)) -> 0
B24: =IF(商品マスタ!$B18="","",商品マスタ!$B18) -> 14 | C24: =IF(商品マスタ!$C18="","",商品マスタ!$C18) -> 宇宙は本当にひとつなのか―最新宇宙論入門 | F24: =IF(C24="","",棚卸入力!R24+SUMIF(棚卸後在庫変更履歴!$H$2:$H$1048576,在庫表示!B24,棚卸後在庫変更履歴!$J$2:$J$1048576)) -> 0
B25: =IF(商品マスタ!$B19="","",商品マスタ!$B19) -> 15 | C25: =IF(商品マスタ!$C19="","",商品マスタ!$C19) -> 宇宙創成（上） | F25: =IF(C25="","",棚卸入力!R25+SUMIF(棚卸後在庫変更履歴!$H$2:$H$1048576,在庫表示!B25,棚卸後在庫変更履歴!$J$2:$J$1048576)) -> 0
B26: =IF(商品マスタ!$B20="","",商品マスタ!$B20) -> 16 | C26: =IF(商品マスタ!$C20="","",商品マスタ!$C20) -> 宇宙望遠鏡がとらえた 銀河（ブックブライト） | F26: =IF(C26="","",棚卸入力!R26+SUMIF(棚卸後在庫変更履歴!$H$2:$H$1048576,在庫表示!B26,棚卸後在庫変更履歴!$J$2:$J$1048576)) -> 0
B27: =IF(商品マスタ!$B21="","",商品マスタ!$B21) -> 17 | C27: =IF(商品マスタ!$C21="","",商品マスタ!$C21) -> 見てわかる、迷わず決まる配色アイデア 3色だけでセンスのいい色 | F27: =IF(C27="","",棚卸入力!R27+SUMIF(棚卸後在庫変更履歴!$H$2:$H$1048576,在庫表示!B27,棚卸後在庫変更履歴!$J$2:$J$1048576)) -> 0
B28: =IF(商品マスタ!$B22="","",商品マスタ!$B22) -> 18 | C28: =IF(商品マスタ!$C22="","",商品マスタ!$C22) -> 写真加工で作る風景イラスト 神技作画シリーズ | F28: =IF(C28="","",棚卸入力!R28+SUMIF(棚卸後在庫変更履歴!$H$2:$H$1048576,在庫表示!B28,棚卸後在庫変更履歴!$J$2:$J$1048576)) -> 0
B29: =IF(商品マスタ!$B23="","",商品マスタ!$B23) -> 19 | C29: =IF(商品マスタ!$C23="","",商品マスタ!$C23) -> 写真加工で作る風景イラスト 神技作画シリーズ | F29: =IF(C29="","",棚卸入力!R29+SUMIF(棚卸後在庫変更履歴!$H$2:$H$1048576,在庫表示!B29,棚卸後在庫変更履歴!$J$2:$J$1048576)) -> 0
B30: =IF(商品マスタ!$B24="","",商品マスタ!$B24) -> 20 | C30: =IF(商品マスタ!$C24="","",商品マスタ!$C24) -> 重力とは何か アインシュタインから超弦理論へ、宇宙の謎に迫る | F30: =IF(C30="","",棚卸入力!R30+SUMIF(棚卸後在庫変更履歴!$H$2:$H$1048576,在庫表示!B30,棚卸後在庫変更履歴!$J$2:$J$1048576)) -> 0
B31: =IF(商品マスタ!$B25="","",商品マスタ!$B25) -> 21 | C31: =IF(商品マスタ!$C25="","",商品マスタ!$C25) -> 図説 メイドインアビス 探窟記録【電子特典付き】 | F31: =IF(C31="","",棚卸入力!R31+SUMIF(棚卸後在庫変更履歴!$H$2:$H$1048576,在庫表示!B31,棚卸後在庫変更履歴!$J$2:$J$1048576)) -> 0
B32: =IF(商品マスタ!$B26="","",商品マスタ!$B26) -> 22 | C32: =IF(商品マスタ!$C26="","",商品マスタ!$C26) -> 成功の秘密にアクセスできるギャラクシー・コード | F32: =IF(C32="","",棚卸入力!R32+SUMIF(棚卸後在庫変更履歴!$H$2:$H$1048576,在庫表示!B32,棚卸後在庫変更履歴!$J$2:$J$1048576)) -> 0
B33: =IF(商品マスタ!$B27="","",商品マスタ!$B27) -> 23 | C33: =IF(商品マスタ!$C27="","",商品マスタ!$C27) -> 太陽系 絶景画像50 | F33: =IF(C33="","",棚卸入力!R33+SUMIF(棚卸後在庫変更履歴!$H$2:$H$1048576,在庫表示!B33,棚卸後在庫変更履歴!$J$2:$J$1048576)) -> 0
B34: =IF(商品マスタ!$B28="","",商品マスタ!$B28) -> 24 | C34: =IF(商品マスタ!$C28="","",商品マスタ!$C28) -> 踊りませんか？ 社交ダンスの世界 | F34: =IF(C34="","",棚卸入力!R34+SUMIF(棚卸後在庫変更履歴!$H$2:$H$1048576,在庫表示!B34,棚卸後在庫変更履歴!$J$2:$J$1048576)) -> 0
B35: =IF(商品マスタ!$B29="","",商品マスタ!$B29) -> 25 | C35: =IF(商品マスタ!$C29="","",商品マスタ!$C29) ->  | F35: =IF(C35="","",棚卸入力!R35+SUMIF(棚卸後在庫変更履歴!$H$2:$H$1048576,在庫表示!B35,棚卸後在庫変更履歴!$J$2:$J$1048576)) -> 
B36: =IF(商品マスタ!$B30="","",商品マスタ!$B30) -> 26 | C36: =IF(商品マスタ!$C30="","",商品マスタ!$C30) ->  | F36: =IF(C36="","",棚卸入力!R36+SUMIF(棚卸後在庫変更履歴!$H$2:$H$1048576,在庫表示!B36,棚卸後在庫変更履歴!$J$2:$J$1048576)) -> 
B37: =IF(商品マスタ!$B31="","",商品マスタ!$B31) -> 27 | C37: =IF(商品マスタ!$C31="","",商品マスタ!$C31) ->  | F37: =IF(C37="","",棚卸入力!R37+SUMIF(棚卸後在庫変更履歴!$H$2:$H$1048576,在庫表示!B37,棚卸後在庫変更履歴!$J$2:$J$1048576)) -> 
B38: =IF(商品マスタ!$B32="","",商品マスタ!$B32) -> 28 | C38: =IF(商品マスタ!$C32="","",商品マスタ!$C32) ->  | F38: =IF(C38="","",棚卸入力!R38+SUMIF(棚卸後在庫変更履歴!$H$2:$H$1048576,在庫表示!B38,棚卸後在庫変更履歴!$J$2:$J$1048576)) -> 
B39: =IF(商品マスタ!$B33="","",商品マスタ!$B33) -> 29 | C39: =IF(商品マスタ!$C33="","",商品マスタ!$C33) ->  | F39: =IF(C39="","",棚卸入力!R39+SUMIF(棚卸後在庫変更履歴!$H$2:$H$1048576,在庫表示!B39,棚卸後在庫変更履歴!$J$2:$J$1048576)) -> 
B40: =IF(商品マスタ!$B34="","",商品マスタ!$B34) -> 30 | C40: =IF(商品マスタ!$C34="","",商品マスタ!$C34) ->  | F40: =IF(C40="","",棚卸入力!R40+SUMIF(棚卸後在庫変更履歴!$H$2:$H$1048576,在庫表示!B40,棚卸後在庫変更履歴!$J$2:$J$1048576)) -> 
B41: =IF(商品マスタ!$B35="","",商品マスタ!$B35) -> 31 | C41: =IF(商品マスタ!$C35="","",商品マスタ!$C35) ->  | F41: =IF(C41="","",棚卸入力!R41+SUMIF(棚卸後在庫変更履歴!$H$2:$H$1048576,在庫表示!B41,棚卸後在庫変更履歴!$J$2:$J$1048576)) -> 
B42: =IF(商品マスタ!$B36="","",商品マスタ!$B36) -> 32 | C42: =IF(商品マスタ!$C36="","",商品マスタ!$C36) ->  | F42: =IF(C42="","",棚卸入力!R42+SUMIF(棚卸後在庫変更履歴!$H$2:$H$1048576,在庫表示!B42,棚卸後在庫変更履歴!$J$2:$J$1048576)) -> 
B43: =IF(商品マスタ!$B37="","",商品マスタ!$B37) -> 33 | C43: =IF(商品マスタ!$C37="","",商品マスタ!$C37) ->  | F43: =IF(C43="","",棚卸入力!R43+SUMIF(棚卸後在庫変更履歴!$H$2:$H$1048576,在庫表示!B43,棚卸後在庫変更履歴!$J$2:$J$1048576)) -> 
B44: =IF(商品マスタ!$B38="","",商品マスタ!$B38) -> 34 | C44: =IF(商品マスタ!$C38="","",商品マスタ!$C38) ->  | F44: =IF(C44="","",棚卸入力!R44+SUMIF(棚卸後在庫変更履歴!$H$2:$H$1048576,在庫表示!B44,棚卸後在庫変更履歴!$J$2:$J$1048576)) -> 
B45: =IF(商品マスタ!$B39="","",商品マスタ!$B39) -> 35 | C45: =IF(商品マスタ!$C39="","",商品マスタ!$C39) ->  | F45: =IF(C45="","",棚卸入力!R45+SUMIF(棚卸後在庫変更履歴!$H$2:$H$1048576,在庫表示!B45,棚卸後在庫変更履歴!$J$2:$J$1048576)) -> 
B46: =IF(商品マスタ!$B40="","",商品マスタ!$B40) -> 36 | C46: =IF(商品マスタ!$C40="","",商品マスタ!$C40) ->  | F46: =IF(C46="","",棚卸入力!R46+SUMIF(棚卸後在庫変更履歴!$H$2:$H$1048576,在庫表示!B46,棚卸後在庫変更履歴!$J$2:$J$1048576)) -> 
B47: =IF(商品マスタ!$B41="","",商品マスタ!$B41) -> 37 | C47: =IF(商品マスタ!$C41="","",商品マスタ!$C41) ->  | F47: =IF(C47="","",棚卸入力!R47+SUMIF(棚卸後在庫変更履歴!$H$2:$H$1048576,在庫表示!B47,棚卸後在庫変更履歴!$J$2:$J$1048576)) -> 
B48: =IF(商品マスタ!$B42="","",商品マスタ!$B42) -> 38 | C48: =IF(商品マスタ!$C42="","",商品マスタ!$C42) ->  | F48: =IF(C48="","",棚卸入力!R48+SUMIF(棚卸後在庫変更履歴!$H$2:$H$1048576,在庫表示!B48,棚卸後在庫変更履歴!$J$2:$J$1048576)) -> 
B49: =IF(商品マスタ!$B43="","",商品マスタ!$B43) -> 39 | C49: =IF(商品マスタ!$C43="","",商品マスタ!$C43) ->  | F49: =IF(C49="","",棚卸入力!R49+SUMIF(棚卸後在庫変更履歴!$H$2:$H$1048576,在庫表示!B49,棚卸後在庫変更履歴!$J$2:$J$1048576)) -> 
B50: =IF(商品マスタ!$B44="","",商品マスタ!$B44) -> 40 | C50: =IF(商品マスタ!$C44="","",商品マスタ!$C44) ->  | F50: =IF(C50="","",棚卸入力!R50+SUMIF(棚卸後在庫変更履歴!$H$2:$H$1048576,在庫表示!B50,棚卸後在庫変更履歴!$J$2:$J$1048576)) -> 
B51: =IF(商品マスタ!$B45="","",商品マスタ!$B45) -> 41 | C51: =IF(商品マスタ!$C45="","",商品マスタ!$C45) ->  | F51: =IF(C51="","",棚卸入力!R51+SUMIF(棚卸後在庫変更履歴!$H$2:$H$1048576,在庫表示!B51,棚卸後在庫変更履歴!$J$2:$J$1048576)) -> 
B52: =IF(商品マスタ!$B46="","",商品マスタ!$B46) -> 42 | C52: =IF(商品マスタ!$C46="","",商品マスタ!$C46) ->  | F52: =IF(C52="","",棚卸入力!R52+SUMIF(棚卸後在庫変更履歴!$H$2:$H$1048576,在庫表示!B52,棚卸後在庫変更履歴!$J$2:$J$1048576)) -> 
B53: =IF(商品マスタ!$B47="","",商品マスタ!$B47) -> 43 | C53: =IF(商品マスタ!$C47="","",商品マスタ!$C47) ->  | F53: =IF(C53="","",棚卸入力!R53+SUMIF(棚卸後在庫変更履歴!$H$2:$H$1048576,在庫表示!B53,棚卸後在庫変更履歴!$J$2:$J$1048576)) -> 
B54: =IF(商品マスタ!$B48="","",商品マスタ!$B48) -> 44 | C54: =IF(商品マスタ!$C48="","",商品マスタ!$C48) ->  | F54: =IF(C54="","",棚卸入力!R54+SUMIF(棚卸後在庫変更履歴!$H$2:$H$1048576,在庫表示!B54,棚卸後在庫変更履歴!$J$2:$J$1048576)) -> 
B55: =IF(商品マスタ!$B49="","",商品マスタ!$B49) -> 45 | C55: =IF(商品マスタ!$C49="","",商品マスタ!$C49) ->  | F55: =IF(C55="","",棚卸入力!R55+SUMIF(棚卸後在庫変更履歴!$H$2:$H$1048576,在庫表示!B55,棚卸後在庫変更履歴!$J$2:$J$1048576)) -> 
B56: =IF(商品マスタ!$B50="","",商品マスタ!$B50) -> 46 | C56: =IF(商品マスタ!$C50="","",商品マスタ!$C50) ->  | F56: =IF(C56="","",棚卸入力!R56+SUMIF(棚卸後在庫変更履歴!$H$2:$H$1048576,在庫表示!B56,棚卸後在庫変更履歴!$J$2:$J$1048576)) -> 
B57: =IF(商品マスタ!$B51="","",商品マスタ!$B51) -> 47 | C57: =IF(商品マスタ!$C51="","",商品マスタ!$C51) ->  | F57: =IF(C57="","",棚卸入力!R57+SUMIF(棚卸後在庫変更履歴!$H$2:$H$1048576,在庫表示!B57,棚卸後在庫変更履歴!$J$2:$J$1048576)) -> 
B58: =IF(商品マスタ!$B52="","",商品マスタ!$B52) -> 48 | C58: =IF(商品マスタ!$C52="","",商品マスタ!$C52) ->  | F58: =IF(C58="","",棚卸入力!R58+SUMIF(棚卸後在庫変更履歴!$H$2:$H$1048576,在庫表示!B58,棚卸後在庫変更履歴!$J$2:$J$1048576)) -> 
B59: =IF(商品マスタ!$B53="","",商品マスタ!$B53) -> 49 | C59: =IF(商品マスタ!$C53="","",商品マスタ!$C53) ->  | F59: =IF(C59="","",棚卸入力!R59+SUMIF(棚卸後在庫変更履歴!$H$2:$H$1048576,在庫表示!B59,棚卸後在庫変更履歴!$J$2:$J$1048576)) -> 
B60: =IF(商品マスタ!$B54="","",商品マスタ!$B54) -> 50 | C60: =IF(商品マスタ!$C54="","",商品マスタ!$C54) ->  | F60: =IF(C60="","",棚卸入力!R60+SUMIF(棚卸後在庫変更履歴!$H$2:$H$1048576,在庫表示!B60,棚卸後在庫変更履歴!$J$2:$J$1048576)) -> 
B61: =IF(商品マスタ!$B55="","",商品マスタ!$B55) -> 51 | C61: =IF(商品マスタ!$C55="","",商品マスタ!$C55) ->  | F61: =IF(C61="","",棚卸入力!R61+SUMIF(棚卸後在庫変更履歴!$H$2:$H$1048576,在庫表示!B61,棚卸後在庫変更履歴!$J$2:$J$1048576)) -> 
B62: =IF(商品マスタ!$B56="","",商品マスタ!$B56) -> 52 | C62: =IF(商品マスタ!$C56="","",商品マスタ!$C56) ->  | F62: =IF(C62="","",棚卸入力!R62+SUMIF(棚卸後在庫変更履歴!$H$2:$H$1048576,在庫表示!B62,棚卸後在庫変更履歴!$J$2:$J$1048576)) -> 
B63: =IF(商品マスタ!$B57="","",商品マスタ!$B57) -> 53 | C63: =IF(商品マスタ!$C57="","",商品マスタ!$C57) ->  | F63: =IF(C63="","",棚卸入力!R63+SUMIF(棚卸後在庫変更履歴!$H$2:$H$1048576,在庫表示!B63,棚卸後在庫変更履歴!$J$2:$J$1048576)) -> 
B64: =IF(商品マスタ!$B58="","",商品マスタ!$B58) -> 54 | C64: =IF(商品マスタ!$C58="","",商品マスタ!$C58) ->  | F64: =IF(C64="","",棚卸入力!R64+SUMIF(棚卸後在庫変更履歴!$H$2:$H$1048576,在庫表示!B64,棚卸後在庫変更履歴!$J$2:$J$1048576)) -> 
B65: =IF(商品マスタ!$B59="","",商品マスタ!$B59) -> 55 | C65: =IF(商品マスタ!$C59="","",商品マスタ!$C59) ->  | F65: =IF(C65="","",棚卸入力!R65+SUMIF(棚卸後在庫変更履歴!$H$2:$H$1048576,在庫表示!B65,棚卸後在庫変更履歴!$J$2:$J$1048576)) -> 
B66: =IF(商品マスタ!$B60="","",商品マスタ!$B60) -> 56 | C66: =IF(商品マスタ!$C60="","",商品マスタ!$C60) ->  | F66: =IF(C66="","",棚卸入力!R66+SUMIF(棚卸後在庫変更履歴!$H$2:$H$1048576,在庫表示!B66,棚卸後在庫変更履歴!$J$2:$J$1048576)) -> 
B67: =IF(商品マスタ!$B61="","",商品マスタ!$B61) -> 57 | C67: =IF(商品マスタ!$C61="","",商品マスタ!$C61) ->  | F67: =IF(C67="","",棚卸入力!R67+SUMIF(棚卸後在庫変更履歴!$H$2:$H$1048576,在庫表示!B67,棚卸後在庫変更履歴!$J$2:$J$1048576)) -> 
B68: =IF(商品マスタ!$B62="","",商品マスタ!$B62) -> 58 | C68: =IF(商品マスタ!$C62="","",商品マスタ!$C62) ->  | F68: =IF(C68="","",棚卸入力!R68+SUMIF(棚卸後在庫変更履歴!$H$2:$H$1048576,在庫表示!B68,棚卸後在庫変更履歴!$J$2:$J$1048576)) -> 
B69: =IF(商品マスタ!$B63="","",商品マスタ!$B63) -> 59 | C69: =IF(商品マスタ!$C63="","",商品マスタ!$C63) ->  | F69: =IF(C69="","",棚卸入力!R69+SUMIF(棚卸後在庫変更履歴!$H$2:$H$1048576,在庫表示!B69,棚卸後在庫変更履歴!$J$2:$J$1048576)) -> 
B70: =IF(商品マスタ!$B64="","",商品マスタ!$B64) -> 60 | C70: =IF(商品マスタ!$C64="","",商品マスタ!$C64) ->  | F70: =IF(C70="","",棚卸入力!R70+SUMIF(棚卸後在庫変更履歴!$H$2:$H$1048576,在庫表示!B70,棚卸後在庫変更履歴!$J$2:$J$1048576)) -> 
B71: =IF(商品マスタ!$B65="","",商品マスタ!$B65) -> 61 | C71: =IF(商品マスタ!$C65="","",商品マスタ!$C65) ->  | F71: =IF(C71="","",棚卸入力!R71+SUMIF(棚卸後在庫変更履歴!$H$2:$H$1048576,在庫表示!B71,棚卸後在庫変更履歴!$J$2:$J$1048576)) -> 
B72: =IF(商品マスタ!$B66="","",商品マスタ!$B66) -> 62 | C72: =IF(商品マスタ!$C66="","",商品マスタ!$C66) ->  | F72: =IF(C72="","",棚卸入力!R72+SUMIF(棚卸後在庫変更履歴!$H$2:$H$1048576,在庫表示!B72,棚卸後在庫変更履歴!$J$2:$J$1048576)) -> 
B73: =IF(商品マスタ!$B67="","",商品マスタ!$B67) -> 63 | C73: =IF(商品マスタ!$C67="","",商品マスタ!$C67) ->  | F73: =IF(C73="","",棚卸入力!R73+SUMIF(棚卸後在庫変更履歴!$H$2:$H$1048576,在庫表示!B73,棚卸後在庫変更履歴!$J$2:$J$1048576)) -> 
B74: =IF(商品マスタ!$B68="","",商品マスタ!$B68) -> 64 | C74: =IF(商品マスタ!$C68="","",商品マスタ!$C68) ->  | F74: =IF(C74="","",棚卸入力!R74+SUMIF(棚卸後在庫変更履歴!$H$2:$H$1048576,在庫表示!B74,棚卸後在庫変更履歴!$J$2:$J$1048576)) -> 
B75: =IF(商品マスタ!$B69="","",商品マスタ!$B69) -> 65 | C75: =IF(商品マスタ!$C69="","",商品マスタ!$C69) ->  | F75: =IF(C75="","",棚卸入力!R75+SUMIF(棚卸後在庫変更履歴!$H$2:$H$1048576,在庫表示!B75,棚卸後在庫変更履歴!$J$2:$J$1048576)) -> 
B76: =IF(商品マスタ!$B70="","",商品マスタ!$B70) -> 66 | C76: =IF(商品マスタ!$C70="","",商品マスタ!$C70) ->  | F76: =IF(C76="","",棚卸入力!R76+SUMIF(棚卸後在庫変更履歴!$H$2:$H$1048576,在庫表示!B76,棚卸後在庫変更履歴!$J$2:$J$1048576)) -> 
B77: =IF(商品マスタ!$B71="","",商品マスタ!$B71) -> 67 | C77: =IF(商品マスタ!$C71="","",商品マスタ!$C71) ->  | F77: =IF(C77="","",棚卸入力!R77+SUMIF(棚卸後在庫変更履歴!$H$2:$H$1048576,在庫表示!B77,棚卸後在庫変更履歴!$J$2:$J$1048576)) -> 
B78: =IF(商品マスタ!$B72="","",商品マスタ!$B72) -> 68 | C78: =IF(商品マスタ!$C72="","",商品マスタ!$C72) ->  | F78: =IF(C78="","",棚卸入力!R78+SUMIF(棚卸後在庫変更履歴!$H$2:$H$1048576,在庫表示!B78,棚卸後在庫変更履歴!$J$2:$J$1048576)) -> 
B79: =IF(商品マスタ!$B73="","",商品マスタ!$B73) -> 69 | C79: =IF(商品マスタ!$C73="","",商品マスタ!$C73) ->  | F79: =IF(C79="","",棚卸入力!R79+SUMIF(棚卸後在庫変更履歴!$H$2:$H$1048576,在庫表示!B79,棚卸後在庫変更履歴!$J$2:$J$1048576)) -> 
B80: =IF(商品マスタ!$B74="","",商品マスタ!$B74) -> 70 | C80: =IF(商品マスタ!$C74="","",商品マスタ!$C74) ->  | F80: =IF(C80="","",棚卸入力!R80+SUMIF(棚卸後在庫変更履歴!$H$2:$H$1048576,在庫表示!B80,棚卸後在庫変更履歴!$J$2:$J$1048576)) -> 
B81: =IF(商品マスタ!$B75="","",商品マスタ!$B75) -> 71 | C81: =IF(商品マスタ!$C75="","",商品マスタ!$C75) ->  | F81: =IF(C81="","",棚卸入力!R81+SUMIF(棚卸後在庫変更履歴!$H$2:$H$1048576,在庫表示!B81,棚卸後在庫変更履歴!$J$2:$J$1048576)) -> 
B82: =IF(商品マスタ!$B76="","",商品マスタ!$B76) -> 72 | C82: =IF(商品マスタ!$C76="","",商品マスタ!$C76) ->  | F82: =IF(C82="","",棚卸入力!R82+SUMIF(棚卸後在庫変更履歴!$H$2:$H$1048576,在庫表示!B82,棚卸後在庫変更履歴!$J$2:$J$1048576)) -> 
B83: =IF(商品マスタ!$B77="","",商品マスタ!$B77) -> 73 | C83: =IF(商品マスタ!$C77="","",商品マスタ!$C77) ->  | F83: =IF(C83="","",棚卸入力!R83+SUMIF(棚卸後在庫変更履歴!$H$2:$H$1048576,在庫表示!B83,棚卸後在庫変更履歴!$J$2:$J$1048576)) -> 
B84: =IF(商品マスタ!$B78="","",商品マスタ!$B78) -> 74 | C84: =IF(商品マスタ!$C78="","",商品マスタ!$C78) ->  | F84: =IF(C84="","",棚卸入力!R84+SUMIF(棚卸後在庫変更履歴!$H$2:$H$1048576,在庫表示!B84,棚卸後在庫変更履歴!$J$2:$J$1048576)) -> 
B85: =IF(商品マスタ!$B79="","",商品マスタ!$B79) -> 75 | C85: =IF(商品マスタ!$C79="","",商品マスタ!$C79) ->  | F85: =IF(C85="","",棚卸入力!R85+SUMIF(棚卸後在庫変更履歴!$H$2:$H$1048576,在庫表示!B85,棚卸後在庫変更履歴!$J$2:$J$1048576)) -> 
B86: =IF(商品マスタ!$B80="","",商品マスタ!$B80) -> 76 | C86: =IF(商品マスタ!$C80="","",商品マスタ!$C80) ->  | F86: =IF(C86="","",棚卸入力!R86+SUMIF(棚卸後在庫変更履歴!$H$2:$H$1048576,在庫表示!B86,棚卸後在庫変更履歴!$J$2:$J$1048576)) -> 
B87: =IF(商品マスタ!$B81="","",商品マスタ!$B81) -> 77 | C87: =IF(商品マスタ!$C81="","",商品マスタ!$C81) ->  | F87: =IF(C87="","",棚卸入力!R87+SUMIF(棚卸後在庫変更履歴!$H$2:$H$1048576,在庫表示!B87,棚卸後在庫変更履歴!$J$2:$J$1048576)) -> 
B88: =IF(商品マスタ!$B82="","",商品マスタ!$B82) -> 78 | C88: =IF(商品マスタ!$C82="","",商品マスタ!$C82) ->  | F88: =IF(C88="","",棚卸入力!R88+SUMIF(棚卸後在庫変更履歴!$H$2:$H$1048576,在庫表示!B88,棚卸後在庫変更履歴!$J$2:$J$1048576)) -> 
B89: =IF(商品マスタ!$B83="","",商品マスタ!$B83) -> 79 | C89: =IF(商品マスタ!$C83="","",商品マスタ!$C83) ->  | F89: =IF(C89="","",棚卸入力!R89+SUMIF(棚卸後在庫変更履歴!$H$2:$H$1048576,在庫表示!B89,棚卸後在庫変更履歴!$J$2:$J$1048576)) -> 
B90: =IF(商品マスタ!$B84="","",商品マスタ!$B84) -> 80 | C90: =IF(商品マスタ!$C84="","",商品マスタ!$C84) ->  | F90: =IF(C90="","",棚卸入力!R90+SUMIF(棚卸後在庫変更履歴!$H$2:$H$1048576,在庫表示!B90,棚卸後在庫変更履歴!$J$2:$J$1048576)) -> 
B91: =IF(商品マスタ!$B85="","",商品マスタ!$B85) -> 81 | C91: =IF(商品マスタ!$C85="","",商品マスタ!$C85) ->  | F91: =IF(C91="","",棚卸入力!R91+SUMIF(棚卸後在庫変更履歴!$H$2:$H$1048576,在庫表示!B91,棚卸後在庫変更履歴!$J$2:$J$1048576)) -> 
B92: =IF(商品マスタ!$B86="","",商品マスタ!$B86) -> 82 | C92: =IF(商品マスタ!$C86="","",商品マスタ!$C86) ->  | F92: =IF(C92="","",棚卸入力!R92+SUMIF(棚卸後在庫変更履歴!$H$2:$H$1048576,在庫表示!B92,棚卸後在庫変更履歴!$J$2:$J$1048576)) -> 
B93: =IF(商品マスタ!$B87="","",商品マスタ!$B87) -> 83 | C93: =IF(商品マスタ!$C87="","",商品マスタ!$C87) ->  | F93: =IF(C93="","",棚卸入力!R93+SUMIF(棚卸後在庫変更履歴!$H$2:$H$1048576,在庫表示!B93,棚卸後在庫変更履歴!$J$2:$J$1048576)) -> 
B94: =IF(商品マスタ!$B88="","",商品マスタ!$B88) -> 84 | C94: =IF(商品マスタ!$C88="","",商品マスタ!$C88) ->  | F94: =IF(C94="","",棚卸入力!R94+SUMIF(棚卸後在庫変更履歴!$H$2:$H$1048576,在庫表示!B94,棚卸後在庫変更履歴!$J$2:$J$1048576)) -> 
B95: =IF(商品マスタ!$B89="","",商品マスタ!$B89) -> 85 | C95: =IF(商品マスタ!$C89="","",商品マスタ!$C89) ->  | F95: =IF(C95="","",棚卸入力!R95+SUMIF(棚卸後在庫変更履歴!$H$2:$H$1048576,在庫表示!B95,棚卸後在庫変更履歴!$J$2:$J$1048576)) -> 
B96: =IF(商品マスタ!$B90="","",商品マスタ!$B90) -> 86 | C96: =IF(商品マスタ!$C90="","",商品マスタ!$C90) ->  | F96: =IF(C96="","",棚卸入力!R96+SUMIF(棚卸後在庫変更履歴!$H$2:$H$1048576,在庫表示!B96,棚卸後在庫変更履歴!$J$2:$J$1048576)) -> 
B97: =IF(商品マスタ!$B91="","",商品マスタ!$B91) -> 87 | C97: =IF(商品マスタ!$C91="","",商品マスタ!$C91) ->  | F97: =IF(C97="","",棚卸入力!R97+SUMIF(棚卸後在庫変更履歴!$H$2:$H$1048576,在庫表示!B97,棚卸後在庫変更履歴!$J$2:$J$1048576)) -> 
B98: =IF(商品マスタ!$B92="","",商品マスタ!$B92) -> 88 | C98: =IF(商品マスタ!$C92="","",商品マスタ!$C92) ->  | F98: =IF(C98="","",棚卸入力!R98+SUMIF(棚卸後在庫変更履歴!$H$2:$H$1048576,在庫表示!B98,棚卸後在庫変更履歴!$J$2:$J$1048576)) -> 
B99: =IF(商品マスタ!$B93="","",商品マスタ!$B93) -> 89 | C99: =IF(商品マスタ!$C93="","",商品マスタ!$C93) ->  | F99: =IF(C99="","",棚卸入力!R99+SUMIF(棚卸後在庫変更履歴!$H$2:$H$1048576,在庫表示!B99,棚卸後在庫変更履歴!$J$2:$J$1048576)) -> 
B100: =IF(商品マスタ!$B94="","",商品マスタ!$B94) -> 90 | C100: =IF(商品マスタ!$C94="","",商品マスタ!$C94) ->  | F100: =IF(C100="","",棚卸入力!R100+SUMIF(棚卸後在庫変更履歴!$H$2:$H$1048576,在庫表示!B100,棚卸後在庫変更履歴!$J$2:$J$1048576)) -> 
B101: =IF(商品マスタ!$B95="","",商品マスタ!$B95) -> 91 | C101: =IF(商品マスタ!$C95="","",商品マスタ!$C95) ->  | F101: =IF(C101="","",棚卸入力!R101+SUMIF(棚卸後在庫変更履歴!$H$2:$H$1048576,在庫表示!B101,棚卸後在庫変更履歴!$J$2:$J$1048576)) -> 
B102: =IF(商品マスタ!$B96="","",商品マスタ!$B96) -> 92 | C102: =IF(商品マスタ!$C96="","",商品マスタ!$C96) ->  | F102: =IF(C102="","",棚卸入力!R102+SUMIF(棚卸後在庫変更履歴!$H$2:$H$1048576,在庫表示!B102,棚卸後在庫変更履歴!$J$2:$J$1048576)) -> 
B103: =IF(商品マスタ!$B97="","",商品マスタ!$B97) -> 93 | C103: =IF(商品マスタ!$C97="","",商品マスタ!$C97) ->  | F103: =IF(C103="","",棚卸入力!R103+SUMIF(棚卸後在庫変更履歴!$H$2:$H$1048576,在庫表示!B103,棚卸後在庫変更履歴!$J$2:$J$1048576)) -> 
B104: =IF(商品マスタ!$B98="","",商品マスタ!$B98) -> 94 | C104: =IF(商品マスタ!$C98="","",商品マスタ!$C98) ->  | F104: =IF(C104="","",棚卸入力!R104+SUMIF(棚卸後在庫変更履歴!$H$2:$H$1048576,在庫表示!B104,棚卸後在庫変更履歴!$J$2:$J$1048576)) -> 
B105: =IF(商品マスタ!$B99="","",商品マスタ!$B99) -> 95 | C105: =IF(商品マスタ!$C99="","",商品マスタ!$C99) ->  | F105: =IF(C105="","",棚卸入力!R105+SUMIF(棚卸後在庫変更履歴!$H$2:$H$1048576,在庫表示!B105,棚卸後在庫変更履歴!$J$2:$J$1048576)) -> 
B106: =IF(商品マスタ!$B100="","",商品マスタ!$B100) -> 96 | C106: =IF(商品マスタ!$C100="","",商品マスタ!$C100) ->  | F106: =IF(C106="","",棚卸入力!R106+SUMIF(棚卸後在庫変更履歴!$H$2:$H$1048576,在庫表示!B106,棚卸後在庫変更履歴!$J$2:$J$1048576)) -> 
B107: =IF(商品マスタ!$B101="","",商品マスタ!$B101) -> 97 | C107: =IF(商品マスタ!$C101="","",商品マスタ!$C101) ->  | F107: =IF(C107="","",棚卸入力!R107+SUMIF(棚卸後在庫変更履歴!$H$2:$H$1048576,在庫表示!B107,棚卸後在庫変更履歴!$J$2:$J$1048576)) -> 
B108: =IF(商品マスタ!$B102="","",商品マスタ!$B102) -> 98 | C108: =IF(商品マスタ!$C102="","",商品マスタ!$C102) ->  | F108: =IF(C108="","",棚卸入力!R108+SUMIF(棚卸後在庫変更履歴!$H$2:$H$1048576,在庫表示!B108,棚卸後在庫変更履歴!$J$2:$J$1048576)) -> 
B109: =IF(商品マスタ!$B103="","",商品マスタ!$B103) -> 99 | C109: =IF(商品マスタ!$C103="","",商品マスタ!$C103) ->  | F109: =IF(C109="","",棚卸入力!R109+SUMIF(棚卸後在庫変更履歴!$H$2:$H$1048576,在庫表示!B109,棚卸後在庫変更履歴!$J$2:$J$1048576)) -> 
B110: =IF(商品マスタ!$B104="","",商品マスタ!$B104) -> 100 | C110: =IF(商品マスタ!$C104="","",商品マスタ!$C104) ->  | F110: =IF(C110="","",棚卸入力!R110+SUMIF(棚卸後在庫変更履歴!$H$2:$H$1048576,在庫表示!B110,棚卸後在庫変更履歴!$J$2:$J$1048576)) -> 
B111: =IF(商品マスタ!$B105="","",商品マスタ!$B105) -> 101 | C111: =IF(商品マスタ!$C105="","",商品マスタ!$C105) ->  | F111: =IF(C111="","",棚卸入力!R111+SUMIF(棚卸後在庫変更履歴!$H$2:$H$1048576,在庫表示!B111,棚卸後在庫変更履歴!$J$2:$J$1048576)) -> 
B112: =IF(商品マスタ!$B106="","",商品マスタ!$B106) -> 102 | C112: =IF(商品マスタ!$C106="","",商品マスタ!$C106) ->  | F112: =IF(C112="","",棚卸入力!R112+SUMIF(棚卸後在庫変更履歴!$H$2:$H$1048576,在庫表示!B112,棚卸後在庫変更履歴!$J$2:$J$1048576)) -> 
B113: =IF(商品マスタ!$B107="","",商品マスタ!$B107) -> 103 | C113: =IF(商品マスタ!$C107="","",商品マスタ!$C107) ->  | F113: =IF(C113="","",棚卸入力!R113+SUMIF(棚卸後在庫変更履歴!$H$2:$H$1048576,在庫表示!B113,棚卸後在庫変更履歴!$J$2:$J$1048576)) -> 
B114: =IF(商品マスタ!$B108="","",商品マスタ!$B108) -> 104 | C114: =IF(商品マスタ!$C108="","",商品マスタ!$C108) ->  | F114: =IF(C114="","",棚卸入力!R114+SUMIF(棚卸後在庫変更履歴!$H$2:$H$1048576,在庫表示!B114,棚卸後在庫変更履歴!$J$2:$J$1048576)) -> 
B115: =IF(商品マスタ!$B109="","",商品マスタ!$B109) -> 105 | C115: =IF(商品マスタ!$C109="","",商品マスタ!$C109) ->  | F115: =IF(C115="","",棚卸入力!R115+SUMIF(棚卸後在庫変更履歴!$H$2:$H$1048576,在庫表示!B115,棚卸後在庫変更履歴!$J$2:$J$1048576)) -> 
B116: =IF(商品マスタ!$B110="","",商品マスタ!$B110) -> 106 | C116: =IF(商品マスタ!$C110="","",商品マスタ!$C110) ->  | F116: =IF(C116="","",棚卸入力!R116+SUMIF(棚卸後在庫変更履歴!$H$2:$H$1048576,在庫表示!B116,棚卸後在庫変更履歴!$J$2:$J$1048576)) -> 
B117: =IF(商品マスタ!$B111="","",商品マスタ!$B111) -> 107 | C117: =IF(商品マスタ!$C111="","",商品マスタ!$C111) ->  | F117: =IF(C117="","",棚卸入力!R117+SUMIF(棚卸後在庫変更履歴!$H$2:$H$1048576,在庫表示!B117,棚卸後在庫変更履歴!$J$2:$J$1048576)) -> 
B118: =IF(商品マスタ!$B112="","",商品マスタ!$B112) -> 108 | C118: =IF(商品マスタ!$C112="","",商品マスタ!$C112) ->  | F118: =IF(C118="","",棚卸入力!R118+SUMIF(棚卸後在庫変更履歴!$H$2:$H$1048576,在庫表示!B118,棚卸後在庫変更履歴!$J$2:$J$1048576)) -> 
B119: =IF(商品マスタ!$B113="","",商品マスタ!$B113) -> 109 | C119: =IF(商品マスタ!$C113="","",商品マスタ!$C113) ->  | F119: =IF(C119="","",棚卸入力!R119+SUMIF(棚卸後在庫変更履歴!$H$2:$H$1048576,在庫表示!B119,棚卸後在庫変更履歴!$J$2:$J$1048576)) -> 
B120: =IF(商品マスタ!$B114="","",商品マスタ!$B114) -> 110 | C120: =IF(商品マスタ!$C114="","",商品マスタ!$C114) ->  | F120: =IF(C120="","",棚卸入力!R120+SUMIF(棚卸後在庫変更履歴!$H$2:$H$1048576,在庫表示!B120,棚卸後在庫変更履歴!$J$2:$J$1048576)) -> 
B121: =IF(商品マスタ!$B115="","",商品マスタ!$B115) -> 111 | C121: =IF(商品マスタ!$C115="","",商品マスタ!$C115) ->  | F121: =IF(C121="","",棚卸入力!R121+SUMIF(棚卸後在庫変更履歴!$H$2:$H$1048576,在庫表示!B121,棚卸後在庫変更履歴!$J$2:$J$1048576)) -> 
B122: =IF(商品マスタ!$B116="","",商品マスタ!$B116) -> 112 | C122: =IF(商品マスタ!$C116="","",商品マスタ!$C116) ->  | F122: =IF(C122="","",棚卸入力!R122+SUMIF(棚卸後在庫変更履歴!$H$2:$H$1048576,在庫表示!B122,棚卸後在庫変更履歴!$J$2:$J$1048576)) -> 
B123: =IF(商品マスタ!$B117="","",商品マスタ!$B117) -> 113 | C123: =IF(商品マスタ!$C117="","",商品マスタ!$C117) ->  | F123: =IF(C123="","",棚卸入力!R123+SUMIF(棚卸後在庫変更履歴!$H$2:$H$1048576,在庫表示!B123,棚卸後在庫変更履歴!$J$2:$J$1048576)) -> 
B124: =IF(商品マスタ!$B118="","",商品マスタ!$B118) -> 114 | C124: =IF(商品マスタ!$C118="","",商品マスタ!$C118) ->  | F124: =IF(C124="","",棚卸入力!R124+SUMIF(棚卸後在庫変更履歴!$H$2:$H$1048576,在庫表示!B124,棚卸後在庫変更履歴!$J$2:$J$1048576)) -> 
B125: =IF(商品マスタ!$B119="","",商品マスタ!$B119) -> 115 | C125: =IF(商品マスタ!$C119="","",商品マスタ!$C119) ->  | F125: =IF(C125="","",棚卸入力!R125+SUMIF(棚卸後在庫変更履歴!$H$2:$H$1048576,在庫表示!B125,棚卸後在庫変更履歴!$J$2:$J$1048576)) -> 
B126: =IF(商品マスタ!$B120="","",商品マスタ!$B120) -> 116 | C126: =IF(商品マスタ!$C120="","",商品マスタ!$C120) ->  | F126: =IF(C126="","",棚卸入力!R126+SUMIF(棚卸後在庫変更履歴!$H$2:$H$1048576,在庫表示!B126,棚卸後在庫変更履歴!$J$2:$J$1048576)) -> 
B127: =IF(商品マスタ!$B121="","",商品マスタ!$B121) -> 117 | C127: =IF(商品マスタ!$C121="","",商品マスタ!$C121) ->  | F127: =IF(C127="","",棚卸入力!R127+SUMIF(棚卸後在庫変更履歴!$H$2:$H$1048576,在庫表示!B127,棚卸後在庫変更履歴!$J$2:$J$1048576)) -> 
B128: =IF(商品マスタ!$B122="","",商品マスタ!$B122) -> 118 | C128: =IF(商品マスタ!$C122="","",商品マスタ!$C122) ->  | F128: =IF(C128="","",棚卸入力!R128+SUMIF(棚卸後在庫変更履歴!$H$2:$H$1048576,在庫表示!B128,棚卸後在庫変更履歴!$J$2:$J$1048576)) -> 
B129: =IF(商品マスタ!$B123="","",商品マスタ!$B123) -> 119 | C129: =IF(商品マスタ!$C123="","",商品マスタ!$C123) ->  | F129: =IF(C129="","",棚卸入力!R129+SUMIF(棚卸後在庫変更履歴!$H$2:$H$1048576,在庫表示!B129,棚卸後在庫変更履歴!$J$2:$J$1048576)) -> 
B130: =IF(商品マスタ!$B124="","",商品マスタ!$B124) -> 120 | C130: =IF(商品マスタ!$C124="","",商品マスタ!$C124) ->  | F130: =IF(C130="","",棚卸入力!R130+SUMIF(棚卸後在庫変更履歴!$H$2:$H$1048576,在庫表示!B130,棚卸後在庫変更履歴!$J$2:$J$1048576)) -> 
B131: =IF(商品マスタ!$B125="","",商品マスタ!$B125) -> 121 | C131: =IF(商品マスタ!$C125="","",商品マスタ!$C125) ->  | F131: =IF(C131="","",棚卸入力!R131+SUMIF(棚卸後在庫変更履歴!$H$2:$H$1048576,在庫表示!B131,棚卸後在庫変更履歴!$J$2:$J$1048576)) -> 
B132: =IF(商品マスタ!$B126="","",商品マスタ!$B126) -> 122 | C132: =IF(商品マスタ!$C126="","",商品マスタ!$C126) ->  | F132: =IF(C132="","",棚卸入力!R132+SUMIF(棚卸後在庫変更履歴!$H$2:$H$1048576,在庫表示!B132,棚卸後在庫変更履歴!$J$2:$J$1048576)) -> 
B133: =IF(商品マスタ!$B127="","",商品マスタ!$B127) -> 123 | C133: =IF(商品マスタ!$C127="","",商品マスタ!$C127) ->  | F133: =IF(C133="","",棚卸入力!R133+SUMIF(棚卸後在庫変更履歴!$H$2:$H$1048576,在庫表示!B133,棚卸後在庫変更履歴!$J$2:$J$1048576)) -> 
B134: =IF(商品マスタ!$B128="","",商品マスタ!$B128) -> 124 | C134: =IF(商品マスタ!$C128="","",商品マスタ!$C128) ->  | F134: =IF(C134="","",棚卸入力!R134+SUMIF(棚卸後在庫変更履歴!$H$2:$H$1048576,在庫表示!B134,棚卸後在庫変更履歴!$J$2:$J$1048576)) -> 
B135: =IF(商品マスタ!$B129="","",商品マスタ!$B129) -> 125 | C135: =IF(商品マスタ!$C129="","",商品マスタ!$C129) ->  | F135: =IF(C135="","",棚卸入力!R135+SUMIF(棚卸後在庫変更履歴!$H$2:$H$1048576,在庫表示!B135,棚卸後在庫変更履歴!$J$2:$J$1048576)) -> 
B136: =IF(商品マスタ!$B130="","",商品マスタ!$B130) -> 126 | C136: =IF(商品マスタ!$C130="","",商品マスタ!$C130) ->  | F136: =IF(C136="","",棚卸入力!R136+SUMIF(棚卸後在庫変更履歴!$H$2:$H$1048576,在庫表示!B136,棚卸後在庫変更履歴!$J$2:$J$1048576)) -> 
B137: =IF(商品マスタ!$B131="","",商品マスタ!$B131) -> 127 | C137: =IF(商品マスタ!$C131="","",商品マスタ!$C131) ->  | F137: =IF(C137="","",棚卸入力!R137+SUMIF(棚卸後在庫変更履歴!$H$2:$H$1048576,在庫表示!B137,棚卸後在庫変更履歴!$J$2:$J$1048576)) -> 
B138: =IF(商品マスタ!$B132="","",商品マスタ!$B132) -> 128 | C138: =IF(商品マスタ!$C132="","",商品マスタ!$C132) ->  | F138: =IF(C138="","",棚卸入力!R138+SUMIF(棚卸後在庫変更履歴!$H$2:$H$1048576,在庫表示!B138,棚卸後在庫変更履歴!$J$2:$J$1048576)) -> 
B139: =IF(商品マスタ!$B133="","",商品マスタ!$B133) -> 129 | C139: =IF(商品マスタ!$C133="","",商品マスタ!$C133) ->  | F139: =IF(C139="","",棚卸入力!R139+SUMIF(棚卸後在庫変更履歴!$H$2:$H$1048576,在庫表示!B139,棚卸後在庫変更履歴!$J$2:$J$1048576)) -> 
B140: =IF(商品マスタ!$B134="","",商品マスタ!$B134) -> 130 | C140: =IF(商品マスタ!$C134="","",商品マスタ!$C134) ->  | F140: =IF(C140="","",棚卸入力!R140+SUMIF(棚卸後在庫変更履歴!$H$2:$H$1048576,在庫表示!B140,棚卸後在庫変更履歴!$J$2:$J$1048576)) -> 
B141: =IF(商品マスタ!$B135="","",商品マスタ!$B135) -> 131 | C141: =IF(商品マスタ!$C135="","",商品マスタ!$C135) ->  | F141: =IF(C141="","",棚卸入力!R141+SUMIF(棚卸後在庫変更履歴!$H$2:$H$1048576,在庫表示!B141,棚卸後在庫変更履歴!$J$2:$J$1048576)) -> 
B142: =IF(商品マスタ!$B136="","",商品マスタ!$B136) -> 132 | C142: =IF(商品マスタ!$C136="","",商品マスタ!$C136) ->  | F142: =IF(C142="","",棚卸入力!R142+SUMIF(棚卸後在庫変更履歴!$H$2:$H$1048576,在庫表示!B142,棚卸後在庫変更履歴!$J$2:$J$1048576)) -> 
B143: =IF(商品マスタ!$B137="","",商品マスタ!$B137) -> 133 | C143: =IF(商品マスタ!$C137="","",商品マスタ!$C137) ->  | F143: =IF(C143="","",棚卸入力!R143+SUMIF(棚卸後在庫変更履歴!$H$2:$H$1048576,在庫表示!B143,棚卸後在庫変更履歴!$J$2:$J$1048576)) -> 
B144: =IF(商品マスタ!$B138="","",商品マスタ!$B138) -> 134 | C144: =IF(商品マスタ!$C138="","",商品マスタ!$C138) ->  | F144: =IF(C144="","",棚卸入力!R144+SUMIF(棚卸後在庫変更履歴!$H$2:$H$1048576,在庫表示!B144,棚卸後在庫変更履歴!$J$2:$J$1048576)) -> 
B145: =IF(商品マスタ!$B139="","",商品マスタ!$B139) -> 135 | C145: =IF(商品マスタ!$C139="","",商品マスタ!$C139) ->  | F145: =IF(C145="","",棚卸入力!R145+SUMIF(棚卸後在庫変更履歴!$H$2:$H$1048576,在庫表示!B145,棚卸後在庫変更履歴!$J$2:$J$1048576)) -> 
B146: =IF(商品マスタ!$B140="","",商品マスタ!$B140) -> 136 | C146: =IF(商品マスタ!$C140="","",商品マスタ!$C140) ->  | F146: =IF(C146="","",棚卸入力!R146+SUMIF(棚卸後在庫変更履歴!$H$2:$H$1048576,在庫表示!B146,棚卸後在庫変更履歴!$J$2:$J$1048576)) -> 
B147: =IF(商品マスタ!$B141="","",商品マスタ!$B141) -> 137 | C147: =IF(商品マスタ!$C141="","",商品マスタ!$C141) ->  | F147: =IF(C147="","",棚卸入力!R147+SUMIF(棚卸後在庫変更履歴!$H$2:$H$1048576,在庫表示!B147,棚卸後在庫変更履歴!$J$2:$J$1048576)) -> 
B148: =IF(商品マスタ!$B142="","",商品マスタ!$B142) -> 138 | C148: =IF(商品マスタ!$C142="","",商品マスタ!$C142) ->  | F148: =IF(C148="","",棚卸入力!R148+SUMIF(棚卸後在庫変更履歴!$H$2:$H$1048576,在庫表示!B148,棚卸後在庫変更履歴!$J$2:$J$1048576)) -> 
B149: =IF(商品マスタ!$B143="","",商品マスタ!$B143) -> 139 | C149: =IF(商品マスタ!$C143="","",商品マスタ!$C143) ->  | F149: =IF(C149="","",棚卸入力!R149+SUMIF(棚卸後在庫変更履歴!$H$2:$H$1048576,在庫表示!B149,棚卸後在庫変更履歴!$J$2:$J$1048576)) -> 
B150: =IF(商品マスタ!$B144="","",商品マスタ!$B144) -> 140 | C150: =IF(商品マスタ!$C144="","",商品マスタ!$C144) ->  | F150: =IF(C150="","",棚卸入力!R150+SUMIF(棚卸後在庫変更履歴!$H$2:$H$1048576,在庫表示!B150,棚卸後在庫変更履歴!$J$2:$J$1048576)) -> 
B151: =IF(商品マスタ!$B145="","",商品マスタ!$B145) -> 141 | C151: =IF(商品マスタ!$C145="","",商品マスタ!$C145) ->  | F151: =IF(C151="","",棚卸入力!R151+SUMIF(棚卸後在庫変更履歴!$H$2:$H$1048576,在庫表示!B151,棚卸後在庫変更履歴!$J$2:$J$1048576)) -> 
B152: =IF(商品マスタ!$B146="","",商品マスタ!$B146) -> 142 | C152: =IF(商品マスタ!$C146="","",商品マスタ!$C146) ->  | F152: =IF(C152="","",棚卸入力!R152+SUMIF(棚卸後在庫変更履歴!$H$2:$H$1048576,在庫表示!B152,棚卸後在庫変更履歴!$J$2:$J$1048576)) -> 
B153: =IF(商品マスタ!$B147="","",商品マスタ!$B147) -> 143 | C153: =IF(商品マスタ!$C147="","",商品マスタ!$C147) ->  | F153: =IF(C153="","",棚卸入力!R153+SUMIF(棚卸後在庫変更履歴!$H$2:$H$1048576,在庫表示!B153,棚卸後在庫変更履歴!$J$2:$J$1048576)) -> 
B154: =IF(商品マスタ!$B148="","",商品マスタ!$B148) -> 144 | C154: =IF(商品マスタ!$C148="","",商品マスタ!$C148) ->  | F154: =IF(C154="","",棚卸入力!R154+SUMIF(棚卸後在庫変更履歴!$H$2:$H$1048576,在庫表示!B154,棚卸後在庫変更履歴!$J$2:$J$1048576)) -> 
B155: =IF(商品マスタ!$B149="","",商品マスタ!$B149) -> 145 | C155: =IF(商品マスタ!$C149="","",商品マスタ!$C149) ->  | F155: =IF(C155="","",棚卸入力!R155+SUMIF(棚卸後在庫変更履歴!$H$2:$H$1048576,在庫表示!B155,棚卸後在庫変更履歴!$J$2:$J$1048576)) -> 
B156: =IF(商品マスタ!$B150="","",商品マスタ!$B150) -> 146 | C156: =IF(商品マスタ!$C150="","",商品マスタ!$C150) ->  | F156: =IF(C156="","",棚卸入力!R156+SUMIF(棚卸後在庫変更履歴!$H$2:$H$1048576,在庫表示!B156,棚卸後在庫変更履歴!$J$2:$J$1048576)) -> 
B157: =IF(商品マスタ!$B151="","",商品マスタ!$B151) -> 147 | C157: =IF(商品マスタ!$C151="","",商品マスタ!$C151) ->  | F157: =IF(C157="","",棚卸入力!R157+SUMIF(棚卸後在庫変更履歴!$H$2:$H$1048576,在庫表示!B157,棚卸後在庫変更履歴!$J$2:$J$1048576)) -> 
B158: =IF(商品マスタ!$B152="","",商品マスタ!$B152) -> 148 | C158: =IF(商品マスタ!$C152="","",商品マスタ!$C152) ->  | F158: =IF(C158="","",棚卸入力!R158+SUMIF(棚卸後在庫変更履歴!$H$2:$H$1048576,在庫表示!B158,棚卸後在庫変更履歴!$J$2:$J$1048576)) -> 
B159: =IF(商品マスタ!$B153="","",商品マスタ!$B153) -> 149 | C159: =IF(商品マスタ!$C153="","",商品マスタ!$C153) ->  | F159: =IF(C159="","",棚卸入力!R159+SUMIF(棚卸後在庫変更履歴!$H$2:$H$1048576,在庫表示!B159,棚卸後在庫変更履歴!$J$2:$J$1048576)) -> 
B160: =IF(商品マスタ!$B154="","",商品マスタ!$B154) -> 150 | C160: =IF(商品マスタ!$C154="","",商品マスタ!$C154) ->  | F160: =IF(C160="","",棚卸入力!R160+SUMIF(棚卸後在庫変更履歴!$H$2:$H$1048576,在庫表示!B160,棚卸後在庫変更履歴!$J$2:$J$1048576)) -> 
B161: =IF(商品マスタ!$B155="","",商品マスタ!$B155) -> 151 | C161: =IF(商品マスタ!$C155="","",商品マスタ!$C155) ->  | F161: =IF(C161="","",棚卸入力!R161+SUMIF(棚卸後在庫変更履歴!$H$2:$H$1048576,在庫表示!B161,棚卸後在庫変更履歴!$J$2:$J$1048576)) -> 
B162: =IF(商品マスタ!$B156="","",商品マスタ!$B156) -> 152 | C162: =IF(商品マスタ!$C156="","",商品マスタ!$C156) ->  | F162: =IF(C162="","",棚卸入力!R162+SUMIF(棚卸後在庫変更履歴!$H$2:$H$1048576,在庫表示!B162,棚卸後在庫変更履歴!$J$2:$J$1048576)) -> 
B163: =IF(商品マスタ!$B157="","",商品マスタ!$B157) -> 153 | C163: =IF(商品マスタ!$C157="","",商品マスタ!$C157) ->  | F163: =IF(C163="","",棚卸入力!R163+SUMIF(棚卸後在庫変更履歴!$H$2:$H$1048576,在庫表示!B163,棚卸後在庫変更履歴!$J$2:$J$1048576)) -> 
B164: =IF(商品マスタ!$B158="","",商品マスタ!$B158) -> 154 | C164: =IF(商品マスタ!$C158="","",商品マスタ!$C158) ->  | F164: =IF(C164="","",棚卸入力!R164+SUMIF(棚卸後在庫変更履歴!$H$2:$H$1048576,在庫表示!B164,棚卸後在庫変更履歴!$J$2:$J$1048576)) -> 
B165: =IF(商品マスタ!$B159="","",商品マスタ!$B159) -> 155 | C165: =IF(商品マスタ!$C159="","",商品マスタ!$C159) ->  | F165: =IF(C165="","",棚卸入力!R165+SUMIF(棚卸後在庫変更履歴!$H$2:$H$1048576,在庫表示!B165,棚卸後在庫変更履歴!$J$2:$J$1048576)) -> 
B166: =IF(商品マスタ!$B160="","",商品マスタ!$B160) -> 156 | C166: =IF(商品マスタ!$C160="","",商品マスタ!$C160) ->  | F166: =IF(C166="","",棚卸入力!R166+SUMIF(棚卸後在庫変更履歴!$H$2:$H$1048576,在庫表示!B166,棚卸後在庫変更履歴!$J$2:$J$1048576)) -> 
B167: =IF(商品マスタ!$B161="","",商品マスタ!$B161) -> 157 | C167: =IF(商品マスタ!$C161="","",商品マスタ!$C161) ->  | F167: =IF(C167="","",棚卸入力!R167+SUMIF(棚卸後在庫変更履歴!$H$2:$H$1048576,在庫表示!B167,棚卸後在庫変更履歴!$J$2:$J$1048576)) -> 
B168: =IF(商品マスタ!$B162="","",商品マスタ!$B162) -> 158 | C168: =IF(商品マスタ!$C162="","",商品マスタ!$C162) ->  | F168: =IF(C168="","",棚卸入力!R168+SUMIF(棚卸後在庫変更履歴!$H$2:$H$1048576,在庫表示!B168,棚卸後在庫変更履歴!$J$2:$J$1048576)) -> 
B169: =IF(商品マスタ!$B163="","",商品マスタ!$B163) -> 159 | C169: =IF(商品マスタ!$C163="","",商品マスタ!$C163) ->  | F169: =IF(C169="","",棚卸入力!R169+SUMIF(棚卸後在庫変更履歴!$H$2:$H$1048576,在庫表示!B169,棚卸後在庫変更履歴!$J$2:$J$1048576)) -> 
B170: =IF(商品マスタ!$B164="","",商品マスタ!$B164) -> 160 | C170: =IF(商品マスタ!$C164="","",商品マスタ!$C164) ->  | F170: =IF(C170="","",棚卸入力!R170+SUMIF(棚卸後在庫変更履歴!$H$2:$H$1048576,在庫表示!B170,棚卸後在庫変更履歴!$J$2:$J$1048576)) -> 
B171: =IF(商品マスタ!$B165="","",商品マスタ!$B165) -> 161 | C171: =IF(商品マスタ!$C165="","",商品マスタ!$C165) ->  | F171: =IF(C171="","",棚卸入力!R171+SUMIF(棚卸後在庫変更履歴!$H$2:$H$1048576,在庫表示!B171,棚卸後在庫変更履歴!$J$2:$J$1048576)) -> 
B172: =IF(商品マスタ!$B166="","",商品マスタ!$B166) -> 162 | C172: =IF(商品マスタ!$C166="","",商品マスタ!$C166) ->  | F172: =IF(C172="","",棚卸入力!R172+SUMIF(棚卸後在庫変更履歴!$H$2:$H$1048576,在庫表示!B172,棚卸後在庫変更履歴!$J$2:$J$1048576)) -> 
B173: =IF(商品マスタ!$B167="","",商品マスタ!$B167) -> 163 | C173: =IF(商品マスタ!$C167="","",商品マスタ!$C167) ->  | F173: =IF(C173="","",棚卸入力!R173+SUMIF(棚卸後在庫変更履歴!$H$2:$H$1048576,在庫表示!B173,棚卸後在庫変更履歴!$J$2:$J$1048576)) -> 
B174: =IF(商品マスタ!$B168="","",商品マスタ!$B168) -> 164 | C174: =IF(商品マスタ!$C168="","",商品マスタ!$C168) ->  | F174: =IF(C174="","",棚卸入力!R174+SUMIF(棚卸後在庫変更履歴!$H$2:$H$1048576,在庫表示!B174,棚卸後在庫変更履歴!$J$2:$J$1048576)) -> 
B175: =IF(商品マスタ!$B169="","",商品マスタ!$B169) -> 165 | C175: =IF(商品マスタ!$C169="","",商品マスタ!$C169) ->  | F175: =IF(C175="","",棚卸入力!R175+SUMIF(棚卸後在庫変更履歴!$H$2:$H$1048576,在庫表示!B175,棚卸後在庫変更履歴!$J$2:$J$1048576)) -> 
B176: =IF(商品マスタ!$B170="","",商品マスタ!$B170) -> 166 | C176: =IF(商品マスタ!$C170="","",商品マスタ!$C170) ->  | F176: =IF(C176="","",棚卸入力!R176+SUMIF(棚卸後在庫変更履歴!$H$2:$H$1048576,在庫表示!B176,棚卸後在庫変更履歴!$J$2:$J$1048576)) -> 
B177: =IF(商品マスタ!$B171="","",商品マスタ!$B171) -> 167 | C177: =IF(商品マスタ!$C171="","",商品マスタ!$C171) ->  | F177: =IF(C177="","",棚卸入力!R177+SUMIF(棚卸後在庫変更履歴!$H$2:$H$1048576,在庫表示!B177,棚卸後在庫変更履歴!$J$2:$J$1048576)) -> 
B178: =IF(商品マスタ!$B172="","",商品マスタ!$B172) -> 168 | C178: =IF(商品マスタ!$C172="","",商品マスタ!$C172) ->  | F178: =IF(C178="","",棚卸入力!R178+SUMIF(棚卸後在庫変更履歴!$H$2:$H$1048576,在庫表示!B178,棚卸後在庫変更履歴!$J$2:$J$1048576)) -> 
B179: =IF(商品マスタ!$B173="","",商品マスタ!$B173) -> 169 | C179: =IF(商品マスタ!$C173="","",商品マスタ!$C173) ->  | F179: =IF(C179="","",棚卸入力!R179+SUMIF(棚卸後在庫変更履歴!$H$2:$H$1048576,在庫表示!B179,棚卸後在庫変更履歴!$J$2:$J$1048576)) -> 
B180: =IF(商品マスタ!$B174="","",商品マスタ!$B174) -> 170 | C180: =IF(商品マスタ!$C174="","",商品マスタ!$C174) ->  | F180: =IF(C180="","",棚卸入力!R180+SUMIF(棚卸後在庫変更履歴!$H$2:$H$1048576,在庫表示!B180,棚卸後在庫変更履歴!$J$2:$J$1048576)) -> 
B181: =IF(商品マスタ!$B175="","",商品マスタ!$B175) -> 171 | C181: =IF(商品マスタ!$C175="","",商品マスタ!$C175) ->  | F181: =IF(C181="","",棚卸入力!R181+SUMIF(棚卸後在庫変更履歴!$H$2:$H$1048576,在庫表示!B181,棚卸後在庫変更履歴!$J$2:$J$1048576)) -> 
B182: =IF(商品マスタ!$B176="","",商品マスタ!$B176) -> 172 | C182: =IF(商品マスタ!$C176="","",商品マスタ!$C176) ->  | F182: =IF(C182="","",棚卸入力!R182+SUMIF(棚卸後在庫変更履歴!$H$2:$H$1048576,在庫表示!B182,棚卸後在庫変更履歴!$J$2:$J$1048576)) -> 
B183: =IF(商品マスタ!$B177="","",商品マスタ!$B177) -> 173 | C183: =IF(商品マスタ!$C177="","",商品マスタ!$C177) ->  | F183: =IF(C183="","",棚卸入力!R183+SUMIF(棚卸後在庫変更履歴!$H$2:$H$1048576,在庫表示!B183,棚卸後在庫変更履歴!$J$2:$J$1048576)) -> 
B184: =IF(商品マスタ!$B178="","",商品マスタ!$B178) -> 174 | C184: =IF(商品マスタ!$C178="","",商品マスタ!$C178) ->  | F184: =IF(C184="","",棚卸入力!R184+SUMIF(棚卸後在庫変更履歴!$H$2:$H$1048576,在庫表示!B184,棚卸後在庫変更履歴!$J$2:$J$1048576)) -> 
B185: =IF(商品マスタ!$B179="","",商品マスタ!$B179) -> 175 | C185: =IF(商品マスタ!$C179="","",商品マスタ!$C179) ->  | F185: =IF(C185="","",棚卸入力!R185+SUMIF(棚卸後在庫変更履歴!$H$2:$H$1048576,在庫表示!B185,棚卸後在庫変更履歴!$J$2:$J$1048576)) -> 
B186: =IF(商品マスタ!$B180="","",商品マスタ!$B180) -> 176 | C186: =IF(商品マスタ!$C180="","",商品マスタ!$C180) ->  | F186: =IF(C186="","",棚卸入力!R186+SUMIF(棚卸後在庫変更履歴!$H$2:$H$1048576,在庫表示!B186,棚卸後在庫変更履歴!$J$2:$J$1048576)) -> 
B187: =IF(商品マスタ!$B181="","",商品マスタ!$B181) -> 177 | C187: =IF(商品マスタ!$C181="","",商品マスタ!$C181) ->  | F187: =IF(C187="","",棚卸入力!R187+SUMIF(棚卸後在庫変更履歴!$H$2:$H$1048576,在庫表示!B187,棚卸後在庫変更履歴!$J$2:$J$1048576)) -> 
B188: =IF(商品マスタ!$B182="","",商品マスタ!$B182) -> 178 | C188: =IF(商品マスタ!$C182="","",商品マスタ!$C182) ->  | F188: =IF(C188="","",棚卸入力!R188+SUMIF(棚卸後在庫変更履歴!$H$2:$H$1048576,在庫表示!B188,棚卸後在庫変更履歴!$J$2:$J$1048576)) -> 
B189: =IF(商品マスタ!$B183="","",商品マスタ!$B183) -> 179 | C189: =IF(商品マスタ!$C183="","",商品マスタ!$C183) ->  | F189: =IF(C189="","",棚卸入力!R189+SUMIF(棚卸後在庫変更履歴!$H$2:$H$1048576,在庫表示!B189,棚卸後在庫変更履歴!$J$2:$J$1048576)) -> 
B190: =IF(商品マスタ!$B184="","",商品マスタ!$B184) -> 180 | C190: =IF(商品マスタ!$C184="","",商品マスタ!$C184) ->  | F190: =IF(C190="","",棚卸入力!R190+SUMIF(棚卸後在庫変更履歴!$H$2:$H$1048576,在庫表示!B190,棚卸後在庫変更履歴!$J$2:$J$1048576)) -> 
B191: =IF(商品マスタ!$B185="","",商品マスタ!$B185) -> 181 | C191: =IF(商品マスタ!$C185="","",商品マスタ!$C185) ->  | F191: =IF(C191="","",棚卸入力!R191+SUMIF(棚卸後在庫変更履歴!$H$2:$H$1048576,在庫表示!B191,棚卸後在庫変更履歴!$J$2:$J$1048576)) -> 
B192: =IF(商品マスタ!$B186="","",商品マスタ!$B186) -> 182 | C192: =IF(商品マスタ!$C186="","",商品マスタ!$C186) ->  | F192: =IF(C192="","",棚卸入力!R192+SUMIF(棚卸後在庫変更履歴!$H$2:$H$1048576,在庫表示!B192,棚卸後在庫変更履歴!$J$2:$J$1048576)) -> 
B193: =IF(商品マスタ!$B187="","",商品マスタ!$B187) -> 183 | C193: =IF(商品マスタ!$C187="","",商品マスタ!$C187) ->  | F193: =IF(C193="","",棚卸入力!R193+SUMIF(棚卸後在庫変更履歴!$H$2:$H$1048576,在庫表示!B193,棚卸後在庫変更履歴!$J$2:$J$1048576)) -> 
B194: =IF(商品マスタ!$B188="","",商品マスタ!$B188) -> 184 | C194: =IF(商品マスタ!$C188="","",商品マスタ!$C188) ->  | F194: =IF(C194="","",棚卸入力!R194+SUMIF(棚卸後在庫変更履歴!$H$2:$H$1048576,在庫表示!B194,棚卸後在庫変更履歴!$J$2:$J$1048576)) -> 
B195: =IF(商品マスタ!$B189="","",商品マスタ!$B189) -> 185 | C195: =IF(商品マスタ!$C189="","",商品マスタ!$C189) ->  | F195: =IF(C195="","",棚卸入力!R195+SUMIF(棚卸後在庫変更履歴!$H$2:$H$1048576,在庫表示!B195,棚卸後在庫変更履歴!$J$2:$J$1048576)) -> 
B196: =IF(商品マスタ!$B190="","",商品マスタ!$B190) -> 186 | C196: =IF(商品マスタ!$C190="","",商品マスタ!$C190) ->  | F196: =IF(C196="","",棚卸入力!R196+SUMIF(棚卸後在庫変更履歴!$H$2:$H$1048576,在庫表示!B196,棚卸後在庫変更履歴!$J$2:$J$1048576)) -> 
B197: =IF(商品マスタ!$B191="","",商品マスタ!$B191) -> 187 | C197: =IF(商品マスタ!$C191="","",商品マスタ!$C191) ->  | F197: =IF(C197="","",棚卸入力!R197+SUMIF(棚卸後在庫変更履歴!$H$2:$H$1048576,在庫表示!B197,棚卸後在庫変更履歴!$J$2:$J$1048576)) -> 
B198: =IF(商品マスタ!$B192="","",商品マスタ!$B192) -> 188 | C198: =IF(商品マスタ!$C192="","",商品マスタ!$C192) ->  | F198: =IF(C198="","",棚卸入力!R198+SUMIF(棚卸後在庫変更履歴!$H$2:$H$1048576,在庫表示!B198,棚卸後在庫変更履歴!$J$2:$J$1048576)) -> 
B199: =IF(商品マスタ!$B193="","",商品マスタ!$B193) -> 189 | C199: =IF(商品マスタ!$C193="","",商品マスタ!$C193) ->  | F199: =IF(C199="","",棚卸入力!R199+SUMIF(棚卸後在庫変更履歴!$H$2:$H$1048576,在庫表示!B199,棚卸後在庫変更履歴!$J$2:$J$1048576)) -> 
B200: =IF(商品マスタ!$B194="","",商品マスタ!$B194) -> 190 | C200: =IF(商品マスタ!$C194="","",商品マスタ!$C194) ->  | F200: =IF(C200="","",棚卸入力!R200+SUMIF(棚卸後在庫変更履歴!$H$2:$H$1048576,在庫表示!B200,棚卸後在庫変更履歴!$J$2:$J$1048576)) -> 
B201: =IF(商品マスタ!$B195="","",商品マスタ!$B195) -> 191 | C201: =IF(商品マスタ!$C195="","",商品マスタ!$C195) ->  | F201: =IF(C201="","",棚卸入力!R201+SUMIF(棚卸後在庫変更履歴!$H$2:$H$1048576,在庫表示!B201,棚卸後在庫変更履歴!$J$2:$J$1048576)) -> 
B202: =IF(商品マスタ!$B196="","",商品マスタ!$B196) -> 192 | C202: =IF(商品マスタ!$C196="","",商品マスタ!$C196) ->  | F202: =IF(C202="","",棚卸入力!R202+SUMIF(棚卸後在庫変更履歴!$H$2:$H$1048576,在庫表示!B202,棚卸後在庫変更履歴!$J$2:$J$1048576)) -> 
B203: =IF(商品マスタ!$B197="","",商品マスタ!$B197) -> 193 | C203: =IF(商品マスタ!$C197="","",商品マスタ!$C197) ->  | F203: =IF(C203="","",棚卸入力!R203+SUMIF(棚卸後在庫変更履歴!$H$2:$H$1048576,在庫表示!B203,棚卸後在庫変更履歴!$J$2:$J$1048576)) -> 
B204: =IF(商品マスタ!$B198="","",商品マスタ!$B198) -> 194 | C204: =IF(商品マスタ!$C198="","",商品マスタ!$C198) ->  | F204: =IF(C204="","",棚卸入力!R204+SUMIF(棚卸後在庫変更履歴!$H$2:$H$1048576,在庫表示!B204,棚卸後在庫変更履歴!$J$2:$J$1048576)) -> 
B205: =IF(商品マスタ!$B199="","",商品マスタ!$B199) -> 195 | C205: =IF(商品マスタ!$C199="","",商品マスタ!$C199) ->  | F205: =IF(C205="","",棚卸入力!R205+SUMIF(棚卸後在庫変更履歴!$H$2:$H$1048576,在庫表示!B205,棚卸後在庫変更履歴!$J$2:$J$1048576)) -> 
B206: =IF(商品マスタ!$B200="","",商品マスタ!$B200) -> 196 | C206: =IF(商品マスタ!$C200="","",商品マスタ!$C200) ->  | F206: =IF(C206="","",棚卸入力!R206+SUMIF(棚卸後在庫変更履歴!$H$2:$H$1048576,在庫表示!B206,棚卸後在庫変更履歴!$J$2:$J$1048576)) -> 
B207: =IF(商品マスタ!$B201="","",商品マスタ!$B201) -> 197 | C207: =IF(商品マスタ!$C201="","",商品マスタ!$C201) ->  | F207: =IF(C207="","",棚卸入力!R207+SUMIF(棚卸後在庫変更履歴!$H$2:$H$1048576,在庫表示!B207,棚卸後在庫変更履歴!$J$2:$J$1048576)) -> 
... 3 more rows

Sheet 商品マスタ
B2: 商品マスター | H2: 商品の名称、価格情報を記入してください。
B3: 商品番号 | C3: 商品名 | D3: 本体価格（税抜き） | G3: 購入価格 | H3: 表示順
D4: 一般価格 | E4: 会員価格 | F4: 団体価格 | J4: 【ご注意下さい】 ① 「商品管理」では、「商品番号」を商品の識別に使用しています。「商品番号」を異なる商品に振り直しますと、入庫・納品の記録が混乱してしまいますので、ある商品に一度振った「商品番号」は変更しないでください。 ② 同種の商品の「商品番号」が飛び地になってしまった場合は、「表示順」を振り直し、エクセルのソート機能で行の順序を並び替えて整頓してください。 ③ 商品の増加を見越して、予め番号を空けて、飛び飛びに商品を登録しておくこともできます。 ④ 実質的に同じ商品を指しているものであれば、ある「商品番号」の商品名を変更できます。 その場合「在庫表示」の商品名は、最新のものが表示されます。
B5: 1 | C5: LIFESPAN（ライフスパン）―老いなき世界 | D5: 2,600 | E5: =ROUNDUP(D5*0.8,-1) -> 2,080 | F5: =ROUNDUP(D5*0.7,-1) -> 1,820 | G5: =ROUNDUP(D5*0.45,-1) -> 1,170 | H5: 1
B6: 2 | C6: WHAT IS LIFE？（ホワット・イズ・ライフ？）生命とは何か | D6: 1,800 | E6: =ROUNDUP(D6*0.8,-1) -> 1,440 | F6: =ROUNDUP(D6*0.7,-1) -> 1,260 | G6: =ROUNDUP(D6*0.45,-1) -> 810 | H6: 2
B7: 3 | C7: 科学的とはどういう意味か | D7: 600 | E7: 480 | F7: 420 | G7: 270 | H7: 3
B8: 4 | C8: コトPOP（R）を書いたら あっ、売れちゃった！ | D8: 1,600 | E8: 1,280 | F8: 1,120 | G8: 720 | H8: 4
B9: 5 | C9: 鉄腕アトム 地球最大の冒険 | D9: 1,500 | E9: 1,200 | F9: 1,050 | G9: 680 | H9: 5
B10: 6 | C10: 鉄腕アトム 地球防衛隊 | D10: 1,400 | E10: 1,120 | F10: 980 | G10: 630 | H10: 6
B11: 7 | C11: どうする？デザイン クライアントとのやりとりでよくわかる！デザインの決め方、伝え方 | D11: 2,200 | E11: 1,760 | F11: 1,540 | G11: 990 | H11: 7
B12: 8 | C12: ハッブル宇宙望遠鏡が見た絶景宇宙 SELECT 10 Vol.1 | D12: 100 | E12: 80 | F12: 70 | G12: 50 | H12: 8
B13: 9 | C13: ハムスターがおうちにやってきた！ | D13: 600 | E13: 480 | F13: 420 | G13: 270 | H13: 9
B14: 10 | C14: ビーカーくんのゆかいな化学実験 | D14: 1,600 | E14: 1,280 | F14: 1,120 | G14: 720 | H14: 10
B15: 11 | C15: ヒトを理解するための 生物学 | D15: 2,400 | E15: 1,920 | F15: 1,680 | G15: 1,080 | H15: 11
B16: 12 | C16: 富士山はどうしてそこにあるのか 地形から見る日本列島史 | D16: 900 | E16: 720 | F16: 630 | G16: 410 | H16: 12
B17: 13 | C17: 宇宙の「果て」になにがあるのか 最新天文学が描く、時間と空間の終わり | D17: 1,000 | E17: 800 | F17: 700 | G17: 450 | H17: 13
B18: 14 | C18: 宇宙は本当にひとつなのか―最新宇宙論入門 | D18: 900 | E18: 720 | F18: 630 | G18: 410 | H18: 14
B19: 15 | C19: 宇宙創成（上） | D19: 700 | E19: 560 | F19: 490 | G19: 320 | H19: 15
B20: 16 | C20: 宇宙望遠鏡がとらえた 銀河（ブックブライト） | D20: 900 | E20: 720 | F20: 630 | G20: 410 | H20: 16
B21: 17 | C21: 見てわかる、迷わず決まる配色アイデア 3色だけでセンスのいい色 | D21: 2,000 | E21: 1,600 | F21: 1,400 | G21: 900 | H21: 17
B22: 18 | C22: 写真加工で作る風景イラスト 神技作画シリーズ | D22: 2,200 | E22: 1,760 | F22: 1,540 | G22: 990 | H22: 18
B23: 19 | C23: 写真加工で作る風景イラスト 神技作画シリーズ | D23: 2,200 | E23: 1,760 | F23: 1,540 | G23: 990 | H23: 19
B24: 20 | C24: 重力とは何か アインシュタインから超弦理論へ、宇宙の謎に迫る | D24: 700 | E24: 560 | F24: 490 | G24: 320 | H24: 20
B25: 21 | C25: 図説 メイドインアビス 探窟記録【電子特典付き】 | D25: 5,500 | E25: 4,400 | F25: 3,850 | G25: 2,480 | H25: 21
B26: 22 | C26: 成功の秘密にアクセスできるギャラクシー・コード | D26: 1,500 | E26: 1,200 | F26: 1,050 | G26: 680 | H26: 22
B27: 23 | C27: 太陽系 絶景画像50 | D27: 500 | E27: 400 | F27: 350 | G27: 230 | H27: 23
B28: 24 | C28: 踊りませんか？ 社交ダンスの世界 | D28: 600 | E28: 480 | F28: 420 | G28: 270 | H28: 24
B29: 25 | H29: 25
B30: 26 | H30: 26
B31: 27 | H31: 27
B32: 28 | H32: 28
B33: 29 | H33: 29
B34: 30 | H34: 30
B35: 31 | H35: 31
B36: 32 | H36: 32
B37: 33 | H37: 33
B38: 34 | H38: 34
B39: 35 | H39: 35
B40: 36 | H40: 36
B41: 37 | H41: 37
B42: 38 | H42: 38
B43: 39 | H43: 39
B44: 40 | H44: 40
B45: 41 | H45: 41
B46: 42 | H46: 42
B47: 43 | H47: 43
B48: 44 | H48: 44
B49: 45 | H49: 45
B50: 46 | H50: 46
B51: 47 | H51: 47
B52: 48 | H52: 48
B53: 49 | H53: 49
B54: 50 | H54: 50
B55: 51 | H55: 51
B56: 52 | H56: 52
B57: 53 | H57: 53
B58: 54 | H58: 54
B59: 55 | H59: 55
B60: 56 | H60: 56
B61: 57 | H61: 57
B62: 58 | H62: 58
B63: 59 | H63: 59
B64: 60 | H64: 60
B65: 61 | H65: 61
B66: 62 | H66: 62
B67: 63 | H67: 63
B68: 64 | H68: 64
B69: 65 | H69: 65
B70: 66 | H70: 66
B71: 67 | H71: 67
B72: 68 | H72: 68
B73: 69 | H73: 69
B74: 70 | H74: 70
B75: 71 | H75: 71
B76: 72 | H76: 72
B77: 73 | H77: 73
B78: 74 | H78: 74
B79: 75 | H79: 75
B80: 76 | H80: 76
B81: 77 | H81: 77
B82: 78 | H82: 78
B83: 79 | H83: 79
B84: 80 | H84: 80
B85: 81 | H85: 81
B86: 82 | H86: 82
B87: 83 | H87: 83
B88: 84 | H88: 84
B89: 85 | H89: 85
B90: 86 | H90: 86
B91: 87 | H91: 87
B92: 88 | H92: 88
B93: 89 | H93: 89
B94: 90 | H94: 90
B95: 91 | H95: 91
B96: 92 | H96: 92
B97: 93 | H97: 93
B98: 94 | H98: 94
B99: 95 | H99: 95
B100: 96 | H100: 96
B101: 97 | H101: 97
B102: 98 | H102: 98
B103: 99 | H103: 99
B104: 100 | H104: 100
B105: 101 | H105: 101
B106: 102 | H106: 102
B107: 103 | H107: 103
B108: 104 | H108: 104
B109: 105 | H109: 105
B110: 106 | H110: 106
B111: 107 | H111: 107
B112: 108 | H112: 108
B113: 109 | H113: 109
B114: 110 | H114: 110
B115: 111 | H115: 111
B116: 112 | H116: 112
B117: 113 | H117: 113
B118: 114 | H118: 114
B119: 115 | H119: 115
B120: 116 | H120: 116
B121: 117 | H121: 117
B122: 118 | H122: 118
B123: 119 | H123: 119
B124: 120 | H124: 120
B125: 121 | H125: 121
B126: 122 | H126: 122
B127: 123 | H127: 123
B128: 124 | H128: 124
B129: 125 | H129: 125
B130: 126 | H130: 126
B131: 127 | H131: 127
B132: 128 | H132: 128
B133: 129 | H133: 129
B134: 130 | H134: 130
B135: 131 | H135: 131
B136: 132 | H136: 132
B137: 133 | H137: 133
B138: 134 | H138: 134
B139: 135 | H139: 135
B140: 136 | H140: 136
B141: 137 | H141: 137
B142: 138 | H142: 138
B143: 139 | H143: 139
B144: 140 | H144: 140
B145: 141 | H145: 141
B146: 142 | H146: 142
B147: 143 | H147: 143
B148: 144 | H148: 144
B149: 145 | H149: 145
B150: 146 | H150: 146
B151: 147 | H151: 147
B152: 148 | H152: 148
B153: 149 | H153: 149
B154: 150 | H154: 150
B155: 151 | H155: 151
B156: 152 | H156: 152
B157: 153 | H157: 153
B158: 154 | H158: 154
B159: 155 | H159: 155
B160: 156 | H160: 156
B161: 157 | H161: 157
B162: 158 | H162: 158
B163: 159 | H163: 159
B164: 160 | H164: 160
B165: 161 | H165: 161
B166: 162 | H166: 162
B167: 163 | H167: 163
B168: 164 | H168: 164
B169: 165 | H169: 165
B170: 166 | H170: 166
B171: 167 | H171: 167
B172: 168 | H172: 168
B173: 169 | H173: 169
B174: 170 | H174: 170
B175: 171 | H175: 171
B176: 172 | H176: 172
B177: 173 | H177: 173
B178: 174 | H178: 174
B179: 175 | H179: 175
B180: 176 | H180: 176
B181: 177 | H181: 177
B182: 178 | H182: 178
B183: 179 | H183: 179
B184: 180 | H184: 180
B185: 181 | H185: 181
B186: 182 | H186: 182
B187: 183 | H187: 183
B188: 184 | H188: 184
B189: 185 | H189: 185
B190: 186 | H190: 186
B191: 187 | H191: 187
B192: 188 | H192: 188
B193: 189 | H193: 189
B194: 190 | H194: 190
B195: 191 | H195: 191
B196: 192 | H196: 192
B197: 193 | H197: 193
B198: 194 | H198: 194
B199: 195 | H199: 195
B200: 196 | H200: 196
B201: 197 | H201: 197
... 3 more rows

Sheet 棚卸後在庫変更履歴
A1: 通番 | B1: 登録日時 | C1: 顧客 | D1: 納品書番号 | E1: 発注先 | F1: 入荷伝票 | G1: 項番 | H1: 商品番号 | I1: 商品名 | J1: 数量 | K1: 単価 | L1: 金額 | M1: 価格区分 | N1: 納品・入荷日

Sheet 在庫変更全履歴
A1: 通番 | B1: 登録日時 | C1: 顧客 | D1: 納品書番号 | E1: 発注先 | F1: 入荷伝票 | G1: 項番 | H1: 商品番号 | I1: 商品名 | J1: 数量 | K1: 単価 | L1: 金額 | M1: 価格区分 | N1: 納品・入荷日

Sheet 棚卸履歴
A1: 通番 | B1: 登録日時 | C1: 棚卸通番 | D1: 商品番号 | E1: 商品名 | F1: 数量 | G1: 棚卸日
